Workbook

Sheet Cover Sheet

Sheet Simple Instruction Manual
E1: ＜바닥 충격음 계산 시트：확산도법＞
D4: ＜확산도법에 의한 마루 충격음 계산법 · 간이 설명서＞
E6: <바닥 충격음 계산 시트>에 의해, 각종 조건하의 바닥 구조의 중량 바닥 충격음 성능을 계산할 수 있습니다. 설계시의 조건 검토용으로서 이용해 주십시오. 다만, 이것은 성능을 보증하는 것이 아니기 때문에, 미리 양해 바랍니다.
E8: 1.입력 데이터에 관하여
E9: ■입력 데이터는 각 항목의 단위에 따라 아래 그림과 같이 입력하십시오.
E28: ■바닥 슬래브의 치수는 충또는 작은 보 에 관계없이 큰 빔 로 둘러싸인 부분의 치수를 입력하십시오.
E29: ■충격점 위치의 입력에서는 x, y 의 2방향에 관해서, 각 충격점으로부터 가장 거리가 가까운 단부 또는 작은 보 까지의 거리를 입력해 주십시오.
E30: ■충격점 위치의 입력에 작은 보 가 있는 경우는, 작은 보 의 란의 작은 컬럼에 1을 넣어 주세요. 작은 보 가 없는 경우는 0을 넣어 주세요. X방향 단부에 작은 보 소빔이 있는 경우는 x방향란에, y방향단부에 작은 보 가 있는 경우는 y방향란에 1을 넣어 주세요.
E31: ■작은 보 의 조건은 두께만 입력하고 폭은 무시하십시오.
E32: ■충격점이 5점 미만일 때는, 불필요한 셀에 x방향, y방향 모두 0.0000001과 같은 충분히 작은 값을 넣어 두십시오. 그러나 0은 불가능합니다.
E34: ２．참고값
E35: ■참고값는 각각 자동으로 계산되어 결과를 표시합니다.
E38: ３．계산 결과
E39: ■입력 데이터의 위치에 조건을 입력하고, 버튼을 클릭하면 계산 결과가 표시됩니다.
E40: (주파수 범위 관계에서 Visual Basic 오류 메시지가 나타날 수 있지만 계산 결과와는 관련이 없습니다)
E42: ４．기타
E43: ■보이드 슬래브의 계산의 경우에는 <보이드 환산> 시트를 사용하여 균질판으로 환산했을 때의 판 두께와 단위 체적 중량을 구하여 <계산 시트>에 데이터 입력하십시오.
E44: ■충격력과 실내 평균 흡음률은 <가진력·흡음율 설정 시트>에서 변경 가능합니다. 필요에 따라 값을 입력하십시오.
E47: 작성：소음 문제 종합 연구소

Sheet Calculation Sheet
G1: ＜바닥 충격음 계산 시트：확산도법＞
C3: 제목
C5: ＜구조 유형＞ 순수라면=1、기타＝0 | F5: 구조 지정 | G5: 0
C7: 동적 영률(N/m2) | D7: 29000000000 | F7: 밀도(kg/m3) | G7: 2400 | J7: 포아송 비율 | L7: 0.16
D8: （ｘ방향） | F8: （ｙ방향）
C9: 바닥 슬래브 치수(m) | D9: 6.4 | E9: × | F9: 4.5 | J9: 바닥 슬래브 두께(mm) | L9: 200
C10: ＊ 순라멘 구조의 경우는 대보심 치수, 그 이외는 벽심 치수를 입력
C11: 구속조건 | D11: 0.3 | E11: （단순지지：0、주변 고정：1） | J11: 감쇠 상수 | L11: 0.03
C12: ＊ 순수라면 구조：0.3、벽 구조：0.2、그 외：0.8권장
C13: 실 치수(m) | D13: 5.54 | E13: × | F13: 3.52 | J13: 천장 높이(m) | L13: 2.4
C15: 대량폭(m) | D15: 0.72 | F15: 빔 높이(mm) | G15: 800 | J15: 에지 자유 조건 | L15: 1
C16: ＊ 순라멘 구조 이외의 경우는 이 행의 대빔 관련 데이터는 입력 불필요 | J16: ＊한쪽 자유： 1、양측 프리： 2
C17: 충격점 수 | D17: 5
D18: （ｘ方向） | F18: （ｙ方向） | J18: （ｘ方向） | L18: （ｙ方向）
C19: 충격점 위치１(m) | D19: 1.39 | F19: 1.95 | G19: 작은 보 두께(m) | I19: 0 | J19: 0 | K19: 0 | L19: 0
C21: 충격점 위치２(m) | D21: 1.39 | F21: 1.95 | G21: 작은 보 두께(m) | I21: 0 | J21: 0 | K21: 0 | L21: 0
C23: 충격점 위치３(m) | D23: 2.77 | F23: 1.3 | G23: 작은 보 두께(m) | I23: 0 | J23: 0 | K23: 0 | L23: 0
C25: 충격점 위치４(m) | D25: 1.39 | F25: 0.65 | G25: 작은 보 두께(m) | I25: 0 | J25: 0 | K25: 0 | L25: 0
C27: 충격점 위치5(m) | D27: 1.39 | F27: 0.65 | G27: 작은 보 두께(m) | I27: 0 | J27: 0 | K27: 0 | L27: 0
C29: ＜참고값＞
C31: 고유 진동수(Hz) | D31: =IF(G5=1,'計算表（参考）'!BJ35,"＊") -> ＊ | F31: 고유 진동수(s)(Hz) | G31: =IF(G5=0,'計算表（参考）'!O37,"＊") -> 23.5559796 | J31: 고유 진동수(c)(Hz) | L31: =IF(G5=0,'計算表（参考）'!O38,"＊") -> 45.6710833
F32: (s) : simply supported | J32: (c) : clamped
C33: 등가 치수 배율 | D33: =IF(G5=1,'計算表（参考）'!BJ80,"＊") -> ＊ | F33: 굽힘파 파장(m/s) | G33: ='計算表（参考）'!W47 -> 4.501857096 | J33: 일치 주파수(Hz) | L33: ='計算表（参考）'!O39 -> 90.53866307
C36: ＜계산 결과＞
C38: 중심 주파수 | D38: 바닥 충격음 수준
C39: (Hz) | D39: (dB)
C40: (31.5) | D40: ='計算表（参考）'!C20 -> 79.66843425
C41: 63 | D41: ='計算表（参考）'!E20 -> 78.54402125
C42: 125 | D42: ='計算表（参考）'!F20 -> 63.17707712
C43: 250 | D43: ='計算表（参考）'!G20 -> 49.68175577
C44: 500 | D44: ='計算表（参考）'!H20 -> 39.14305521
C47: 평가값 | D47: ='計算表（参考）'!K134 -> 49
G55: 작성：소음 문제 종합 연구소

Sheet Void-slab Conversion Sheet
B1: ＜바닥 충격음 계산 시트：확산도법＞
C4: ＜보이드 슬래브 변환 시트＞
D8: １） 원형 1방향 중공 슬래브의 경우
G9: ｂ
H11: ｄ
I12: ｈ
G13: ｒ
G15: ｒ
E16: 입력 조건
E17: b (mm) | F17: 250 | H17: d (mm) | I17: 125
E19: h (mm) | F19: 250 | H19: r (mm) | I19: 62.5
E22: 변환 전
E23: 판 두께(mm) | F23: =F19 -> 250 | H23: 밀도(kg/m3) | J23: 2400
E25: 변환 후
E26: 판 두께(mm) | F26: =((F17*F19^3/12-(3.14*I19^4/4+(F19/2-I17)^2*3.14*I19^2))*12/F17)^(1/3) -> 246.8951941 | H26: 밀도(kg/m3) | J26: =((F17*F19-3.14*I19^2)*J23)/F17/F26 -> 1953.257947
D29: ２） 2방향 중공 슬래브의 경우
E31: <ｘ방향> | I31: <ｙ방향>
L32: ｄ１
N33: ｈ
L34: ｄ２
F37: ｂｘ | J37: ｂｙ
F38: ｔｘ | J38: ｔｙ
E41: 입력 조건
E42: tx (mm) | F42: 1350 | H42: ty (mm) | I42: 580 | K42: h (mm) | M42: 250
E44: bx (mm) | F44: 1200 | H44: by (mm) | I44: 430 | K44: d1 (mm) | M44: 60
K46: d2 (mm) | M46: 120
E47: 변환 전
E48: 판 두께(mm) | F48: =M42 -> 250 | H48: 밀도(kg/m3) | J48: 2400
E50: 변환 후
E51: 판 두께(mm) | F51: =(12*((F42*I42-F44*I44)*M42^3/12+F44*I44*(M42^3/12-(M46^3/12+(M42/2-M44-M46/2)^2*M46)))/(F42*I42))^(1/3) -> 243.6396479 | H51: 밀도(kg/m3) | J51: =((F42*I42*M42-F44*I44*M46)*J48)/F42/I42/F51 -> 1683.662327
I62: 작성：소음 문제 종합 연구소

Sheet Impact Force Sheet
F1: ＜바닥 충격음 계산 시트：확산도법＞
B3: ＜충격력 및 실내 평균 흡음률 설정＞
C4: 충격력이나 실내 평균 흡음력을 변경하기 위한 시트입니다. 여기에서 설정된 값은 바닥 충격음 계산 시트의 계산에 반영됩니다. 필요한 경우 아래 표의 파란색 부분에 숫자를 입력합니다.
C5: ■충격력의 설정값은 다음과 같습니다. 필요한 경우 수정하십시오. 또, 실내 평균 흡음율도 일반적인 값을 넣고 있습니다만, 현장등의 상황에 맞추어 변경해 주세요.
C6: ＜데이터 입력 테이블＞
C7: 중심 주파수 (Hz) | F7: 31.5 | G7: 63 | H7: 125 | I7: 250 | J7: 500 | K7: 1000 | L7: 2000 | M7: 4000
C8: 충격력(dB) | F8: 47 | G8: 38 | H8: 23 | I8: 13 | J8: 5 | K8: 0 | L8: -5 | M8: -10
C9: 실내 평균 흡음률 | F9: 0.1 | G9: 0.1 | H9: 0.1 | I9: 0.1 | J9: 0.15 | K9: 0.15 | L9: 0.2 | M9: 0.2
C10: ＜참고＞ ■JIS(일본 공업 규격)의 충격력 특성에서는 뱅머신의 충격 특성(1), 임팩트 볼의 충격력 특성(2)이 각각 아래 표와 같습니다.
C12: 중심 주파수 (Hz) | F12: 31.5 | G12: 63 | H12: 125 | I12: 250 | J12: 500
C13: 충격력 (dB) | F13: 47 | G13: 40 | H13: 22 | I13: 11.5 | J13: 5.5
C14: 허용 편차 (dB) | F14: ±1.0 | G14: ±1.5 | H14: ±1.5 | I14: ±2.0 | J14: ±2.0
C16: 중심 주파수 (Hz) | F16: 31.5 | G16: 63 | H16: 125 | I16: 250 | J16: 500
C17: 충격력 (dB) | F17: 39 | G17: 31 | H17: 23 | I17: 16 | J17: 11.5
C18: 허용 편차 (dB) | F18: ±1.0 | G18: ±1.5 | H18: ±1.5 | I18: ±2.0 | J18: ±2.0
K21: 작성：소음 문제 종합 연구소

Sheet 計算表（参考） (hidden)
B2: <L等級算出＞ | N2: <入力データ＞ | S2: ＜計算経過表＞ | AU2: ＜小梁拘束計算＞ | BH2: ＜純ラーメン構造関係計算＞
BH3: （固有振動数計算）
E4: 63 | F4: 125 | G4: 250 | H4: 500 | O4: ='Calculation Sheet'!D7 -> 29000000000 | S4: 周波数(Hz) | V4: 31.5 | W4: 63 | X4: 125 | Y4: 250 | Z4: 500 | AA4: 1000 | AB4: 2000 | AC4: 4000 | AF4: 周波数(Hz) | AI4: 31.5 | AJ4: 63 | AK4: 125 | AL4: 250 | AM4: 500 | AN4: 1000 | AO4: 2000 | AP4: 4000 | AU4: 周波数(Hz) | AX4: 31.5 | AY4: 63 | AZ4: 125 | BA4: 250 | BB4: 500 | BC4: 1000 | BD4: 2000 | BE4: 4000
E5: =F5+10 -> 72 | F5: =G5+7 -> 62 | G5: =H5+6 -> 55 | H5: =K134 -> 49 | O5: ='Calculation Sheet'!G7 -> 2400 | S5: 加振力(dB) | V5: ='Impact Force Sheet'!F8 -> 47 | W5: ='Impact Force Sheet'!G8 -> 38 | X5: ='Impact Force Sheet'!H8 -> 23 | Y5: ='Impact Force Sheet'!I8 -> 13 | Z5: ='Impact Force Sheet'!J8 -> 5 | AA5: ='Impact Force Sheet'!K8 -> 0 | AB5: ='Impact Force Sheet'!L8 -> -5 | AC5: ='Impact Force Sheet'!M8 -> -10 | AD5: (可変） | AF5: 駆動点インピーダンス(dB) | AG5: ｓ | AH5: 1 | AI5: =20*LOG10($O$41)+V$49+AX$15 -> 103.8150421 | AJ5: =20*LOG10($O$41)+W$49+AY$15 -> 108.340071 | AK5: 111.6529536 | AL5: 115.8729322 | AM5: 117.8499067 | AN5: 117.8499067 | AO5: 117.8499067 | AP5: 117.8499067 | AU5: 小梁による端部拘束 加振点１(dB) | AV5: s | AW5: x | AX5: =-3*$BF5*LOG10($O$16/V$47)-1.2*$BF5 -> -0.7826757075 | AY5: -0.331130714 | AZ5: 0.1152234813 | BA5: 0.5667684748 | BB5: 1.018313468 | BC5: 1.469858462 | BD5: 1.921403455 | BE5: 2.372948449 | BF5: =(O18-$O$7/1000)/($O$7/1000) -> -1 | BH5: E | BJ5: =O4 -> 29000000000
C6: L-80 | E6: 103 | F6: 93 | G6: 86 | H6: 80 | O6: ='Calculation Sheet'!L7 -> 0.16 | S6: 室内平均吸音率 | V6: ='Impact Force Sheet'!F9 -> 0.1 | W6: ='Impact Force Sheet'!G9 -> 0.1 | X6: ='Impact Force Sheet'!H9 -> 0.1 | Y6: ='Impact Force Sheet'!I9 -> 0.1 | Z6: ='Impact Force Sheet'!J9 -> 0.15 | AA6: ='Impact Force Sheet'!K9 -> 0.15 | AB6: ='Impact Force Sheet'!L9 -> 0.2 | AC6: ='Impact Force Sheet'!M9 -> 0.2 | AD6: (可変） | AG6: ｃ | AI6: =20*LOG10($O$41)+V$51+AX$26 -> 116.3332519 | AJ6: =20*LOG10($O$41)+W$51+AY$26 -> 104.0969435 | AK6: 108.3193039 | AL6: 115.5603199 | AM6: 117.8499067 | AN6: 117.8499067 | AO6: 117.8499067 | AP6: 117.8499067 | AX6: =MAX(AX5,0) -> 0 | AY6: =MAX(AY5,0) -> 0 | AZ6: 0.1152234813 | BA6: 0.5667684748 | BB6: 1.018313468 | BC6: 1.469858462 | BD6: 1.921403455 | BE6: 2.372948449 | BH6: γ | BJ6: =O5 -> 2400
C7: L-75 | E7: 98 | F7: 88 | G7: 81 | H7: 75 | O7: ='Calculation Sheet'!L9 -> 200 | S7: モード数 | T7: s | U7: 1 | V7: ='計算表s-1'!C6 -> 0.8399028217 | W7: ='計算表s-1'!D6 -> 1.716334507 | X7: ='計算表s-1'!E6 -> 2.436368811 | Y7: ='計算表s-1'!F6 -> 4.63596018 | Z7: ='計算表s-1'!G6 -> 9.780563899 | AA7: ='計算表s-1'!H6 -> 18.15318141 | AB7: ='計算表s-1'!I6 -> 27.69849356 | AC7: ='計算表s-1'!J6 -> 56.20401632 | AG7: ｓ | AH7: 2 | AI7: =20*LOG10($O$41)+V$53+AX$37 -> 103.8150421 | AJ7: =20*LOG10($O$41)+W$53+AY$37 -> 108.340071 | AK7: 111.6529536 | AL7: 115.8729322 | AM7: 117.8499067 | AN7: 117.8499067 | AO7: 117.8499067 | AP7: 117.8499067 | AX7: =IF($N$18=1,AX6) -> FALSE | AY7: =IF($N$18=1,AY6) -> FALSE | AZ7: FALSE | BA7: FALSE | BB7: FALSE | BC7: FALSE | BD7: FALSE | BE7: FALSE | BH7: σ | BJ7: =O6 -> 0.16
C8: L-70 | E8: 93 | F8: 83 | G8: 76 | H8: 70 | M8: 入力値 | N8: 大梁内々 | O8: ='Calculation Sheet'!L11 -> 0.03 | P8: 採用値 | T8: c | V8: ='計算表c-1'!C6 -> 0.3356244474 | W8: ='計算表c-1'!D6 -> 1.214759041 | X8: ='計算表c-1'!E6 -> 1.713025514 | Y8: ='計算表c-1'!F6 -> 4.366482824 | Z8: ='計算表c-1'!G6 -> 9.715375593 | AA8: ='計算表c-1'!H6 -> 17.67712591 | AB8: ='計算表c-1'!I6 -> 26.9721184 | AC8: ='計算表c-1'!J6 -> 54.73010217 | AG8: ｃ | AI8: =20*LOG10($O$41)+V$55+AX$48 -> 116.3332519 | AJ8: =20*LOG10($O$41)+W$55+AY$48 -> 104.0969435 | AK8: 108.3193039 | AL8: 115.5603199 | AM8: 117.8499067 | AN8: 117.8499067 | AO8: 117.8499067 | AP8: 117.8499067 | AX8: =IF($N$18=0,V69) -> 0 | AY8: =IF($N$18=0,W69) -> 0 | AZ8: 0 | BA8: 0 | BB8: 0 | BC8: 0 | BD8: 0 | BE8: 0 | BH8: ｔ | BJ8: =O7 -> 200
C9: L-65 | E9: 88 | F9: 78 | G9: 71 | H9: 65 | M9: ='Calculation Sheet'!D9 -> 6.4 | N9: =M9-'Calculation Sheet'!D15 -> 5.68 | O9: =MAX(P9,P10) -> 6.4 | P9: =IF('Calculation Sheet'!G5=1,N9,M9) -> 6.4 | T9: s | U9: 2 | V9: ='計算表s-2'!C6 -> 0.8399028217 | W9: ='計算表s-2'!D6 -> 1.716334507 | X9: ='計算表s-2'!E6 -> 2.436368811 | Y9: ='計算表s-2'!F6 -> 4.63596018 | Z9: ='計算表s-2'!G6 -> 9.780563899 | AA9: ='計算表s-2'!H6 -> 18.1531799 | AB9: ='計算表s-2'!I6 -> 27.69849125 | AC9: ='計算表s-2'!J6 -> 56.20401164 | AG9: ｓ | AH9: 3 | AI9: =20*LOG10($O$41)+V$57+AX$59 -> 106.1093455 | AJ9: =20*LOG10($O$41)+W$57+AY$59 -> 107.4772916 | AK9: 111.7102229 | AL9: 115.6779004 | AM9: 117.8499067 | AN9: 117.8499067 | AO9: 117.8499067 | AP9: 117.8499067 | AX9: =MAX(AX7,AX8) -> 0 | AY9: =MAX(AY7,AY8) -> 0 | AZ9: 0 | BA9: 0 | BB9: 0 | BC9: 0 | BD9: 0 | BE9: 0 | BH9: ｌｘ（大梁内々） | BJ9: =N9 -> 5.68
C10: L-60 | E10: 83 | F10: 73 | G10: 66 | H10: 60 | M10: ='Calculation Sheet'!F9 -> 4.5 | N10: =M10-'Calculation Sheet'!D15 -> 3.78 | O10: =MIN(P9,P10)*BJ83 -> 4.5 | P10: =IF('Calculation Sheet'!G5=1,N10,M10) -> 4.5 | T10: c | V10: ='計算表c-2'!C6 -> 0.3356244474 | W10: ='計算表c-2'!D6 -> 1.214759041 | X10: ='計算表c-2'!E6 -> 1.713025514 | Y10: ='計算表c-2'!F6 -> 4.366482824 | Z10: ='計算表c-2'!G6 -> 9.715375593 | AA10: ='計算表c-2'!H6 -> 17.67712591 | AB10: ='計算表c-2'!I6 -> 26.9721184 | AC10: ='計算表c-2'!J6 -> 54.73010217 | AG10: ｃ | AI10: =20*LOG10($O$41)+V$59+AX$70 -> 115.7981588 | AJ10: =20*LOG10($O$41)+W$59+AY$70 -> 102.6851241 | AK10: 110.8646686 | AL10: 115.561818 | AM10: 117.8499067 | AN10: 117.8499067 | AO10: 117.8499067 | AP10: 117.8499067 | AW10: y | AX10: =-3*$BF10*LOG10($O$17/V$47)-1.2*$BF10 -> -0.3416162742 | AY10: 0.1099287193 | AZ10: 0.5562829146 | BA10: 1.007827908 | BB10: 1.459372902 | BC10: 1.910917895 | BD10: 2.362462889 | BE10: 2.814007882 | BF10: =(O19-$O$7/1000)/($O$7/1000) -> -1 | BH10: ｌｙ（大梁内々） | BJ10: =N10 -> 3.78
C11: L-55 | E11: 78 | F11: 68 | G11: 61 | H11: 55 | O11: ='Calculation Sheet'!D13 -> 5.54 | T11: s | U11: 3 | V11: ='計算表s-3'!C6 -> 0.7065328888 | W11: ='計算表s-3'!D6 -> 1.587689028 | X11: ='計算表s-3'!E6 -> 2.45334584 | Y11: ='計算表s-3'!F6 -> 4.464546933 | Z11: ='計算表s-3'!G6 -> 9.706691662 | AA11: ='計算表s-3'!H6 -> 18.91112544 | AB11: ='計算表s-3'!I6 -> 28.85497998 | AC11: ='計算表s-3'!J6 -> 58.5506848 | AG11: ｓ | AH11: 4 | AI11: =20*LOG10($O$41)+V$61+AX$81 -> 119.5429636 | AJ11: =20*LOG10($O$41)+W$61+AY$81 -> 107.5242657 | AK11: 112.8637891 | AL11: 116.585031 | AM11: 117.8499067 | AN11: 117.8499067 | AO11: 117.8499067 | AP11: 117.8499067 | AX11: =MAX(AX10,0) -> 0 | AY11: =MAX(AY10,0) -> 0.1099287193 | AZ11: 0.5562829146 | BA11: 1.007827908 | BB11: 1.459372902 | BC11: 1.910917895 | BD11: 2.362462889 | BE11: 2.814007882 | BH11: sqrt(b/m) | BJ11: =SQRT(BJ5*(BJ8/1000)^3/12/(1-BJ7^2)/(BJ6*BJ8/1000)) -> 203.3125152
C12: L-50 | E12: 73 | F12: 63 | G12: 56 | H12: 50 | O12: ='Calculation Sheet'!F13 -> 3.52 | T12: c | V12: ='計算表c-3'!C6 -> 0.4180754129 | W12: ='計算表c-3'!D6 -> 0.9076455974 | X12: ='計算表c-3'!E6 -> 2.222049963 | Y12: ='計算表c-3'!F6 -> 4.367708538 | Z12: ='計算表c-3'!G6 -> 9.146191768 | AA12: ='計算表c-3'!H6 -> 17.71764076 | AB12: ='計算表c-3'!I6 -> 27.03393678 | AC12: ='計算表c-3'!J6 -> 54.85554009 | AG12: ｃ | AI12: =20*LOG10($O$41)+V$63+AX$92 -> 134.1227705 | AJ12: =20*LOG10($O$41)+W$63+AY$92 -> 118.7407319 | AK12: 113.350663 | AL12: 116.1778223 | AM12: 117.8499067 | AN12: 117.8499067 | AO12: 117.8499067 | AP12: 117.8499067 | AX12: =IF($N$19=1,AX11) -> FALSE | AY12: =IF($N$19=1,AY11) -> FALSE | AZ12: FALSE | BA12: FALSE | BB12: FALSE | BC12: FALSE | BD12: FALSE | BE12: FALSE | BH12: s | BJ12: =3.14/2*BJ11*(1/BJ9^2+1/BJ10^2) -> 32.23373591
C13: L-45 | E13: 68 | F13: 58 | G13: 51 | H13: 45 | O13: ='Calculation Sheet'!L13 -> 2.4 | T13: s | U13: 4 | V13: ='計算表s-4'!C6 -> 0.3777441646 | W13: ='計算表s-4'!D6 -> 1.289011528 | X13: ='計算表s-4'!E6 -> 2.845179236 | Y13: ='計算表s-4'!F6 -> 5.372100839 | Z13: ='計算表s-4'!G6 -> 10.09906507 | AA13: ='計算表s-4'!H6 -> 16.71134399 | AB13: ='計算表s-4'!I6 -> 25.49850869 | AC13: ='計算表s-4'!J6 -> 51.73994736 | AG13: ｓ | AH13: 5 | AI13: =20*LOG10($O$41)+V$65+AX$103 -> 119.5429636 | AJ13: =20*LOG10($O$41)+W$65+AY$103 -> 107.5242657 | AK13: 112.8637891 | AL13: 116.585031 | AM13: 117.8499067 | AN13: 117.8499067 | AO13: 117.8499067 | AP13: 117.8499067 | AX13: =IF($N$19=0,V71) -> 0 | AY13: =IF($N$19=0,W71) -> 0 | AZ13: 0 | BA13: 0 | BB13: 0 | BC13: 0 | BD13: 0 | BE13: 0 | BH13: c | BJ13: =2*3.14/3*BJ11*SQRT((1/BJ9^2+1/BJ10^2)^2+2*(1/BJ9^4+1/BJ10^4)) -> 63.00517454
C14: L-40 | E14: 63 | F14: 53 | G14: 46 | H14: 40 | O14: ='Calculation Sheet'!D11 -> 0.3 | T14: c | V14: ='計算表c-4'!C6 -> 0.1504256511 | W14: ='計算表c-4'!D6 -> 0.5782239585 | X14: ='計算表c-4'!E6 -> 1.824585824 | Y14: ='計算表c-4'!F6 -> 4.928134946 | Z14: ='計算表c-4'!G6 -> 10.25510645 | AA14: ='計算表c-4'!H6 -> 15.74902918 | AB14: ='計算表c-4'!I6 -> 24.03018918 | AC14: ='計算表c-4'!J6 -> 48.76052706 | AG14: ｃ | AI14: =20*LOG10($O$41)+V$67+AX$114 -> 134.1227705 | AJ14: =20*LOG10($O$41)+W$67+AY$114 -> 118.7407319 | AK14: 113.350663 | AL14: 116.1778223 | AM14: 117.8499067 | AN14: 117.8499067 | AO14: 117.8499067 | AP14: 117.8499067 | AX14: =MAX(AX12,AX13) -> 0 | AY14: =MAX(AY12,AY13) -> 0 | AZ14: 0 | BA14: 0 | BB14: 0 | BC14: 0 | BD14: 0 | BE14: 0
C15: L-35 | E15: 58 | F15: 48 | G15: 41 | H15: 35 | O15: ='Calculation Sheet'!D17 -> 5 | T15: s | U15: 5 | V15: ='計算表s-5'!C6 -> 0.3777441646 | W15: ='計算表s-5'!D6 -> 1.289011528 | X15: ='計算表s-5'!E6 -> 2.845179236 | Y15: ='計算表s-5'!F6 -> 5.372100839 | Z15: ='計算表s-5'!G6 -> 10.09906507 | AA15: ='計算表s-5'!H6 -> 16.71134399 | AB15: ='計算表s-5'!I6 -> 25.49850869 | AC15: ='計算表s-5'!J6 -> 51.73994736 | AF15: cbの値 | AI15: =SQRT(3.14*$O$36*$O$7/1000*AI4/1.7320508) -> 200.5474556 | AJ15: 283.6169316 | AK15: 399.500094 | AL15: 564.9784511 | AM15: 799.0001881 | AN15: 1129.956902 | AO15: 1598.000376 | AP15: 2259.913805 | AX15: =SQRT(AX9^2+AX14^2) -> 0 | AY15: =SQRT(AY9^2+AY14^2) -> 0 | AZ15: 0 | BA15: 0 | BB15: 0 | BC15: 0 | BD15: 0 | BE15: 0 | BH15: width | BJ15: ='Calculation Sheet'!D15 -> 0.72
C16: L-30 | E16: 53 | F16: 43 | G16: 36 | H16: 30 | O16: ='Calculation Sheet'!D19 -> 1.39 | T16: c | V16: ='計算表c-5'!C6 -> 0.1504256511 | W16: ='計算表c-5'!D6 -> 0.5782239585 | X16: ='計算表c-5'!E6 -> 1.824585824 | Y16: ='計算表c-5'!F6 -> 4.928134946 | Z16: ='計算表c-5'!G6 -> 10.25510645 | AA16: ='計算表c-5'!H6 -> 15.74902918 | AB16: ='計算表c-5'!I6 -> 24.03018918 | AC16: ='計算表c-5'!J6 -> 48.76052706 | AF16: ｋｒの値 | AI16: =2*3.14*AI4/AI15*$O$40 -> 2.458184248 | AJ16: =2*3.14*AJ4/AJ15*$O$40 -> 3.476397502 | AK16: 4.896820233 | AL16: 6.925149586 | AM16: 9.793640466 | AN16: 13.85029917 | AO16: 19.58728093 | AP16: 27.70059834 | AV16: c | AW16: x | AX16: =-3*$BF16*LOG10($O$16/V$47)-1.2*$BF16 -> -0.7826757075 | AY16: -0.331130714 | AZ16: 0.1152234813 | BA16: 0.5667684748 | BB16: 1.018313468 | BC16: 1.469858462 | BD16: 1.921403455 | BE16: 2.372948449 | BF16: =(O18-$O$7/1000)/($O$7/1000) -> -1 | BH16: ｌｘ（大梁外々） | BJ16: =BJ9+2*BJ15 -> 7.12
C17: 計算値 | E17: =E20 -> 78.54402125 | F17: =F20 -> 63.17707712 | G17: 49.68175577 | H17: 39.14305521 | O17: ='Calculation Sheet'!F19 -> 1.95 | T17: s | U17: 1 | V17: =1-V7^(-0.75) -> -0.139798864 | W17: =1-W7^(-0.75) -> 0.333118685 | X17: 0.4872062461 | Y17: 0.6834843217 | Z17: 0.8191880713 | AA17: 0.8862934614 | AB17: 0.9171756783 | AC17: 0.9512836786 | AF17: αの値 | AI17: =1-EXP(-12.5*3.14*$O$9*$O$10*$O$8*AI4/(2*($O$9+$O$10))/AI15) -> 0.2167768282 | AJ17: =1-EXP(-12.5*3.14*$O$9*$O$10*$O$8*AJ4/(2*($O$9+$O$10))/AJ15) -> 0.2921659113 | AK17: 0.3853683625 | AL17: 0.4975922377 | AM17: 0.6222279501 | AN17: 0.7475864403 | AO17: 0.8572882783 | AP17: 0.9362873949 | AX17: =MAX(AX16,0) -> 0 | AY17: =MAX(AY16,0) -> 0 | AZ17: 0.1152234813 | BA17: 0.5667684748 | BB17: 1.018313468 | BC17: 1.469858462 | BD17: 1.921403455 | BE17: 2.372948449 | BH17: ｌｙ（大梁外々） | BJ17: =BJ10+2*BJ15 -> 5.22
N18: ='Calculation Sheet'!I19 -> 0 | O18: ='Calculation Sheet'!J19 -> 0 | V18: =1-(1/V7)^(-0.75) -> 0.1226522226 | W18: =1-(1/W7)^(-0.75) -> -0.4995171966 | X18: -0.9501017562 | Y18: -2.159401156 | Z18: -4.530608555 | AA18: -7.794569002 | AB18: -11.07374814 | AC18: -19.52700147 | AF18: ｒ／ｐの値 | AI18: =$O$40/(2*($O$9+$O$10)*AI17/(1-AI17)) -> 0.4130261667 | AJ18: 0.2769534807 | AK18: 0.1823239622 | AL18: 0.1154217462 | AM18: 0.06940411228 | AN18: 0.03859723218 | AO18: 0.01902995039 | AP18: 0.007778951843 | AX18: =IF($N$18=1,AX17) -> FALSE | AY18: =IF($N$18=1,AY17) -> FALSE | AZ18: FALSE | BA18: FALSE | BB18: FALSE | BC18: FALSE | BD18: FALSE | BE18: FALSE | BH18: s | BJ18: =3.14/2*BJ11*(1/BJ16^2+1/BJ17^2) -> 18.01103937
C19: 31.5 | E19: 63 | F19: 125 | G19: 250 | H19: 500 | N19: ='Calculation Sheet'!K19 -> 0 | O19: ='Calculation Sheet'!L19 -> 0 | S19: 拡散度指数 | V19: =MAX(V17,V18) -> 0.1226522226 | W19: =MAX(W17,W18) -> 0.333118685 | X19: 0.4872062461 | Y19: 0.6834843217 | Z19: 0.8191880713 | AA19: 0.8862934614 | AB19: 0.9171756783 | AC19: 0.9512836786 | AF19: 拡散板面平均レベル差(dB) | AI19: =(-10.3*LOG10(AI16)+1.3)*10^(-1.753*AI18+0.001753) -> -0.516200218 | AJ19: =(-10.3*LOG10(AJ16)+1.3)*10^(-1.753*AJ18+0.001753) -> -1.402977754 | AK19: -2.79270326 | AL19: -4.63537864 | AM19: -6.757804528 | AN19: -8.984633715 | AO19: -11.16452061 | AP19: -13.1916931 | AX19: =IF($N$18=0,V74) -> 3.1356761 | AY19: =IF($N$18=0,W74) -> 0 | AZ19: 0 | BA19: 0 | BB19: 0 | BC19: 0 | BD19: 0 | BE19: 0 | BH19: c | BJ19: =2*3.14/3*BJ11*SQRT((1/BJ16^2+1/BJ17^2)^2+2*(1/BJ16^4+1/BJ17^4)) -> 34.7217202
C20: =AI82 -> 79.66843425 | E20: =BJ48 -> 78.54402125 | F20: =AK82 -> 63.17707712 | G20: =AL82 -> 49.68175577 | H20: =AM82 -> 39.14305521 | J20: =10*LOG10(10^((C20-39)/10)+10^((E20-26)/10)+10^((F20-16)/10)+10^((G20-9)/10)+10^((H20-3)/10)+10^(#REF!/10)+10^((#REF!+1)/10)+10^((#REF!+1)/10)) ->  | O20: ='Calculation Sheet'!D21 -> 1.39 | T20: c | V20: =1-V8^(-0.75) -> -1.267826412 | W20: =1-W8^(-0.75) -> 0.1357639163 | X20: 0.3321527739 | Y20: 0.6689442138 | Z20: 0.8182789223 | AA20: 0.8840044687 | AB20: 0.9155083664 | AC20: 0.9503029848 | AF20: 板面平均レベル差(dB) | AG20: s | AH20: 1 | AI20: =(AI19+3)*V19-3 -> -2.695356436 | AJ20: =(AJ19+3)*W19-3 -> -2.46800205 | AK20: -2.899003733 | AL20: -4.11775566 | AM20: -6.078348644 | AN20: -8.30414173 | AO20: -10.48829973 | AP20: -12.6951913 | AX20: =MAX(AX18,AX19) -> 3.1356761 | AY20: =MAX(AY18,AY19) -> 0 | AZ20: 0 | BA20: 0 | BB20: 0 | BC20: 0 | BD20: 0 | BE20: 0
E21: ＊ | F21: * | O21: ='Calculation Sheet'!F21 -> 1.95 | V21: =1-(1/V8)^(-0.75) -> 0.559049143 | W21: =1-(1/W8)^(-0.75) -> -0.157091238 | X21: -0.4973484368 | Y21: -2.020638943 | Z21: -4.502938968 | AA21: -7.621021764 | AB21: -10.83549137 | AC21: -19.12193279 | AI21: =AI20 -> -2.695356436 | AJ21: =AJ20 -> -2.46800205 | AK21: -2.899003733 | AL21: -4.11775566 | AM21: -6.078348644 | AN21: -8.30414173 | AO21: -10.48829973 | AP21: -12.6951913 | AW21: y | AX21: =-3*$BF21*LOG10($O$17/V$47)-1.2*$BF21 -> -0.3416162742 | AY21: 0.1099287193 | AZ21: 0.5562829146 | BA21: 1.007827908 | BB21: 1.459372902 | BC21: 1.910917895 | BD21: 2.362462889 | BE21: 2.814007882 | BF21: =(O19-$O$7/1000)/($O$7/1000) -> -1 | BH21: 梁せい | BJ21: ='Calculation Sheet'!G15 -> 800
C22: L値 | E22: =30+E20-E16 -> 55.54402125 | F22: =30+F20-F16 -> 50.17707712 | G22: 43.68175577 | H22: 39.14305521 | J22: =MAX(E22,F22,G22,H22,#REF!,#REF!,#REF!) ->  | N22: ='Calculation Sheet'!I21 -> 0 | O22: ='Calculation Sheet'!J21 -> 0 | V22: =MAX(V20,V21) -> 0.559049143 | W22: =MAX(W20,W21) -> 0.1357639163 | X22: 0.3321527739 | Y22: 0.6689442138 | Z22: 0.8182789223 | AA22: 0.8840044687 | AB22: 0.9155083664 | AC22: 0.9503029848 | AG22: c | AI22: =(AI19+3)*V22-3 -> -1.61143386 | AJ22: =(AJ19+3)*W22-3 -> -2.783182005 | AK22: -2.931145813 | AL22: -4.093977078 | AM22: -6.074932239 | AN22: -8.290442947 | AO22: -10.47468693 | AP22: -12.68519637 | AX22: =MAX(AX21,0) -> 0 | AY22: =MAX(AY21,0) -> 0.1099287193 | AZ22: 0.5562829146 | BA22: 1.007827908 | BB22: 1.459372902 | BC22: 1.910917895 | BD22: 2.362462889 | BE22: 2.814007882 | BH22: 倍率 | BJ22: =(BJ21-BJ8)/BJ8 -> 3
E23: =ROUND(E22,0.1)-2 -> 54 | F23: 48 | G23: 42 | H23: 37 | N23: ='Calculation Sheet'!K21 -> 0 | O23: ='Calculation Sheet'!L21 -> 0 | T23: s | U23: 2 | V23: =1-V9^(-0.75) -> -0.139798864 | W23: =1-W9^(-0.75) -> 0.333118685 | X23: 0.4872062461 | Y23: 0.6834843217 | Z23: 0.8191880712 | AA23: 0.8862934543 | AB23: 0.9171756732 | AC23: 0.9512836756 | AI23: =AI22 -> -1.61143386 | AJ23: =AJ22 -> -2.783182005 | AK23: -2.931145813 | AL23: -4.093977078 | AM23: -6.074932239 | AN23: -8.290442947 | AO23: -10.47468693 | AP23: -12.68519637 | AX23: =IF($N$19=1,AX22) -> FALSE | AY23: =IF($N$19=1,AY22) -> FALSE | AZ23: FALSE | BA23: FALSE | BB23: FALSE | BC23: FALSE | BD23: FALSE | BE23: FALSE | BH23: 拘束度 | BJ23: =0.874*LOG10(BJ22)+0.265 -> 0.6820039766
C24: L等級 | E24: =(ROUNDUP(E23/5,0.1))*5 -> 55 | F24: 50 | G24: 45 | H24: 40 | J24: =MAX(E24,F24,G24,H24,#REF!,#REF!,#REF!) ->  | O24: ='Calculation Sheet'!D23 -> 2.77 | V24: =1-(1/V9)^(-0.75) -> 0.1226522226 | W24: =1-(1/W9)^(-0.75) -> -0.4995171966 | X24: -0.9501017562 | Y24: -2.159401156 | Z24: -4.530608555 | AA24: -7.794568453 | AB24: -11.07374739 | AC24: -19.52700019 | AG24: s | AH24: 2 | AI24: =(AI19+3)*V25-3 -> -2.695356436 | AJ24: =(AJ19+3)*W25-3 -> -2.46800205 | AK24: -2.899003733 | AL24: -4.11775566 | AM24: -6.078348644 | AN24: -8.304141687 | AO24: -10.48829969 | AP24: -12.69519127 | AX24: =IF($N$19=0,V76) -> 0 | AY24: =IF($N$19=0,W76) -> 0 | AZ24: 0 | BA24: 0 | BB24: 0 | BC24: 0 | BD24: 0 | BE24: 0 | BH24: f | BJ24: =(BJ13-BJ18)*BJ23+BJ18 -> 48.69721848
O25: ='Calculation Sheet'!F23 -> 1.3 | V25: =MAX(V23,V24) -> 0.1226522226 | W25: 0.333118685 | X25: 0.4872062461 | Y25: 0.6834843217 | Z25: 0.8191880712 | AA25: 0.8862934543 | AB25: 0.9171756732 | AC25: 0.9512836756 | AI25: =AI24 -> -2.695356436 | AJ25: =AJ24 -> -2.46800205 | AK25: -2.899003733 | AL25: -4.11775566 | AM25: -6.078348644 | AN25: -8.304141687 | AO25: -10.48829969 | AP25: -12.69519127 | AX25: =MAX(AX23,AX24) -> 0 | AY25: =MAX(AY23,AY24) -> 0 | AZ25: 0 | BA25: 0 | BB25: 0 | BC25: 0 | BD25: 0 | BE25: 0
C26: 決定ｆ | E26: =IF(E22=$J$22,63) ->  | F26: =IF(F22=$J$22,125) ->  | G26: =IF(G22=$J$22,250) ->  | H26: =IF(H22=$J$22,500) ->  | J26: =MIN(E26,F26,G26,H26,#REF!,#REF!,#REF!) ->  | N26: ='Calculation Sheet'!I23 -> 0 | O26: ='Calculation Sheet'!J23 -> 0 | T26: c | V26: =1-V10^(-0.75) -> -1.267826412 | W26: =1-W10^(-0.75) -> 0.1357639163 | X26: 0.3321527739 | Y26: 0.6689442138 | Z26: 0.8182789223 | AA26: 0.8840044687 | AB26: 0.9155083664 | AC26: 0.9503029848 | AG26: c | AI26: =(AI19+3)*V28-3 -> -1.61143386 | AJ26: =(AJ19+3)*W28-3 -> -2.783182005 | AK26: -2.931145813 | AL26: -4.093977078 | AM26: -6.074932239 | AN26: -8.290442947 | AO26: -10.47468693 | AP26: -12.68519637 | AX26: =SQRT(AX20^2+AX25^2) -> 3.1356761 | AY26: =SQRT(AY20^2+AY25^2) -> 0 | AZ26: 0 | BA26: 0 | BB26: 0 | BC26: 0 | BD26: 0 | BE26: 0 | BH26: （連成振動時固有振動数）
N27: ='Calculation Sheet'!K23 -> 0 | O27: ='Calculation Sheet'!L23 -> 0 | V27: =1-(1/V10)^(-0.75) -> 0.559049143 | W27: =1-(1/W10)^(-0.75) -> -0.157091238 | X27: -0.4973484368 | Y27: -2.020638943 | Z27: -4.502938968 | AA27: -7.621021764 | AB27: -10.83549137 | AC27: -19.12193279 | AI27: =AI26 -> -1.61143386 | AJ27: =AJ26 -> -2.783182005 | AK27: -2.931145813 | AL27: -4.093977078 | AM27: -6.074932239 | AN27: -8.290442947 | AO27: -10.47468693 | AP27: -12.68519637 | AU27: 小梁による端部拘束 加振点2(dB) | AV27: s | AW27: x | AX27: =-3*$BF27*LOG10($O$20/V$47)-1.2*$BF27 -> -0.7826757075 | AY27: -0.331130714 | AZ27: 0.1152234813 | BA27: 0.5667684748 | BB27: 1.018313468 | BC27: 1.469858462 | BD27: 1.921403455 | BE27: 2.372948449 | BF27: =(O22-$O$7/1000)/($O$7/1000) -> -1
O28: ='Calculation Sheet'!D25 -> 1.39 | V28: =MAX(V26,V27) -> 0.559049143 | W28: 0.1357639163 | X28: 0.3321527739 | Y28: 0.6689442138 | Z28: 0.8182789223 | AA28: 0.8840044687 | AB28: 0.9155083664 | AC28: 0.9503029848 | AG28: s | AH28: 3 | AI28: =(AI19+3)*V31-3 -> -2.430305721 | AJ28: =(AJ19+3)*W31-3 -> -2.53208939 | AK28: -2.898451559 | AL28: -4.102920738 | AM28: -6.0744741 | AN28: -8.324701174 | AO28: -10.50873013 | AP28: -12.71019192 | AX28: =MAX(AX27,0) -> 0 | AY28: =MAX(AY27,0) -> 0 | AZ28: 0.1152234813 | BA28: 0.5667684748 | BB28: 1.018313468 | BC28: 1.469858462 | BD28: 1.921403455 | BE28: 2.372948449 | BH28: 比率（両側） | BJ28: =(0.0792*BJ55-0.0959)*BJ22+(-0.485*BJ55+1.55) -> 0.8905455026
B29: ＜韓国評価値用＞ | O29: ='Calculation Sheet'!F25 -> 0.65 | T29: s | U29: 3 | V29: =1-V11^(-0.75) -> -0.2976295081 | W29: =1-W11^(-0.75) -> 0.2929894125 | X29: 0.4898699351 | Y29: 0.6744130755 | Z29: 0.8181570056 | AA29: 0.8897288336 | AB29: 0.9196780179 | AC29: 0.9527555262 | AI29: =AI28 -> -2.430305721 | AJ29: =AJ28 -> -2.53208939 | AK29: -2.898451559 | AL29: -4.102920738 | AM29: -6.0744741 | AN29: -8.324701174 | AO29: -10.50873013 | AP29: -12.71019192 | AX29: =IF($N$22=1,AX28) -> FALSE | AY29: =IF($N$22=1,AY28) -> FALSE | AZ29: FALSE | BA29: FALSE | BB29: FALSE | BC29: FALSE | BD29: FALSE | BE29: FALSE | BH29: 連成振動数 | BJ29: =BJ24*BJ28 -> 43.36708891
E30: 63 | F30: 125 | G30: 250 | H30: 500 | N30: ='Calculation Sheet'!I25 -> 0 | O30: ='Calculation Sheet'!J25 -> 0 | V30: =1-(1/V11)^(-0.75) -> 0.2293640105 | W30: =1-(1/W11)^(-0.75) -> -0.414405976 | X30: -0.9602843839 | Y30: -2.071376412 | Z30: -4.499249522 | AA30: -8.068553751 | AB30: -11.44989197 | AC30: -20.16649675 | AG30: c | AI30: =(AI19+3)*V34-3 -> -1.807590623 | AJ30: =(AJ19+3)*W34-3 -> -2.888052096 | AK30: -2.906604147 | AL30: -4.094091033 | AM30: -6.04330169 | AN30: -8.29163384 | AO30: -10.47587035 | AP30: -12.68606527 | AX30: =IF($N$22=0,V79) -> 0 | AY30: =IF($N$22=0,W79) -> 0 | AZ30: 0 | BA30: 0 | BB30: 0 | BC30: 0 | BD30: 0 | BE30: 0
C31: 100 | E31: 100 | F31: 90 | G31: 83 | H31: 77 | N31: ='Calculation Sheet'!K25 -> 0 | O31: ='Calculation Sheet'!L25 -> 0 | V31: =MAX(V29,V30) -> 0.2293640105 | W31: 0.2929894125 | X31: 0.4898699351 | Y31: 0.6744130755 | Z31: 0.8181570056 | AA31: 0.8897288336 | AB31: 0.9196780179 | AC31: 0.9527555262 | AI31: =AI30 -> -1.807590623 | AJ31: =AJ30 -> -2.888052096 | AK31: -2.906604147 | AL31: -4.094091033 | AM31: -6.04330169 | AN31: -8.29163384 | AO31: -10.47587035 | AP31: -12.68606527 | AX31: =MAX(AX29,AX30) -> 0 | AY31: 0 | AZ31: 0 | BA31: 0 | BB31: 0 | BC31: 0 | BD31: 0 | BE31: 0 | BH31: 比率（片側） | BJ31: =(0.1183*(LOG10(BJ55))^0.65-0.0167)*BJ22+(-0.39*BJ55+1.44) -> 0.9189641196
C32: 99 | E32: 99 | F32: 89 | G32: 82 | H32: 76 | O32: ='Calculation Sheet'!D27 -> 1.39 | T32: c | V32: =1-V12^(-0.75) -> -0.9233531342 | W32: =1-W12^(-0.75) -> -0.07538201998 | X32: 0.4505418303 | Y32: 0.6690138946 | Z32: 0.8098616273 | AA32: 0.8842034605 | AB32: 0.9156533129 | AC32: 0.9503882406 | AG32: s | AH32: 4 | AI32: =(AI19+3)*V37-3 -> -1.71298183 | AJ32: =(AJ19+3)*W37-3 -> -2.723112813 | AK32: -2.887329209 | AL32: -4.171920831 | AM32: -6.094484199 | AN32: -8.260566238 | AO32: -10.44499774 | AP32: -12.66339767 | AW32: y | AX32: =-3*$BF32*LOG10($O$21/V$47)-1.2*$BF32 -> -0.3416162742 | AY32: 0.1099287193 | AZ32: 0.5562829146 | BA32: 1.007827908 | BB32: 1.459372902 | BC32: 1.910917895 | BD32: 2.362462889 | BE32: 2.814007882 | BF32: =(O23-$O$7/1000)/($O$7/1000) -> -1 | BH32: 連成振動数 | BJ32: =BJ24*BJ31 -> 44.75099651
C33: 98 | E33: 98 | F33: 88 | G33: 81 | H33: 75 | O33: ='Calculation Sheet'!F27 -> 0.65 | V33: =1-(1/V12)^(-0.75) -> 0.4800746768 | W33: =1-(1/W12)^(-0.75) -> 0.07009789877 | X33: -0.819974759 | Y33: -2.021274862 | Z33: -4.259327644 | AA33: -7.635836649 | AB33: -10.85583019 | AC33: -19.15651154 | AI33: =AI32 -> -1.71298183 | AJ33: =AJ32 -> -2.723112813 | AK33: -2.887329209 | AL33: -4.171920831 | AM33: -6.094484199 | AN33: -8.260566238 | AO33: -10.44499774 | AP33: -12.66339767 | AX33: =MAX(AX32,0) -> 0 | AY33: =MAX(AY32,0) -> 0.1099287193 | AZ33: 0.5562829146 | BA33: 1.007827908 | BB33: 1.459372902 | BC33: 1.910917895 | BD33: 2.362462889 | BE33: 2.814007882
C34: 97 | E34: 97 | F34: 87 | G34: 80 | H34: 74 | K34: =SQRT(O4*(O7/1000)^3/12/(1-O6^2)/(O5*O7/1000)) -> 203.3125152 | N34: ='Calculation Sheet'!I27 -> 0 | O34: ='Calculation Sheet'!J27 -> 0 | V34: =MAX(V32,V33) -> 0.4800746768 | W34: 0.07009789877 | X34: 0.4505418303 | Y34: 0.6690138946 | Z34: 0.8098616273 | AA34: 0.8842034605 | AB34: 0.9156533129 | AC34: 0.9503882406 | AG34: c | AI34: =(AI19+3)*V40-3 -> -1.116140482 | AJ34: =(AJ19+3)*W40-3 -> -2.461946219 | AK34: -2.924747436 | AL34: -4.14094686 | AM34: -6.102068485 | AN34: -8.227631354 | AO34: -10.41226957 | AP34: -12.63936766 | AX34: =IF($N$23=1,AX33) -> FALSE | AY34: =IF($N$23=1,AY33) -> FALSE | AZ34: FALSE | BA34: FALSE | BB34: FALSE | BC34: FALSE | BD34: FALSE | BE34: FALSE | BH34: 採用振動数 | BJ34: =IF('Calculation Sheet'!L15=1,BJ32,BJ29) -> 44.75099651
C35: 96 | E35: 96 | F35: 86 | G35: 79 | H35: 73 | N35: ='Calculation Sheet'!K27 -> 0 | O35: ='Calculation Sheet'!L27 -> 0 | T35: s | U35: 4 | V35: =1-V13^(-0.75) -> -1.075399353 | W35: =1-W13^(-0.75) -> 0.1733771636 | X35: 0.5435241804 | Y35: 0.7166051963 | Z35: 0.8234819496 | AA35: 0.8790122317 | AB35: 0.911872 | AC35: 0.9481641155 | AI35: =AI34 -> -1.116140482 | AJ35: =AJ34 -> -2.461946219 | AK35: -2.924747436 | AL35: -4.14094686 | AM35: -6.102068485 | AN35: -8.227631354 | AO35: -10.41226957 | AP35: -12.63936766 | AX35: =IF($N$23=0,V81) -> 0 | AY35: =IF($N$23=0,W81) -> 0 | AZ35: 0 | BA35: 0 | BB35: 0 | BC35: 0 | BD35: 0 | BE35: 0 | BJ35: =IF(BJ34<0,"＊",BJ34) -> 44.75099651
C36: 95 | E36: 95 | F36: 85 | G36: 78 | H36: 72 | K36: 340 | O36: =SQRT(O4/O5/(1-O6^2)) -> 3521.476061 | V36: =1-(1/V13)^(-0.75) -> 0.5181650227 | W36: =1-(1/W13)^(-0.75) -> -0.2097415605 | X36: -1.190696543 | Y36: -2.528646209 | Z36: -4.665143015 | AA36: -7.265298339 | AB36: -10.34713144 | AC36: -18.29165501 | AG36: s | AH36: 5 | AI36: =(AI19+3)*V43-3 -> -1.71298183 | AJ36: =(AJ19+3)*W43-3 -> -2.723112813 | AK36: -2.887329209 | AL36: -4.171920831 | AM36: -6.094484199 | AN36: -8.260566238 | AO36: -10.44499774 | AP36: -12.66339767 | AX36: =MAX(AX34,AX35) -> 0 | AY36: 0 | AZ36: 0 | BA36: 0 | BB36: 0 | BC36: 0 | BD36: 0 | BE36: 0 | BH36: （46Hz共振増減量）
C37: 94 | E37: 94 | F37: 84 | G37: 77 | H37: 71 | O37: =3.14/2*K34*(1/M9^2+1/M10^2) -> 23.5559796 | V37: =MAX(V35,V36) -> 0.5181650227 | W37: 0.1733771636 | X37: 0.5435241804 | Y37: 0.7166051963 | Z37: 0.8234819496 | AA37: 0.8790122317 | AB37: 0.911872 | AC37: 0.9481641155 | AI37: =AI36 -> -1.71298183 | AJ37: =AJ36 -> -2.723112813 | AK37: -2.887329209 | AL37: -4.171920831 | AM37: -6.094484199 | AN37: -8.260566238 | AO37: -10.44499774 | AP37: -12.66339767 | AX37: =SQRT(AX31^2+AX36^2) -> 0 | AY37: 0 | AZ37: 0 | BA37: 0 | BB37: 0 | BC37: 0 | BD37: 0 | BE37: 0
C38: 93 | E38: 93 | F38: 83 | G38: 76 | H38: 70 | O38: =2*3.14/3*K34*SQRT((1/M9^2+1/M10^2)^2+2*(1/M9^4+1/M10^4)) -> 45.6710833 | T38: c | V38: =1-V14^(-0.75) -> -3.140078491 | W38: =1-W14^(-0.75) -> -0.508092354 | X38: 0.3630185608 | Y38: 0.6976652576 | Z38: 0.8255002254 | AA38: 0.8735089903 | AB38: 0.9078634158 | AC38: 0.945806312 | AG38: c | AI38: =(AI19+3)*V46-3 -> -1.116140482 | AJ38: =(AJ19+3)*W46-3 -> -2.461946219 | AK38: -2.924747436 | AL38: -4.14094686 | AM38: -6.102068485 | AN38: -8.227631354 | AO38: -10.41226957 | AP38: -12.63936766 | AV38: c | AW38: x | AX38: =-3*$BF38*LOG10($O$20/V$47)-1.2*$BF38 -> -0.7826757075 | AY38: -0.331130714 | AZ38: 0.1152234813 | BA38: 0.5667684748 | BB38: 1.018313468 | BC38: 1.469858462 | BD38: 1.921403455 | BE38: 2.372948449 | BF38: =(O22-$O$7/1000)/($O$7/1000) -> -1 | BH38: <63Hz> | BJ38: =AJ82 -> 78.54402125
C39: 92 | E39: 92 | F39: 82 | G39: 75 | H39: 69 | O39: =K36^2/2/3.14/K34 -> 90.53866307 | V39: =1-(1/V14)^(-0.75) -> 0.7584586857 | W39: =1-(1/W14)^(-0.75) -> 0.3369106359 | X39: -0.5699044562 | Y39: -2.307592082 | Z39: -4.730666427 | AA39: -6.905700197 | AB39: -9.853452062 | AC39: -17.45233343 | AI39: =AI38 -> -1.116140482 | AJ39: =AJ38 -> -2.461946219 | AK39: -2.924747436 | AL39: -4.14094686 | AM39: -6.102068485 | AN39: -8.227631354 | AO39: -10.41226957 | AP39: -12.63936766 | AX39: =MAX(AX38,0) -> 0 | AY39: =MAX(AY38,0) -> 0 | AZ39: 0.1152234813 | BA39: 0.5667684748 | BB39: 1.018313468 | BC39: 1.469858462 | BD39: 1.921403455 | BE39: 2.372948449 | BI39: 反共振 | BJ39: =BJ38-0 -> 78.54402125
C40: 91 | E40: 91 | F40: 81 | G40: 74 | H40: 68 | O40: =SQRT(O11*O12/3.14) -> 2.492076616 | V40: =MAX(V38,V39) -> 0.7584586857 | W40: 0.3369106359 | X40: 0.3630185608 | Y40: 0.6976652576 | Z40: 0.8255002254 | AA40: 0.8735089903 | AB40: 0.9078634158 | AC40: 0.945806312 | AF40: 音響放射率 | AI40: =$O$43+20*LOG10(AI4/$O$37) -> -2.270240991 | AJ40: 3.750358922 | AK40: 9.701748193 | AL40: 15.72234811 | AM40: 21.74294802 | AN40: 27.76354793 | AO40: 33.78414785 | AP40: 39.80474776 | AX40: =IF($N$22=1,AX39) -> FALSE | AY40: =IF($N$22=1,AY39) -> FALSE | AZ40: FALSE | BA40: FALSE | BB40: FALSE | BC40: FALSE | BD40: FALSE | BE40: FALSE | BH40: 増幅１ | BJ40: =1.757*BJ38-53.16 -> 84.84184534
C41: 90 | E41: 90 | F41: 80 | G41: 73 | H41: 67 | O41: =8*SQRT(O4*(O7/1000)^3/(12*(1-O6^2))*O5*O7/1000) -> 780720.0584 | T41: s | U41: 1 | V41: =1-V15^(-0.75) -> -1.075399353 | W41: =1-W15^(-0.75) -> 0.1733771636 | X41: 0.5435241804 | Y41: 0.7166051963 | Z41: 0.8234819496 | AA41: 0.8790122317 | AB41: 0.911872 | AC41: 0.9481641155 | AI41: =MIN(AI40,0) -> -2.270240991 | AJ41: =MIN(AJ40,0) -> 0 | AK41: 0 | AL41: 0 | AM41: 0 | AN41: 0 | AO41: 0 | AP41: 0 | AQ41: =O11*O12 -> 19.5008 | AX41: =IF($N$22=0,V84) -> 3.1356761 | AY41: =IF($N$22=0,W84) -> 0 | AZ41: 0 | BA41: 0 | BB41: 0 | BC41: 0 | BD41: 0 | BE41: 0 | BH41: (Max85設定) | BJ41: =IF(BJ40>85,85,BJ40) -> 84.84184534
C42: 89 | E42: 89 | F42: 79 | G42: 72 | H42: 66 | K42: ramd | O42: =K36/O39 -> 3.755301751 | V42: =1-(1/V15)^(-0.75) -> 0.5181650227 | W42: =1-(1/W15)^(-0.75) -> -0.2097415605 | X42: -1.190696543 | Y42: -2.528646209 | Z42: -4.665143015 | AA42: -7.265298339 | AB42: -10.34713144 | AC42: -18.29165501 | AI42: =$O$43*LOG10($O$39/AI4)/(LOG10($O$39/$O$37)) -> -3.759593997 | AJ42: -1.291344264 | AK42: 1.148531363 | AL42: 3.616781097 | AM42: 6.08503083 | AN42: 8.553280564 | AO42: 11.0215303 | AP42: 13.48978003 | AX42: =MAX(AX40,AX41) -> 3.1356761 | AY42: =MAX(AY40,AY41) -> 0 | AZ42: 0 | BA42: 0 | BB42: 0 | BC42: 0 | BD42: 0 | BE42: 0 | BH42: 増幅1/2 | BJ42: =(BJ40-BJ38)/2+BJ38 -> 81.6929333
C43: 88 | E43: 88 | F43: 78 | G43: 71 | H43: 65 | K43: sig0 | N43: =10*LOG10(O42^2*O11*O12/(O9*O10)^2) -> -4.794428677 | O43: =MIN($N$43,0) -> -4.794428677 | V43: =MAX(V41,V42) -> 0.5181650227 | W43: 0.1733771636 | X43: 0.5435241804 | Y43: 0.7166051963 | Z43: 0.8234819496 | AA43: 0.8790122317 | AB43: 0.911872 | AC43: 0.9481641155 | AI43: =IF($O$39>$O$37,MIN(AI42,0),0) -> -3.759593997 | AJ43: -1.291344264 | AK43: 0 | AL43: =IF($O$39>$O$37,MIN(AL42,0),0) -> 0 | AM43: =IF($O$39>$O$37,MIN(AM42,0),0) -> 0 | AN43: 0 | AO43: 0 | AP43: 0 | AW43: y | AX43: =-3*$BF43*LOG10($O$21/V$47)-1.2*$BF43 -> -0.3416162742 | AY43: 0.1099287193 | AZ43: 0.5562829146 | BA43: 1.007827908 | BB43: 1.459372902 | BC43: 1.910917895 | BD43: 2.362462889 | BE43: 2.814007882 | BF43: =(O23-$O$7/1000)/($O$7/1000) -> -1 | BH43: (Max85設定) | BJ43: =IF(BJ42>85,85,BJ42) -> 81.6929333
C44: 87 | E44: 87 | F44: 77 | G44: 70 | H44: 64 | K44: lx/ly | N44: =O9/O10 -> 1.422222222 | O44: =MIN(N44,3) -> 1.422222222 | T44: c | V44: =1-V16^(-0.75) -> -3.140078491 | W44: =1-W16^(-0.75) -> -0.508092354 | X44: 0.3630185608 | Y44: 0.6976652576 | Z44: 0.8255002254 | AA44: 0.8735089903 | AB44: 0.9078634158 | AC44: 0.945806312 | AI44: =MIN(AI41,AI43) -> -3.759593997 | AJ44: =MIN(AJ41,AJ43) -> -1.291344264 | AK44: 0 | AL44: 0 | AM44: 0 | AN44: 0 | AO44: 0 | AP44: 0 | AX44: =MAX(AX43,0) -> 0 | AY44: =MAX(AY43,0) -> 0.1099287193 | AZ44: 0.5562829146 | BA44: 1.007827908 | BB44: 1.459372902 | BC44: 1.910917895 | BD44: 2.362462889 | BE44: 2.814007882 | BH44: 増幅1/2判定 | BJ44: =IF(AND(BJ34>42,BJ34<54.5),BJ43,BJ38) -> 81.6929333
C45: 86 | E45: 86 | F45: 76 | G45: 69 | H45: 63 | K45: λｂ/2 | O45: =W47/2 -> 2.250928548 | V45: =1-(1/V16)^(-0.75) -> 0.7584586857 | W45: =1-(1/W16)^(-0.75) -> 0.3369106359 | X45: -0.5699044562 | Y45: -2.307592082 | Z45: -4.730666427 | AA45: -6.905700197 | AB45: -9.853452062 | AC45: -17.45233343 | AF45: 10log(F/A) | AI45: =10*LOG10($O$11*$O$12/(V6*($O$11*$O$12+$O$12*$O$13+$O$11*$O$13)*2)) -> 3.736532305 | AJ45: =10*LOG10($O$11*$O$12/(W6*($O$11*$O$12+$O$12*$O$13+$O$11*$O$13)*2)) -> 3.736532305 | AK45: 3.736532305 | AL45: 3.736532305 | AM45: 1.975619715 | AN45: 1.975619715 | AO45: 0.7262323487 | AP45: 0.7262323487 | AX45: =IF($N$23=1,AX44) -> FALSE | AY45: =IF($N$23=1,AY44) -> FALSE | AZ45: FALSE | BA45: FALSE | BB45: FALSE | BC45: FALSE | BD45: FALSE | BE45: FALSE | BH45: 増幅1/1判定 | BJ45: =IF(AND(BJ34>44.5,BJ34<50),BJ41,BJ44) -> 84.84184534
C46: 85 | E46: 85 | F46: 75 | G46: 68 | H46: 62 | K46: λｂ/4 | O46: =O45/2 -> 1.125464274 | V46: =MAX(V44,V45) -> 0.7584586857 | W46: 0.3369106359 | X46: 0.3630185608 | Y46: 0.6976652576 | Z46: 0.8255002254 | AA46: 0.8735089903 | AB46: 0.9078634158 | AC46: 0.945806312 | AF46: 床衝撃音レベル(dB) 補正前 | AG46: s | AH46: 1 | AI46: =AI$44+V$5-AI5+AI$21+AI$45+152.1 -> 92.56653982 | AJ46: =AJ$44+W$5-AJ5+AJ$21+AJ$45+152.1 -> 81.737115 | AK46: 64.28457501 | AL46: 48.84584446 | AM46: 35.14736432 | AN46: 27.92157124 | AO46: 19.48802587 | AP46: 12.2811343 | AX46: =IF($N$23=0,V86) -> 0 | AY46: =IF($N$23=0,W86) -> 0 | AZ46: 0 | BA46: 0 | BB46: 0 | BC46: 0 | BD46: 0 | BE46: 0 | BH46: 反共振判定 | BJ46: =IF(AND(BJ34>30,BJ34<40),BJ39,BJ45) -> 84.84184534
C47: 84 | E47: 84 | F47: 74 | G47: 67 | H47: 61 | S47: 曲げ波の波長(m) | V47: =SQRT(3.14*$O$36*$O$7/1000/V4/1.73205) -> 6.366587361 | W47: 4.501857096 | X47: 3.19600149 | Y47: 2.259914326 | Z47: 1.598000745 | AA47: 1.129957163 | AB47: 0.7990003726 | AC47: 0.5649785816 | AG47: c | AI47: =AI$44+V$5-AI6+AI$23+AI$45+152.1 -> 81.13225251 | AJ47: =AJ$44+W$5-AJ6+AJ$23+AJ$45+152.1 -> 85.66506257 | AK47: 67.58608259 | AL47: 49.18223536 | AM47: 35.15078073 | AN47: 27.93527002 | AO47: 19.50163867 | AP47: 12.29112923 | AX47: =MAX(AX45,AX46) -> 0 | AY47: =MAX(AY45,AY46) -> 0 | AZ47: 0 | BA47: 0 | BB47: 0 | BC47: 0 | BD47: 0 | BE47: 0 | BH47: 70dB判定 | BJ47: =IF(BJ42>70,BJ46,BJ38) -> 84.84184534
C48: 83 | E48: 83 | F48: 73 | G48: 66 | H48: 60 | S48: 共振による低下量(dB) | T48: s | U48: 1 | V48: =21.5*V19-20*LOG10(2.2925*($O$44/(1+$O$44^2))*LN(1/2/$O$8^2)) -> -14.0348647 | W48: =21.5*W19-20*LOG10(2.2925*($O$44/(1+$O$44^2))*LN(1/2/$O$8^2)) -> -9.509835756 | X48: -6.196953191 | Y48: -1.976974566 | Z48: 0.9406560495 | AA48: 2.383421937 | AB48: 3.047389602 | AC48: 3.780711609 | AG48: s | AH48: 2 | AI48: =AI$44+V$5-AI7+AI$25+AI$45+152.1 -> 92.56653982 | AJ48: =AJ$44+W$5-AJ7+AJ$25+AJ$45+152.1 -> 81.737115 | AK48: 64.28457501 | AL48: 48.84584446 | AM48: 35.14736432 | AN48: 27.92157128 | AO48: 19.48802591 | AP48: 12.28113433 | AX48: =SQRT(AX42^2+AX47^2) -> 3.1356761 | AY48: =SQRT(AY42^2+AY47^2) -> 0 | AZ48: 0 | BA48: 0 | BB48: 0 | BC48: 0 | BD48: 0 | BE48: 0 | BH48: 純ﾗｰﾒﾝ判定 | BJ48: =IF('Calculation Sheet'!G5=1,BJ47,BJ38) -> 78.54402125
C49: 82 | E49: 82 | F49: 72 | G49: 65 | H49: 59 | V49: =MIN(V48,0) -> -14.0348647 | W49: -9.509835756 | X49: -6.196953191 | Y49: -1.976974566 | Z49: 0 | AA49: 0 | AB49: 0 | AC49: 0 | AG49: c | AI49: =AI$44+V$5-AI8+AI$27+AI$45+152.1 -> 81.13225251 | AJ49: =AJ$44+W$5-AJ8+AJ$27+AJ$45+152.1 -> 85.66506257 | AK49: 67.58608259 | AL49: 49.18223536 | AM49: 35.15078073 | AN49: 27.93527002 | AO49: 19.50163867 | AP49: 12.29112923 | AU49: 小梁による端部拘束 加振点3(dB) | AV49: s | AW49: x | AX49: =-3*$BF49*LOG10($O$24/V$47)-1.2*$BF49 -> 0.1157191989 | AY49: 0.5672641924 | AZ49: 1.013618388 | BA49: 1.465163381 | BB49: 1.916708375 | BC49: 2.368253368 | BD49: 2.819798362 | BE49: 3.271343355 | BF49: =(O26-$O$7/1000)/($O$7/1000) -> -1
C50: 81 | E50: 81 | F50: 71 | G50: 64 | H50: 58 | T50: c | V50: =21.5*V22-20*LOG10(2.2925*($O$44/(1+$O$44^2))*LN(1/2/$O$8^2)) -> -4.652330908 | W50: =21.5*W22-20*LOG10(2.2925*($O$44/(1+$O$44^2))*LN(1/2/$O$8^2)) -> -13.75296328 | X50: -9.530602843 | Y50: -2.289586886 | Z50: 0.9211093466 | AA50: 2.334208594 | AB50: 3.011542396 | AC50: 3.759626691 | AG50: s | AH50: 3 | AI50: =AI$44+V$5-AI9+AI$29+AI$45+152.1 -> 90.5372871 | AJ50: =AJ$44+W$5-AJ9+AJ$29+AJ$45+152.1 -> 82.53580702 | AK50: 64.22785787 | AL50: 49.05571118 | AM50: 35.15123887 | AN50: 27.90101179 | AO50: 19.46759547 | AP50: 12.26613368 | AX50: =MAX(AX49,0) -> 0.1157191989 | AY50: =MAX(AY49,0) -> 0.5672641924 | AZ50: 1.013618388 | BA50: 1.465163381 | BB50: 1.916708375 | BC50: 2.368253368 | BD50: 2.819798362 | BE50: 3.271343355
C51: 80 | E51: 80 | F51: 70 | G51: 63 | H51: 57 | V51: =MIN(V50,0) -> -4.652330908 | W51: -13.75296328 | X51: -9.530602843 | Y51: -2.289586886 | Z51: 0 | AA51: 0 | AB51: 0 | AC51: 0 | AG51: c | AI51: =AI$44+V$5-AI10+AI$31+AI$45+152.1 -> 81.47118885 | AJ51: =AJ$44+W$5-AJ10+AJ$31+AJ$45+152.1 -> 86.97201186 | AK51: 65.06525954 | AL51: 49.18062327 | AM51: 35.18241128 | AN51: 27.93407913 | AO51: 19.50045525 | AP51: 12.29026033 | AX51: =IF($N$26=1,AX50) -> FALSE | AY51: =IF($N$26=1,AY50) -> FALSE | AZ51: FALSE | BA51: FALSE | BB51: FALSE | BC51: FALSE | BD51: FALSE | BE51: FALSE | BH51: （等価寸法倍率（両側））
C52: 79 | E52: 79 | F52: 69 | G52: 62 | H52: 56 | T52: s | U52: 2 | V52: =21.5*V25-20*LOG10(2.2925*($O$44/(1+$O$44^2))*LN(1/2/$O$8^2)) -> -14.0348647 | W52: =21.5*W25-20*LOG10(2.2925*($O$44/(1+$O$44^2))*LN(1/2/$O$8^2)) -> -9.509835756 | X52: -6.196953191 | Y52: -1.976974566 | Z52: 0.9406560494 | AA52: 2.383421784 | AB52: 3.04738949 | AC52: 3.780711543 | AG52: s | AH52: 4 | AI52: =AI$44+V$5-AI11+AI$33+AI$45+152.1 -> 77.82099283 | AJ52: =AJ$44+W$5-AJ11+AJ$33+AJ$45+152.1 -> 82.29780949 | AK52: 63.08541395 | AL52: 48.07958049 | AM52: 35.13122877 | AN52: 27.96514673 | AO52: 19.53132786 | AP52: 12.31292793 | AX52: =IF($N$26=0,V89) -> 0 | AY52: =IF($N$26=0,W89) -> 0 | AZ52: 0 | BA52: 0 | BB52: 0 | BC52: 0 | BD52: 0 | BE52: 0
C53: 78 | E53: 78 | F53: 68 | G53: 61 | H53: 55 | V53: =MIN(V52,0) -> -14.0348647 | W53: -9.509835756 | X53: -6.196953191 | Y53: -1.976974566 | Z53: 0 | AA53: 0 | AB53: 0 | AC53: 0 | AG53: c | AI53: =AI$44+V$5-AI12+AI$35+AI$45+152.1 -> 63.83802732 | AJ53: =AJ$44+W$5-AJ12+AJ$35+AJ$45+152.1 -> 71.34250995 | AK53: 62.56112189 | AL53: 48.51776314 | AM53: 35.12364448 | AN53: 27.99808161 | AO53: 19.56405603 | AP53: 12.33695794 | AX53: =MAX(AX51,AX52) -> 0 | AY53: =MAX(AY51,AY52) -> 0 | AZ53: 0 | BA53: 0 | BB53: 0 | BC53: 0 | BD53: 0 | BE53: 0 | BJ53: =BJ9/BJ10 -> 1.502645503
C54: 77 | E54: 77 | F54: 67 | G54: 60 | H54: 54 | T54: c | V54: =21.5*V28-20*LOG10(2.2925*($O$44/(1+$O$44^2))*LN(1/2/$O$8^2)) -> -4.652330908 | W54: =21.5*W28-20*LOG10(2.2925*($O$44/(1+$O$44^2))*LN(1/2/$O$8^2)) -> -13.75296328 | X54: -9.530602843 | Y54: -2.289586886 | Z54: 0.9211093466 | AA54: 2.334208594 | AB54: 3.011542396 | AC54: 3.759626691 | AG54: s | AH54: 5 | AI54: =AI$44+V$5-AI13+AI$37+AI$45+152.1 -> 77.82099283 | AJ54: =AJ$44+W$5-AJ13+AJ$37+AJ$45+152.1 -> 82.29780949 | AK54: 63.08541395 | AL54: 48.07958049 | AM54: 35.13122877 | AN54: 27.96514673 | AO54: 19.53132786 | AP54: 12.31292793 | AW54: y | AX54: =-3*$BF54*LOG10($O$25/V$47)-1.2*$BF54 -> -0.8698900514 | AY54: -0.4183450579 | AZ54: 0.02800913746 | BA54: 0.479554131 | BB54: 0.9310991244 | BC54: 1.382644118 | BD54: 1.834189111 | BE54: 2.285734105 | BF54: =(O27-$O$7/1000)/($O$7/1000) -> -1 | BJ54: =BJ10/BJ9 -> 0.6654929577
C55: 76 | E55: 76 | F55: 66 | G55: 59 | H55: 53 | V55: =MIN(V54,0) -> -4.652330908 | W55: -13.75296328 | X55: -9.530602843 | Y55: -2.289586886 | Z55: 0 | AA55: 0 | AB55: 0 | AC55: 0 | AG55: c | AI55: =AI$44+V$5-AI14+AI$39+AI$45+152.1 -> 63.83802732 | AJ55: =AJ$44+W$5-AJ14+AJ$39+AJ$45+152.1 -> 71.34250995 | AK55: 62.56112189 | AL55: 48.51776314 | AM55: 35.12364448 | AN55: 27.99808161 | AO55: 19.56405603 | AP55: 12.33695794 | AX55: =MAX(AX54,0) -> 0 | AY55: =MAX(AY54,0) -> 0 | AZ55: 0.02800913746 | BA55: 0.479554131 | BB55: 0.9310991244 | BC55: 1.382644118 | BD55: 1.834189111 | BE55: 2.285734105 | BH55: スパン比(x) | BJ55: =MAX(BJ53,BJ54) -> 1.502645503
C56: 75 | E56: 75 | F56: 65 | G56: 58 | H56: 52 | T56: s | U56: 3 | V56: =21.5*V31-20*LOG10(2.2925*($O$44/(1+$O$44^2))*LN(1/2/$O$8^2)) -> -11.74056126 | W56: =21.5*W31-20*LOG10(2.2925*($O$44/(1+$O$44^2))*LN(1/2/$O$8^2)) -> -10.37261511 | X56: -6.139683878 | Y56: -2.172006359 | Z56: 0.918488138 | AA56: 2.457282439 | AB56: 3.101189903 | AC56: 3.812356332 | AF56: Fast-Peak補正(dB) | AI56: 4 | AJ56: 4 | AK56: 4 | AL56: 4 | AM56: 4 | AN56: 4 | AO56: 4 | AP56: 4 | AX56: =IF($N$27=1,AX55) -> FALSE | AY56: =IF($N$27=1,AY55) -> FALSE | AZ56: FALSE | BA56: FALSE | BB56: FALSE | BC56: FALSE | BD56: FALSE | BE56: FALSE | BH56: 梁板厚比(z) | BJ56: =('Calculation Sheet'!G15)/O7 -> 4
C57: 74 | E57: 74 | F57: 64 | G57: 57 | H57: 51 | V57: =MIN(V56,0) -> -11.74056126 | W57: -10.37261511 | X57: -6.139683878 | Y57: -2.172006359 | Z57: 0 | AA57: 0 | AB57: 0 | AC57: 0 | AF57: 音場補正(dB) | AI57: -7 | AJ57: -7 | AK57: -5 | AL57: -3 | AM57: -1 | AN57: 0 | AO57: 0 | AP57: 0 | AQ57: =O11*O12 -> 19.5008 | AX57: =IF($N$27=0,V91) -> 0 | AY57: =IF($N$27=0,W91) -> 0 | AZ57: 0 | BA57: 0 | BB57: 0 | BC57: 0 | BD57: 0 | BE57: 0 | BH57: 1.0値(y) | BJ57: =4.983*LOG10(BJ55)+3 -> 3.881276118
C58: 73 | E58: 73 | F58: 63 | G58: 56 | H58: 50 | T58: c | V58: =21.5*V34-20*LOG10(2.2925*($O$44/(1+$O$44^2))*LN(1/2/$O$8^2)) -> -6.350281932 | W58: =21.5*W34-20*LOG10(2.2925*($O$44/(1+$O$44^2))*LN(1/2/$O$8^2)) -> -15.16478266 | X58: -6.985238131 | Y58: -2.288088748 | Z58: 0.7401375038 | AA58: 2.338486917 | AB58: 3.014658744 | AC58: 3.761459691 | AI58: =IF(AQ57<15,-20) -> FALSE | AJ58: -7 | AK58: -5 | AL58: -3 | AM58: -1 | AN58: 0 | AO58: 0 | AP58: 0 | AX58: =MAX(AX56,AX57) -> 0 | AY58: =MAX(AY56,AY57) -> 0 | AZ58: 0 | BA58: 0 | BB58: 0 | BC58: 0 | BD58: 0 | BE58: 0 | BH58: 係数(v’) | BJ58: =(11.8473*(BJ57-3)-5.10865)+4.3887*ABS(BJ57-3.877) -> 5.350859156
C59: 72 | E59: 72 | F59: 62 | G59: 55 | H59: 49 | V59: =MIN(V58,0) -> -6.350281932 | W59: -15.16478266 | X59: -6.985238131 | Y59: -2.288088748 | Z59: 0 | AA59: 0 | AB59: 0 | AC59: 0 | AI59: =MIN(AI57,AI58) -> -7 | AJ59: -7 | AK59: -5 | AL59: -3 | AM59: 0 | AN59: 0 | AO59: 0 | AP59: 0 | AX59: =SQRT(AX53^2+AX58^2) -> 0 | AY59: =SQRT(AY53^2+AY58^2) -> 0 | AZ59: 0 | BA59: 0 | BB59: 0 | BC59: 0 | BD59: 0 | BE59: 0 | BH59: 係数(v) | BJ59: =10^(BJ58/10) -> 3.428356023
C60: 71 | E60: 71 | F60: 61 | G60: 54 | H60: 48 | T60: s | U60: 4 | V60: =21.5*V37-20*LOG10(2.2925*($O$44/(1+$O$44^2))*LN(1/2/$O$8^2)) -> -5.531339494 | W60: =21.5*W37-20*LOG10(2.2925*($O$44/(1+$O$44^2))*LN(1/2/$O$8^2)) -> -12.94427846 | X60: -4.986117603 | Y60: -1.264875763 | Z60: 1.032974435 | AA60: 2.2268755 | AB60: 2.933360518 | AC60: 3.713641002 | AF60: 床衝撃音レベル(dB) 補正後 | AG60: s | AH60: 1 | AI60: =AI46+AI$56+AI$59 -> 89.56653982 | AJ60: 78.737115 | AK60: 63.28457501 | AL60: 49.84584446 | AM60: 39.14736432 | AN60: 31.92157124 | AO60: 23.48802587 | AP60: 16.2811343 | AV60: c | AW60: x | AX60: =-3*$BF60*LOG10($O$24/V$47)-1.2*$BF60 -> 0.1157191989 | AY60: 0.5672641924 | AZ60: 1.013618388 | BA60: 1.465163381 | BB60: 1.916708375 | BC60: 2.368253368 | BD60: 2.819798362 | BE60: 3.271343355 | BF60: =(O26-$O$7/1000)/($O$7/1000) -> -1 | BH60: - | BJ60: =IF(BJ56>BJ57,0,BJ59) -> 0
C61: 70 | E61: 70 | F61: 60 | G61: 53 | H61: 47 | V61: =MIN(V60,0) -> -5.531339494 | W61: -12.94427846 | X61: -4.986117603 | Y61: -1.264875763 | Z61: 0 | AA61: 0 | AB61: 0 | AC61: 0 | AH61: 2 | AI61: =AI48+AI$56+AI$59 -> 89.56653982 | AJ61: 78.737115 | AK61: 63.28457501 | AL61: 49.84584446 | AM61: 39.14736432 | AN61: 31.92157128 | AO61: 23.48802591 | AP61: 16.28113433 | AX61: =MAX(AX60,0) -> 0.1157191989 | AY61: =MAX(AY60,0) -> 0.5672641924 | AZ61: 1.013618388 | BA61: 1.465163381 | BB61: 1.916708375 | BC61: 2.368253368 | BD61: 2.819798362 | BE61: 3.271343355 | BH61: 乗数(w) | BJ61: =0.0985*(EXP(BJ57/3))^2.5-1.125*(BJ57-3) -> 1.509582831
C62: 69 | E62: 69 | F62: 59 | G62: 52 | H62: 46 | T62: c | V62: =21.5*V40-20*LOG10(2.2925*($O$44/(1+$O$44^2))*LN(1/2/$O$8^2)) -> -0.3650257393 | W62: =21.5*W40-20*LOG10(2.2925*($O$44/(1+$O$44^2))*LN(1/2/$O$8^2)) -> -9.42830881 | X62: -8.866988426 | Y62: -1.672084443 | Z62: 1.076367363 | AA62: 2.10855581 | AB62: 2.847175957 | AC62: 3.662948226 | AH62: 3 | AI62: =AI50+AI$56+AI$59 -> 87.5372871 | AJ62: 79.53580702 | AK62: 63.22785787 | AL62: 50.05571118 | AM62: 39.15123887 | AN62: 31.90101179 | AO62: 23.46759547 | AP62: 16.26613368 | AX62: =IF($N$26=1,AX61) -> FALSE | AY62: =IF($N$26=1,AY61) -> FALSE | AZ62: FALSE | BA62: FALSE | BB62: FALSE | BC62: FALSE | BD62: FALSE | BE62: FALSE | BH62: - | BJ62: =IF(BJ56>BJ57,0,BJ61) -> 0
C63: 68 | E63: 68 | F63: 58 | G63: 51 | H63: 45 | V63: =MIN(V62,0) -> -0.3650257393 | W63: -9.42830881 | X63: -8.866988426 | Y63: -1.672084443 | Z63: 0 | AA63: 0 | AB63: 0 | AC63: 0 | AH63: 4 | AI63: =AI52+AI$56+AI$59 -> 74.82099283 | AJ63: 79.29780949 | AK63: 62.08541395 | AL63: 49.07958049 | AM63: 39.13122877 | AN63: 31.96514673 | AO63: 23.53132786 | AP63: 16.31292793 | AX63: =IF($N$26=0,V94) -> 0 | AY63: =IF($N$26=0,W94) -> 0 | AZ63: 0 | BA63: 0 | BB63: 0 | BC63: 0 | BD63: 0 | BE63: 0 | BH63: 倍率 | BJ63: =MIN(BK63,2) -> 1 | BK63: =BJ60*(LOG10(BJ57/BJ56))^BJ62+1 -> 1
C64: 67 | E64: 67 | F64: 57 | G64: 50 | H64: 44 | T64: s | U64: 5 | V64: =21.5*V43-20*LOG10(2.2925*($O$44/(1+$O$44^2))*LN(1/2/$O$8^2)) -> -5.531339494 | W64: =21.5*W43-20*LOG10(2.2925*($O$44/(1+$O$44^2))*LN(1/2/$O$8^2)) -> -12.94427846 | X64: -4.986117603 | Y64: -1.264875763 | Z64: 1.032974435 | AA64: 2.2268755 | AB64: 2.933360518 | AC64: 3.713641002 | AH64: 5 | AI64: =AI54+AI$56+AI$59 -> 74.82099283 | AJ64: 79.29780949 | AK64: 62.08541395 | AL64: 49.07958049 | AM64: 39.13122877 | AN64: 31.96514673 | AO64: 23.53132786 | AP64: 16.31292793 | AX64: =MAX(AX62,AX63) -> 0 | AY64: =MAX(AY62,AY63) -> 0 | AZ64: 0 | BA64: 0 | BB64: 0 | BC64: 0 | BD64: 0 | BE64: 0 | BH64: （２倍値） | BJ64: =(BJ63-1)*2+1 -> 1
C65: 66 | E65: 66 | F65: 56 | G65: 49 | H65: 43 | V65: =MIN(V64,0) -> -5.531339494 | W65: =MIN(W64,0) -> -12.94427846 | X65: -4.986117603 | Y65: -1.264875763 | Z65: 0 | AA65: 0 | AB65: 0 | AC65: 0 | AG65: c | AH65: 1 | AI65: =AI47+AI$56+AI$59 -> 78.13225251 | AJ65: 82.66506257 | AK65: 66.58608259 | AL65: 50.18223536 | AM65: 39.15078073 | AN65: 31.93527002 | AO65: 23.50163867 | AP65: 16.29112923 | AW65: y | AX65: =-3*$BF65*LOG10($O$25/V$47)-1.2*$BF65 -> -0.8698900514 | AY65: -0.4183450579 | AZ65: 0.02800913746 | BA65: 0.479554131 | BB65: 0.9310991244 | BC65: 1.382644118 | BD65: 1.834189111 | BE65: 2.285734105 | BF65: =(O27-$O$7/1000)/($O$7/1000) -> -1
C66: 65 | E66: 65 | F66: 55 | G66: 48 | H66: 42 | T66: c | V66: =21.5*V46-20*LOG10(2.2925*($O$44/(1+$O$44^2))*LN(1/2/$O$8^2)) -> -0.3650257393 | W66: =21.5*W46-20*LOG10(2.2925*($O$44/(1+$O$44^2))*LN(1/2/$O$8^2)) -> -9.42830881 | X66: -8.866988426 | Y66: -1.672084443 | Z66: 1.076367363 | AA66: 2.10855581 | AB66: 2.847175957 | AC66: 3.662948226 | AH66: 2 | AI66: =AI49+AI$56+AI$59 -> 78.13225251 | AJ66: 82.66506257 | AK66: 66.58608259 | AL66: 50.18223536 | AM66: 39.15078073 | AN66: 31.93527002 | AO66: 23.50163867 | AP66: 16.29112923 | AX66: =MAX(AX65,0) -> 0 | AY66: =MAX(AY65,0) -> 0 | AZ66: 0.02800913746 | BA66: 0.479554131 | BB66: 0.9310991244 | BC66: 1.382644118 | BD66: 1.834189111 | BE66: 2.285734105 | BH66: （等価寸法倍率（片側））
C67: 64 | E67: 64 | F67: 54 | G67: 47 | H67: 41 | V67: =MIN(V66,0) -> -0.3650257393 | W67: =MIN(W66,0) -> -9.42830881 | X67: -8.866988426 | Y67: -1.672084443 | Z67: 0 | AA67: 0 | AB67: 0 | AC67: 0 | AH67: 3 | AI67: =AI51+AI$56+AI$59 -> 78.47118885 | AJ67: 83.97201186 | AK67: 64.06525954 | AL67: 50.18062327 | AM67: 39.18241128 | AN67: 31.93407913 | AO67: 23.50045525 | AP67: 16.29026033 | AX67: =IF($N$27=1,AX66) -> FALSE | AY67: =IF($N$27=1,AY66) -> FALSE | AZ67: FALSE | BA67: FALSE | BB67: FALSE | BC67: FALSE | BD67: FALSE | BE67: FALSE
C68: 63 | E68: 63 | F68: 53 | G68: 46 | H68: 40 | S68: 拘束による増加量(dB) | T68: s | U68: 1 | V68: =-30.6*LOG10($O$16/V$47)-23.1 -> -2.876707783 | W68: -7.482466717 | X68: -12.03527951 | Y68: -16.64103844 | Z68: -21.24679738 | AA68: -25.85255631 | AB68: -30.45831524 | AC68: -35.06407418 | AH68: 4 | AI68: =AI53+AI$56+AI$59 -> 60.83802732 | AJ68: 68.34250995 | AK68: 61.56112189 | AL68: 49.51776314 | AM68: 39.12364448 | AN68: 31.99808161 | AO68: 23.56405603 | AP68: 16.33695794 | AX68: =IF($N$27=0,V96) -> 4.298534018 | AY68: =IF($N$27=0,W96) -> 0 | AZ68: 0 | BA68: 0 | BB68: 0 | BC68: 0 | BD68: 0 | BE68: 0 | BH68: スパン比(x) | BJ68: =BJ55 -> 1.502645503
C69: 62 | E69: 62 | F69: 52 | G69: 45 | H69: 39 | V69: =MAX(V68,0) -> 0 | W69: =MAX(W68,0) -> 0 | X69: 0 | Y69: 0 | Z69: 0 | AA69: 0 | AB69: 0 | AC69: 0 | AH69: 5 | AI69: =AI55+AI$56+AI$59 -> 60.83802732 | AJ69: 68.34250995 | AK69: 61.56112189 | AL69: 49.51776314 | AM69: 39.12364448 | AN69: 31.99808161 | AO69: 23.56405603 | AP69: 16.33695794 | AX69: =MAX(AX67,AX68) -> 4.298534018 | AY69: =MAX(AY67,AY68) -> 0 | AZ69: 0 | BA69: 0 | BB69: 0 | BC69: 0 | BD69: 0 | BE69: 0 | BH69: 梁板厚比(z) | BJ69: =BJ56 -> 4
C70: 61 | E70: 61 | F70: 51 | G70: 44 | H70: 38 | V70: =-30.6*LOG10($O$17/V$47)-23.1 -> -7.375514003 | W70: -11.98127294 | X70: -16.53408573 | Y70: -21.13984466 | Z70: -25.7456036 | AA70: -30.35136253 | AB70: -34.95712146 | AC70: -39.5628804 | AF70: 床衝撃音レベル(dB) 補正後 | AG70: s | AH70: 1 | AI70: =MAX(AI60,0) -> 89.56653982 | AJ70: =MAX(AJ60,0) -> 78.737115 | AK70: 63.28457501 | AL70: 49.84584446 | AM70: 39.14736432 | AN70: 31.92157124 | AO70: 23.48802587 | AP70: 16.2811343 | AX70: =SQRT(AX64^2+AX69^2) -> 4.298534018 | AY70: =SQRT(AY64^2+AY69^2) -> 0 | AZ70: 0 | BA70: 0 | BB70: 0 | BC70: 0 | BD70: 0 | BE70: 0 | BH70: 1.0値(y) | BJ70: =4.983*LOG10(BJ68)+3 -> 3.881276118
C71: 60 | E71: 60 | F71: 50 | G71: 43 | H71: 37 | V71: =MAX(V70,0) -> 0 | W71: =MAX(W70,0) -> 0 | X71: 0 | Y71: 0 | Z71: 0 | AA71: 0 | AB71: 0 | AC71: 0 | AH71: 2 | AI71: =MAX(AI61,0) -> 89.56653982 | AJ71: 78.737115 | AK71: 63.28457501 | AL71: 49.84584446 | AM71: 39.14736432 | AN71: 31.92157128 | AO71: 23.48802591 | AP71: 16.28113433 | AU71: 小梁による端部拘束 加振点4(dB) | AV71: s | AW71: x | AX71: =-3*$BF71*LOG10($O$28/V$47)-1.2*$BF71 -> -0.7826757075 | AY71: -0.331130714 | AZ71: 0.1152234813 | BA71: 0.5667684748 | BB71: 1.018313468 | BC71: 1.469858462 | BD71: 1.921403455 | BE71: 2.372948449 | BF71: =(O30-$O$7/1000)/($O$7/1000) -> -1 | BH71: 係数(v’) | BJ71: =7.253*BJ70-23.8307 -> 4.320195686
C72: 59 | E72: 59 | F72: 49 | G72: 42 | H72: 36 | V72: =SQRT(V69^2+V71^2) -> 0 | W72: =SQRT(W69^2+W71^2) -> 0 | X72: 0 | Y72: 0 | Z72: 0 | AA72: 0 | AB72: 0 | AC72: 0 | AH72: 3 | AI72: 87.5372871 | AJ72: 79.53580702 | AK72: 63.22785787 | AL72: 50.05571118 | AM72: 39.15123887 | AN72: 31.90101179 | AO72: 23.46759547 | AP72: 16.26613368 | AX72: =MAX(AX71,0) -> 0 | AY72: =MAX(AY71,0) -> 0 | AZ72: 0.1152234813 | BA72: 0.5667684748 | BB72: 1.018313468 | BC72: 1.469858462 | BD72: 1.921403455 | BE72: 2.372948449 | BH72: 係数(v) | BJ72: =10^(BJ71/10) -> 2.704080203
C73: 58 | E73: 58 | F73: 48 | G73: 41 | H73: 35 | T73: c | V73: =-40*LOG10($O$16/V$47)-23.3 -> 3.1356761 | W73: -2.884923813 | X73: -8.836313084 | Y73: -14.856913 | Z73: -20.87751291 | AA73: -26.89811282 | AB73: -32.91871274 | AC73: -38.93931265 | AH73: 4 | AI73: 74.82099283 | AJ73: 79.29780949 | AK73: 62.08541395 | AL73: 49.07958049 | AM73: 39.13122877 | AN73: 31.96514673 | AO73: 23.53132786 | AP73: 16.31292793 | AX73: =IF($N$30=1,AX72) -> FALSE | AY73: =IF($N$30=1,AY72) -> FALSE | AZ73: FALSE | BA73: FALSE | BB73: FALSE | BC73: FALSE | BD73: FALSE | BE73: FALSE | BH73: - | BJ73: =IF(BJ69>BJ70,0,BJ72) -> 0
C74: 57 | E74: 57 | F74: 47 | G74: 40 | H74: 34 | V74: =MAX(V73,0) -> 3.1356761 | W74: =MAX(W73,0) -> 0 | X74: 0 | Y74: 0 | Z74: 0 | AA74: 0 | AB74: 0 | AC74: 0 | AH74: 5 | AI74: =MAX(AI64,0) -> 74.82099283 | AJ74: =MAX(AJ64,0) -> 79.29780949 | AK74: 62.08541395 | AL74: 49.07958049 | AM74: 39.13122877 | AN74: 31.96514673 | AO74: 23.53132786 | AP74: 16.31292793 | AX74: =IF($N$30=0,V99) -> 0 | AY74: =IF($N$30=0,W99) -> 0 | AZ74: 0 | BA74: 0 | BB74: 0 | BC74: 0 | BD74: 0 | BE74: 0 | BH74: 乗数(w) | BJ74: =0.02564*(EXP(BJ70/4.5))^4-0.4735*(BJ70-4.5) -> 1.100654568
C75: 56 | E75: 56 | F75: 46 | G75: 39 | H75: 33 | V75: =-40*LOG10($O$17/V$47)-23.3 -> -2.745116344 | W75: -8.765716257 | X75: -14.71710553 | Y75: -20.73770544 | Z75: -26.75830535 | AA75: -32.77890527 | AB75: -38.79950518 | AC75: -44.82010509 | AG75: c | AH75: 1 | AI75: =MAX(AI65,0) -> 78.13225251 | AJ75: =MAX(AJ65,0) -> 82.66506257 | AK75: 66.58608259 | AL75: 50.18223536 | AM75: 39.15078073 | AN75: 31.93527002 | AO75: 23.50163867 | AP75: 16.29112923 | AX75: =MAX(AX73,AX74) -> 0 | AY75: =MAX(AY73,AY74) -> 0 | AZ75: 0 | BA75: 0 | BB75: 0 | BC75: 0 | BD75: 0 | BE75: 0 | BH75: - | BJ75: =IF(BJ69>BJ70,0,BJ74) -> 0
C76: 55 | E76: 55 | F76: 45 | G76: 38 | H76: 32 | V76: =MAX(V75,0) -> 0 | W76: =MAX(W75,0) -> 0 | X76: 0 | Y76: 0 | Z76: 0 | AA76: 0 | AB76: 0 | AC76: 0 | AH76: 2 | AI76: =MAX(AI66,0) -> 78.13225251 | AJ76: 82.66506257 | AK76: 66.58608259 | AL76: 50.18223536 | AM76: 39.15078073 | AN76: 31.93527002 | AO76: 23.50163867 | AP76: 16.29112923 | AW76: y | AX76: =-3*$BF76*LOG10($O$29/V$47)-1.2*$BF76 -> -1.772980038 | AY76: -1.321435045 | AZ76: -0.8750808495 | BA76: -0.423535856 | BB76: 0.02800913746 | BC76: 0.479554131 | BD76: 0.9310991244 | BE76: 1.382644118 | BF76: =(O31-$O$7/1000)/($O$7/1000) -> -1 | BH76: 倍率 | BJ76: =MIN(BK76,2) -> 1 | BK76: =BJ73*(LOG10(BJ70/BJ69))^BJ75+1 -> 1
C77: 54 | E77: 54 | F77: 44 | G77: 37 | H77: 31 | V77: =SQRT(V74^2+V76^2) -> 3.1356761 | W77: =SQRT(W74^2+W76^2) -> 0 | X77: 0 | Y77: 0 | Z77: 0 | AA77: 0 | AB77: 0 | AC77: 0 | AH77: 3 | AI77: 78.47118885 | AJ77: 83.97201186 | AK77: 64.06525954 | AL77: 50.18062327 | AM77: 39.18241128 | AN77: 31.93407913 | AO77: 23.50045525 | AP77: 16.29026033 | AX77: =MAX(AX76,0) -> 0 | AY77: =MAX(AY76,0) -> 0 | AZ77: 0 | BA77: 0 | BB77: 0.02800913746 | BC77: 0.479554131 | BD77: 0.9310991244 | BE77: 1.382644118
C78: 53 | E78: 53 | F78: 43 | G78: 36 | H78: 30 | T78: s | U78: 2 | V78: =-30.6*LOG10($O$20/V$47)-23.1 -> -2.876707783 | W78: -7.482466717 | X78: -12.03527951 | Y78: -16.64103844 | Z78: -21.24679738 | AA78: -25.85255631 | AB78: -30.45831524 | AC78: -35.06407418 | AH78: 4 | AI78: 60.83802732 | AJ78: 68.34250995 | AK78: 61.56112189 | AL78: 49.51776314 | AM78: 39.12364448 | AN78: 31.99808161 | AO78: 23.56405603 | AP78: 16.33695794 | AX78: =IF($N$31=1,AX77) -> FALSE | AY78: =IF($N$31=1,AY77) -> FALSE | AZ78: FALSE | BA78: FALSE | BB78: FALSE | BC78: FALSE | BD78: FALSE | BE78: FALSE | BH78: （等価寸法倍率（採用値））
C79: 52 | E79: 52 | F79: 42 | G79: 35 | H79: 29 | V79: =MAX(V78,0) -> 0 | W79: 0 | X79: 0 | Y79: 0 | Z79: 0 | AA79: 0 | AB79: 0 | AC79: 0 | AH79: 5 | AI79: 60.83802732 | AJ79: 68.34250995 | AK79: 61.56112189 | AL79: 49.51776314 | AM79: 39.12364448 | AN79: 31.99808161 | AO79: 23.56405603 | AP79: 16.33695794 | AX79: =IF($N$31=0,V101) -> 7.224396391 | AY79: =IF($N$31=0,W101) -> 2.618637458 | AZ79: 0 | BA79: 0 | BB79: 0 | BC79: 0 | BD79: 0 | BE79: 0
C80: 51 | E80: 51 | F80: 41 | G80: 34 | H80: 28 | V80: =-30.6*LOG10($O$21/V$47)-23.1 -> -7.375514003 | W80: -11.98127294 | X80: -16.53408573 | Y80: -21.13984466 | Z80: -25.7456036 | AA80: -30.35136253 | AB80: -34.95712146 | AC80: -39.5628804 | AF80: 平均床衝撃音レベル(dB) | AH80: ｓ | AI80: =SUM(AI70:AI74)/$O$15 -> 83.26247048 | AJ80: =SUM(AJ70:AJ74)/$O$15 -> 79.1211312 | AK80: 62.79356716 | AL80: 49.58131222 | AM80: 39.14168501 | AN80: 31.93488955 | AO80: 23.50126059 | AP80: 16.29085163 | AX80: =MAX(AX78,AX79) -> 7.224396391 | AY80: =MAX(AY78,AY79) -> 2.618637458 | AZ80: 0 | BA80: 0 | BB80: 0 | BC80: 0 | BD80: 0 | BE80: 0 | BH80: 片側両側別 | BJ80: =IF('Calculation Sheet'!L15=1,BJ76,BJ64) -> 1
C81: 50 | E81: 50 | F81: 40 | G81: 33 | H81: 27 | V81: =MAX(V80,0) -> 0 | W81: 0 | X81: 0 | Y81: 0 | Z81: 0 | AA81: 0 | AB81: 0 | AC81: 0 | AH81: ｃ | AI81: =SUM(AI75:AI79)/$O$15 -> 71.2823497 | AJ81: =SUM(AJ75:AJ79)/$O$15 -> 77.19743138 | AK81: 64.0719337 | AL81: 49.91612406 | AM81: 39.14625234 | AN81: 31.96015648 | AO81: 23.52636893 | AP81: 16.30928693 | AX81: =SQRT(AX75^2+AX80^2) -> 7.224396391 | AY81: =SQRT(AY75^2+AY80^2) -> 2.618637458 | AZ81: 0 | BA81: 0 | BB81: 0 | BC81: 0 | BD81: 0 | BE81: 0 | BH81: 採用値 | BJ81: =IF('Calculation Sheet'!G5=1,BJ80,1) -> 1
V82: =SQRT(V79^2+V81^2) -> 0 | W82: 0 | X82: 0 | Y82: 0 | Z82: 0 | AA82: 0 | AB82: 0 | AC82: 0 | AF82: 拘束条件考慮 | AI82: =AI80+$O$14*(AI81-AI80) -> 79.66843425 | AJ82: =AJ80+$O$14*(AJ81-AJ80) -> 78.54402125 | AK82: 63.17707712 | AL82: 49.68175577 | AM82: 39.14305521 | AN82: 31.94246963 | AO82: 23.50879309 | AP82: 16.29638222 | AV82: c | AW82: x | AX82: =-3*$BF82*LOG10($O$28/V$47)-1.2*$BF82 -> -0.7826757075 | AY82: -0.331130714 | AZ82: 0.1152234813 | BA82: 0.5667684748 | BB82: 1.018313468 | BC82: 1.469858462 | BD82: 1.921403455 | BE82: 2.372948449 | BF82: =(O30-$O$7/1000)/($O$7/1000) -> -1 | BH82: 短辺 | BJ82: =MIN(N9,N10) -> 3.78
C83: =SUM(E83:H83) -> 0 | E83: =IF(E31-E$20>0,0,E31-E$20) -> 0 | F83: =IF(F31-F$20>0,0,F31-F$20) -> 0 | G83: 0 | H83: 0 | J83: 77 | K83: =IF(C83>-8,J83,IF(C83<-8,999)) -> 77 | T83: c | V83: =-40*LOG10($O$20/V$47)-23.3 -> 3.1356761 | W83: -2.884923813 | X83: -8.836313084 | Y83: -14.856913 | Z83: -20.87751291 | AA83: -26.89811282 | AB83: -32.91871274 | AC83: -38.93931265 | AX83: =MAX(AX82,0) -> 0 | AY83: =MAX(AY82,0) -> 0 | AZ83: 0.1152234813 | BA83: 0.5667684748 | BB83: 1.018313468 | BC83: 1.469858462 | BD83: 1.921403455 | BE83: 2.372948449 | BH83: 短辺8mﾁｪｯｸ | BJ83: =IF(BJ82>8,1,BJ81) -> 1
C84: =SUM(E84:H84) -> 0 | E84: =IF(E32-E$20>0,0,E32-E$20) -> 0 | F84: 0 | G84: 0 | H84: 0 | J84: 76 | K84: =IF(C84>-8,J84,IF(C84<-8,999)) -> 76 | V84: =MAX(V83,0) -> 3.1356761 | W84: 0 | X84: 0 | Y84: 0 | Z84: 0 | AA84: 0 | AB84: 0 | AC84: 0 | AX84: =IF($N$30=1,AX83) -> FALSE | AY84: =IF($N$30=1,AY83) -> FALSE | AZ84: FALSE | BA84: FALSE | BB84: FALSE | BC84: FALSE | BD84: FALSE | BE84: FALSE
C85: 0 | E85: =IF(E33-E$20>0,0,E33-E$20) -> 0 | F85: 0 | G85: 0 | H85: 0 | J85: 75 | K85: 75 | V85: =-40*LOG10($O$21/V$47)-23.3 -> -2.745116344 | W85: -8.765716257 | X85: -14.71710553 | Y85: -20.73770544 | Z85: -26.75830535 | AA85: -32.77890527 | AB85: -38.79950518 | AC85: -44.82010509 | AX85: =IF($N$30=0,V104) -> 3.1356761 | AY85: =IF($N$30=0,W104) -> 0 | AZ85: 0 | BA85: 0 | BB85: 0 | BC85: 0 | BD85: 0 | BE85: 0
C86: 0 | E86: =IF(E34-E$20>0,0,E34-E$20) -> 0 | F86: 0 | G86: 0 | H86: 0 | J86: 74 | K86: 74 | V86: =MAX(V85,0) -> 0 | W86: 0 | X86: 0 | Y86: 0 | Z86: 0 | AA86: 0 | AB86: 0 | AC86: 0 | AX86: =MAX(AX84,AX85) -> 3.1356761 | AY86: =MAX(AY84,AY85) -> 0 | AZ86: 0 | BA86: 0 | BB86: 0 | BC86: 0 | BD86: 0 | BE86: 0
C87: 0 | E87: =IF(E35-E$20>0,0,E35-E$20) -> 0 | F87: 0 | G87: 0 | H87: 0 | J87: 73 | K87: 73 | V87: =SQRT(V84^2+V86^2) -> 3.1356761 | W87: 0 | X87: 0 | Y87: 0 | Z87: 0 | AA87: 0 | AB87: 0 | AC87: 0 | AW87: y | AX87: =-3*$BF87*LOG10($O$29/V$47)-1.2*$BF87 -> -1.772980038 | AY87: -1.321435045 | AZ87: -0.8750808495 | BA87: -0.423535856 | BB87: 0.02800913746 | BC87: 0.479554131 | BD87: 0.9310991244 | BE87: 1.382644118 | BF87: =(O31-$O$7/1000)/($O$7/1000) -> -1
C88: 0 | E88: =IF(E36-E$20>0,0,E36-E$20) -> 0 | F88: 0 | G88: 0 | H88: 0 | J88: 72 | K88: 72 | T88: s | U88: 3 | V88: =-30.6*LOG10($O$24/V$47)-23.1 -> -12.04033583 | W88: -16.64609476 | X88: -21.19890755 | Y88: -25.80466649 | Z88: -30.41042542 | AA88: -35.01618436 | AB88: -39.62194329 | AC88: -44.22770222 | AX88: =MAX(AX87,0) -> 0 | AY88: =MAX(AY87,0) -> 0 | AZ88: 0 | BA88: 0 | BB88: 0.02800913746 | BC88: 0.479554131 | BD88: 0.9310991244 | BE88: 1.382644118
C89: 0 | E89: =IF(E37-E$20>0,0,E37-E$20) -> 0 | F89: 0 | G89: 0 | H89: 0 | J89: 71 | K89: 71 | V89: =MAX(V88,0) -> 0 | W89: 0 | X89: 0 | Y89: 0 | Z89: 0 | AA89: 0 | AB89: 0 | AC89: 0 | AX89: =IF($N$31=1,AX88) -> FALSE | AY89: =IF($N$31=1,AY88) -> FALSE | AZ89: FALSE | BA89: FALSE | BB89: FALSE | BC89: FALSE | BD89: FALSE | BE89: FALSE
C90: 0 | E90: =IF(E38-E$20>0,0,E38-E$20) -> 0 | F90: 0 | G90: 0 | H90: 0 | J90: 70 | K90: 70 | V90: =-30.6*LOG10($O$25/V$47)-23.1 -> -1.987121476 | W90: -6.59288041 | X90: -11.1456932 | Y90: -15.75145214 | Z90: -20.35721107 | AA90: -24.96297 | AB90: -29.56872894 | AC90: -34.17448787 | AX90: =IF($N$31=0,V106) -> 16.33973384 | AY90: =IF($N$31=0,W106) -> 10.31913393 | AZ90: 4.36774466 | BA90: 0 | BB90: 0 | BC90: 0 | BD90: 0 | BE90: 0
C91: 0 | E91: =IF(E39-E$20>0,0,E39-E$20) -> 0 | F91: 0 | G91: 0 | H91: 0 | J91: 69 | K91: 69 | V91: =MAX(V90,0) -> 0 | W91: 0 | X91: 0 | Y91: 0 | Z91: 0 | AA91: 0 | AB91: 0 | AC91: 0 | AX91: =MAX(AX89,AX90) -> 16.33973384 | AY91: =MAX(AY89,AY90) -> 10.31913393 | AZ91: 4.36774466 | BA91: 0 | BB91: 0 | BC91: 0 | BD91: 0 | BE91: 0
C92: 0 | E92: =IF(E40-E$20>0,0,E40-E$20) -> 0 | F92: 0 | G92: 0 | H92: 0 | J92: 68 | K92: 68 | V92: =SQRT(V89^2+V91^2) -> 0 | W92: 0 | X92: 0 | Y92: 0 | Z92: 0 | AA92: 0 | AB92: 0 | AC92: 0 | AX92: =SQRT(AX86^2+AX91^2) -> 16.63788949 | AY92: =SQRT(AY86^2+AY91^2) -> 10.31913393 | AZ92: 4.36774466 | BA92: 0 | BB92: 0 | BC92: 0 | BD92: 0 | BE92: 0
C93: 0 | E93: =IF(E41-E$20>0,0,E41-E$20) -> 0 | F93: 0 | G93: 0 | H93: 0 | J93: 67 | K93: 67 | T93: c | V93: =-40*LOG10($O$24/V$47)-23.3 -> -8.842922652 | W93: -14.86352257 | X93: -20.81491184 | Y93: -26.83551175 | Z93: -32.85611166 | AA93: -38.87671158 | AB93: -44.89731149 | AC93: -50.9179114 | AU93: 小梁による端部拘束 加振点5(dB) | AV93: s | AW93: x | AX93: =-3*$BF93*LOG10($O$32/V$47)-1.2*$BF93 -> -0.7826757075 | AY93: -0.331130714 | AZ93: 0.1152234813 | BA93: 0.5667684748 | BB93: 1.018313468 | BC93: 1.469858462 | BD93: 1.921403455 | BE93: 2.372948449 | BF93: =(O34-$O$7/1000)/($O$7/1000) -> -1
C94: 0 | E94: =IF(E42-E$20>0,0,E42-E$20) -> 0 | F94: 0 | G94: 0 | H94: 0 | J94: 66 | K94: 66 | V94: =MAX(V93,0) -> 0 | W94: 0 | X94: 0 | Y94: 0 | Z94: 0 | AA94: 0 | AB94: 0 | AC94: 0 | AX94: =MAX(AX93,0) -> 0 | AY94: =MAX(AY93,0) -> 0 | AZ94: 0.1152234813 | BA94: 0.5667684748 | BB94: 1.018313468 | BC94: 1.469858462 | BD94: 1.921403455 | BE94: 2.372948449
C95: 0 | E95: =IF(E43-E$20>0,0,E43-E$20) -> 0 | F95: 0 | G95: 0 | H95: 0 | J95: 65 | K95: 65 | V95: =-40*LOG10($O$25/V$47)-23.3 -> 4.298534018 | W95: -1.722065895 | X95: -7.673455166 | Y95: -13.69405508 | Z95: -19.71465499 | AA95: -25.73525491 | AB95: -31.75585482 | AC95: -37.77645473 | AX95: =IF($N$34=1,AX94) -> FALSE | AY95: =IF($N$34=1,AY94) -> FALSE | AZ95: FALSE | BA95: FALSE | BB95: FALSE | BC95: FALSE | BD95: FALSE | BE95: FALSE
C96: 0 | E96: =IF(E44-E$20>0,0,E44-E$20) -> 0 | F96: 0 | G96: 0 | H96: 0 | J96: 64 | K96: 64 | V96: =MAX(V95,0) -> 4.298534018 | W96: 0 | X96: 0 | Y96: 0 | Z96: 0 | AA96: 0 | AB96: 0 | AC96: 0 | AX96: =IF($N$34=0,V109) -> 0 | AY96: =IF($N$34=0,W109) -> 0 | AZ96: 0 | BA96: 0 | BB96: 0 | BC96: 0 | BD96: 0 | BE96: 0
C97: 0 | E97: =IF(E45-E$20>0,0,E45-E$20) -> 0 | F97: 0 | G97: 0 | H97: 0 | J97: 63 | K97: 63 | V97: =SQRT(V94^2+V96^2) -> 4.298534018 | W97: 0 | X97: 0 | Y97: 0 | Z97: 0 | AA97: 0 | AB97: 0 | AC97: 0 | AX97: =MAX(AX95,AX96) -> 0 | AY97: =MAX(AY95,AY96) -> 0 | AZ97: 0 | BA97: 0 | BB97: 0 | BC97: 0 | BD97: 0 | BE97: 0
C98: 0 | E98: =IF(E46-E$20>0,0,E46-E$20) -> 0 | F98: 0 | G98: 0 | H98: 0 | J98: 62 | K98: 62 | T98: s | U98: 4 | V98: =-30.6*LOG10($O$28/V$47)-23.1 -> -2.876707783 | W98: -7.482466717 | X98: -12.03527951 | Y98: -16.64103844 | Z98: -21.24679738 | AA98: -25.85255631 | AB98: -30.45831524 | AC98: -35.06407418 | AW98: y | AX98: =-3*$BF98*LOG10($O$33/V$47)-1.2*$BF98 -> -1.772980038 | AY98: -1.321435045 | AZ98: -0.8750808495 | BA98: -0.423535856 | BB98: 0.02800913746 | BC98: 0.479554131 | BD98: 0.9310991244 | BE98: 1.382644118 | BF98: =(O35-$O$7/1000)/($O$7/1000) -> -1
C99: 0 | E99: =IF(E47-E$20>0,0,E47-E$20) -> 0 | F99: 0 | G99: 0 | H99: 0 | J99: 61 | K99: 61 | V99: =MAX(V98,0) -> 0 | W99: 0 | X99: 0 | Y99: 0 | Z99: 0 | AA99: 0 | AB99: 0 | AC99: 0 | AX99: =MAX(AX98,0) -> 0 | AY99: =MAX(AY98,0) -> 0 | AZ99: 0 | BA99: 0 | BB99: 0.02800913746 | BC99: 0.479554131 | BD99: 0.9310991244 | BE99: 1.382644118
C100: 0 | E100: =IF(E48-E$20>0,0,E48-E$20) -> 0 | F100: 0 | G100: 0 | H100: 0 | J100: 60 | K100: 60 | V100: =-30.6*LOG10($O$29/V$47)-23.1 -> 7.224396391 | W100: 2.618637458 | X100: -1.934175335 | Y100: -6.539934268 | Z100: -11.1456932 | AA100: -15.75145214 | AB100: -20.35721107 | AC100: -24.96297 | AX100: =IF($N$35=1,AX99) -> FALSE | AY100: =IF($N$35=1,AY99) -> FALSE | AZ100: FALSE | BA100: FALSE | BB100: FALSE | BC100: FALSE | BD100: FALSE | BE100: FALSE
C101: 0 | E101: =IF(E49-E$20>0,0,E49-E$20) -> 0 | F101: 0 | G101: 0 | H101: 0 | J101: 59 | K101: 59 | V101: =MAX(V100,0) -> 7.224396391 | W101: 2.618637458 | X101: 0 | Y101: 0 | Z101: 0 | AA101: 0 | AB101: 0 | AC101: 0 | AX101: =IF($N$35=0,V111) -> 7.224396391 | AY101: =IF($N$35=0,W111) -> 2.618637458 | AZ101: 0 | BA101: 0 | BB101: 0 | BC101: 0 | BD101: 0 | BE101: 0
C102: 0 | E102: =IF(E50-E$20>0,0,E50-E$20) -> 0 | F102: 0 | G102: 0 | H102: 0 | J102: 58 | K102: 58 | V102: =SQRT(V99^2+V101^2) -> 7.224396391 | W102: 2.618637458 | X102: 0 | Y102: 0 | Z102: 0 | AA102: 0 | AB102: 0 | AC102: 0 | AX102: =MAX(AX100,AX101) -> 7.224396391 | AY102: =MAX(AY100,AY101) -> 2.618637458 | AZ102: 0 | BA102: 0 | BB102: 0 | BC102: 0 | BD102: 0 | BE102: 0
C103: 0 | E103: =IF(E51-E$20>0,0,E51-E$20) -> 0 | F103: 0 | G103: 0 | H103: 0 | J103: 57 | K103: 57 | T103: c | V103: =-40*LOG10($O$28/V$47)-23.3 -> 3.1356761 | W103: -2.884923813 | X103: -8.836313084 | Y103: -14.856913 | Z103: -20.87751291 | AA103: -26.89811282 | AB103: -32.91871274 | AC103: -38.93931265 | AX103: =SQRT(AX97^2+AX102^2) -> 7.224396391 | AY103: =SQRT(AY97^2+AY102^2) -> 2.618637458 | AZ103: 0 | BA103: 0 | BB103: 0 | BC103: 0 | BD103: 0 | BE103: 0
C104: 0 | E104: =IF(E52-E$20>0,0,E52-E$20) -> 0 | F104: 0 | G104: 0 | H104: 0 | J104: 56 | K104: 56 | V104: =MAX(V103,0) -> 3.1356761 | W104: 0 | X104: 0 | Y104: 0 | Z104: 0 | AA104: 0 | AB104: 0 | AC104: 0 | AV104: c | AW104: x | AX104: =-3*$BF104*LOG10($O$32/V$47)-1.2*$BF104 -> -0.7826757075 | AY104: -0.331130714 | AZ104: 0.1152234813 | BA104: 0.5667684748 | BB104: 1.018313468 | BC104: 1.469858462 | BD104: 1.921403455 | BE104: 2.372948449 | BF104: =(O34-$O$7/1000)/($O$7/1000) -> -1
C105: -0.5440212517 | E105: =IF(E53-E$20>0,0,E53-E$20) -> -0.5440212517 | F105: 0 | G105: 0 | H105: 0 | J105: 55 | K105: 55 | V105: =-40*LOG10($O$29/V$47)-23.3 -> 16.33973384 | W105: 10.31913393 | X105: 4.36774466 | Y105: -1.652855253 | Z105: -7.673455166 | AA105: -13.69405508 | AB105: -19.71465499 | AC105: -25.73525491 | AX105: =MAX(AX104,0) -> 0 | AY105: =MAX(AY104,0) -> 0 | AZ105: 0.1152234813 | BA105: 0.5667684748 | BB105: 1.018313468 | BC105: 1.469858462 | BD105: 1.921403455 | BE105: 2.372948449
C106: -1.544021252 | E106: =IF(E54-E$20>0,0,E54-E$20) -> -1.544021252 | F106: 0 | G106: 0 | H106: 0 | J106: 54 | K106: 54 | V106: =MAX(V105,0) -> 16.33973384 | W106: 10.31913393 | X106: 4.36774466 | Y106: 0 | Z106: 0 | AA106: 0 | AB106: 0 | AC106: 0 | AX106: =IF($N$34=1,AX105) -> FALSE | AY106: =IF($N$34=1,AY105) -> FALSE | AZ106: FALSE | BA106: FALSE | BB106: FALSE | BC106: FALSE | BD106: FALSE | BE106: FALSE
C107: -2.544021252 | E107: =IF(E55-E$20>0,0,E55-E$20) -> -2.544021252 | F107: 0 | G107: 0 | H107: 0 | J107: 53 | K107: 53 | V107: =SQRT(V104^2+V106^2) -> 16.63788949 | W107: 10.31913393 | X107: 4.36774466 | Y107: 0 | Z107: 0 | AA107: 0 | AB107: 0 | AC107: 0 | AX107: =IF($N$34=0,V114) -> 3.1356761 | AY107: =IF($N$34=0,W114) -> 0 | AZ107: 0 | BA107: 0 | BB107: 0 | BC107: 0 | BD107: 0 | BE107: 0
C108: -3.544021252 | E108: =IF(E56-E$20>0,0,E56-E$20) -> -3.544021252 | F108: 0 | G108: 0 | H108: 0 | J108: 52 | K108: 52 | T108: s | U108: 5 | V108: =-30.6*LOG10($O$32/V$47)-23.1 -> -2.876707783 | W108: -7.482466717 | X108: -12.03527951 | Y108: -16.64103844 | Z108: -21.24679738 | AA108: -25.85255631 | AB108: -30.45831524 | AC108: -35.06407418 | AX108: =MAX(AX106,AX107) -> 3.1356761 | AY108: =MAX(AY106,AY107) -> 0 | AZ108: 0 | BA108: 0 | BB108: 0 | BC108: 0 | BD108: 0 | BE108: 0
C109: -4.544021252 | E109: =IF(E57-E$20>0,0,E57-E$20) -> -4.544021252 | F109: 0 | G109: 0 | H109: 0 | J109: 51 | K109: 51 | V109: =MAX(V108,0) -> 0 | W109: 0 | X109: 0 | Y109: 0 | Z109: 0 | AA109: 0 | AB109: 0 | AC109: 0 | AW109: y | AX109: =-3*$BF109*LOG10($O$33/V$47)-1.2*$BF109 -> -1.772980038 | AY109: -1.321435045 | AZ109: -0.8750808495 | BA109: -0.423535856 | BB109: 0.02800913746 | BC109: 0.479554131 | BD109: 0.9310991244 | BE109: 1.382644118 | BF109: =(O35-$O$7/1000)/($O$7/1000) -> -1
C110: -5.721098373 | E110: =IF(E58-E$20>0,0,E58-E$20) -> -5.544021252 | F110: -0.1770771215 | G110: 0 | H110: 0 | J110: 50 | K110: 50 | V110: =-30.6*LOG10($O$33/V$47)-23.1 -> 7.224396391 | W110: 2.618637458 | X110: -1.934175335 | Y110: -6.539934268 | Z110: -11.1456932 | AA110: -15.75145214 | AB110: -20.35721107 | AC110: -24.96297 | AX110: =MAX(AX109,0) -> 0 | AY110: =MAX(AY109,0) -> 0 | AZ110: 0 | BA110: 0 | BB110: 0.02800913746 | BC110: 0.479554131 | BD110: 0.9310991244 | BE110: 1.382644118
C111: -7.721098373 | E111: =IF(E59-E$20>0,0,E59-E$20) -> -6.544021252 | F111: -1.177077122 | G111: 0 | H111: 0 | J111: 49 | K111: 49 | V111: =MAX(V110,0) -> 7.224396391 | W111: 2.618637458 | X111: 0 | Y111: 0 | Z111: 0 | AA111: 0 | AB111: 0 | AC111: 0 | AX111: =IF($N$35=1,AX110) -> FALSE | AY111: =IF($N$35=1,AY110) -> FALSE | AZ111: FALSE | BA111: FALSE | BB111: FALSE | BC111: FALSE | BD111: FALSE | BE111: FALSE
C112: -9.721098373 | E112: =IF(E60-E$20>0,0,E60-E$20) -> -7.544021252 | F112: -2.177077122 | G112: 0 | H112: 0 | J112: 48 | K112: 999 | V112: =SQRT(V109^2+V111^2) -> 7.224396391 | W112: 2.618637458 | X112: 0 | Y112: 0 | Z112: 0 | AA112: 0 | AB112: 0 | AC112: 0 | AX112: =IF($N$35=0,V116) -> 16.33973384 | AY112: =IF($N$35=0,W116) -> 10.31913393 | AZ112: 4.36774466 | BA112: 0 | BB112: 0 | BC112: 0 | BD112: 0 | BE112: 0
C113: -11.72109837 | E113: =IF(E61-E$20>0,0,E61-E$20) -> -8.544021252 | F113: -3.177077122 | G113: 0 | H113: 0 | J113: 47 | K113: 999 | T113: c | V113: =-40*LOG10($O$32/V$47)-23.3 -> 3.1356761 | W113: -2.884923813 | X113: -8.836313084 | Y113: -14.856913 | Z113: -20.87751291 | AA113: -26.89811282 | AB113: -32.91871274 | AC113: -38.93931265 | AX113: =MAX(AX111,AX112) -> 16.33973384 | AY113: =MAX(AY111,AY112) -> 10.31913393 | AZ113: 4.36774466 | BA113: 0 | BB113: 0 | BC113: 0 | BD113: 0 | BE113: 0
C114: -13.72109837 | E114: =IF(E62-E$20>0,0,E62-E$20) -> -9.544021252 | F114: -4.177077122 | G114: 0 | H114: 0 | J114: 46 | K114: 999 | V114: =MAX(V113,0) -> 3.1356761 | W114: 0 | X114: 0 | Y114: 0 | Z114: 0 | AA114: 0 | AB114: 0 | AC114: 0 | AX114: =SQRT(AX108^2+AX113^2) -> 16.63788949 | AY114: =SQRT(AY108^2+AY113^2) -> 10.31913393 | AZ114: 4.36774466 | BA114: 0 | BB114: 0 | BC114: 0 | BD114: 0 | BE114: 0
C115: -15.72109837 | E115: =IF(E63-E$20>0,0,E63-E$20) -> -10.54402125 | F115: -5.177077122 | G115: 0 | H115: 0 | J115: 45 | K115: 999 | V115: =-40*LOG10($O$33/V$47)-23.3 -> 16.33973384 | W115: 10.31913393 | X115: 4.36774466 | Y115: -1.652855253 | Z115: -7.673455166 | AA115: -13.69405508 | AB115: -19.71465499 | AC115: -25.73525491
C116: -17.72109837 | E116: =IF(E64-E$20>0,0,E64-E$20) -> -11.54402125 | F116: -6.177077122 | G116: 0 | H116: 0 | J116: 44 | K116: 999 | V116: =MAX(V115,0) -> 16.33973384 | W116: 10.31913393 | X116: 4.36774466 | Y116: 0 | Z116: 0 | AA116: 0 | AB116: 0 | AC116: 0
C117: -20.40285414 | E117: =IF(E65-E$20>0,0,E65-E$20) -> -12.54402125 | F117: -7.177077122 | G117: -0.6817557673 | H117: 0 | J117: 43 | K117: 999 | V117: =SQRT(V114^2+V116^2) -> 16.63788949 | W117: 10.31913393 | X117: 4.36774466 | Y117: 0 | Z117: 0 | AA117: 0 | AB117: 0 | AC117: 0
C118: -23.40285414 | E118: =IF(E66-E$20>0,0,E66-E$20) -> -13.54402125 | F118: -8.177077122 | G118: -1.681755767 | H118: 0 | J118: 42 | K118: 999
C119: -26.40285414 | E119: =IF(E67-E$20>0,0,E67-E$20) -> -14.54402125 | F119: -9.177077122 | G119: -2.681755767 | H119: 0 | J119: 41 | K119: 999
C120: -29.40285414 | E120: =IF(E68-E$20>0,0,E68-E$20) -> -15.54402125 | F120: -10.17707712 | G120: -3.681755767 | H120: 0 | J120: 40 | K120: 999
C121: -32.54590935 | E121: =IF(E69-E$20>0,0,E69-E$20) -> -16.54402125 | F121: -11.17707712 | G121: -4.681755767 | H121: -0.1430552072 | J121: 39 | K121: 999
C122: -36.54590935 | E122: =IF(E70-E$20>0,0,E70-E$20) -> -17.54402125 | F122: -12.17707712 | G122: -5.681755767 | H122: -1.143055207 | J122: 38 | K122: 999
C123: -40.54590935 | E123: =IF(E71-E$20>0,0,E71-E$20) -> -18.54402125 | F123: -13.17707712 | G123: -6.681755767 | H123: -2.143055207 | J123: 37 | K123: 999
C124: -44.54590935 | E124: =IF(E72-E$20>0,0,E72-E$20) -> -19.54402125 | F124: -14.17707712 | G124: -7.681755767 | H124: -3.143055207 | J124: 36 | K124: 999
C125: -48.54590935 | E125: =IF(E73-E$20>0,0,E73-E$20) -> -20.54402125 | F125: -15.17707712 | G125: -8.681755767 | H125: -4.143055207 | J125: 35 | K125: 999
C126: -52.54590935 | E126: =IF(E74-E$20>0,0,E74-E$20) -> -21.54402125 | F126: -16.17707712 | G126: -9.681755767 | H126: -5.143055207 | J126: 34 | K126: 999
C127: -56.54590935 | E127: =IF(E75-E$20>0,0,E75-E$20) -> -22.54402125 | F127: -17.17707712 | G127: -10.68175577 | H127: -6.143055207 | J127: 33 | K127: 999
C128: -60.54590935 | E128: =IF(E76-E$20>0,0,E76-E$20) -> -23.54402125 | F128: -18.17707712 | G128: -11.68175577 | H128: -7.143055207 | J128: 32 | K128: 999
C129: -64.54590935 | E129: =IF(E77-E$20>0,0,E77-E$20) -> -24.54402125 | F129: -19.17707712 | G129: -12.68175577 | H129: -8.143055207 | J129: 31 | K129: 999
C130: -68.54590935 | E130: =IF(E78-E$20>0,0,E78-E$20) -> -25.54402125 | F130: -20.17707712 | G130: -13.68175577 | H130: -9.143055207 | J130: 30 | K130: 999
C131: -72.54590935 | E131: =IF(E79-E$20>0,0,E79-E$20) -> -26.54402125 | F131: -21.17707712 | G131: -14.68175577 | H131: -10.14305521 | J131: 29 | K131: 999
C132: -76.54590935 | E132: =IF(E80-E$20>0,0,E80-E$20) -> -27.54402125 | F132: -22.17707712 | G132: -15.68175577 | H132: -11.14305521 | J132: 28 | K132: 999
C133: -80.54590935 | E133: =IF(E81-E$20>0,0,E81-E$20) -> -28.54402125 | F133: -23.17707712 | G133: -16.68175577 | H133: -12.14305521 | J133: 27 | K133: 999
J134: 評価値 | K134: =MIN(K83:K133) -> 49

Sheet 計算表s-1 (hidden)
B1: ヤング率 | C1: 辺長ｘ | D1: 辺長ｙ | E1: 板厚 | F1: ポアソン比 | G1: 密度 | H1: 曲げ剛性 | I1: 面密度 | J1: 加振点ｘ | K1: 加振点ｙ | L1: 縮退重み | M1: 周波数重み
B2: ='Calculation Sheet'!D7 -> 29000000000 | C2: ='Calculation Sheet'!D9 -> 6.4 | D2: ='Calculation Sheet'!F9 -> 4.5 | E2: =('Calculation Sheet'!L9)/1000 -> 0.2 | F2: ='Calculation Sheet'!L7 -> 0.16 | G2: ='Calculation Sheet'!G7 -> 2400 | H2: =B2*E2^3/12/(1-F2^2) -> 19841269.84 | I2: =G2*E2 -> 480 | J2: ='Calculation Sheet'!D19 -> 1.39 | K2: ='Calculation Sheet'!F19 -> 1.95 | L2: 1 | M2: 0
B4: 周波数 | C4: 31.5Hz | D4: 63Hz | E4: 125Hz | F4: 250Hz | G4: 500Hz | H4: 1000Hz | I4: (2000Hz) | J4: (4000Hz)
B5: モード数１ | C5: =M8 -> 1.124078405 | D5: =S8 -> 2.297044974 | E5: =Y8 -> 3.260698137 | F5: =AE8 -> 6.204506747 | G5: =AK8 -> 13.08975322 | H5: =AQ8 -> 24.29519067 | I5: =H6*I7/H7 -> 37.07009627 | J5: =H6*J7/H7 -> 75.22027474
B6: モード数２ | C6: =C5*($D$7^2+$C$7^2)/2/$D$7^2 -> 0.8399028217 | D6: =D5*($D$7^2+$C$7^2)/2/$D$7^2 -> 1.716334507 | E6: 2.436368811 | F6: 4.63596018 | G6: 9.780563899 | H6: 18.15318141 | I6: 27.69849356 | J6: 56.20401632
C7: =MIN(C2,D2) -> 4.5 | D7: =MAX(C2,D2) -> 6.4 | H7: =0.354*SQRT(I2/H2)*C2*D2*1000-0.139*SQRT(SQRT(I2/H2*1000^2))*(C2+D2) -> 46.78530751 | I7: =0.354*SQRT(I2/H2)*C2*D2*2000-0.139*SQRT(SQRT(I2/H2*2000^2))*(C2+D2) -> 95.53894794 | J7: =0.354*SQRT(I2/H2)*C2*D2*4000-0.139*SQRT(SQRT(I2/H2*4000^2))*(C2+D2) -> 193.861539
M8: =M9+O9+Q9 -> 1.124078405 | S8: =S9+U9+W9 -> 2.297044974 | Y8: =Y9+AA9+AC9 -> 3.260698137 | AE8: =AE9+AG9+AI9 -> 6.204506747 | AK8: =AK9+AM9+AO9 -> 13.08975322 | AQ8: =AQ9+AS9+AU9 -> 24.29519067
B9: m | C9: n | D9: fi | F9: No. | G9: m | H9: n | I9: fi | J9: 縮退ﾁｪｯｸ | K9: 周波数重み | L9: 重み | M9: =SUM(N10:N409) -> 0 | O9: =SUM(P10:P409) -> 0.6168128492 | Q9: =SUM(R10:R409) -> 0.5072655555 | S9: =SUM(T10:T409) -> 0.0003760884949 | U9: =SUM(V10:V409) -> 2.083259799 | W9: =SUM(X10:X409) -> 0.2134090868 | Y9: =SUM(Z10:Z409) -> 0.5908458732 | AA9: =SUM(AB10:AB409) -> 2.453645627 | AC9: =SUM(AD10:AD409) -> 0.2162066368 | AE9: =SUM(AF10:AF409) -> 0.7363898269 | AG9: =SUM(AH10:AH409) -> 4.776218876 | AI9: =SUM(AJ10:AJ409) -> 0.691898044 | AK9: =SUM(AL10:AL409) -> 0.7789168765 | AM9: =SUM(AN10:AN409) -> 11.24644909 | AO9: =SUM(AP10:AP409) -> 1.064387253 | AQ9: =SUM(AR10:AR409) -> 1.596625608 | AS9: =SUM(AT10:AT409) -> 19.96355158 | AU9: =SUM(AV10:AV409) -> 2.73501348
B10: 1 | C10: 1 | D10: =3.1416/2*SQRT($H$2/$I$2)*(B10^2/$C$2^2+C10^2/$D$2^2) -> 23.56798264 | F10: 1 | G10: 1 | H10: 1 | I10: 23.56798264 | J10: =1 -> 1 | K10: =ABS(SIN(G10*3.1416*$J$2/$C$2)*SIN(H10*3.1416*$K$2/$D$2))*(1/F10^$M$2)+(1-1/F10^$M$2) -> 0.6168128492 | L10: =$J10*$K10 -> 0.6168128492 | M10: =10^(LOG10($I10/22.27)/LOG10(2)*70/20)*$L10 -> 1.191782254 | N10: =IF($I10<22.27,M10,0) -> 0 | O10: =AND($I10>22.27,$I10<44.45) -> TRUE | P10: =IF($O10=TRUE,$L10,0) -> 0.6168128492 | Q10: =10^(LOG10(44.45/$I10)/LOG10(2)*70/20)*$L10 -> 986.0442917 | R10: =IF($I10>44.45,Q10,0) -> 0 | S10: =10^(LOG10($I10/44.548)/LOG10(2)*70/20)*$L10 -> 0.0003760884949 | T10: =IF($I10<44.528,S10,0) -> 0.0003760884949 | U10: =AND($I10>44.548,$I10<89.095) -> FALSE | V10: =IF($U10=TRUE,$L10,0) -> 0 | W10: =10^(LOG10(89.095/$I10)/LOG10(2)*70/20)*$L10 -> 3198601.246 | X10: =IF($I10>89.095,W10,0) -> 0 | Y10: =10^(LOG10($I10/89.09)/LOG10(2)*70/20)*$L10 -> 1.190227838e-07 | Z10: =IF($I10<89.09,Y10,0) -> 1.190227838e-07 | AA10: =AND($I10>89.09,$I10<176.78) -> FALSE | AB10: =IF($AA10=TRUE,$L10,0) -> 0 | AC10: =10^(LOG10(176.78/$I10)/LOG10(2)*70/20)*$L10 -> 9222433134 | AD10: =IF($I10>176.78,AC10,0) -> 0 | AE10: =10^(LOG10($I10/176.78)/LOG10(2)*70/20)*$L10 -> 4.125354832e-11 | AF10: =IF($I10<176.78,AE10,0) -> 4.125354832e-11 | AG10: =AND($I10>176.78,$I10<353.55) -> FALSE | AH10: =IF($AG10=TRUE,$L10,0) -> 0 | AI10: =10^(LOG10(353.55/$I10)/LOG10(2)*70/20)*$L10 -> 2.915430523e+13 | AJ10: =IF($I10>353.55,AI10,0) -> 0 | AK10: =10^(LOG10($I10/353.55)/LOG10(2)*70/20)*$L10 -> 1.304980818e-14 | AL10: =IF($I10<353.55,AK10,0) -> 1.304980818e-14 | AM10: =AND($I10>353.55,$I10<707.1) -> FALSE | AN10: =IF($AM10=TRUE,$L10,0) -> 0 | AO10: =10^(LOG10(707.1/$I10)/LOG10(2)*70/20)*$L10 -> 9.219400812e+16 | AP10: =IF($I10>707.1,AO10,0) -> 0 | AQ10: =10^(LOG10($I10/707.1)/LOG10(2)*70/20)*$L10 -> 4.126711689e-18 | AR10: =IF($I10<707.1,AQ10,0) -> 4.126711689e-18 | AS10: =AND($I10>707.1,$I10<1414.2) -> FALSE | AT10: =IF($AS10=TRUE,$L10,0) -> 0 | AU10: =10^(LOG10(1414.2/$I10)/LOG10(2)*70/20)*$L10 -> 2.915430523e+20 | AV10: =IF($I10>1414.2,AU10,0) -> 0
B11: 1 | C11: 2 | D11: 70.88106396 | F11: 2 | G11: 2 | H11: 1 | I11: 46.95884926 | J11: =IF(ABS(I11-I10)>0.0001,1,$L$2) -> 1 | K11: 0.9574344126 | L11: =$J11*$K11 -> 0.9574344126 | M11: =10^(LOG10($I11/22.27)/LOG10(2)*70/20)*$L11 -> 5599.42295 | N11: =IF($I11<22.27,M11,0) -> 0 | O11: =AND($I11>22.27,$I11<44.45) -> FALSE | P11: =IF($O11=TRUE,$L11,0) -> 0 | Q11: =10^(LOG10(44.45/$I11)/LOG10(2)*70/20)*$L11 -> 0.5056631508 | R11: =IF($I11>44.45,Q11,0) -> 0.5056631508 | S11: =10^(LOG10($I11/44.548)/LOG10(2)*70/20)*$L11 -> 1.766999418 | T11: =IF($I11<44.528,S11,0) -> 0 | U11: TRUE | V11: =IF($U11=TRUE,$L11,0) -> 0.9574344126 | W11: =10^(LOG10(89.095/$I11)/LOG10(2)*70/20)*$L11 -> 1640.306422 | X11: 0 | Y11: =10^(LOG10($I11/89.09)/LOG10(2)*70/20)*$L11 -> 0.0005592119743 | Z11: =IF($I11<89.09,Y11,0) -> 0.0005592119743 | AA11: =AND($I11>89.09,$I11<176.78) -> FALSE | AB11: =IF($AA11=TRUE,$L11,0) -> 0 | AC11: =10^(LOG10(176.78/$I11)/LOG10(2)*70/20)*$L11 -> 4729447.385 | AD11: =IF($I11>176.78,AC11,0) -> 0 | AE11: =10^(LOG10($I11/176.78)/LOG10(2)*70/20)*$L11 -> 1.938240517e-07 | AF11: =IF($I11<176.78,AE11,0) -> 1.938240517e-07 | AG11: =AND($I11>176.78,$I11<353.55) -> FALSE | AH11: =IF($AG11=TRUE,$L11,0) -> 0 | AI11: =10^(LOG10(353.55/$I11)/LOG10(2)*70/20)*$L11 -> 1.495090836e+10 | AJ11: =IF($I11>353.55,AI11,0) -> 0 | AK11: =10^(LOG10($I11/353.55)/LOG10(2)*70/20)*$L11 -> 6.13127064e-11 | AL11: =IF($I11<353.55,AK11,0) -> 6.13127064e-11 | AM11: =AND($I11>353.55,$I11<707.1) -> FALSE | AN11: =IF($AM11=TRUE,$L11,0) -> 0 | AO11: =10^(LOG10(707.1/$I11)/LOG10(2)*70/20)*$L11 -> 4.727892349e+13 | AP11: =IF($I11>707.1,AO11,0) -> 0 | AQ11: =10^(LOG10($I11/707.1)/LOG10(2)*70/20)*$L11 -> 1.938878017e-14 | AR11: =IF($I11<707.1,AQ11,0) -> 1.938878017e-14 | AS11: =AND($I11>707.1,$I11<1414.2) -> FALSE | AT11: =IF($AS11=TRUE,$L11,0) -> 0 | AU11: =10^(LOG10(1414.2/$I11)/LOG10(2)*70/20)*$L11 -> 1.495090836e+17 | AV11: =IF($I11>1414.2,AU11,0) -> 0
B12: 1 | C12: 3 | D12: 149.7361995 | F12: 3 | G12: 1 | H12: 2 | I12: 70.88106396 | J12: 1 | K12: 0.2564813634 | L12: 0.2564813634 | M12: 179929.0425 | N12: 0 | O12: FALSE | P12: 0 | Q12: 0.00112926761 | R12: 0.00112926761 | S12: 56.7798711 | T12: 0 | U12: TRUE | V12: 0.2564813634 | W12: 3.663199327 | X12: 0 | Y12: 0.01796943649 | Z12: 0.01796943649 | AA12: FALSE | AB12: 0 | AC12: 10561.99515 | AD12: 0 | AE12: 6.228244651e-06 | AF12: 6.228244651e-06 | AG12: FALSE | AH12: 0 | AI12: 33388979.45 | AJ12: 0 | AK12: 1.970191688e-09 | AL12: 1.970191688e-09 | AM12: FALSE | AN12: 0 | AO12: 1.055852238e+11 | AP12: 0 | AQ12: 6.230293162e-13 | AR12: 6.230293162e-13 | AS12: FALSE | AT12: 0 | AU12: 3.338897945e+14 | AV12: 0
B13: 1 | C13: 4 | D13: 260.1333892 | F13: 4 | G13: 3 | H13: 1 | I13: 85.94362695 | J13: 1 | K13: 0.8693440226 | L13: 0.8693440226 | M13: 5730645.415 | N13: 0 | O13: FALSE | P13: 0 | Q13: 0.0004073486869 | R13: 0.0004073486869 | S13: 1808.409046 | T13: 0 | U13: TRUE | V13: 0.8693440226 | W13: 1.321386908 | X13: 0 | Y13: 0.5723171058 | Z13: 0.5723171058 | AA13: FALSE | AB13: 0 | AC13: 3809.916106 | AD13: 0 | AE13: 0.0001983663179 | AF13: 0.0001983663179 | AG13: FALSE | AH13: 0 | AI13: 12044051.22 | AJ13: 0 | AK13: 6.274956955e-08 | AL13: 6.274956955e-08 | AM13: FALSE | AN13: 0 | AO13: 3.808663411e+10 | AP13: 0 | AQ13: 1.98431562e-11 | AR13: 1.98431562e-11 | AS13: FALSE | AT13: 0 | AU13: 1.204405122e+14 | AV13: 0
B14: 1 | C14: 5 | D14: 402.0726332 | F14: 5 | G14: 2 | H14: 2 | I14: 94.27193057 | J14: 1 | K14: 0.3981176525 | L14: 0.3981176525 | M14: 7692277.388 | N14: 0 | O14: FALSE | P14: 0 | Q14: 6.364355722e-05 | R14: 6.364355722e-05 | S14: 2427.437575 | T14: 0 | U14: FALSE | V14: 0 | W14: 0.2064515389 | X14: 0.2064515389 | Y14: 0.7682244516 | Z14: 0 | AA14: TRUE | AB14: 0.3981176525 | AC14: 595.2556653 | AD14: 0 | AE14: 0.0002662682179 | AF14: 0.0002662682179 | AG14: FALSE | AH14: 0 | AI14: 1881744.774 | AJ14: 0 | AK14: 8.422909811e-08 | AL14: 8.422909811e-08 | AM14: FALSE | AN14: 0 | AO14: 5950599462 | AP14: 0 | AQ14: 2.663557953e-11 | AR14: 2.663557953e-11 | AS14: FALSE | AT14: 0 | AU14: 1.881744774e+13 | AV14: 0
B15: 1 | C15: 6 | D15: 575.5539313 | F15: 6 | G15: 3 | H15: 2 | I15: 133.2567083 | J15: 1 | K15: 0.3614881572 | L15: 0.3614881572 | M15: 390584961.3 | N15: 0 | O15: FALSE | P15: 0 | Q15: 1.033377838e-06 | R15: 1.033377838e-06 | S15: 123256.165 | T15: 0 | U15: FALSE | V15: 0 | W15: 0.003352145201 | X15: 0.003352145201 | Y15: 39.00755297 | Z15: 0 | AA15: TRUE | AB15: 0.3614881572 | AC15: 9.665141915 | AD15: 0 | AE15: 0.01352010027 | AF15: 0.01352010027 | AG15: FALSE | AH15: 0 | AI15: 30553.81301 | AJ15: 0 | AK15: 4.276837322e-06 | AL15: 4.276837322e-06 | AM15: FALSE | AN15: 0 | AO15: 96619640.3 | AP15: 0 | AQ15: 1.352454712e-09 | AR15: 1.352454712e-09 | AS15: FALSE | AT15: 0 | AU15: 3.055381301e+11 | AV15: 0
B16: 1 | C16: 7 | D16: 780.5772837 | F16: 7 | G16: 4 | H16: 1 | I16: 140.5223157 | J16: 1 | K16: 0.3919860553 | L16: 0.3919860553 | M16: 785164932.2 | N16: 0 | O16: FALSE | P16: 0 | Q16: 6.044590076e-07 | R16: 6.044590076e-07 | S16: 247773.0278 | T16: 0 | U16: FALSE | V16: 0 | W16: 0.001960787514 | X16: 0.001960787514 | Y16: 78.41408585 | Z16: 0 | AA16: TRUE | AB16: 0.3919860553 | AC16: 5.653481114 | AD16: 0 | AE16: 0.02717848782 | AF16: 0.02717848782 | AG16: FALSE | AH16: 0 | AI16: 17871.99881 | AJ16: 0 | AK16: 8.597419304e-06 | AL16: 8.597419304e-06 | AM16: FALSE | AN16: 0 | AO16: 56516222.57 | AP16: 0 | AQ16: 2.7187427e-09 | AR16: 2.7187427e-09 | AS16: FALSE | AT16: 0 | AU16: 1.787199881e+11 | AV16: 0
B17: 1 | C17: 8 | D17: 1017.14269 | F17: 8 | G17: 1 | H17: 3 | I17: 149.7361995 | J17: 1 | K17: 0.5101634986 | L17: 0.5101634986 | M17: 2138370278 | N17: 0 | O17: FALSE | P17: 0 | Q17: 3.759433167e-07 | R17: 3.759433167e-07 | S17: 674801.5054 | T17: 0 | U17: FALSE | V17: 0 | W17: 0.001219511914 | X17: 0.001219511914 | Y17: 213.5581247 | Z17: 0 | AA17: TRUE | AB17: 0.5101634986 | AC17: 3.516182924 | AD17: 0 | AE17: 0.0740196972 | AF17: 0.0740196972 | AG17: FALSE | AH17: 0 | AI17: 11115.49075 | AJ17: 0 | AK17: 2.341478223e-05 | AL17: 2.341478223e-05 | AM17: FALSE | AN17: 0 | AO17: 35150268.08 | AP17: 0 | AQ17: 7.404404278e-09 | AR17: 7.404404278e-09 | AS17: FALSE | AT17: 0 | AU17: 1.111549075e+11 | AV17: 0
B18: 1 | C18: 9 | D18: 1285.250151 | F18: 9 | G18: 2 | H18: 3 | I18: 173.1270661 | J18: 1 | K18: 0.7918902634 | L18: 0.7918902634 | M18: 1.794598875e+10 | N18: 0 | O18: FALSE | P18: 0 | Q18: 1.079317276e-07 | R18: 1.079317276e-07 | S18: 5663182.075 | T18: 0 | U18: FALSE | V18: 0 | W18: 0.0003501166846 | X18: 0.0003501166846 | Y18: 1792.258219 | Z18: 0 | AA18: TRUE | AB18: 0.7918902634 | AC18: 1.009481165 | AD18: 0 | AE18: 0.621200485 | AF18: 0.621200485 | AG18: FALSE | AH18: 0 | AI18: 3191.210126 | AJ18: 0 | AK18: 0.0001965054523 | AL18: 0.0001965054523 | AM18: FALSE | AN18: 0 | AO18: 10091492.49 | AP18: 0 | AQ18: 6.21404802e-08 | AR18: 6.21404802e-08 | AS18: FALSE | AT18: 0 | AU18: 3.191210126e+10 | AV18: 0
B19: 1 | C19: 10 | D19: 1584.899666 | F19: 10 | G19: 4 | H19: 2 | I19: 187.835397 | J19: 1 | K19: 0.1629945259 | L19: 0.1629945259 | M19: 9532509766 | N19: 0 | O19: FALSE | P19: 0 | Q19: 8.608456562e-09 | R19: 8.608456562e-09 | S19: 3008156.262 | T19: 0 | U19: FALSE | V19: 0 | W19: 2.792472926e-05 | X19: 2.792472926e-05 | Y19: 952.007672 | Z19: 0 | AA19: FALSE | AB19: 0 | AC19: 0.08051455264 | AD19: 0.08051455264 | AE19: 0.3299678703 | AF19: 0 | AG19: TRUE | AH19: 0.1629945259 | AI19: 254.525656 | AJ19: 0 | AK19: 0.0001043793223 | AL19: 0.0001043793223 | AM19: FALSE | AN19: 0 | AO19: 804880.7958 | AP19: 0 | AQ19: 3.30076399e-08 | AR19: 3.30076399e-08 | AS19: FALSE | AT19: 0 | AU19: 2545256560 | AV19: 0
B20: 1 | C20: 11 | D20: 1916.091235 | F20: 11 | G20: 5 | H20: 1 | I20: 210.6949156 | J20: 1 | K20: 0.2608921411 | L20: 0.2608921411 | M20: 5.799601123e+10 | N20: 0 | O20: FALSE | P20: 0 | Q20: 3.62501979e-09 | R20: 3.62501979e-09 | S20: 18301692.69 | T20: 0 | U20: FALSE | V20: 0 | W20: 1.175909938e-05 | X20: 1.175909938e-05 | Y20: 5792.036828 | Z20: 0 | AA20: FALSE | AB20: 0 | AC20: 0.03390466625 | AD20: 0.03390466625 | AE20: 2.007532201 | AF20: 0 | AG20: TRUE | AH20: 0.2608921411 | AI20: 107.1807162 | AJ20: 0 | AK20: 0.0006350462255 | AL20: 0.0006350462255 | AM20: FALSE | AN20: 0 | AO20: 338935.1845 | AP20: 0 | AQ20: 2.008192492e-07 | AR20: 2.008192492e-07 | AS20: FALSE | AT20: 0 | AU20: 1071807162 | AV20: 0
B21: 1 | C21: 12 | D21: 2278.824859 | F21: 12 | G21: 3 | H21: 3 | I21: 212.1118438 | J21: 1 | K21: 0.7190310459 | L21: 0.7190310459 | M21: 1.727939966e+11 | N21: 0 | O21: FALSE | P21: 0 | Q21: 9.24172728e-09 | R21: 9.24172728e-09 | S21: 54528278.04 | T21: 0 | U21: FALSE | V21: 0 | W21: 2.997897827e-05 | X21: 2.997897827e-05 | Y21: 17256.86251 | Z21: 0 | AA21: FALSE | AB21: 0 | AC21: 0.08643750854 | AD21: 0.08643750854 | AE21: 5.981265005 | AF21: 0 | AG21: TRUE | AH21: 0.7190310459 | AI21: 273.2495287 | AJ21: 0 | AK21: 0.001892064178 | AL21: 0.001892064178 | AM21: FALSE | AN21: 0 | AO21: 864090.8802 | AP21: 0 | AQ21: 5.983232283e-07 | AR21: 5.983232283e-07 | AS21: FALSE | AT21: 0 | AU21: 2732495287 | AV21: 0
B22: 1 | C22: 13 | D22: 2673.100536 | F22: 13 | G22: 5 | H22: 2 | I22: 258.0079969 | J22: 1 | K22: 0.1084834276 | L22: 0.1084834276 | M22: 2.542210541e+11 | N22: 0 | O22: FALSE | P22: 0 | Q22: 1.429887254e-10 | R22: 1.429887254e-10 | S22: 80224062.13 | T22: 0 | U22: FALSE | V22: 0 | W22: 4.638370905e-07 | X22: 4.638370905e-07 | Y22: 25388.94791 | Z22: 0 | AA22: FALSE | AB22: 0 | AC22: 0.001337367875 | AD22: 0.001337367875 | AE22: 8.799862982 | AF22: 0 | AG22: TRUE | AH22: 0.1084834276 | AI22: 4.227738024 | AJ22: 0 | AK22: 0.002783676281 | AL22: 0.002783676281 | AM22: FALSE | AN22: 0 | AO22: 13369.28151 | AP22: 0 | AQ22: 8.802757315e-07 | AR22: 8.802757315e-07 | AS22: FALSE | AT22: 0 | AU22: 42277380.24 | AV22: 0
B23: 1 | C23: 14 | D23: 3098.918268 | F23: 14 | G23: 1 | H23: 4 | I23: 260.1333892 | J23: 1 | K23: 0.4686160974 | L23: 0.4686160974 | M23: 1.208065931e+12 | N23: 0 | O23: FALSE | P23: 0 | Q23: 5.614748174e-10 | R23: 5.614748174e-10 | S23: 381227104.2 | T23: 0 | U23: FALSE | V23: 0 | W23: 1.821352312e-06 | X23: 1.821352312e-06 | Y23: 120649.0276 | Z23: 0 | AA23: FALSE | AB23: 0 | AC23: 0.005251451688 | AD23: 0.005251451688 | AE23: 41.81720786 | AF23: 0 | AG23: TRUE | AH23: 0.4686160974 | AI23: 16.60108815 | AJ23: 0 | AK23: 0.01322811161 | AL23: 0.01322811161 | AM23: FALSE | AN23: 0 | AO23: 52497.25018 | AP23: 0 | AQ23: 4.183096182e-06 | AR23: 4.183096182e-06 | AS23: FALSE | AT23: 0 | AU23: 166010881.5 | AV23: 0
B24: 1 | C24: 15 | D24: 3556.278054 | F24: 15 | G24: 4 | H24: 3 | I24: 266.6905326 | J24: 1 | K24: 0.3242101355 | L24: 0.3242101355 | M24: 1.116355723e+12 | N24: 0 | O24: FALSE | P24: 0 | Q24: 2.908285817e-10 | R24: 2.908285817e-10 | S24: 352286285.8 | T24: 0 | U24: FALSE | V24: 0 | W24: 9.434106273e-07 | X24: 9.434106273e-07 | Y24: 111489.9685 | Z24: 0 | AA24: FALSE | AB24: 0 | AC24: 0.002720108184 | AD24: 0.002720108184 | AE24: 38.64265861 | AF24: 0 | AG24: TRUE | AH24: 0.3242101355 | AI24: 8.598909106 | AJ24: 0 | AK24: 0.0122239008 | AL24: 0.0122239008 | AM24: FALSE | AN24: 0 | AO24: 27192.13817 | AP24: 0 | AQ24: 3.865536843e-06 | AR24: 3.865536843e-06 | AS24: FALSE | AT24: 0 | AU24: 85989091.06 | AV24: 0
B25: 1 | C25: 16 | D25: 4045.179894 | F25: 16 | G25: 2 | H25: 4 | I25: 283.5242558 | J25: 1 | K25: 0.727399208 | L25: 0.727399208 | M25: 5.10291435e+12 | N25: 0 | O25: FALSE | P25: 0 | Q25: 3.202682465e-10 | R25: 3.202682465e-10 | S25: 1610317129 | T25: 0 | U25: FALSE | V25: 0 | W25: 1.038909125e-06 | X25: 1.038909125e-06 | Y25: 509625.8729 | Z25: 0 | AA25: FALSE | AB25: 0 | AC25: 0.002995456201 | AD25: 0.002995456201 | AE25: 176.6374042 | AF25: 0 | AG25: TRUE | AH25: 0.727399208 | AI25: 9.469349695 | AJ25: 0 | AK25: 0.05587602368 | AL25: 0.05587602368 | AM25: FALSE | AN25: 0 | AO25: 29944.713 | AP25: 0 | AQ25: 1.766955014e-05 | AR25: 1.766955014e-05 | AS25: FALSE | AT25: 0 | AU25: 94693496.95 | AV25: 0
B26: 1 | C26: 17 | D26: 4565.623789 | F26: 17 | G26: 6 | H26: 1 | I26: 296.4614265 | J26: 1 | K26: 0.796950242 | L26: 0.796950242 | M26: 9.392463109e+12 | N26: 0 | O26: FALSE | P26: 0 | Q26: 2.088668077e-10 | R26: 2.088668077e-10 | S26: 2963962001 | T26: 0 | U26: FALSE | V26: 0 | W26: 6.77537142e-07 | X26: 6.77537142e-07 | Y26: 938021.2722 | Z26: 0 | AA26: FALSE | AB26: 0 | AC26: 0.001953522964 | AD26: 0.001953522964 | AE26: 325.1201547 | AF26: 0 | AG26: TRUE | AH26: 0.796950242 | AI26: 6.175550849 | AJ26: 0 | AK26: 0.1028458358 | AL26: 0.1028458358 | AM26: FALSE | AN26: 0 | AO26: 19528.80649 | AP26: 0 | AQ26: 3.252270888e-05 | AR26: 3.252270888e-05 | AS26: FALSE | AT26: 0 | AU26: 61755508.49 | AV26: 0
B27: 1 | C27: 18 | D27: 5117.609737 | F27: 18 | G27: 3 | H27: 4 | I27: 322.5090335 | J27: 1 | K27: 0.6604736002 | L27: 0.6604736002 | M27: 2.072224676e+13 | N27: 0 | O27: FALSE | P27: 0 | Q27: 6.502204113e-11 | R27: 6.502204113e-11 | S27: 6539280618 | T27: 0 | U27: FALSE | V27: 0 | W27: 2.10923164e-07 | X27: 2.10923164e-07 | Y27: 2069521.918 | Z27: 0 | AA27: FALSE | AB27: 0 | AC27: 0.0006081485707 | AD27: 0.0006081485707 | AE27: 717.300669 | AF27: 0 | AG27: TRUE | AH27: 0.6604736002 | AI27: 1.922502315 | AJ27: 0 | AK27: 0.2269049942 | AL27: 0.2269049942 | AM27: FALSE | AN27: 0 | AO27: 6079.486123 | AP27: 0 | AQ27: 7.17536594e-05 | AR27: 7.17536594e-05 | AS27: FALSE | AT27: 0 | AU27: 19225023.15 | AV27: 0
B28: 1 | C28: 19 | D28: 5701.13774 | F28: 19 | G28: 5 | H28: 3 | I28: 336.8631324 | J28: 1 | K28: 0.215782871 | L28: 0.215782871 | M28: 1.123255998e+13 | N28: 0 | O28: FALSE | P28: 0 | Q28: 1.280388312e-11 | R28: 1.280388312e-11 | S28: 3544637926 | T28: 0 | U28: FALSE | V28: 0 | W28: 4.153415505e-08 | X28: 4.153415505e-08 | Y28: 1121790.96 | Z28: 0 | AA28: FALSE | AB28: 0 | AC28: 0.0001197542107 | AD28: 0.0001197542107 | AE28: 388.8151166 | AF28: 0 | AG28: TRUE | AH28: 0.215782871 | AI28: 0.3785715506 | AJ28: 0 | AK28: 0.1229945761 | AL28: 0.1229945761 | AM28: FALSE | AN28: 0 | AO28: 1197.148357 | AP28: 0 | AQ28: 3.889430004e-05 | AR28: 3.889430004e-05 | AS28: FALSE | AT28: 0 | AU28: 3785715.506 | AV28: 0
B29: 1 | C29: 20 | D29: 6316.207797 | F29: 20 | G29: 6 | H29: 2 | I29: 343.7745078 | J29: 1 | K29: 0.3313855814 | L29: 0.3313855814 | M29: 2.184466924e+13 | N29: 0 | O29: FALSE | P29: 0 | Q29: 1.552774022e-11 | R29: 1.552774022e-11 | S29: 6893481378 | T29: 0 | U29: FALSE | V29: 0 | W29: 5.036999823e-08 | X29: 5.036999823e-08 | Y29: 2181617.771 | Z29: 0 | AA29: FALSE | AB29: 0 | AC29: 0.0001452303382 | AD29: 0.0001452303382 | AE29: 756.1533283 | AF29: 0 | AG29: TRUE | AH29: 0.3313855814 | AI29: 0.4591076504 | AJ29: 0 | AK29: 0.2391953248 | AL29: 0.2391953248 | AM29: FALSE | AN29: 0 | AO29: 1451.825866 | AP29: 0 | AQ29: 7.564020322e-05 | AR29: 7.564020322e-05 | AS29: FALSE | AT29: 0 | AU29: 4591076.504 | AV29: 0
B30: 2 | C30: 1 | D30: 46.95884926 | F30: 21 | G30: 4 | H30: 4 | I30: 377.0877223 | J30: 1 | K30: 0.2978066617 | L30: 0.2978066617 | M30: 5.754106695e+13 | N30: 0 | O30: FALSE | P30: 0 | Q30: 4.760772399e-12 | R30: 4.760772399e-12 | S30: 1.815812678e+10 | T30: 0 | U30: FALSE | V30: 0 | W30: 1.544333521e-08 | X30: 1.544333521e-08 | Y30: 5746601.738 | Z30: 0 | AA30: FALSE | AB30: 0 | AC30: 4.452731534e-05 | AD30: 4.452731534e-05 | AE30: 1991.784303 | AF30: 0 | AG30: FALSE | AH30: 0 | AI30: 0.1407614372 | AJ30: 0.1407614372 | AK30: 0.6300646648 | AL30: 0 | AM30: TRUE | AN30: 0.2978066617 | AO30: 445.1267482 | AP30: 0 | AQ30: 0.0001992439414 | AR30: 0.0001992439414 | AS30: FALSE | AT30: 0 | AU30: 1407614.372 | AV30: 0
B31: 2 | C31: 2 | D31: 94.27193057 | F31: 22 | G31: 7 | H31: 1 | I31: 397.8218485 | J31: 1 | K31: 0.9761566459 | L31: 0.9761566459 | M31: 3.514319035e+14 | N31: 0 | O31: FALSE | P31: 0 | Q31: 8.374991197e-12 | R31: 8.374991197e-12 | S31: 1.109007079e+11 | T31: 0 | U31: FALSE | V31: 0 | W31: 2.716739756e-08 | X31: 2.716739756e-08 | Y31: 35097353.84 | Z31: 0 | AA31: FALSE | AB31: 0 | AC31: 7.833096035e-05 | AD31: 7.833096035e-05 | AE31: 12164.81699 | AF31: 0 | AG31: FALSE | AH31: 0 | AI31: 0.2476228012 | AJ31: 0.2476228012 | AK31: 3.848118156 | AL31: 0 | AM31: TRUE | AN31: 0.9761566459 | AO31: 783.0520524 | AP31: 0 | AQ31: 0.001216881808 | AR31: 0.001216881808 | AS31: FALSE | AT31: 0 | AU31: 2476228.012 | AV31: 0
B32: 2 | C32: 3 | D32: 173.1270661 | F32: 23 | G32: 1 | H32: 5 | I32: 402.0726332 | J32: 1 | K32: 0.3153048867 | L32: 0.3153048867 | M32: 1.284458514e+14 | N32: 0 | O32: FALSE | P32: 0 | Q32: 2.390715156e-12 | R32: 2.390715156e-12 | S32: 4.053341688e+10 | T32: 0 | U32: FALSE | V32: 0 | W32: 7.755173416e-09 | X32: 7.755173416e-09 | Y32: 12827832.23 | Z32: 0 | AA32: FALSE | AB32: 0 | AC32: 2.236026399e-05 | AD32: 2.236026399e-05 | AE32: 4446.15375 | AF32: 0 | AG32: FALSE | AH32: 0 | AI32: 0.07068611416 | AJ32: 0.07068611416 | AK32: 1.40645971 | AL32: 0 | AM32: TRUE | AN32: 0.3153048867 | AO32: 223.5291197 | AP32: 0 | AQ32: 0.000444761612 | AR32: 0.000444761612 | AS32: FALSE | AT32: 0 | AU32: 706861.1416 | AV32: 0
B33: 2 | C33: 4 | D33: 283.5242558 | F33: 24 | G33: 6 | H33: 3 | I33: 422.6296433 | J33: 1 | K33: 0.6591544327 | L33: 0.6591544327 | M33: 4.794672212e+14 | N33: 0 | O33: FALSE | P33: 0 | Q33: 2.798993857e-12 | R33: 2.798993857e-12 | S33: 1.513045734e+11 | T33: 0 | U33: FALSE | V33: 0 | W33: 9.07957717e-09 | X33: 9.07957717e-09 | Y33: 47884186.24 | Z33: 0 | AA33: FALSE | AB33: 0 | AC33: 2.617887848e-05 | AD33: 2.617887848e-05 | AE33: 16596.76011 | AF33: 0 | AG33: FALSE | AH33: 0 | AI33: 0.08275766304 | AJ33: 0.08275766304 | AK33: 5.250082593 | AL33: 0 | AM33: TRUE | AN33: 0.6591544327 | AO33: 261.702709 | AP33: 0 | AQ33: 0.00166022189 | AR33: 0.00166022189 | AS33: FALSE | AT33: 0 | AU33: 827576.6304 | AV33: 0
B34: 2 | C34: 5 | D34: 425.4634998 | F34: 25 | G34: 2 | H34: 5 | I34: 425.4634998 | J34: 1 | K34: 0.489425195 | L34: 0.489425195 | M34: 3.847715866e+14 | N34: 0 | O34: FALSE | P34: 0 | Q34: 1.922897631e-12 | R34: 1.922897631e-12 | S34: 1.214216493e+11 | T34: 0 | U34: FALSE | V34: 0 | W34: 6.237633349e-09 | X34: 6.237633349e-09 | Y34: 38426973.73 | Z34: 0 | AA34: FALSE | AB34: 0 | AC34: 1.798478524e-05 | AD34: 1.798478524e-05 | AE34: 13318.87028 | AF34: 0 | AG34: FALSE | AH34: 0 | AI34: 0.05685418486 | AJ34: 0.05685418486 | AK34: 4.213181881 | AL34: 0 | AM34: TRUE | AN34: 0.489425195 | AO34: 179.7887187 | AP34: 0 | AQ34: 0.001332325094 | AR34: 0.001332325094 | AS34: FALSE | AT34: 0 | AU34: 568541.8486 | AV34: 0
B35: 2 | C35: 6 | D35: 598.9447979 | F35: 26 | G35: 7 | H35: 2 | I35: 445.1349298 | J35: 1 | K35: 0.4059026782 | L35: 0.4059026782 | M35: 5.397147583e+14 | N35: 0 | O35: FALSE | P35: 0 | Q35: 9.429009063e-13 | R35: 9.429009063e-13 | S35: 1.703167759e+11 | T35: 0 | U35: FALSE | V35: 0 | W35: 3.058649636e-09 | X35: 3.058649636e-09 | Y35: 53901081.99 | Z35: 0 | AA35: FALSE | AB35: 0 | AC35: 8.818914763e-06 | AD35: 8.818914763e-06 | AE35: 18682.22889 | AF35: 0 | AG35: FALSE | AH35: 0 | AI35: 0.02787868766 | AJ35: 0.02787868766 | AK35: 5.909782635 | AL35: 0 | AM35: TRUE | AN35: 0.4059026782 | AO35: 88.16015117 | AP35: 0 | AQ35: 0.00186883736 | AR35: 0.00186883736 | AS35: FALSE | AT35: 0 | AU35: 278786.8766 | AV35: 0
B36: 2 | C36: 7 | D36: 803.9681503 | F36: 27 | G36: 5 | H36: 4 | I36: 447.2603221 | J36: 1 | K36: 0.1982096468 | L36: 0.1982096468 | M36: 2.785604078e+14 | N36: 0 | O36: FALSE | P36: 0 | Q36: 4.356289156e-13 | R36: 4.356289156e-13 | S36: 8.790478643e+10 | T36: 0 | U36: FALSE | V36: 0 | W36: 1.413124344e-09 | X36: 1.413124344e-09 | Y36: 27819708.75 | Z36: 0 | AA36: FALSE | AB36: 0 | AC36: 4.074419962e-06 | AD36: 4.074419962e-06 | AE36: 9642.369826 | AF36: 0 | AG36: FALSE | AH36: 0 | AI36: 0.01288021084 | AJ36: 0.01288021084 | AK36: 3.050187966 | AL36: 0 | AM36: TRUE | AN36: 0.1982096468 | AO36: 40.73080299 | AP36: 0 | AQ36: 0.0009645541265 | AR36: 0.0009645541265 | AS36: FALSE | AT36: 0 | AU36: 128802.1084 | AV36: 0
B37: 2 | C37: 8 | D37: 1040.533557 | F37: 28 | G37: 3 | H37: 5 | I37: 464.4482775 | J37: 1 | K37: 0.4443947932 | L37: 0.4443947932 | M37: 968221312410488 | N37: 0 | O37: FALSE | P37: 0 | Q37: 6.300134176e-13 | R37: 6.300134176e-13 | S37: 3.05539787e+11 | T37: 0 | U37: FALSE | V37: 0 | W37: 2.043682743e-09 | X37: 2.043682743e-09 | Y37: 96695848.22 | Z37: 0 | AA37: FALSE | AB37: 0 | AC37: 5.892490496e-06 | AD37: 5.892490496e-06 | AE37: 33514.98528 | AF37: 0 | AG37: FALSE | AH37: 0 | AI37: 0.01862756433 | AJ37: 0.01862756433 | AK37: 10.6018548 | AL37: 0 | AM37: TRUE | AN37: 0.4443947932 | AO37: 58.90553054 | AP37: 0 | AQ37: 0.003352600858 | AR37: 0.003352600858 | AS37: FALSE | AT37: 0 | AU37: 186275.6433 | AV37: 0
B38: 2 | C38: 9 | D38: 1308.641018 | F38: 29 | G38: 8 | H38: 1 | I38: 514.7761816 | J38: 1 | K38: 0.7182678116 | L38: 0.7182678116 | M38: 5175923412631015 | N38: 0 | O38: FALSE | P38: 0 | Q38: 3.078729128e-13 | R38: 3.078729128e-13 | S38: 1.633356462e+12 | T38: 0 | U38: FALSE | V38: 0 | W38: 9.98700252e-10 | X38: 9.98700252e-10 | Y38: 516917256.7 | Z38: 0 | AA38: FALSE | AB38: 0 | AC38: 2.879523137e-06 | AD38: 2.879523137e-06 | AE38: 179164.6132 | AF38: 0 | AG38: FALSE | AH38: 0 | AI38: 0.009102857698 | AJ38: 0.009102857698 | AK38: 56.6754602 | AL38: 0 | AM38: TRUE | AN38: 0.7182678116 | AO38: 28.78576354 | AP38: 0 | AQ38: 0.01792235417 | AR38: 0.01792235417 | AS38: FALSE | AT38: 0 | AU38: 91028.57698 | AV38: 0
B39: 2 | C39: 10 | D39: 1608.290533 | F39: 30 | G39: 4 | H39: 5 | I39: 519.0269662 | J39: 1 | K39: 0.200377017 | L39: 0.200377017 | M39: 1.588817529e+15 | N39: 0 | O39: FALSE | P39: 0 | Q39: 7.805636172e-14 | R39: 7.805636172e-14 | S39: 5.013801734e+11 | T39: 0 | U39: FALSE | V39: 0 | W39: 2.532048286e-10 | X39: 2.532048286e-10 | Y39: 158674526.9 | Z39: 0 | AA39: FALSE | AB39: 0 | AC39: 7.30058054e-07 | AD39: 7.30058054e-07 | AE39: 54996.92624 | AF39: 0 | AG39: FALSE | AH39: 0 | AI39: 0.002307887195 | AJ39: 0.002307887195 | AK39: 17.39727532 | AL39: 0 | AM39: TRUE | AN39: 0.200377017 | AO39: 7.298180119 | AP39: 0 | AQ39: 0.00550150151 | AR39: 0.00550150151 | AS39: FALSE | AT39: 0 | AU39: 23078.87195 | AV39: 0
B40: 2 | C40: 11 | D40: 1939.482102 | F40: 31 | G40: 7 | H40: 3 | I40: 523.9900653 | J40: 1 | K40: 0.8073753494 | L40: 0.8073753494 | M40: 7150830287631808 | N40: 0 | O40: FALSE | P40: 0 | Q40: 2.815665201e-13 | R40: 2.815665201e-13 | S40: 2.256574127e+12 | T40: 0 | U40: FALSE | V40: 0 | W40: 9.133656871e-10 | X40: 9.133656871e-10 | Y40: 714150361.4 | Z40: 0 | AA40: FALSE | AB40: 0 | AC40: 2.63348049e-06 | AD40: 2.63348049e-06 | AE40: 247526.024 | AF40: 0 | AG40: FALSE | AH40: 0 | AI40: 0.008325058354 | AJ40: 0.008325058354 | AK40: 78.30034664 | AL40: 0 | AM40: TRUE | AN40: 0.8073753494 | AO40: 26.32614605 | AP40: 0 | AQ40: 0.0247607437 | AR40: 0.0247607437 | AS40: FALSE | AT40: 0 | AU40: 83250.58354 | AV40: 0
B41: 2 | C41: 12 | D41: 2302.215725 | F41: 32 | G41: 6 | H41: 4 | I41: 533.0268331 | J41: 1 | K41: 0.6054733016 | L41: 0.6054733016 | M41: 6542088899576550 | N41: 0 | O41: FALSE | P41: 0 | Q41: 1.73085253e-13 | R41: 1.73085253e-13 | S41: 2.064474747e+12 | T41: 0 | U41: FALSE | V41: 0 | W41: 5.614663667e-10 | X41: 5.614663667e-10 | Y41: 653355619.4 | Z41: 0 | AA41: FALSE | AB41: 0 | AC41: 1.618859503e-06 | AD41: 1.618859503e-06 | AE41: 226454.438 | AF41: 0 | AG41: FALSE | AH41: 0 | AI41: 0.005117600029 | AJ41: 0.005117600029 | AK41: 71.63473443 | AL41: 0 | AM41: TRUE | AN41: 0.6054733016 | AO41: 16.18327225 | AP41: 0 | AQ41: 0.02265289204 | AR41: 0.02265289204 | AS41: FALSE | AT41: 0 | AU41: 51176.00029 | AV41: 0
B42: 2 | C42: 13 | D42: 2696.491403 | F42: 33 | G42: 8 | H42: 2 | I42: 562.0892629 | J42: 1 | K42: 0.2986680771 | L42: 0.2986680771 | M42: 5982450073092702 | N42: 0 | O42: FALSE | P42: 0 | Q42: 4.605587548e-14 | R42: 4.605587548e-14 | S42: 1.88787057e+12 | T42: 0 | U42: FALSE | V42: 0 | W42: 1.493993545e-10 | X42: 1.493993545e-10 | Y42: 597464729.2 | Z42: 0 | AA42: FALSE | AB42: 0 | AC42: 4.307587758e-07 | AD42: 4.307587758e-07 | AE42: 207082.5374 | AF42: 0 | AG42: FALSE | AH42: 0 | AI42: 0.001361730971 | AJ42: 0.001361730971 | AK42: 65.50678671 | AL42: 0 | AM42: TRUE | AN42: 0.2986680771 | AO42: 4.30617143 | AP42: 0 | AQ42: 0.02071506482 | AR42: 0.02071506482 | AS42: FALSE | AT42: 0 | AU42: 13617.30971 | AV42: 0
B43: 2 | C43: 14 | D43: 3122.309135 | F43: 34 | G43: 1 | H43: 6 | I43: 575.5539313 | J43: 1 | K43: 0.599725278 | L43: 0.599725278 | M43: 1.581882251e+16 | N43: 0 | O43: FALSE | P43: 0 | Q43: 7.022909453e-14 | R43: 7.022909453e-14 | S43: 4.991916205e+12 | T43: 0 | U43: FALSE | V43: 0 | W43: 2.278141775e-10 | X43: 2.278141775e-10 | Y43: 1579819036 | Z43: 0 | AA43: FALSE | AB43: 0 | AC43: 6.568499345e-07 | AD43: 6.568499345e-07 | AE43: 547568.6154 | AF43: 0 | AG43: FALSE | AH43: 0 | AI43: 0.002076458913 | AJ43: 0.002076458913 | AK43: 173.2133523 | AL43: 0 | AM43: TRUE | AN43: 0.599725278 | AO43: 6.566339632 | AP43: 0 | AQ43: 0.05477487144 | AR43: 0.05477487144 | AS43: FALSE | AT43: 0 | AU43: 20764.58913 | AV43: 0
B44: 2 | C44: 15 | D44: 3579.668921 | F44: 35 | G44: 5 | H44: 5 | I44: 589.1995661 | J44: 1 | K44: 0.1333638998 | L44: 0.1333638998 | M44: 4619324298174454 | N44: 0 | O44: FALSE | P44: 0 | Q44: 1.189281418e-14 | R44: 1.189281418e-14 | S44: 1.457711521e+12 | T44: 0 | U44: FALSE | V44: 0 | W44: 3.857876424e-11 | X44: 3.857876424e-11 | Y44: 461329941.3 | Z44: 0 | AA44: FALSE | AB44: 0 | AC44: 1.112330191e-07 | AD44: 1.112330191e-07 | AE44: 159897.9323 | AF44: 0 | AG44: FALSE | AH44: 0 | AI44: 0.0003516340367 | AJ44: 0.0003516340367 | AK44: 50.58079681 | AL44: 0 | AM44: TRUE | AN44: 0.1333638998 | AO44: 1.111964459 | AP44: 0 | AQ44: 0.01599505238 | AR44: 0.01599505238 | AS44: FALSE | AT44: 0 | AU44: 3516.340367 | AV44: 0
B45: 2 | C45: 16 | D45: 4068.570761 | F45: 36 | G45: 2 | H45: 6 | I45: 598.9447979 | J45: 1 | K45: 0.9309105996 | L45: 0.9309105996 | M45: 3.901948224e+16 | N45: 0 | O45: FALSE | P45: 0 | Q45: 6.859950179e-14 | R45: 6.859950179e-14 | S45: 1.231330496e+13 | T45: 0 | U45: FALSE | V45: 0 | W45: 2.225279876e-10 | X45: 2.225279876e-10 | Y45: 3896858997 | Z45: 0 | AA45: FALSE | AB45: 0 | AC45: 6.416084183e-07 | AD45: 6.416084183e-07 | AE45: 1350659.561 | AF45: 0 | AG45: FALSE | AH45: 0 | AI45: 0.002028276854 | AJ45: 0.002028276854 | AK45: 427.2565369 | AL45: 0 | AM45: TRUE | AN45: 0.9309105996 | AO45: 6.413974583 | AP45: 0 | AQ45: 0.1351103802 | AR45: 0.1351103802 | AS45: FALSE | AT45: 0 | AU45: 20282.76854 | AV45: 0
B46: 2 | C46: 17 | D46: 4589.014655 | F46: 37 | G46: 7 | H46: 4 | I46: 634.3872551 | J46: 1 | K46: 0.7416231981 | L46: 0.7416231981 | M46: 6.065260255e+16 | N46: 0 | O46: FALSE | P46: 0 | Q46: 2.80093922e-14 | R46: 2.80093922e-14 | S46: 1.914002824e+13 | T46: 0 | U46: FALSE | V46: 0 | W46: 9.085887678e-11 | X46: 9.085887678e-11 | Y46: 6057349467 | Z46: 0 | AA46: FALSE | AB46: 0 | AC46: 2.619707339e-07 | AD46: 2.619707339e-07 | AE46: 2099490.122 | AF46: 0 | AG46: FALSE | AH46: 0 | AI46: 0.0008281518146 | AJ46: 0.0008281518146 | AK46: 664.1354378 | AL46: 0 | AM46: TRUE | AN46: 0.7416231981 | AO46: 2.618845983 | AP46: 0 | AQ46: 0.2100180658 | AR46: 0.2100180658 | AS46: FALSE | AT46: 0 | AU46: 8281.518146 | AV46: 0
B47: 2 | C47: 18 | D47: 5141.000604 | F47: 38 | G47: 3 | H47: 6 | I47: 637.9295756 | J47: 1 | K47: 0.8452605784 | L47: 0.8452605784 | M47: 7.375196142e+16 | N47: 0 | O47: FALSE | P47: 0 | Q47: 2.992224453e-14 | R47: 2.992224453e-14 | S47: 2.32737684e+13 | T47: 0 | U47: FALSE | V47: 0 | W47: 9.706392445e-11 | X47: 9.706392445e-11 | Y47: 7365576833 | Z47: 0 | AA47: FALSE | AB47: 0 | AC47: 2.798615658e-07 | AD47: 2.798615658e-07 | AE47: 2552924.491 | AF47: 0 | AG47: FALSE | AH47: 0 | AI47: 0.0008847089906 | AJ47: 0.0008847089906 | AK47: 807.5711368 | AL47: 0 | AM47: TRUE | AN47: 0.8452605784 | AO47: 2.797695477 | AP47: 0 | AQ47: 0.2553764165 | AR47: 0.2553764165 | AS47: FALSE | AT47: 0 | AU47: 8847.089906 | AV47: 0
B48: 2 | C48: 19 | D48: 5724.528607 | F48: 39 | G48: 8 | H48: 3 | I48: 640.9443984 | J48: 1 | K48: 0.5940765018 | L48: 0.5940765018 | M48: 5.47560972e+16 | N48: 0 | O48: FALSE | P48: 0 | Q48: 1.990851087e-14 | R48: 1.990851087e-14 | S48: 1.727927909e+13 | T48: 0 | U48: FALSE | V48: 0 | W48: 6.458065649e-11 | X48: 6.458065649e-11 | Y48: 5468468000 | Z48: 0 | AA48: FALSE | AB48: 0 | AC48: 1.862035122e-07 | AD48: 1.862035122e-07 | AE48: 1895382.562 | AF48: 0 | AG48: FALSE | AH48: 0 | AI48: 0.0005886336015 | AJ48: 0.0005886336015 | AK48: 599.5697309 | AL48: 0 | AM48: TRUE | AN48: 0.5940765018 | AO48: 1.861422888 | AP48: 0 | AQ48: 0.1896005966 | AR48: 0.1896005966 | AS48: FALSE | AT48: 0 | AU48: 5886.336015 | AV48: 0
B49: 2 | C49: 20 | D49: 6339.598664 | F49: 40 | G49: 9 | H49: 1 | I49: 647.3244258 | J49: 1 | K49: 0.1387590391 | L49: 0.1387590391 | M49: 1.435044809e+16 | N49: 0 | O49: FALSE | P49: 0 | Q49: 4.144227793e-15 | R49: 4.144227793e-15 | S49: 4.528544038e+12 | T49: 0 | U49: FALSE | V49: 0 | W49: 1.344334357e-11 | X49: 1.344334357e-11 | Y49: 1433173111 | Z49: 0 | AA49: FALSE | AB49: 0 | AC49: 3.876079811e-08 | AD49: 3.876079811e-08 | AE49: 496740.8279 | AF49: 0 | AG49: FALSE | AH49: 0 | AI49: 0.0001225321043 | AJ49: 0.0001225321043 | AK49: 157.134908 | AL49: 0 | AM49: TRUE | AN49: 0.1387590391 | AO49: 0.3874805362 | AP49: 0 | AQ49: 0.04969042093 | AR49: 0.04969042093 | AS49: FALSE | AT49: 0 | AU49: 1225.321043 | AV49: 0
B50: 3 | C50: 1 | D50: 85.94362695 | F50: 41 | G50: 6 | H50: 5 | I50: 674.966077 | J50: 1 | K50: 0.4073882477 | L50: 0.4073882477 | M50: 6.850998313e+16 | N50: 0 | O50: FALSE | P50: 0 | Q50: 7.482550307e-15 | R50: 7.482550307e-15 | S50: 2.161956713e+13 | T50: 0 | U50: FALSE | V50: 0 | W50: 2.427243374e-11 | X50: 2.427243374e-11 | Y50: 6842062704 | Z50: 0 | AA50: FALSE | AB50: 0 | AC50: 6.998399612e-08 | AD50: 6.998399612e-08 | AE50: 2371473.388 | AF50: 0 | AG50: FALSE | AH50: 0 | AI50: 0.0002212360615 | AJ50: 0.0002212360615 | AK50: 750.1723872 | AL50: 0 | AM50: TRUE | AN50: 0.4073882477 | AO50: 0.6996098548 | AP50: 0 | AQ50: 0.2372253381 | AR50: 0.2372253381 | AS50: FALSE | AT50: 0 | AU50: 2212.360615 | AV50: 0
B51: 3 | C51: 2 | D51: 133.2567083 | F51: 42 | G51: 4 | H51: 6 | I51: 692.5082644 | J51: 1 | K51: 0.3811268626 | L51: 0.3811268626 | M51: 8.63717955e+16 | N51: 0 | O51: FALSE | P51: 0 | Q51: 5.194618825e-15 | R51: 5.194618825e-15 | S51: 2.725618582e+13 | T51: 0 | U51: FALSE | V51: 0 | W51: 1.685067738e-11 | X51: 1.685067738e-11 | Y51: 8625914263 | Z51: 0 | AA51: FALSE | AB51: 0 | AC51: 4.858506375e-08 | AD51: 4.858506375e-08 | AE51: 2989760.107 | AF51: 0 | AG51: FALSE | AH51: 0 | AI51: 0.0001535889453 | AJ51: 0.0001535889453 | AK51: 945.7561228 | AL51: 0 | AM51: TRUE | AN51: 0.3811268626 | AO51: 0.4856908905 | AP51: 0 | AQ51: 0.2990743459 | AR51: 0.2990743459 | AS51: FALSE | AT51: 0 | AU51: 1535.889453 | AV51: 0
B52: 3 | C52: 3 | D52: 212.1118438 | F52: 43 | G52: 9 | H52: 2 | I52: 694.6375071 | J52: 1 | K52: 0.05769838873 | L52: 0.05769838873 | M52: 1.355088482e+16 | N52: 0 | O52: FALSE | P52: 0 | Q52: 7.588330366e-16 | R52: 7.588330366e-16 | S52: 4.276227355e+12 | T52: 0 | U52: FALSE | V52: 0 | W52: 2.461557069e-12 | X52: 2.461557069e-12 | Y52: 1353321069 | Z52: 0 | AA52: FALSE | AB52: 0 | AC52: 7.097335281e-09 | AD52: 7.097335281e-09 | AE52: 469063.9417 | AF52: 0 | AG52: FALSE | AH52: 0 | AI52: 2.243636534e-05 | AJ52: 2.243636534e-05 | AK52: 148.3798295 | AL52: 0 | AM52: TRUE | AN52: 0.05769838873 | AO52: 0.07095001688 | AP52: 0 | AQ52: 0.04692182199 | AR52: 0.04692182199 | AS52: FALSE | AT52: 0 | AU52: 224.3636534 | AV52: 0
B53: 3 | C53: 4 | D53: 322.5090335 | F53: 44 | G53: 8 | H53: 4 | I53: 751.3415882 | J53: 1 | K53: 0.5456952773 | L53: 0.5456952773 | M53: 3.191423474e+17 | N53: 0 | O53: FALSE | P53: 0 | Q53: 2.882056355e-15 | R53: 2.882056355e-15 | S53: 1.007111531e+14 | T53: 0 | U53: FALSE | V53: 0 | W53: 9.349021261e-12 | X53: 9.349021261e-12 | Y53: 3.187260969e+10 | Z53: 0 | AA53: FALSE | AB53: 0 | AC53: 2.695575873e-08 | AD53: 2.695575873e-08 | AE53: 11047113.85 | AF53: 0 | AG53: FALSE | AH53: 0 | AI53: 8.521356632e-05 | AJ53: 8.521356632e-05 | AK53: 3494.553139 | AL53: 0 | AM53: FALSE | AN53: 0 | AO53: 0.2694689571 | AP53: 0.2694689571 | AQ53: 1.105074732 | AR53: 0 | AS53: TRUE | AT53: 0.5456952773 | AU53: 852.1356632 | AV53: 0
B54: 3 | C54: 5 | D54: 464.4482775 | F54: 45 | G54: 5 | H54: 6 | I54: 762.6808642 | J54: 1 | K54: 0.2536646441 | L54: 0.2536646441 | M54: 1.765757574e+17 | N54: 0 | O54: FALSE | P54: 0 | Q54: 1.125577269e-15 | R54: 1.125577269e-15 | S54: 5.57216812e+13 | T54: 0 | U54: FALSE | V54: 0 | W54: 3.651228333e-12 | X54: 3.651228333e-12 | Y54: 1.763454534e+10 | Z54: 0 | AA54: FALSE | AB54: 0 | AC54: 1.052747953e-08 | AD54: 1.052747953e-08 | AE54: 6112170.671 | AF54: 0 | AG54: FALSE | AH54: 0 | AI54: 3.327986738e-05 | AJ54: 3.327986738e-05 | AK54: 1933.4738 | AL54: 0 | AM54: FALSE | AN54: 0 | AO54: 0.1052401811 | AP54: 0.1052401811 | AQ54: 0.6114181005 | AR54: 0 | AS54: TRUE | AT54: 0.2536646441 | AU54: 332.7986738 | AV54: 0
B55: 3 | C55: 6 | D55: 637.9295756 | F55: 46 | G55: 9 | H55: 3 | I55: 773.4926426 | J55: 1 | K55: 0.1147670594 | L55: 0.1147670594 | M55: 9.409501675e+16 | N55: 0 | O55: FALSE | P55: 0 | Q55: 4.323688497e-16 | R55: 4.323688497e-16 | S55: 2.969338829e+13 | T55: 0 | U55: FALSE | V55: 0 | W55: 1.402549108e-12 | X55: 1.402549108e-12 | Y55: 9397229065 | Z55: 0 | AA55: FALSE | AB55: 0 | AC55: 4.043928695e-09 | AD55: 4.043928695e-09 | AE55: 3257099.447 | AF55: 0 | AG55: FALSE | AH55: 0 | AI55: 1.278382069e-05 | AJ55: 1.278382069e-05 | AK55: 1030.324051 | AL55: 0 | AM55: FALSE | AN55: 0 | AO55: 0.04042599057 | AP55: 0.04042599057 | AQ55: 0.3258170729 | AR55: 0 | AS55: TRUE | AT55: 0.1147670594 | AU55: 127.8382069 | AV55: 0
B56: 3 | C56: 7 | D56: 842.952928 | F56: 47 | G56: 7 | H56: 5 | I56: 776.326499 | J56: 1 | K56: 0.498995702 | L56: 0.498995702 | M56: 4.268861352e+17 | N56: 0 | O56: FALSE | P56: 0 | Q56: 1.80164024e-15 | R56: 1.80164024e-15 | S56: 1.347116585e+14 | T56: 0 | U56: FALSE | V56: 0 | W56: 5.844289924e-12 | X56: 5.844289924e-12 | Y56: 4.263293568e+10 | Z56: 0 | AA56: FALSE | AB56: 0 | AC56: 1.685066968e-08 | AD56: 1.685066968e-08 | AE56: 14776665.57 | AF56: 0 | AG56: FALSE | AH56: 0 | AI56: 5.326897576e-05 | AJ56: 5.326897576e-05 | AK56: 4674.328856 | AL56: 0 | AM56: FALSE | AN56: 0 | AO56: 0.168451292 | AP56: 0.168451292 | AQ56: 1.478152572 | AR56: 0 | AS56: TRUE | AT56: 0.498995702 | AU56: 532.6897576 | AV56: 0
B57: 3 | C57: 8 | D57: 1079.518335 | F57: 48 | G57: 1 | H57: 7 | I57: 780.5772837 | J57: 1 | K57: 0.06592882851 | L57: 0.06592882851 | M57: 6.009846934e+16 | N57: 0 | O57: FALSE | P57: 0 | Q57: 2.23395191e-16 | R57: 2.23395191e-16 | S57: 1.896516146e+13 | T57: 0 | U57: FALSE | V57: 0 | W57: 7.246653547e-13 | X57: 7.246653547e-13 | Y57: 6002008420 | Z57: 0 | AA57: FALSE | AB57: 0 | AC57: 2.089406357e-09 | AD57: 2.089406357e-09 | AE57: 2080308.798 | AF57: 0 | AG57: FALSE | AH57: 0 | AI57: 6.605110582e-06 | AJ57: 6.605110582e-06 | AK57: 658.0677757 | AL57: 0 | AM57: FALSE | AN57: 0 | AO57: 0.02088719364 | AP57: 0.02088719364 | AQ57: 0.2080993026 | AR57: 0 | AS57: TRUE | AT57: 0.06592882851 | AU57: 66.05110582 | AV57: 0
B58: 3 | C58: 9 | D58: 1347.625795 | F58: 49 | G58: 10 | H58: 1 | I58: 795.466581 | J58: 1 | K58: 0.5028820924 | L58: 0.5028820924 | M58: 5.710362451e+17 | N58: 0 | O58: FALSE | P58: 0 | Q58: 1.367902615e-15 | R58: 1.367902615e-15 | S58: 1.802008389e+14 | T58: 0 | U58: FALSE | V58: 0 | W58: 4.437300683e-12 | X58: 4.437300683e-12 | Y58: 5.702914548e+10 | Z58: 0 | AA58: FALSE | AB58: 0 | AC58: 1.279393888e-08 | AD58: 1.279393888e-08 | AE58: 19766422.31 | AF58: 0 | AG58: FALSE | AH58: 0 | AI58: 4.044468458e-05 | AJ58: 4.044468458e-05 | AK58: 6252.747462 | AL58: 0 | AM58: FALSE | AN58: 0 | AO58: 0.1278973225 | AP58: 0.1278973225 | AQ58: 1.977292361 | AR58: 0 | AS58: TRUE | AT58: 0.5028820924 | AU58: 404.4468458 | AV58: 0
B59: 3 | C59: 10 | D59: 1647.27531 | F59: 50 | G59: 2 | H59: 7 | I59: 803.9681503 | J59: 1 | K59: 0.102336599 | L59: 0.102336599 | M59: 1.314946492e+17 | N59: 0 | O59: FALSE | P59: 0 | Q59: 2.460029935e-16 | R59: 2.460029935e-16 | S59: 4.149552028e+13 | T59: 0 | U59: FALSE | V59: 0 | W59: 7.980021671e-13 | X59: 7.980021671e-13 | Y59: 1.313231436e+10 | Z59: 0 | AA59: FALSE | AB59: 0 | AC59: 2.300856237e-09 | AD59: 2.300856237e-09 | AE59: 4551687.899 | AF59: 0 | AG59: FALSE | AH59: 0 | AI59: 7.273553957e-06 | AJ59: 7.273553957e-06 | AK59: 1439.843514 | AL59: 0 | AM59: FALSE | AN59: 0 | AO59: 0.02300099719 | AP59: 0.02300099719 | AQ59: 0.455318498 | AR59: 0 | AS59: TRUE | AT59: 0.102336599 | AU59: 72.73553957 | AV59: 0
B60: 3 | C60: 11 | D60: 1978.46688 | F60: 51 | G60: 10 | H60: 2 | I60: 842.7796623 | J60: 1 | K60: 0.2091070004 | L60: 0.2091070004 | M60: 4.648423633e+17 | N60: 0 | O60: FALSE | P60: 0 | Q60: 2.905480447e-16 | R60: 2.905480447e-16 | S60: 1.466894344e+14 | T60: 0 | U60: FALSE | V60: 0 | W60: 9.425006013e-13 | X60: 9.425006013e-13 | Y60: 4.642360795e+10 | Z60: 0 | AA60: FALSE | AB60: 0 | AC60: 2.717484333e-09 | AD60: 2.717484333e-09 | AE60: 16090520.59 | AF60: 0 | AG60: FALSE | AH60: 0 | AI60: 8.590614488e-06 | AJ60: 8.590614488e-06 | AK60: 5089.942946 | AL60: 0 | AM60: FALSE | AN60: 0 | AO60: 0.02716590828 | AP60: 0.02716590828 | AQ60: 1.609581287 | AR60: 0 | AS60: TRUE | AT60: 0.2091070004 | AU60: 85.90614488 | AV60: 0
B61: 3 | C61: 12 | D61: 2341.200503 | F61: 52 | G61: 3 | H61: 7 | I61: 842.952928 | J61: 1 | K61: 0.09292094523 | L61: 0.09292094523 | M61: 2.070564412e+17 | N61: 0 | O61: FALSE | P61: 0 | Q61: 1.288027116e-16 | R61: 1.288027116e-16 | S61: 6.534041352e+13 | T61: 0 | U61: FALSE | V61: 0 | W61: 4.178194807e-13 | X61: 4.178194807e-13 | Y61: 2.067863819e+10 | Z61: 0 | AA61: FALSE | AB61: 0 | AC61: 1.204686651e-09 | AD61: 1.204686651e-09 | AE61: 7167259.683 | AF61: 0 | AG61: FALSE | AH61: 0 | AI61: 3.808301108e-06 | AJ61: 3.808301108e-06 | AK61: 2267.231981 | AL61: 0 | AM61: FALSE | AN61: 0 | AO61: 0.01204290552 | AP61: 0.01204290552 | AQ61: 0.7169617043 | AR61: 0 | AS61: TRUE | AT61: 0.09292094523 | AU61: 38.08301108 | AV61: 0
B62: 3 | C62: 13 | D62: 2735.476181 | F62: 53 | G62: 6 | H62: 6 | I62: 848.4473752 | J62: 1 | K62: 0.7748723233 | L62: 0.7748723233 | M62: 1.862134972e+18 | N62: 0 | O62: FALSE | P62: 0 | Q62: 9.959456869e-16 | R62: 9.959456869e-16 | S62: 5.87630447e+14 | T62: 0 | U62: FALSE | V62: 0 | W62: 3.230720103e-12 | X62: 3.230720103e-12 | Y62: 1.859706229e+11 | Z62: 0 | AA62: FALSE | AB62: 0 | AC62: 9.315040491e-09 | AD62: 9.315040491e-09 | AE62: 64457810.79 | AF62: 0 | AG62: FALSE | AH62: 0 | AI62: 2.944705911e-05 | AJ62: 2.944705911e-05 | AK62: 20390.05373 | AL62: 0 | AM62: FALSE | AN62: 0 | AO62: 0.09311977719 | AP62: 0.09311977719 | AQ62: 6.447901139 | AR62: 0 | AS62: TRUE | AT62: 0.7748723233 | AU62: 294.4705911 | AV62: 0
B63: 3 | C63: 14 | D63: 3161.293912 | F63: 54 | G63: 9 | H63: 4 | I63: 883.8898323 | J63: 1 | K63: 0.1054205007 | L63: 0.1054205007 | M63: 4.0770959e+17 | N63: 0 | O63: FALSE | P63: 0 | Q63: 8.419489034e-17 | R63: 8.419489034e-17 | S63: 1.286601521e+14 | T63: 0 | U63: FALSE | V63: 0 | W63: 2.731174283e-13 | X63: 2.731174283e-13 | Y63: 4.071778232e+10 | Z63: 0 | AA63: FALSE | AB63: 0 | AC63: 7.874714685e-10 | AD63: 7.874714685e-10 | AE63: 14112869.37 | AF63: 0 | AG63: FALSE | AH63: 0 | AI63: 2.489384658e-06 | AJ63: 2.489384658e-06 | AK63: 4464.349026 | AL63: 0 | AM63: FALSE | AN63: 0 | AO63: 0.00787212549 | AP63: 0.00787212549 | AQ63: 1.411751119 | AR63: 0 | AS63: TRUE | AT63: 0.1054205007 | AU63: 24.89384658 | AV63: 0
B64: 3 | C64: 15 | D64: 3618.653698 | F64: 55 | G64: 8 | H64: 5 | I64: 893.2808321 | J64: 1 | K64: 0.3671670447 | L64: 0.3671670447 | M64: 1.605664814e+18 | N64: 0 | O64: FALSE | P64: 0 | Q64: 2.593337324e-16 | R64: 2.593337324e-16 | S64: 5.066966396e+14 | T64: 0 | U64: FALSE | V64: 0 | W64: 8.412453747e-13 | X64: 8.412453747e-13 | Y64: 1.60357058e+11 | Z64: 0 | AA64: FALSE | AB64: 0 | AC64: 2.425538109e-09 | AD64: 2.425538109e-09 | AE64: 55580095.09 | AF64: 0 | AG64: FALSE | AH64: 0 | AI64: 7.667703017e-06 | AJ64: 7.667703017e-06 | AK64: 17581.75016 | AL64: 0 | AM64: FALSE | AN64: 0 | AO64: 0.02424740595 | AP64: 0.02424740595 | AQ64: 5.559837575 | AR64: 0 | AS64: TRUE | AT64: 0.3671670447 | AU64: 76.67703017 | AV64: 0
B65: 3 | C65: 16 | D65: 4107.555539 | F65: 56 | G65: 4 | H65: 7 | I65: 897.5316168 | J65: 1 | K65: 0.04189792974 | L65: 0.04189792974 | M65: 1.936221799e+17 | N65: 0 | O65: FALSE | P65: 0 | Q65: 2.800377221e-17 | R65: 2.800377221e-17 | S65: 6.110098884e+13 | T65: 0 | U65: FALSE | V65: 0 | W65: 9.084064624e-14 | X65: 9.084064624e-14 | Y65: 1.933696426e+10 | Z65: 0 | AA65: FALSE | AB65: 0 | AC65: 2.619181703e-10 | AD65: 2.619181703e-10 | AE65: 6702232.666 | AF65: 0 | AG65: FALSE | AH65: 0 | AI65: 8.279856486e-07 | AJ65: 8.279856486e-07 | AK65: 2120.129159 | AL65: 0 | AM65: FALSE | AN65: 0 | AO65: 0.00261832052 | AP65: 0.00261832052 | AQ65: 0.6704437075 | AR65: 0 | AS65: TRUE | AT65: 0.04189792974 | AU65: 8.279856486 | AV65: 0
B66: 3 | C66: 17 | D66: 4627.999433 | F66: 57 | G66: 10 | H66: 3 | I66: 921.6347978 | J66: 1 | K66: 0.4159318146 | L66: 0.4159318146 | M66: 2.615761729e+18 | N66: 0 | O66: FALSE | P66: 0 | Q66: 2.042831818e-16 | R66: 2.042831818e-16 | S66: 8.254510322e+14 | T66: 0 | U66: FALSE | V66: 0 | W66: 6.626684473e-13 | X66: 6.626684473e-13 | Y66: 2.612350048e+11 | Z66: 0 | AA66: FALSE | AB66: 0 | AC66: 1.910652493e-09 | AD66: 1.910652493e-09 | AE66: 90544604.55 | AF66: 0 | AG66: FALSE | AH66: 0 | AI66: 6.04002709e-06 | AJ66: 6.04002709e-06 | AK66: 28642.13551 | AL66: 0 | AM66: FALSE | AN66: 0 | AO66: 0.01910024273 | AP66: 0.01910024273 | AQ66: 9.057438527 | AR66: 0 | AS66: TRUE | AT66: 0.4159318146 | AU66: 60.4002709 | AV66: 0
B67: 3 | C67: 18 | D67: 5179.985382 | F67: 58 | G67: 7 | H67: 6 | I67: 949.8077972 | J67: 1 | K67: 0.9491141707 | L67: 0.9491141707 | M67: 8.471024447e+18 | N67: 0 | O67: FALSE | P67: 0 | Q67: 3.284637853e-16 | R67: 3.284637853e-16 | S67: 2673185326642725 | T67: 0 | U67: FALSE | V67: 0 | W67: 1.065494402e-12 | X67: 1.065494402e-12 | Y67: 8.459975872e+11 | Z67: 0 | AA67: FALSE | AB67: 0 | AC67: 3.072108751e-09 | AD67: 3.072108751e-09 | AE67: 293224551 | AF67: 0 | AG67: FALSE | AH67: 0 | AI67: 9.71166664e-06 | AJ67: 9.71166664e-06 | AK67: 92756.24282 | AL67: 0 | AM67: FALSE | AN67: 0 | AO67: 0.03071098646 | AP67: 0.03071098646 | AQ67: 29.33209945 | AR67: 0 | AS67: TRUE | AT67: 0.9491141707 | AU67: 97.1166664 | AV67: 0
B68: 3 | C68: 19 | D68: 5763.513385 | F68: 59 | G68: 11 | H68: 1 | I68: 959.2026473 | J68: 1 | K68: 0.9193468971 | L68: 0.9193468971 | M68: 9.200195053e+18 | N68: 0 | O68: FALSE | P68: 0 | Q68: 2.837581262e-16 | R68: 2.837581262e-16 | S68: 2.90328833e+15 | T68: 0 | U68: FALSE | V68: 0 | W68: 9.204749764e-13 | X68: 9.204749764e-13 | Y68: 9.188195437e+11 | Z68: 0 | AA68: FALSE | AB68: 0 | AC68: 2.653978495e-09 | AD68: 2.653978495e-09 | AE68: 318464795 | AF68: 0 | AG68: FALSE | AH68: 0 | AI68: 8.389857425e-06 | AJ68: 8.389857425e-06 | AK68: 100740.534 | AL68: 0 | AM68: FALSE | AN68: 0 | AO68: 0.02653105871 | AP68: 0.02653105871 | AQ68: 31.85695402 | AR68: 0 | AS68: TRUE | AT68: 0.9193468971 | AU68: 83.89857425 | AV68: 0
B69: 3 | C69: 20 | D69: 6378.583442 | F69: 60 | G69: 5 | H69: 7 | I69: 967.7042166 | J69: 1 | K69: 0.02788578943 | L69: 0.02788578943 | M69: 3.09212713e+17 | N69: 0 | O69: FALSE | P69: 0 | Q69: 7.767746772e-18 | R69: 7.767746772e-18 | S69: 9.757767699e+13 | T69: 0 | U69: FALSE | V69: 0 | W69: 2.519757451e-14 | X69: 2.519757451e-14 | Y69: 3.088094135e+10 | Z69: 0 | AA69: FALSE | AB69: 0 | AC69: 7.265142734e-11 | AD69: 7.265142734e-11 | AE69: 10703399.51 | AF69: 0 | AG69: FALSE | AH69: 0 | AI69: 2.296684462e-07 | AJ69: 2.296684462e-07 | AK69: 3385.825371 | AL69: 0 | AM69: FALSE | AN69: 0 | AO69: 0.0007262753966 | AP69: 0.0007262753966 | AQ69: 1.070691993 | AR69: 0 | AS69: TRUE | AT69: 0.02788578943 | AU69: 2.296684462 | AV69: 0
B70: 4 | C70: 1 | D70: 140.5223157 | F70: 61 | G70: 11 | H70: 2 | I70: 1006.515729 | J70: 1 | K70: 0.3822802102 | L70: 0.3822802102 | M70: 6.696024545e+18 | N70: 0 | O70: FALSE | P70: 0 | Q70: 6.741136305e-17 | R70: 6.741136305e-17 | S70: 2.11305193e+15 | T70: 0 | U70: FALSE | V70: 0 | W70: 2.186738179e-13 | X70: 2.186738179e-13 | Y70: 6.687291064e+11 | Z70: 0 | AA70: FALSE | AB70: 0 | AC70: 6.304958037e-10 | AD70: 6.304958037e-10 | AE70: 231782921.1 | AF70: 0 | AG70: FALSE | AH70: 0 | AI70: 1.993147235e-06 | AJ70: 1.993147235e-06 | AK70: 73320.30294 | AL70: 0 | AM70: FALSE | AN70: 0 | AO70: 0.006302884976 | AP70: 0.006302884976 | AQ70: 23.1859156 | AR70: 0 | AS70: TRUE | AT70: 0.3822802102 | AU70: 19.93147235 | AV70: 0
B71: 4 | C71: 2 | D71: 187.835397 | F71: 62 | G71: 1 | H71: 8 | I71: 1017.14269 | J71: 1 | K71: 0.6271396159 | L71: 0.6271396159 | M71: 1.241174187e+19 | N71: 0 | O71: FALSE | P71: 0 | Q71: 9.787736065e-17 | R71: 9.787736065e-17 | S71: 3916750146783157 | T71: 0 | U71: FALSE | V71: 0 | W71: 3.175016076e-13 | X71: 3.175016076e-13 | Y71: 1.23955535e+12 | Z71: 0 | AA71: FALSE | AB71: 0 | AC71: 9.154430704e-10 | AD71: 9.154430704e-10 | AE71: 429632503.1 | AF71: 0 | AG71: FALSE | AH71: 0 | AI71: 2.893933337e-06 | AJ71: 2.893933337e-06 | AK71: 135906.4125 | AL71: 0 | AM71: FALSE | AN71: 0 | AO71: 0.009151420741 | AP71: 0.009151420741 | AQ71: 42.97738121 | AR71: 0 | AS71: TRUE | AT71: 0.6271396159 | AU71: 28.93933337 | AV71: 0
B72: 4 | C72: 3 | D72: 266.6905326 | F72: 63 | G72: 9 | H72: 5 | I72: 1025.829076 | J72: 1 | K72: 0.07093140679 | L72: 0.07093140679 | M72: 1.549694443e+18 | N72: 0 | O72: FALSE | P72: 0 | Q72: 1.002807525e-17 | R72: 1.002807525e-17 | S72: 4.890341742e+14 | T72: 0 | U72: FALSE | V72: 0 | W72: 3.252979027e-14 | X72: 3.252979027e-14 | Y72: 1.54767321e+11 | Z72: 0 | AA72: FALSE | AB72: 0 | AC72: 9.379218993e-11 | AD72: 9.379218993e-11 | AE72: 53642680.41 | AF72: 0 | AG72: FALSE | AH72: 0 | AI72: 2.964994263e-07 | AJ72: 2.964994263e-07 | AK72: 16968.88433 | AL72: 0 | AM72: FALSE | AN72: 0 | AO72: 0.000937613512 | AP72: 0.000937613512 | AQ72: 5.366032385 | AR72: 0 | AS72: TRUE | AT72: 0.07093140679 | AU72: 2.964994263 | AV72: 0
B73: 4 | C73: 4 | D73: 377.0877223 | F73: 64 | G73: 10 | H73: 4 | I73: 1032.031988 | J73: 1 | K73: 0.3820585838 | L73: 0.3820585838 | M73: 8.953195715e+18 | N73: 0 | O73: FALSE | P73: 0 | Q73: 5.035798661e-17 | R73: 5.035798661e-17 | S73: 2825343211316651 | T73: 0 | U73: FALSE | V73: 0 | W73: 1.633548514e-13 | X73: 1.633548514e-13 | Y73: 8.941518255e+11 | Z73: 0 | AA73: FALSE | AB73: 0 | AC73: 4.709962506e-10 | AD73: 4.709962506e-10 | AE73: 309914911.7 | AF73: 0 | AG73: FALSE | AH73: 0 | AI73: 1.488931202e-06 | AJ73: 1.488931202e-06 | AK73: 98035.93427 | AL73: 0 | AM73: FALSE | AN73: 0 | AO73: 0.004708413877 | AP73: 0.004708413877 | AQ73: 31.00168448 | AR73: 0 | AS73: TRUE | AT73: 0.3820585838 | AU73: 14.88931202 | AV73: 0
B74: 4 | C74: 5 | D74: =3.1416/2*SQRT($H$2/$I$2)*(B74^2/$C$2^2+C74^2/$D$2^2) -> 519.0269662 | F74: 65 | G74: 2 | H74: 8 | I74: 1040.533557 | J74: 1 | K74: =ABS(SIN(G74*3.1416*$J$2/$C$2)*SIN(H74*3.1416*$K$2/$D$2))*(1/F74^$M$2)+(1-1/F74^$M$2) -> 0.973463913 | L74: 0.973463913 | M74: 2.509535191e+19 | N74: 0 | O74: FALSE | P74: 0 | Q74: 1.166360856e-16 | R74: 1.166360856e-16 | S74: 7919293224700717 | T74: 0 | U74: =AND($I74>44.548,$I74<89.095) -> FALSE | V74: 0 | W74: 3.783525061e-13 | X74: =IF($I74>89.095,W74,0) -> 3.783525061e-13 | Y74: 2.506262059e+12 | Z74: 0 | AA74: FALSE | AB74: 0 | AC74: 1.090892681e-09 | AD74: 1.090892681e-09 | AE74: 868675724.4 | AF74: 0 | AG74: FALSE | AH74: 0 | AI74: 3.448571296e-06 | AJ74: 3.448571296e-06 | AK74: 274789.7342 | AL74: 0 | AM74: FALSE | AN74: 0 | AO74: 0.01090533997 | AP74: 0.01090533997 | AQ74: 86.89614377 | AR74: 0 | AS74: TRUE | AT74: 0.973463913 | AU74: 34.48571296 | AV74: 0
B75: 4 | C75: 6 | D75: 692.5082644 | F75: 66 | G75: 6 | H75: 7 | I75: 1053.470728 | J75: =IF(ABS(I75-I74)>0.0001,1,$L$2) -> 1 | K75: 0.08518304362 | L75: =$J75*$K75 -> 0.08518304362 | M75: =10^(LOG10($I75/22.27)/LOG10(2)*70/20)*$L75 -> 2.535246307e+18 | N75: =IF($I75<22.27,M75,0) -> 0 | O75: =AND($I75>22.27,$I75<44.45) -> FALSE | P75: =IF($O75=TRUE,$L75,0) -> 0 | Q75: =10^(LOG10(44.45/$I75)/LOG10(2)*70/20)*$L75 -> 8.840415178e-18 | R75: =IF($I75>44.45,Q75,0) -> 8.840415178e-18 | S75: =10^(LOG10($I75/44.548)/LOG10(2)*70/20)*$L75 -> 8.00042931e+14 | T75: =IF($I75<44.528,S75,0) -> 0 | U75: FALSE | V75: =IF($U75=TRUE,$L75,0) -> 0 | W75: =10^(LOG10(89.095/$I75)/LOG10(2)*70/20)*$L75 -> 2.867717327e-14 | X75: 2.867717327e-14 | Y75: =10^(LOG10($I75/89.09)/LOG10(2)*70/20)*$L75 -> 2.53193964e+11 | Z75: =IF($I75<89.09,Y75,0) -> 0 | AA75: =AND($I75>89.09,$I75<176.78) -> FALSE | AB75: =IF($AA75=TRUE,$L75,0) -> 0 | AC75: =10^(LOG10(176.78/$I75)/LOG10(2)*70/20)*$L75 -> 8.268405237e-11 | AD75: =IF($I75>176.78,AC75,0) -> 8.268405237e-11 | AE75: =10^(LOG10($I75/176.78)/LOG10(2)*70/20)*$L75 -> 87757562.82 | AF75: =IF($I75<176.78,AE75,0) -> 0 | AG75: =AND($I75>176.78,$I75<353.55) -> FALSE | AH75: =IF($AG75=TRUE,$L75,0) -> 0 | AI75: =10^(LOG10(353.55/$I75)/LOG10(2)*70/20)*$L75 -> 2.613839607e-07 | AJ75: =IF($I75>353.55,AI75,0) -> 2.613839607e-07 | AK75: =10^(LOG10($I75/353.55)/LOG10(2)*70/20)*$L75 -> 27760.50566 | AL75: =IF($I75<353.55,AK75,0) -> 0 | AM75: =AND($I75>353.55,$I75<707.1) -> FALSE | AN75: =IF($AM75=TRUE,$L75,0) -> 0 | AO75: =10^(LOG10(707.1/$I75)/LOG10(2)*70/20)*$L75 -> 0.0008265686598 | AP75: =IF($I75>707.1,AO75,0) -> 0.0008265686598 | AQ75: =10^(LOG10($I75/707.1)/LOG10(2)*70/20)*$L75 -> 8.778642687 | AR75: =IF($I75<707.1,AQ75,0) -> 0 | AS75: =AND($I75>707.1,$I75<1414.2) -> TRUE | AT75: =IF($AS75=TRUE,$L75,0) -> 0.08518304362 | AU75: =10^(LOG10(1414.2/$I75)/LOG10(2)*70/20)*$L75 -> 2.613839607 | AV75: =IF($I75>1414.2,AU75,0) -> 0
B76: 4 | C76: 7 | D76: 897.5316168 | F76: 67 | G76: 8 | H76: 6 | I76: 1066.76213 | J76: 1 | K76: 0.6983696328 | L76: 0.6983696328 | M76: 2.404702541e+19 | N76: 0 | O76: FALSE | P76: 0 | Q76: 6.264636036e-17 | R76: 6.264636036e-17 | S76: 7588474792284267 | T76: 0 | U76: FALSE | V76: 0 | W76: 2.032167602e-13 | X76: 2.032167602e-13 | Y76: 2.401566139e+12 | Z76: 0 | AA76: FALSE | AB76: 0 | AC76: 5.859289227e-10 | AD76: 5.859289227e-10 | AE76: 832387897.5 | AF76: 0 | AG76: FALSE | AH76: 0 | AI76: 1.852260722e-06 | AJ76: 1.852260722e-06 | AK76: 263310.7415 | AL76: 0 | AM76: FALSE | AN76: 0 | AO76: 0.005857362701 | AP76: 0.005857362701 | AQ76: 83.26616755 | AR76: 0 | AS76: TRUE | AT76: 0.6983696328 | AU76: 18.52260722 | AV76: 0
B77: 4 | C77: 8 | D77: 1134.097023 | F77: 68 | G77: 3 | H77: 8 | I77: 1079.518335 | J77: 1 | K77: 0.8838987013 | L77: 0.8838987013 | M77: 3.494626925e+19 | N77: 0 | O77: FALSE | P77: 0 | Q77: 6.905429347e-17 | R77: 6.905429347e-17 | S77: 1.102792877e+16 | T77: 0 | U77: FALSE | V77: 0 | W77: 2.240032735e-13 | X77: 2.240032735e-13 | Y77: 3.490068959e+12 | Z77: 0 | AA77: FALSE | AB77: 0 | AC77: 6.458620668e-10 | AD77: 6.458620668e-10 | AE77: 1209665274 | AF77: 0 | AG77: FALSE | AH77: 0 | AI77: 2.041723649e-06 | AJ77: 2.041723649e-06 | AK77: 382655.5639 | AL77: 0 | AM77: FALSE | AN77: 0 | AO77: 0.006456497083 | AP77: 0.006456497083 | AQ77: 121.0063141 | AR77: 0 | AS77: TRUE | AT77: 0.8838987013 | AU77: 20.41723649 | AV77: 0
B78: 4 | C78: 9 | D78: 1402.204484 | F78: 69 | G78: 11 | H78: 3 | I78: 1085.370864 | J78: 1 | K78: 0.7603882281 | L78: 0.7603882281 | M78: 3.201362828e+19 | N78: 0 | O78: FALSE | P78: 0 | Q78: 5.57856355e-17 | R78: 5.57856355e-17 | S78: 1.010248075e+16 | T78: 0 | U78: FALSE | V78: 0 | W78: 1.809614484e-13 | X78: 1.809614484e-13 | Y78: 3.19718736e+12 | Z78: 0 | AA78: FALSE | AB78: 0 | AC78: 5.217608353e-10 | AD78: 5.217608353e-10 | AE78: 1108151893 | AF78: 0 | AG78: FALSE | AH78: 0 | AI78: 1.649410131e-06 | AJ78: 1.649410131e-06 | AK78: 350543.6559 | AL78: 0 | AM78: FALSE | AN78: 0 | AO78: 0.005215892811 | AP78: 0.005215892811 | AQ78: 110.8516372 | AR78: 0 | AS78: TRUE | AT78: 0.7603882281 | AU78: 16.49410131 | AV78: 0
B79: 4 | C79: 10 | D79: 1701.853999 | F79: 70 | G79: 4 | H79: 8 | I79: 1134.097023 | J79: 1 | K79: 0.3985487405 | L79: 0.3985487405 | M79: 2.795933876e+19 | N79: 0 | O79: FALSE | P79: 0 | Q79: 1.754779286e-17 | R79: 1.754779286e-17 | S79: 8823076191824748 | T79: 0 | U79: FALSE | V79: 0 | W79: 5.692278995e-14 | X79: 5.692278995e-14 | Y79: 2.7922872e+12 | Z79: 0 | AA79: FALSE | AB79: 0 | AC79: 1.641238103e-10 | AD79: 1.641238103e-10 | AE79: 967812642.5 | AF79: 0 | AG79: FALSE | AH79: 0 | AI79: 5.188344107e-07 | AJ79: 5.188344107e-07 | AK79: 306149.8915 | AL79: 0 | AM79: FALSE | AN79: 0 | AO79: 0.001640698466 | AP79: 0.001640698466 | AQ79: 96.81309625 | AR79: 0 | AS79: TRUE | AT79: 0.3985487405 | AU79: 5.188344107 | AV79: 0
B80: 4 | C80: 11 | D80: 2033.045568 | F80: 71 | G80: 12 | H80: 1 | I80: 1138.532625 | J80: 1 | K80: 0.9241542568 | L80: 0.9241542568 | M80: 6.784227344e+19 | N80: 0 | O80: FALSE | P80: 0 | Q80: 3.888436909e-17 | R80: 3.888436909e-17 | S80: 2.140885923e+16 | T80: 0 | U80: FALSE | V80: 0 | W80: 1.261359074e-13 | X80: 1.261359074e-13 | Y80: 6.775378822e+12 | Z80: 0 | AA80: FALSE | AB80: 0 | AC80: 3.636839612e-10 | AD80: 3.636839612e-10 | AE80: 2348360614 | AF80: 0 | AG80: FALSE | AH80: 0 | AI80: 1.149691525e-06 | AJ80: 1.149691525e-06 | AK80: 742861.0823 | AL80: 0 | AM80: FALSE | AN80: 0 | AO80: 0.003635643824 | AP80: 0.003635643824 | AQ80: 234.9133005 | AR80: 0 | AS80: TRUE | AT80: 0.9241542568 | AU80: 11.49691525 | AV80: 0
B81: 4 | C81: 12 | D81: 2395.779192 | F81: 72 | G81: 7 | H81: 7 | I81: 1154.83115 | J81: 1 | K81: 0.1043377488 | L81: 0.1043377488 | M81: 9.035858444e+18 | N81: 0 | O81: FALSE | P81: 0 | Q81: 3.72134572e-18 | R81: 3.72134572e-18 | S81: 2.851428934e+15 | T81: 0 | U81: FALSE | V81: 0 | W81: 1.207156835e-14 | X81: 1.207156835e-14 | Y81: 9.024073168e+11 | Z81: 0 | AA81: FALSE | AB81: 0 | AC81: 3.480559886e-11 | AD81: 3.480559886e-11 | AE81: 312776282.5 | AF81: 0 | AG81: FALSE | AH81: 0 | AI81: 1.100287785e-07 | AJ81: 1.100287785e-07 | AK81: 98941.07675 | AL81: 0 | AM81: FALSE | AN81: 0 | AO81: 0.0003479415483 | AP81: 0.0003479415483 | AQ81: 31.28791567 | AR81: 0 | AS81: TRUE | AT81: 0.1043377488 | AU81: 1.100287785 | AV81: 0
B82: 4 | C82: 13 | D82: 2790.054869 | F82: 73 | G82: 10 | H82: 5 | I82: 1173.971232 | J82: 1 | K82: 0.2570653017 | L82: 0.2570653017 | M82: 2.695096775e+19 | N82: 0 | O82: FALSE | P82: 0 | Q82: 7.573542543e-18 | R82: 7.573542543e-18 | S82: 8504866438763758 | T82: 0 | U82: FALSE | V82: 0 | W82: 2.456760089e-14 | X82: 2.456760089e-14 | Y82: 2.691581618e+12 | Z82: 0 | AA82: FALSE | AB82: 0 | AC82: 7.083504289e-11 | AD82: 7.083504289e-11 | AE82: 932907875.1 | AF82: 0 | AG82: FALSE | AH82: 0 | AI82: 2.239264228e-07 | AJ82: 2.239264228e-07 | AK82: 295108.4045 | AL82: 0 | AM82: FALSE | AN82: 0 | AO82: 0.0007081175243 | AP82: 0.0007081175243 | AQ82: 93.32147148 | AR82: 0 | AS82: TRUE | AT82: 0.2570653017 | AU82: 2.239264228 | AV82: 0
B83: 4 | C83: 14 | D83: 3215.872601 | F83: 74 | G83: 12 | H83: 2 | I83: 1185.845706 | J83: 1 | K83: 0.3842791928 | L83: 0.3842791928 | M83: 4.528925335e+19 | N83: 0 | O83: FALSE | P83: 0 | Q83: 1.007128978e-17 | R83: 1.007128978e-17 | S83: 1.42918449e+16 | T83: 0 | U83: FALSE | V83: 0 | W83: 3.266997264e-14 | X83: 3.266997264e-14 | Y83: 4.523018355e+12 | Z83: 0 | AA83: FALSE | AB83: 0 | AC83: 9.419637366e-11 | AD83: 9.419637366e-11 | AE83: 1567687717 | AF83: 0 | AG83: FALSE | AH83: 0 | AI83: 2.977771472e-07 | AJ83: 2.977771472e-07 | AK83: 495909.439 | AL83: 0 | AM83: FALSE | AN83: 0 | AO83: 0.0009416540203 | AP83: 0.0009416540203 | AQ83: 156.820334 | AR83: 0 | AS83: TRUE | AT83: 0.3842791928 | AU83: 2.977771472 | AV83: 0
B84: 4 | C84: 15 | D84: 3673.232387 | F84: 75 | G84: 11 | H84: 4 | I84: 1195.768054 | J84: 1 | K84: 0.6984626791 | L84: 0.6984626791 | M84: 9.069136186e+19 | N84: 0 | O84: FALSE | P84: 0 | Q84: 1.661525461e-17 | R84: 1.661525461e-17 | S84: 2.861930328e+16 | T84: 0 | U84: FALSE | V84: 0 | W84: 5.389775544e-14 | X84: 5.389775544e-14 | Y84: 9.057307507e+12 | Z84: 0 | AA84: FALSE | AB84: 0 | AC84: 1.55401817e-10 | AD84: 1.55401817e-10 | AE84: 3139281917 | AF84: 0 | AG84: FALSE | AH84: 0 | AI84: 4.91262115e-07 | AJ84: 4.91262115e-07 | AK84: 993054.6223 | AL84: 0 | AM84: FALSE | AN84: 0 | AO84: 0.001553507211 | AP84: 0.001553507211 | AQ84: 314.0314447 | AR84: 0 | AS84: TRUE | AT84: 0.6984626791 | AU84: 4.91262115 | AV84: 0
B85: 4 | C85: 16 | D85: 4162.134227 | F85: 76 | G85: 9 | H85: 6 | I85: 1199.310374 | J85: 1 | K85: 0.1349149964 | L85: 0.1349149964 | M85: 1.813089217e+19 | N85: 0 | O85: FALSE | P85: 0 | Q85: 3.100900211e-18 | R85: 3.100900211e-18 | S85: 5721531699324482 | T85: 0 | U85: FALSE | V85: 0 | W85: 1.005892267e-14 | X85: 1.005892267e-14 | Y85: 1.810724443e+12 | Z85: 0 | AA85: FALSE | AB85: 0 | AC85: 2.900259663e-11 | AD85: 2.900259663e-11 | AE85: 627600917.5 | AF85: 0 | AG85: FALSE | AH85: 0 | AI85: 9.16841079e-08 | AJ85: 9.16841079e-08 | AK85: 198530.1125 | AL85: 0 | AM85: FALSE | AN85: 0 | AO85: 0.0002899306062 | AP85: 0.0002899306062 | AQ85: 62.78073396 | AR85: 0 | AS85: TRUE | AT85: 0.1349149964 | AU85: 0.916841079 | AV85: 0
B86: 4 | C86: 17 | D86: 4682.578122 | F86: 77 | G86: 5 | H86: 8 | I86: 1204.269623 | J86: 1 | K86: 0.2652600337 | L86: 0.2652600337 | M86: 3.739965056e+19 | N86: 0 | O86: FALSE | P86: 0 | Q86: 5.811157009e-18 | R86: 5.811157009e-18 | S86: 1.180213771e+16 | T86: 0 | U86: FALSE | V86: 0 | W86: 1.88506482e-14 | X86: 1.88506482e-14 | Y86: 3.7350871e+12 | Z86: 0 | AA86: FALSE | AB86: 0 | AC86: 5.435152092e-11 | AD86: 5.435152092e-11 | AE86: 1294589080 | AF86: 0 | AG86: FALSE | AH86: 0 | AI86: 1.718180883e-07 | AJ86: 1.718180883e-07 | AK86: 409519.6621 | AL86: 0 | AM86: FALSE | AN86: 0 | AO86: 0.0005433365022 | AP86: 0.0005433365022 | AQ86: 129.5014879 | AR86: 0 | AS86: TRUE | AT86: 0.2652600337 | AU86: 1.718180883 | AV86: 0
B87: 4 | C87: 18 | D87: 5234.564071 | F87: 78 | G87: 12 | H87: 3 | I87: 1264.700842 | J87: 1 | K87: 0.7643643765 | L87: 0.7643643765 | M87: 1.904268662e+20 | N87: 0 | O87: FALSE | P87: 0 | Q87: 9.476744451e-18 | R87: 9.476744451e-18 | S87: 6.009264968e+16 | T87: 0 | U87: FALSE | V87: 0 | W87: 3.074134384e-14 | X87: 3.074134384e-14 | Y87: 1.901784965e+13 | Z87: 0 | AA87: FALSE | AB87: 0 | AC87: 8.863561482e-11 | AD87: 8.863561482e-11 | AE87: 6591626868 | AF87: 0 | AG87: FALSE | AH87: 0 | AI87: 2.801982656e-07 | AJ87: 2.801982656e-07 | AK87: 2085141.03 | AL87: 0 | AM87: FALSE | AN87: 0 | AO87: 0.0008860647156 | AP87: 0.0008860647156 | AQ87: 659.3794898 | AR87: 0 | AS87: TRUE | AT87: 0.7643643765 | AU87: 2.801982656 | AV87: 0
B88: 4 | C88: 19 | D88: 5818.092073 | F88: 79 | G88: 8 | H88: 7 | I88: 1271.785483 | J88: 1 | K88: 0.07677297163 | L88: 0.07677297163 | M88: 2.041001256e+19 | N88: 0 | O88: FALSE | P88: 0 | Q88: 8.919899135e-19 | R88: 8.919899135e-19 | S88: 6440749454810846 | T88: 0 | U88: FALSE | V88: 0 | W88: 2.893500904e-15 | X88: 2.893500904e-15 | Y88: 2.038339222e+12 | Z88: 0 | AA88: FALSE | AB88: 0 | AC88: 8.342746267e-12 | AD88: 8.342746267e-12 | AE88: 706492680.6 | AF88: 0 | AG88: FALSE | AH88: 0 | AI88: 2.637340576e-08 | AJ88: 2.637340576e-08 | AK88: 223486.084 | AL88: 0 | AM88: FALSE | AN88: 0 | AO88: 8.340003185e-05 | AP88: 8.340003185e-05 | AQ88: 70.67250507 | AR88: 0 | AS88: TRUE | AT88: 0.07677297163 | AU88: 0.2637340576 | AV88: 0
B89: 4 | C89: 20 | D89: 6433.162131 | F89: 80 | G89: 1 | H89: 9 | I89: 1285.250151 | J89: 1 | K89: 0.1948465816 | L89: 0.1948465816 | M89: 5.854720101e+19 | N89: 0 | O89: FALSE | P89: 0 | Q89: 2.002930859e-18 | R89: 2.002930859e-18 | S89: 1.847563062e+16 | T89: 0 | U89: FALSE | V89: 0 | W89: 6.497250881e-15 | X89: 6.497250881e-15 | Y89: 5.847083916e+12 | Z89: 0 | AA89: FALSE | AB89: 0 | AC89: 1.873333285e-11 | AD89: 1.873333285e-11 | AE89: 2026611638 | AF89: 0 | AG89: FALSE | AH89: 0 | AI89: 5.922052195e-08 | AJ89: 5.922052195e-08 | AK89: 641081.6576 | AL89: 0 | AM89: FALSE | AN89: 0 | AO89: 0.0001872717336 | AP89: 0.0001872717336 | AQ89: 202.7278204 | AR89: 0 | AS89: TRUE | AT89: 0.1948465816 | AU89: 0.5922052195 | AV89: 0
B90: 5 | C90: 1 | D90: 210.6949156 | F90: 81 | G90: 6 | H90: 8 | I90: 1290.036134 | J90: 1 | K90: 0.8102928941 | L90: 0.8102928941 | M90: 2.54228016e+20 | N90: 0 | O90: FALSE | P90: 0 | Q90: 7.977139112e-18 | R90: 7.977139112e-18 | S90: 8.022625909e+16 | T90: 0 | U90: FALSE | V90: 0 | W90: 2.587681641e-14 | X90: 2.587681641e-14 | Y90: 2.538964319e+13 | Z90: 0 | AA90: FALSE | AB90: 0 | AC90: 7.460986558e-11 | AD90: 7.460986558e-11 | AE90: 8800103968 | AF90: 0 | AG90: FALSE | AH90: 0 | AI90: 2.358595354e-07 | AJ90: 2.358595354e-07 | AK90: 2783752.512 | AL90: 0 | AM90: FALSE | AN90: 0 | AO90: 0.0007458533397 | AP90: 0.0007458533397 | AQ90: 880.2998381 | AR90: 0 | AS90: TRUE | AT90: 0.8102928941 | AU90: 2.358595354 | AV90: 0
B91: 5 | C91: 2 | D91: 258.0079969 | F91: 82 | G91: 2 | H91: 9 | I91: 1308.641018 | J91: 1 | K91: 0.3024463947 | L91: 0.3024463947 | M91: 1.120811319e+20 | N91: 0 | O91: FALSE | P91: 0 | Q91: 2.520872199e-18 | R91: 2.520872199e-18 | S91: 3.536923299e+16 | T91: 0 | U91: FALSE | V91: 0 | W91: 8.177386172e-15 | X91: 8.177386172e-15 | Y91: 1.119349469e+13 | Z91: 0 | AA91: FALSE | AB91: 0 | AC91: 2.357761765e-11 | AD91: 2.357761765e-11 | AE91: 3879688909 | AF91: 0 | AG91: FALSE | AH91: 0 | AI91: 7.453445868e-08 | AJ91: 7.453445868e-08 | AK91: 1227268.881 | AL91: 0 | AM91: FALSE | AN91: 0 | AO91: 0.0002356986536 | AP91: 0.0002356986536 | AQ91: 388.0964964 | AR91: 0 | AS91: TRUE | AT91: 0.3024463947 | AU91: 0.7453445868 | AV91: 0
B92: 5 | C92: 3 | D92: 336.8631324 | F92: 83 | G92: 13 | H92: 1 | I92: 1333.456513 | J92: 1 | K92: 0.5151515721 | L92: 0.5151515721 | M92: 2.375056565e+20 | N92: 0 | O92: FALSE | P92: 0 | Q92: 3.451299232e-18 | R92: 3.451299232e-18 | S92: 7.494921542e+16 | T92: 0 | U92: FALSE | V92: 0 | W92: 1.119557216e-14 | X92: 1.119557216e-14 | Y92: 2.37195883e+13 | Z92: 0 | AA92: FALSE | AB92: 0 | AC92: 3.227986477e-11 | AD92: 3.227986477e-11 | AE92: 8221259417 | AF92: 0 | AG92: FALSE | AH92: 0 | AI92: 1.020443322e-07 | AJ92: 1.020443322e-07 | AK92: 2600645.588 | AL92: 0 | AM92: FALSE | AN92: 0 | AO92: 0.000322692512 | AP92: 0.000322692512 | AQ92: 822.3963444 | AR92: 0 | AS92: TRUE | AT92: 0.5151515721 | AU92: 1.020443322 | AV92: 0
B93: 5 | C93: 4 | D93: 447.2603221 | F93: 84 | G93: 11 | H93: 5 | I93: 1337.707298 | J93: 1 | K93: 0.4699554649 | L93: 0.4699554649 | M93: 2.248363784e+20 | N93: 0 | O93: FALSE | P93: 0 | Q93: 3.034124102e-18 | R93: 3.034124102e-18 | S93: 7.095119504e+16 | T93: 0 | U93: FALSE | V93: 0 | W93: 9.842309534e-15 | X93: 9.842309534e-15 | Y93: 2.245431292e+13 | Z93: 0 | AA93: FALSE | AB93: 0 | AC93: 2.837804233e-11 | AD93: 2.837804233e-11 | AE93: 7782712295 | AF93: 0 | AG93: FALSE | AH93: 0 | AI93: 8.970974316e-08 | AJ93: 8.970974316e-08 | AK93: 2461919.198 | AL93: 0 | AM93: FALSE | AN93: 0 | AO93: 0.0002836871167 | AP93: 0.0002836871167 | AQ93: 778.5272081 | AR93: 0 | AS93: TRUE | AT93: 0.4699554649 | AU93: 0.8970974316 | AV93: 0
B94: 5 | C94: 5 | D94: 589.1995661 | F94: 85 | G94: 10 | H94: 6 | I94: 1347.45253 | J94: 1 | K94: 0.4889507459 | L94: 0.4889507459 | M94: 2.545229173e+20 | N94: 0 | O94: FALSE | P94: 0 | Q94: 2.901281354e-18 | R94: 2.901281354e-18 | S94: 8.031932053e+16 | T94: 0 | U94: FALSE | V94: 0 | W94: 9.411384694e-15 | X94: 9.411384694e-15 | Y94: 2.541909485e+13 | Z94: 0 | AA94: FALSE | AB94: 0 | AC94: 2.713556938e-11 | AD94: 2.713556938e-11 | AE94: 8810311976 | AF94: 0 | AG94: FALSE | AH94: 0 | AI94: 8.578199058e-08 | AJ94: 8.578199058e-08 | AK94: 2786981.63 | AL94: 0 | AM94: FALSE | AN94: 0 | AO94: 0.0002712664724 | AP94: 0.0002712664724 | AQ94: 881.3209747 | AR94: 0 | AS94: TRUE | AT94: 0.4889507459 | AU94: 0.8578199058 | AV94: 0
B95: 5 | C95: 6 | D95: 762.6808642 | F95: 86 | G95: 3 | H95: 9 | I95: 1347.625795 | J95: 1 | K95: 0.2746192971 | L95: 0.2746192971 | M95: 1.431667226e+20 | N95: 0 | O95: FALSE | P95: 0 | Q95: 1.627071104e-18 | R95: 1.627071104e-18 | S95: 4.517885465e+16 | T95: 0 | U95: FALSE | V95: 0 | W95: 5.278010031e-15 | X95: 5.278010031e-15 | Y95: 1.429799934e+13 | Z95: 0 | AA95: FALSE | AB95: 0 | AC95: 1.521793148e-11 | AD95: 1.521793148e-11 | AE95: 4955716776 | AF95: 0 | AG95: FALSE | AH95: 0 | AI95: 4.810750187e-08 | AJ95: 4.810750187e-08 | AK95: 1567650.686 | AL95: 0 | AM95: FALSE | AN95: 0 | AO95: 0.0001521292784 | AP95: 0.0001521292784 | AQ95: 495.7346744 | AR95: 0 | AS95: TRUE | AT95: 0.2746192971 | AU95: 0.4810750187 | AV95: 0
B96: 5 | C96: 7 | D96: 967.7042166 | F96: 87 | G96: 12 | H96: 4 | I96: 1375.098031 | J96: 1 | K96: 0.7021150124 | L96: 0.7021150124 | M96: 4.628285318e+20 | N96: 0 | O96: FALSE | P96: 0 | Q96: 3.289901592e-18 | R96: 3.289901592e-18 | S96: 1.460539334e+17 | T96: 0 | U96: FALSE | V96: 0 | W96: 1.067201891e-14 | X96: 1.067201891e-14 | Y96: 4.622248746e+13 | Z96: 0 | AA96: FALSE | AB96: 0 | AC96: 3.077031905e-11 | AD96: 3.077031905e-11 | AE96: 1.60208118e+10 | AF96: 0 | AG96: FALSE | AH96: 0 | AI96: 9.727229901e-08 | AJ96: 9.727229901e-08 | AK96: 5067891.842 | AL96: 0 | AM96: FALSE | AN96: 0 | AO96: 0.0003076020181 | AP96: 0.0003076020181 | AQ96: 1602.608116 | AR96: 0 | AS96: TRUE | AT96: 0.7021150124 | AU96: 0.9727229901 | AV96: 0
B97: 5 | C97: 8 | D97: 1204.269623 | F97: 88 | G97: 13 | H97: 2 | I97: 1380.769594 | J97: 1 | K97: 0.2142088605 | L97: 0.2142088605 | M97: 1.481264943e+20 | N97: 0 | O97: FALSE | P97: 0 | Q97: 9.56816444e-19 | R97: 9.56816444e-19 | S97: 4.674400052e+16 | T97: 0 | U97: FALSE | V97: 0 | W97: 3.103789856e-15 | X97: 3.103789856e-15 | Y97: 1.479332961e+13 | Z97: 0 | AA97: FALSE | AB97: 0 | AC97: 8.949066235e-12 | AD97: 8.949066235e-12 | AE97: 5127399297 | AF97: 0 | AG97: FALSE | AH97: 0 | AI97: 2.829012742e-08 | AJ97: 2.829012742e-08 | AK97: 1621959.323 | AL97: 0 | AM97: FALSE | AN97: 0 | AO97: 8.946123795e-05 | AP97: 8.946123795e-05 | AQ97: 512.9085733 | AR97: 0 | AS97: TRUE | AT97: 0.2142088605 | AU97: 0.2829012742 | AV97: 0
B98: 5 | C98: 9 | D98: 1472.377084 | F98: 89 | G98: 7 | H98: 8 | I98: 1391.396556 | J98: 1 | K98: 0.9924995965 | L98: 0.9924995965 | M98: 7.503075939e+20 | N98: 0 | O98: FALSE | P98: 0 | Q98: 4.055158642e-18 | R98: 4.055158642e-18 | S98: 2.367731628e+17 | T98: 0 | U98: FALSE | V98: 0 | W98: 1.315441466e-14 | X98: 1.315441466e-14 | Y98: 7.493289839e+13 | Z98: 0 | AA98: FALSE | AB98: 0 | AC98: 3.792773787e-11 | AD98: 3.792773787e-11 | AE98: 2.597190089e+10 | AF98: 0 | AG98: FALSE | AH98: 0 | AI98: 1.198986027e-07 | AJ98: 1.198986027e-07 | AK98: 8215737.519 | AL98: 0 | AM98: FALSE | AN98: 0 | AO98: 0.0003791526729 | AP98: 0.0003791526729 | AQ98: 2598.044322 | AR98: 0 | AS98: TRUE | AT98: 0.9924995965 | AU98: 1.198986027 | AV98: 0
B99: 5 | C99: 10 | D99: 1772.026599 | F99: 90 | G99: 4 | H99: 9 | I99: 1402.204484 | J99: 1 | K99: 0.1238254732 | L99: 0.1238254732 | M99: 1.024211964e+20 | N99: 0 | O99: FALSE | P99: 0 | Q99: 4.623987606e-19 | R99: 4.623987606e-19 | S99: 3.232086521e+16 | T99: 0 | U99: FALSE | V99: 0 | W99: 1.499962288e-15 | X99: 1.499962288e-15 | Y99: 1.022876106e+13 | Z99: 0 | AA99: FALSE | AB99: 0 | AC99: 4.32479726e-12 | AD99: 4.32479726e-12 | AE99: 3545310194 | AF99: 0 | AG99: FALSE | AH99: 0 | AI99: 1.367171304e-08 | AJ99: 1.367171304e-08 | AK99: 1121494.268 | AL99: 0 | AM99: FALSE | AN99: 0 | AO99: 4.323375273e-05 | AP99: 4.323375273e-05 | AQ99: 354.647627 | AR99: 0 | AS99: TRUE | AT99: 0.1238254732 | AU99: 0.1367171304 | AV99: 0
B100: 5 | C100: 11 | D100: 2103.218168 | F100: 91 | G100: 9 | H100: 7 | I100: 1404.333727 | J100: 1 | K100: 0.01483143697 | L100: 0.01483143697 | M100: 1.248604251e+19 | N100: 0 | O100: FALSE | P100: 0 | Q100: 5.441619428e-20 | R100: 5.441619428e-20 | S100: 3.94019706e+15 | T100: 0 | U100: FALSE | V100: 0 | W100: 1.765191567e-16 | X100: 1.765191567e-16 | Y100: 1.246975723e+12 | Z100: 0 | AA100: FALSE | AB100: 0 | AC100: 5.089525059e-13 | AD100: 5.089525059e-13 | AE100: 432204420 | AF100: 0 | AG100: FALSE | AH100: 0 | AI100: 1.608919955e-09 | AJ100: 1.608919955e-09 | AK100: 136719.9915 | AL100: 0 | AM100: FALSE | AN100: 0 | AO100: 5.087851631e-06 | AP100: 5.087851631e-06 | AQ100: 43.2346575 | AR100: 0 | AS100: TRUE | AT100: 0.01483143697 | AU100: 0.01608919955 | AV100: 0
B101: 5 | C101: 12 | D101: 2465.951792 | F101: 92 | G101: 13 | H101: 3 | I101: 1459.62473 | J101: 1 | K101: 0.4260798534 | L101: 0.4260798534 | M101: 5.619833624e+20 | N101: 0 | O101: FALSE | P101: 0 | Q101: 9.978035716e-19 | R101: 9.978035716e-19 | S101: 1.773440376e+17 | T101: 0 | U101: FALSE | V101: 0 | W101: 3.236746842e-15 | X101: 3.236746842e-15 | Y101: 5.612503796e+13 | Z101: 0 | AA101: FALSE | AB101: 0 | AC101: 9.332417213e-12 | AD101: 9.332417213e-12 | AE101: 1.945305673e+10 | AF101: 0 | AG101: FALSE | AH101: 0 | AI101: 2.950199106e-08 | AJ101: 2.950199106e-08 | AK101: 6153619.972 | AL101: 0 | AM101: FALSE | AN101: 0 | AO101: 9.329348727e-05 | AP101: 9.329348727e-05 | AQ101: 1945.945497 | AR101: 0 | AS101: FALSE | AT101: 0 | AU101: 0.2950199106 | AV101: 0.2950199106
B102: 5 | C102: 13 | D102: 2860.227469 | F102: 93 | G102: 5 | H102: 9 | I102: 1472.377084 | J102: 1 | K102: 0.08241388281 | L102: 0.08241388281 | M102: 1.202698557e+20 | N102: 0 | O102: FALSE | P102: 0 | Q102: 1.744337329e-19 | R102: 1.744337329e-19 | S102: 3.795333321e+16 | T102: 0 | U102: FALSE | V102: 0 | W102: 5.658406628e-16 | X102: 5.658406628e-16 | Y102: 1.201129903e+13 | Z102: 0 | AA102: FALSE | AB102: 0 | AC102: 1.631471783e-12 | AD102: 1.631471783e-12 | AE102: 4163141619 | AF102: 0 | AG102: FALSE | AH102: 0 | AI102: 5.157470445e-09 | AJ102: 5.157470445e-09 | AK102: 1316933.98 | AL102: 0 | AM102: FALSE | AN102: 0 | AO102: 1.630935357e-05 | AP102: 1.630935357e-05 | AQ102: 416.4510904 | AR102: 0 | AS102: FALSE | AT102: 0 | AU102: 0.05157470445 | AV102: 0.05157470445
B103: 5 | C103: 14 | D103: 3286.045201 | F103: 94 | G103: 8 | H103: 8 | I103: 1508.350889 | J103: 1 | K103: 0.7302931514 | L103: 0.7302931514 | M103: 1.411044564e+21 | N103: 0 | O103: FALSE | P103: 0 | Q103: 1.16745524e-18 | R103: 1.16745524e-18 | S103: 4.452806917e+17 | T103: 0 | U103: FALSE | V103: 0 | W103: 3.787075103e-15 | X103: 3.787075103e-15 | Y103: 1.409204169e+14 | Z103: 0 | AA103: FALSE | AB103: 0 | AC103: 1.091916254e-11 | AD103: 1.091916254e-11 | AE103: 4.884331422e+10 | AF103: 0 | AG103: FALSE | AH103: 0 | AI103: 3.451807054e-08 | AJ103: 3.451807054e-08 | AK103: 15450692.31 | AL103: 0 | AM103: FALSE | AN103: 0 | AO103: 0.0001091557234 | AP103: 0.0001091557234 | AQ103: 4885.937911 | AR103: 0 | AS103: FALSE | AT103: 0 | AU103: 0.3451807054 | AV103: 0.3451807054
B104: 5 | C104: 15 | D104: 3743.404987 | F104: 95 | G104: 11 | H104: 6 | I104: 1511.188596 | J104: 1 | K104: 0.8938782229 | L104: 0.8938782229 | M104: 1.765275878e+21 | N104: 0 | O104: FALSE | P104: 0 | Q104: 1.398075549e-18 | R104: 1.398075549e-18 | S104: 5.570648042e+17 | T104: 0 | U104: FALSE | V104: 0 | W104: 4.535177811e-15 | X104: 4.535177811e-15 | Y104: 1.762973467e+14 | Z104: 0 | AA104: FALSE | AB104: 0 | AC104: 1.307614513e-11 | AD104: 1.307614513e-11 | AE104: 6.110503281e+10 | AF104: 0 | AG104: FALSE | AH104: 0 | AI104: 4.133680568e-08 | AJ104: 4.133680568e-08 | AK104: 19329463.52 | AL104: 0 | AM104: FALSE | AN104: 0 | AO104: 0.0001307184572 | AP104: 0.0001307184572 | AQ104: 6112.513067 | AR104: 0 | AS104: FALSE | AT104: 0 | AU104: 0.4133680568 | AV104: 0.4133680568
B105: 5 | C105: 16 | D105: 4232.306827 | F105: 96 | G105: 12 | H105: 5 | I105: 1517.037275 | J105: 1 | K105: 0.4724129104 | L105: 0.4724129104 | M105: 9.758000579e+20 | N105: 0 | O105: FALSE | P105: 0 | Q105: 7.064300896e-19 | R105: 7.064300896e-19 | S105: 3.079313975e+17 | T105: 0 | U105: FALSE | V105: 0 | W105: 2.291568628e-15 | X105: 2.291568628e-15 | Y105: 9.745273429e+13 | Z105: 0 | AA105: FALSE | AB105: 0 | AC105: 6.607212597e-12 | AD105: 6.607212597e-12 | AE105: 3.377732359e+10 | AF105: 0 | AG105: FALSE | AH105: 0 | AI105: 2.088697093e-08 | AJ105: 2.088697093e-08 | AK105: 10684840.74 | AL105: 0 | AM105: FALSE | AN105: 0 | AO105: 6.605040155e-05 | AP105: 6.605040155e-05 | AQ105: 3378.843317 | AR105: 0 | AS105: FALSE | AT105: 0 | AU105: 0.2088697093 | AV105: 0.2088697093
B106: 5 | C106: 17 | D106: 4752.750722 | F106: 97 | G106: 14 | H106: 1 | I106: 1543.974313 | J106: 1 | K106: 0.1245213641 | L106: 0.1245213641 | M106: 3.156135988e+20 | N106: 0 | O106: FALSE | P106: 0 | Q106: 1.517464519e-19 | R106: 1.517464519e-19 | S106: 9.959759254e+16 | T106: 0 | U106: FALSE | V106: 0 | W106: 4.922460323e-16 | X106: 4.922460323e-16 | Y106: 3.152019508e+13 | Z106: 0 | AA106: FALSE | AB106: 0 | AC106: 1.419278544e-12 | AD106: 1.419278544e-12 | AE106: 1.092496621e+10 | AF106: 0 | AG106: FALSE | AH106: 0 | AI106: 4.486677134e-09 | AJ106: 4.486677134e-09 | AK106: 3455913.956 | AL106: 0 | AM106: FALSE | AN106: 0 | AO106: 1.418811887e-05 | AP106: 1.418811887e-05 | AQ106: 1092.85595 | AR106: 0 | AS106: FALSE | AT106: 0 | AU106: 0.04486677134 | AV106: 0.04486677134
B107: 5 | C107: 18 | D107: 5304.73667 | F107: 98 | G107: 10 | H107: 7 | I107: 1552.475882 | J107: 1 | K107: 0.05375119418 | L107: 0.05375119418 | M107: 1.452202983e+20 | N107: 0 | O107: FALSE | P107: 0 | Q107: 6.145191532e-20 | R107: 6.145191532e-20 | S107: 4.582689768e+16 | T107: 0 | U107: FALSE | V107: 0 | W107: 1.993421336e-16 | X107: 1.993421336e-16 | Y107: 1.450308906e+13 | Z107: 0 | AA107: FALSE | AB107: 0 | AC107: 5.747573256e-13 | AD107: 5.747573256e-13 | AE107: 5026801307 | AF107: 0 | AG107: FALSE | AH107: 0 | AI107: 1.816944646e-09 | AJ107: 1.816944646e-09 | AK107: 1590136.982 | AL107: 0 | AM107: FALSE | AN107: 0 | AO107: 5.745683462e-06 | AP107: 5.745683462e-06 | AQ107: 502.8454656 | AR107: 0 | AS107: FALSE | AT107: 0 | AU107: 0.01816944646 | AV107: 0.01816944646
B108: 5 | C108: 19 | D108: 5888.264673 | F108: 99 | G108: 6 | H108: 9 | I108: 1558.143595 | J108: 1 | K108: 0.2517506414 | L108: 0.2517506414 | M108: 7.095948891e+20 | N108: 0 | O108: FALSE | P108: 0 | Q108: 2.75878087e-19 | R108: 2.75878087e-19 | S108: 2.239255308e+17 | T108: 0 | U108: FALSE | V108: 0 | W108: 8.949131397e-16 | X108: 8.949131397e-16 | Y108: 7.086693797e+13 | Z108: 0 | AA108: FALSE | AB108: 0 | AC108: 2.580276801e-12 | AD108: 2.580276801e-12 | AE108: 2.456263042e+10 | AF108: 0 | AG108: FALSE | AH108: 0 | AI108: 8.156868837e-09 | AJ108: 8.156868837e-09 | AK108: 7769940.49 | AL108: 0 | AM108: FALSE | AN108: 0 | AO108: 2.57942841e-05 | AP108: 2.57942841e-05 | AQ108: 2457.070923 | AR108: 0 | AS108: FALSE | AT108: 0 | AU108: 0.08156868837 | AV108: 0.08156868837
B109: 5 | C109: 20 | D109: 6503.33473 | F109: 100 | G109: 13 | H109: 4 | I109: 1570.02192 | J109: 1 | K109: 0.3913801725 | L109: 0.3913801725 | M109: 1.204998443e+21 | N109: 0 | O109: FALSE | P109: 0 | Q109: 3.926428271e-19 | R109: 3.926428271e-19 | S109: 3.802591029e+17 | T109: 0 | U109: FALSE | V109: 0 | W109: 1.273682984e-15 | X109: 1.273682984e-15 | Y109: 1.203426789e+14 | Z109: 0 | AA109: FALSE | AB109: 0 | AC109: 3.672372782e-12 | AD109: 3.672372782e-12 | AE109: 4.171102676e+10 | AF109: 0 | AG109: FALSE | AH109: 0 | AI109: 1.160924405e-08 | AJ109: 1.160924405e-08 | AK109: 13194523.15 | AL109: 0 | AM109: FALSE | AN109: 0 | AO109: 3.671165311e-05 | AP109: 3.671165311e-05 | AQ109: 4172.47458 | AR109: 0 | AS109: FALSE | AT109: 0 | AU109: 0.1160924405 | AV109: 0.1160924405
B110: 6 | C110: 1 | D110: 296.4614265 | F110: 101 | G110: 1 | H110: 10 | I110: 1584.899666 | J110: 1 | K110: 0.5461190649 | L110: 0.5461190649 | M110: 1.876285143e+21 | N110: 0 | O110: FALSE | P110: 0 | Q110: 4.909783583e-19 | R110: 4.909783583e-19 | S110: 5.920957901e+17 | T110: 0 | U110: FALSE | V110: 0 | W110: 1.592670838e-15 | X110: 1.592670838e-15 | Y110: 1.873837945e+14 | Z110: 0 | AA110: FALSE | AB110: 0 | AC110: 4.592101103e-12 | AD110: 4.592101103e-12 | AE110: 6.494761903e+10 | AF110: 0 | AG110: FALSE | AH110: 0 | AI110: 1.451672408e-08 | AJ110: 1.451672408e-08 | AK110: 20544995.64 | AL110: 0 | AM110: FALSE | AN110: 0 | AO110: 4.590591227e-05 | AP110: 4.590591227e-05 | AQ110: 6496.898074 | AR110: 0 | AS110: FALSE | AT110: 0 | AU110: 0.1451672408 | AV110: 0.1451672408
B111: 6 | C111: 2 | D111: 343.7745078 | F111: 102 | G111: 14 | H111: 2 | I111: 1591.287394 | J111: 1 | K111: 0.05177811923 | L111: 0.05177811923 | M111: 1.864094567e+20 | N111: 0 | O111: FALSE | P111: 0 | Q111: 4.442333048e-20 | R111: 4.442333048e-20 | S111: 5.882488328e+16 | T111: 0 | U111: FALSE | V111: 0 | W111: 1.441035879e-16 | X111: 1.441035879e-16 | Y111: 1.861663269e+13 | Z111: 0 | AA111: FALSE | AB111: 0 | AC111: 4.154896472e-13 | AD111: 4.154896472e-13 | AE111: 6452564219 | AF111: 0 | AG111: FALSE | AH111: 0 | AI111: 1.313461623e-09 | AJ111: 1.313461623e-09 | AK111: 2041151.096 | AL111: 0 | AM111: FALSE | AN111: 0 | AO111: 4.153530348e-06 | AP111: 4.153530348e-06 | AQ111: 645.468651 | AR111: 0 | AS111: FALSE | AT111: 0 | AU111: 0.01313461623 | AV111: 0.01313461623
B112: 6 | C112: 3 | D112: 422.6296433 | F112: 103 | G112: 2 | H112: 10 | I112: 1608.290533 | J112: 1 | K112: 0.8477015139 | L112: 0.8477015139 | M112: 3.453284338e+21 | N112: 0 | O112: FALSE | P112: 0 | Q112: 6.427470498e-19 | R112: 6.427470498e-19 | S112: 1.089746474e+18 | T112: 0 | U112: FALSE | V112: 0 | W112: 2.084989013e-15 | X112: 2.084989013e-15 | Y112: 3.448780293e+14 | Z112: 0 | AA112: FALSE | AB112: 0 | AC112: 6.011587652e-12 | AD112: 6.011587652e-12 | AE112: 1.195354536e+11 | AF112: 0 | AG112: FALSE | AH112: 0 | AI112: 1.900405877e-08 | AJ112: 1.900405877e-08 | AK112: 37812862.26 | AL112: 0 | AM112: FALSE | AN112: 0 | AO112: 6.009611051e-05 | AP112: 6.009611051e-05 | AQ112: 11957.47696 | AR112: 0 | AS112: FALSE | AT112: 0 | AU112: 0.1900405877 | AV112: 0.1900405877
B113: 6 | C113: 4 | D113: 533.0268331 | F113: 104 | G113: 9 | H113: 8 | I113: 1640.899133 | J113: 1 | K113: 0.1410821623 | L113: 0.1410821623 | M113: 7.257988458e+20 | N113: 0 | O113: FALSE | P113: 0 | Q113: 8.470605476e-20 | R113: 8.470605476e-20 | S113: 2.290389831e+17 | T113: 0 | U113: FALSE | V113: 0 | W113: 2.747755802e-16 | X113: 2.747755802e-16 | Y113: 7.24852202e+13 | Z113: 0 | AA113: FALSE | AB113: 0 | AC113: 7.922523691e-13 | AD113: 7.922523691e-13 | AE113: 2.512353046e+10 | AF113: 0 | AG113: FALSE | AH113: 0 | AI113: 2.504498222e-09 | AJ113: 2.504498222e-09 | AK113: 7947370.995 | AL113: 0 | AM113: FALSE | AN113: 0 | AO113: 7.919918777e-06 | AP113: 7.919918777e-06 | AQ113: 2513.179375 | AR113: 0 | AS113: FALSE | AT113: 0 | AU113: 0.02504498222 | AV113: 0.02504498222
B114: 6 | C114: 5 | D114: 674.966077 | F114: 105 | G114: 3 | H114: 10 | I114: 1647.27531 | J114: 1 | K114: 0.7697072868 | L114: 0.7697072868 | M114: 4.142406718e+21 | N114: 0 | O114: FALSE | P114: 0 | Q114: 4.417585582e-19 | R114: 4.417585582e-19 | S114: 1.307211533e+18 | T114: 0 | U114: FALSE | V114: 0 | W114: 1.433008118e-15 | X114: 1.433008118e-15 | Y114: 4.137003867e+14 | Z114: 0 | AA114: FALSE | AB114: 0 | AC114: 4.131750266e-12 | AD114: 4.131750266e-12 | AE114: 1.43389428e+11 | AF114: 0 | AG114: FALSE | AH114: 0 | AI114: 1.306144557e-08 | AJ114: 1.306144557e-08 | AK114: 45358632.34 | AL114: 0 | AM114: FALSE | AN114: 0 | AO114: 4.130391753e-05 | AP114: 4.130391753e-05 | AQ114: 14343.65898 | AR114: 0 | AS114: FALSE | AT114: 0 | AU114: 0.1306144557 | AV114: 0.1306144557
B115: 6 | C115: 6 | D115: 848.4473752 | F115: 106 | G115: 7 | H115: 9 | I115: 1659.504017 | J115: 1 | K115: 0.3083606086 | L115: 0.3083606086 | M115: 1.808558372e+21 | N115: 0 | O115: FALSE | P115: 0 | Q115: 1.623946701e-19 | R115: 1.623946701e-19 | S115: 5.707233797e+17 | T115: 0 | U115: FALSE | V115: 0 | W115: 5.267874867e-16 | X115: 5.267874867e-16 | Y115: 180619950805333 | Z115: 0 | AA115: FALSE | AB115: 0 | AC115: 1.518870906e-12 | AD115: 1.518870906e-12 | AE115: 6.260325653e+10 | AF115: 0 | AG115: FALSE | AH115: 0 | AI115: 4.801512285e-09 | AJ115: 4.801512285e-09 | AK115: 19803399.29 | AL115: 0 | AM115: FALSE | AN115: 0 | AO115: 1.518371503e-05 | AP115: 1.518371503e-05 | AQ115: 6262.384716 | AR115: 0 | AS115: FALSE | AT115: 0 | AU115: 0.04801512285 | AV115: 0.04801512285
B116: 6 | C116: 7 | D116: 1053.470728 | F116: 107 | G116: 14 | H116: 3 | I116: 1670.14253 | J116: 1 | K116: 0.102991134 | L116: 0.102991134 | M116: 6.506393806e+20 | N116: 0 | O116: FALSE | P116: 0 | Q116: 5.035537646e-20 | R116: 5.035537646e-20 | S116: 2.053210513e+17 | T116: 0 | U116: FALSE | V116: 0 | W116: 1.633463844e-16 | X116: 1.633463844e-16 | Y116: 6.497907657e+13 | Z116: 0 | AA116: FALSE | AB116: 0 | AC116: 4.70971838e-13 | AD116: 4.70971838e-13 | AE116: 2.252188522e+10 | AF116: 0 | AG116: FALSE | AH116: 0 | AI116: 1.488854028e-09 | AJ116: 1.488854028e-09 | AK116: 7124387.937 | AL116: 0 | AM116: FALSE | AN116: 0 | AO116: 4.708169831e-06 | AP116: 4.708169831e-06 | AQ116: 2252.929281 | AR116: 0 | AS116: FALSE | AT116: 0 | AU116: 0.01488854028 | AV116: 0.01488854028
B117: 6 | C117: 8 | D117: 1290.036134 | F117: 108 | G117: 12 | H117: 6 | I117: 1690.518573 | J117: 1 | K117: 0.8985524042 | L117: 0.8985524042 | M117: 6.536046834e+21 | N117: 0 | O117: FALSE | P117: 0 | Q117: 3.815559048e-19 | R117: 3.815559048e-19 | S117: 2.062568064e+18 | T117: 0 | U117: FALSE | V117: 0 | W117: 1.23771843e-15 | X117: 1.23771843e-15 | Y117: 6.527522009e+14 | Z117: 0 | AA117: FALSE | AB117: 0 | AC117: 3.568677237e-12 | AD117: 3.568677237e-12 | AE117: 2.262452919e+11 | AF117: 0 | AG117: FALSE | AH117: 0 | AI117: 1.128143776e-08 | AJ117: 1.128143776e-08 | AK117: 71568574.86 | AL117: 0 | AM117: FALSE | AN117: 0 | AO117: 3.567503861e-05 | AP117: 3.567503861e-05 | AQ117: 22631.97055 | AR117: 0 | AS117: FALSE | AT117: 0 | AU117: 0.1128143776 | AV117: 0.1128143776
B118: 6 | C118: 9 | D118: 1558.143595 | F118: 109 | G118: 4 | H118: 10 | I118: 1701.853999 | J118: 1 | K118: 0.3470599846 | L118: 0.3470599846 | M118: 2.728482765e+21 | N118: 0 | O118: FALSE | P118: 0 | Q118: 1.363560415e-19 | R118: 1.363560415e-19 | S118: 8.610221983e+17 | T118: 0 | U118: FALSE | V118: 0 | W118: 4.423215143e-16 | X118: 4.423215143e-16 | Y118: 2.724924063e+14 | Z118: 0 | AA118: FALSE | AB118: 0 | AC118: 1.275332646e-12 | AD118: 1.275332646e-12 | AE118: 9.444644371e+10 | AF118: 0 | AG118: FALSE | AH118: 0 | AI118: 4.031629905e-09 | AJ118: 4.031629905e-09 | AK118: 29876411.22 | AL118: 0 | AM118: FALSE | AN118: 0 | AO118: 1.274913318e-05 | AP118: 1.274913318e-05 | AQ118: 9447.750778 | AR118: 0 | AS118: FALSE | AT118: 0 | AU118: 0.04031629905 | AV118: 0.04031629905
B119: 6 | C119: 10 | D119: 1857.79311 | F119: 110 | G119: 13 | H119: 5 | I119: 1711.961164 | J119: 1 | K119: 0.263337264 | L119: 0.263337264 | M119: 2.217830948e+21 | N119: 0 | O119: FALSE | P119: 0 | Q119: 9.657900168e-20 | R119: 9.657900168e-20 | S119: 6.998767604e+17 | T119: 0 | U119: FALSE | V119: 0 | W119: 3.132898976e-16 | X119: 3.132898976e-16 | Y119: 221493827885459 | Z119: 0 | AA119: FALSE | AB119: 0 | AC119: 9.032995705e-13 | AD119: 9.032995705e-13 | AE119: 7.677022868e+10 | AF119: 0 | AG119: FALSE | AH119: 0 | AI119: 2.855544844e-09 | AJ119: 2.855544844e-09 | AK119: 24284862.74 | AL119: 0 | AM119: FALSE | AN119: 0 | AO119: 9.030025669e-06 | AP119: 9.030025669e-06 | AQ119: 7679.547892 | AR119: 0 | AS119: FALSE | AT119: 0 | AU119: 0.02855544844 | AV119: 0.02855544844
B120: 6 | C120: 11 | D120: 2188.984679 | F120: 111 | G120: 11 | H120: 7 | I120: 1716.211948 | J120: 1 | K120: 0.09826556629 | L120: 0.09826556629 | M120: 8.518039294e+20 | N120: 0 | O120: FALSE | P120: 0 | Q120: 3.501463445e-20 | R120: 3.501463445e-20 | S120: 2.688021714e+17 | T120: 0 | U120: FALSE | V120: 0 | W120: 1.135829844e-16 | X120: 1.135829844e-16 | Y120: 8.506929399e+13 | Z120: 0 | AA120: FALSE | AB120: 0 | AC120: 3.274904866e-13 | AD120: 3.274904866e-13 | AE120: 2.948519702e+10 | AF120: 0 | AG120: FALSE | AH120: 0 | AI120: 1.035275341e-09 | AJ120: 1.035275341e-09 | AK120: 9327104.721 | AL120: 0 | AM120: FALSE | AN120: 0 | AO120: 3.273828082e-06 | AP120: 3.273828082e-06 | AQ120: 2949.489489 | AR120: 0 | AS120: FALSE | AT120: 0 | AU120: 0.01035275341 | AV120: 0.01035275341
B121: 6 | C121: 12 | D121: 2551.718302 | F121: 112 | G121: 15 | H121: 1 | I121: 1770.086023 | J121: 1 | K121: 0.708437168 | L121: 0.708437168 | M121: 8.796516273e+21 | N121: 0 | O121: FALSE | P121: 0 | Q121: 1.762294474e-19 | R121: 1.762294474e-19 | S121: 2.775900173e+18 | T121: 0 | U121: FALSE | V121: 0 | W121: 5.716657302e-16 | X121: 5.716657302e-16 | Y121: 878504316649692 | Z121: 0 | AA121: FALSE | AB121: 0 | AC121: 1.648267029e-12 | AD121: 1.648267029e-12 | AE121: 3.044914521e+11 | AF121: 0 | AG121: FALSE | AH121: 0 | AI121: 5.210564213e-09 | AJ121: 5.210564213e-09 | AK121: 96320321.65 | AL121: 0 | AM121: FALSE | AN121: 0 | AO121: 1.647725081e-05 | AP121: 1.647725081e-05 | AQ121: 30459.16014 | AR121: 0 | AS121: FALSE | AT121: 0 | AU121: 0.05210564213 | AV121: 0.05210564213
B122: 6 | C122: 13 | D122: 2945.99398 | F122: 113 | G122: 5 | H122: 10 | I122: 1772.026599 | J122: 1 | K122: 0.2309909275 | L122: 0.2309909275 | M122: 2.904939166e+21 | N122: 0 | O122: FALSE | P122: 0 | Q122: 5.6733466e-20 | R122: 5.6733466e-20 | S122: 9.167062144e+17 | T122: 0 | U122: FALSE | V122: 0 | W122: 1.84036089e-16 | X122: 1.84036089e-16 | Y122: 2.901150316e+14 | Z122: 0 | AA122: FALSE | AB122: 0 | AC122: 5.306258563e-13 | AD122: 5.306258563e-13 | AE122: 1.005544829e+11 | AF122: 0 | AG122: FALSE | AH122: 0 | AI122: 1.677434572e-09 | AJ122: 1.677434572e-09 | AK122: 31808578.09 | AL122: 0 | AM122: FALSE | AN122: 0 | AO122: 5.304513873e-06 | AP122: 5.304513873e-06 | AQ122: 10058.75559 | AR122: 0 | AS122: FALSE | AT122: 0 | AU122: 0.01677434572 | AV122: 0.01677434572
B123: 6 | C123: 14 | D123: 3371.811712 | F123: 114 | G123: 8 | H123: 9 | I123: 1776.45835 | J123: 1 | K123: 0.2268954481 | L123: 0.2268954481 | M123: 2.937517882e+21 | N123: 0 | O123: FALSE | P123: 0 | Q123: 5.41324347e-20 | R123: 5.41324347e-20 | S123: 9.26987019e+17 | T123: 0 | U123: FALSE | V123: 0 | W123: 1.75598677e-16 | X123: 1.75598677e-16 | Y123: 2.933686541e+14 | Z123: 0 | AA123: FALSE | AB123: 0 | AC123: 5.062985138e-13 | AD123: 5.062985138e-13 | AE123: 1.016821953e+11 | AF123: 0 | AG123: FALSE | AH123: 0 | AI123: 1.600530054e-09 | AJ123: 1.600530054e-09 | AK123: 32165309.37 | AL123: 0 | AM123: FALSE | AN123: 0 | AO123: 5.061320436e-06 | AP123: 5.061320436e-06 | AQ123: 10171.56392 | AR123: 0 | AS123: FALSE | AT123: 0 | AU123: 0.01600530054 | AV123: 0.01600530054
B124: 6 | C124: 15 | D124: 3829.171498 | F124: 115 | G124: 14 | H124: 4 | I124: 1780.539719 | J124: 1 | K124: 0.09460359943 | L124: 0.09460359943 | M124: 1.257911355e+21 | N124: 0 | O124: FALSE | P124: 0 | Q124: 2.197615942e-20 | R124: 2.197615942e-20 | S124: 3.969567315e+17 | T124: 0 | U124: FALSE | V124: 0 | W124: 7.128784325e-17 | X124: 7.128784325e-17 | Y124: 1.256270688e+14 | Z124: 0 | AA124: FALSE | AB124: 0 | AC124: 2.05542147e-13 | AD124: 2.05542147e-13 | AE124: 4.354260746e+10 | AF124: 0 | AG124: FALSE | AH124: 0 | AI124: 6.497676269e-10 | AJ124: 6.497676269e-10 | AK124: 13773910.33 | AL124: 0 | AM124: FALSE | AN124: 0 | AO124: 2.054745651e-06 | AP124: 2.054745651e-06 | AQ124: 4355.692892 | AR124: 0 | AS124: FALSE | AT124: 0 | AU124: 0.006497676269 | AV124: 0.006497676269
B125: 6 | C125: 16 | D125: 4318.073338 | F125: 116 | G125: 10 | H125: 8 | I125: 1789.041289 | J125: 1 | K125: 0.5113014145 | L125: 0.5113014145 | M125: 7.185741603e+21 | N125: 0 | O125: FALSE | P125: 0 | Q125: 1.123747932e-19 | R125: 1.123747932e-19 | S125: 2.267591026e+18 | T125: 0 | U125: FALSE | V125: 0 | W125: 3.645294198e-16 | X125: 3.645294198e-16 | Y125: 7.176369395e+14 | Z125: 0 | AA125: FALSE | AB125: 0 | AC125: 1.051036982e-12 | AD125: 1.051036982e-12 | AE125: 2.487344793e+11 | AF125: 0 | AG125: FALSE | AH125: 0 | AI125: 3.322577949e-09 | AJ125: 3.322577949e-09 | AK125: 78682619.46 | AL125: 0 | AM125: FALSE | AN125: 0 | AO125: 1.050691402e-05 | AP125: 1.050691402e-05 | AQ125: 24881.62898 | AR125: 0 | AS125: FALSE | AT125: 0 | AU125: 0.03322577949 | AV125: 0.03322577949
B126: 6 | C126: 17 | D126: 4838.517233 | F126: 117 | G126: 15 | H126: 2 | I126: 1817.399105 | J126: 1 | K126: 0.2945803269 | L126: 0.2945803269 | M126: 4.970595323e+21 | N126: 0 | O126: FALSE | P126: 0 | Q126: 5.392443283e-20 | R126: 5.392443283e-20 | S126: 1.568561461e+18 | T126: 0 | U126: FALSE | V126: 0 | W126: 1.749239456e-16 | X126: 1.749239456e-16 | Y126: 496411228275847 | Z126: 0 | AA126: FALSE | AB126: 0 | AC126: 5.043530806e-13 | AD126: 5.043530806e-13 | AE126: 1.720571805e+11 | AF126: 0 | AG126: FALSE | AH126: 0 | AI126: 1.594380077e-09 | AJ126: 1.594380077e-09 | AK126: 54427153.37 | AL126: 0 | AM126: FALSE | AN126: 0 | AO126: 5.0418725e-06 | AP126: 5.0418725e-06 | AQ126: 17211.37712 | AR126: 0 | AS126: FALSE | AT126: 0 | AU126: 0.01594380077 | AV126: 0.01594380077
B127: 6 | C127: 18 | D127: 5390.503181 | F127: 118 | G127: 6 | H127: 10 | I127: 1857.79311 | J127: 1 | K127: 0.7056106589 | L127: 0.7056106589 | M127: 1.537343121e+22 | N127: 0 | O127: FALSE | P127: 0 | Q127: 1.000336164e-19 | R127: 1.000336164e-19 | S127: 4.851364906e+18 | T127: 0 | U127: FALSE | V127: 0 | W127: 3.244962247e-16 | X127: 3.244962247e-16 | Y127: 1.535337997e+15 | Z127: 0 | AA127: FALSE | AB127: 0 | AC127: 9.356104448e-13 | AD127: 9.356104448e-13 | AE127: 5.321513934e+11 | AF127: 0 | AG127: FALSE | AH127: 0 | AI127: 2.957687205e-09 | AJ127: 2.957687205e-09 | AK127: 168336395.1 | AL127: 0 | AM127: FALSE | AN127: 0 | AO127: 9.353028175e-06 | AP127: 9.353028175e-06 | AQ127: 53232.64216 | AR127: 0 | AS127: FALSE | AT127: 0 | AU127: 0.02957687205 | AV127: 0.02957687205
B128: 6 | C128: 19 | D128: 5974.031184 | F128: 119 | G128: 13 | H128: 6 | I128: 1885.442462 | J128: 1 | K128: 0.5008803241 | L128: 0.5008803241 | M128: 1.295794457e+22 | N128: 0 | O128: FALSE | P128: 0 | Q128: 5.980236221e-20 | R128: 5.980236221e-20 | S128: 4.08911431e+18 | T128: 0 | U128: FALSE | V128: 0 | W128: 1.939911948e-16 | X128: 1.939911948e-16 | Y128: 1.29410438e+15 | Z128: 0 | AA128: FALSE | AB128: 0 | AC128: 5.593291208e-13 | AD128: 5.593291208e-13 | AE128: 4.485393121e+11 | AF128: 0 | AG128: FALSE | AH128: 0 | AI128: 1.76817242e-09 | AJ128: 1.76817242e-09 | AK128: 141887236.9 | AL128: 0 | AM128: FALSE | AN128: 0 | AO128: 5.591452142e-06 | AP128: 5.591452142e-06 | AQ128: 44868.68396 | AR128: 0 | AS128: FALSE | AT128: 0 | AU128: 0.0176817242 | AV128: 0.0176817242
B129: 6 | C129: 20 | D129: 6589.101241 | F129: 120 | G129: 12 | H129: 7 | I129: 1895.541926 | J129: 1 | K129: 0.09877940706 | L129: 0.09877940706 | M129: 2.719217261e+21 | N129: 0 | O129: FALSE | P129: 0 | Q129: 1.108346195e-20 | R129: 1.108346195e-20 | S129: 8.580983007e+17 | T129: 0 | U129: FALSE | V129: 0 | W129: 3.595332938e-17 | X129: 3.595332938e-17 | Y129: 2.715670645e+14 | Z129: 0 | AA129: FALSE | AB129: 0 | AC129: 1.036631798e-13 | AD129: 1.036631798e-13 | AE129: 9.412571827e+10 | AF129: 0 | AG129: FALSE | AH129: 0 | AI129: 3.277039737e-10 | AJ129: 3.277039737e-10 | AK129: 29774955.57 | AL129: 0 | AM129: FALSE | AN129: 0 | AO129: 1.036290955e-06 | AP129: 1.036290955e-06 | AQ129: 9415.667685 | AR129: 0 | AS129: FALSE | AT129: 0 | AU129: 0.003277039737 | AV129: 0.003277039737
B130: 7 | C130: 1 | D130: 397.8218485 | F130: 121 | G130: 15 | H130: 3 | I130: 1896.25424 | J130: 1 | K130: 0.5859456149 | L130: 0.5859456149 | M130: 1.620063143e+22 | N130: 0 | O130: FALSE | P130: 0 | Q130: 6.545897315e-20 | R130: 6.545897315e-20 | S130: 5.112402933e+18 | T130: 0 | U130: FALSE | V130: 0 | W130: 2.123405154e-16 | X130: 2.123405154e-16 | Y130: 1.61795013e+15 | Z130: 0 | AA130: FALSE | AB130: 0 | AC130: 6.122351784e-13 | AD130: 6.122351784e-13 | AE130: 5.607849331e+11 | AF130: 0 | AG130: FALSE | AH130: 0 | AI130: 1.935421055e-09 | AJ130: 1.935421055e-09 | AK130: 177394093.5 | AL130: 0 | AM130: FALSE | AN130: 0 | AO130: 6.120338764e-06 | AP130: 6.120338764e-06 | AQ130: 56096.9379 | AR130: 0 | AS130: FALSE | AT130: 0 | AU130: 0.01935421055 | AV130: 0.01935421055
B131: 7 | C131: 2 | D131: 445.1349298 | F131: 122 | G131: 9 | H131: 9 | I131: 1909.006594 | J131: 1 | K131: 0.04383294623 | L131: 0.04383294623 | M131: 1.31014443e+21 | N131: 0 | O131: FALSE | P131: 0 | Q131: 4.529691904e-21 | R131: 4.529691904e-21 | S131: 4.134398253e+17 | T131: 0 | U131: FALSE | V131: 0 | W131: 1.469373972e-17 | X131: 1.469373972e-17 | Y131: 1.308435637e+14 | Z131: 0 | AA131: FALSE | AB131: 0 | AC131: 4.236602865e-14 | AD131: 4.236602865e-14 | AE131: 4.535065561e+10 | AF131: 0 | AG131: FALSE | AH131: 0 | AI131: 1.339290958e-10 | AJ131: 1.339290958e-10 | AK131: 14345853.41 | AL131: 0 | AM131: FALSE | AN131: 0 | AO131: 4.235209876e-07 | AP131: 4.235209876e-07 | AQ131: 4536.557175 | AR131: 0 | AS131: FALSE | AT131: 0 | AU131: 0.001339290958 | AV131: 0.001339290958
B132: 7 | C132: 3 | D132: 523.9900653 | F132: 123 | G132: 1 | H132: 11 | I132: 1916.091235 | J132: 1 | K132: 0.4219322569 | L132: 0.4219322569 | M132: 1.316636344e+22 | N132: 0 | O132: FALSE | P132: 0 | Q132: 4.176438893e-20 | R132: 4.176438893e-20 | S132: 4.154884663e+18 | T132: 0 | U132: FALSE | V132: 0 | W132: 1.354783224e-16 | X132: 1.354783224e-16 | Y132: 1.314919084e+15 | Z132: 0 | AA132: FALSE | AB132: 0 | AC132: 3.906206725e-13 | AD132: 3.906206725e-13 | AE132: 4.557537323e+11 | AF132: 0 | AG132: FALSE | AH132: 0 | AI132: 1.234844877e-09 | AJ132: 1.234844877e-09 | AK132: 144169387.3 | AL132: 0 | AM132: FALSE | AN132: 0 | AO132: 3.90492237e-06 | AP132: 3.90492237e-06 | AQ132: 45590.36327 | AR132: 0 | AS132: FALSE | AT132: 0 | AU132: 0.01234844877 | AV132: 0.01234844877
B133: 7 | C133: 4 | D133: 634.3872551 | F133: 124 | G133: 14 | H133: 5 | I133: 1922.478963 | J133: 1 | K133: 0.0636533345 | L133: 0.0636533345 | M133: 2.064665546e+21 | N133: 0 | O133: FALSE | P133: 0 | Q133: 6.061486207e-21 | R133: 6.061486207e-21 | S133: 6.515426411e+17 | T133: 0 | U133: FALSE | V133: 0 | W133: 1.966268402e-17 | X133: 1.966268402e-17 | Y133: 2.061972647e+14 | Z133: 0 | AA133: FALSE | AB133: 0 | AC133: 5.669283998e-14 | AD133: 5.669283998e-14 | AE133: 7.146840756e+10 | AF133: 0 | AG133: FALSE | AH133: 0 | AI133: 1.792195548e-10 | AJ133: 1.792195548e-10 | AK133: 22607728.25 | AL133: 0 | AM133: FALSE | AN133: 0 | AO133: 5.667419946e-07 | AP133: 5.667419946e-07 | AQ133: 7149.191399 | AR133: 0 | AS133: FALSE | AT133: 0 | AU133: 0.001792195548 | AV133: 0.001792195548
B134: 7 | C134: 5 | D134: 776.326499 | F134: 125 | G134: 2 | H134: 11 | I134: 1939.482102 | J134: 1 | K134: 0.6549352256 | L134: 0.6549352256 | M134: 2.353367103e+22 | N134: 0 | O134: FALSE | P134: 0 | Q134: 5.629807354e-20 | R134: 5.629807354e-20 | S134: 7.426476511e+18 | T134: 0 | U134: FALSE | V134: 0 | W134: 1.826237317e-16 | X134: 1.826237317e-16 | Y134: 2350297656776599 | Z134: 0 | AA134: FALSE | AB134: 0 | AC134: 5.265536479e-13 | AD134: 5.265536479e-13 | AE134: 8.146181332e+11 | AF134: 0 | AG134: FALSE | AH134: 0 | AI134: 1.664561352e-09 | AJ134: 1.664561352e-09 | AK134: 257689600.4 | AL134: 0 | AM134: FALSE | AN134: 0 | AO134: 5.263805178e-06 | AP134: 5.263805178e-06 | AQ134: 81488.60665 | AR134: 0 | AS134: FALSE | AT134: 0 | AU134: 0.01664561352 | AV134: 0.01664561352
B135: 7 | C135: 6 | D135: 949.8077972 | F135: 126 | G135: 11 | H135: 8 | I135: 1952.777355 | J135: 1 | K135: 0.934738731 | L135: 0.934738731 | M135: 3.636449786e+22 | N135: 0 | O135: FALSE | P135: 0 | Q135: 7.421460741e-20 | R135: 7.421460741e-20 | S135: 1.147547652e+19 | T135: 0 | U135: FALSE | V135: 0 | W135: 2.407426702e-16 | X135: 2.407426702e-16 | Y135: 3.631706843e+15 | Z135: 0 | AA135: FALSE | AB135: 0 | AC135: 6.941262783e-13 | AD135: 6.941262783e-13 | AE135: 1.258757264e+12 | AF135: 0 | AG135: FALSE | AH135: 0 | AI135: 2.194298304e-09 | AJ135: 2.194298304e-09 | AK135: 398184920.3 | AL135: 0 | AM135: FALSE | AN135: 0 | AO135: 6.938980506e-06 | AP135: 6.938980506e-06 | AQ135: 125917.1278 | AR135: 0 | AS135: FALSE | AT135: 0 | AU135: 0.02194298304 | AV135: 0.02194298304
B136: 7 | C136: 7 | D136: 1154.83115 | F136: 127 | G136: 7 | H136: 10 | I136: 1959.153532 | J136: 1 | K136: 0.8642779658 | L136: 0.8642779658 | M136: 3.492217345e+22 | N136: 0 | O136: FALSE | P136: 0 | Q136: 6.606814761e-20 | R136: 6.606814761e-20 | S136: 1.10203249e+19 | T136: 0 | U136: FALSE | V136: 0 | W136: 2.143165992e-16 | X136: 2.143165992e-16 | Y136: 3487662521206637 | Z136: 0 | AA136: FALSE | AB136: 0 | AC136: 6.17932763e-13 | AD136: 6.17932763e-13 | AE136: 1.208831198e+12 | AF136: 0 | AG136: FALSE | AH136: 0 | AI136: 1.953432475e-09 | AJ136: 1.953432475e-09 | AK136: 382391719.1 | AL136: 0 | AM136: FALSE | AN136: 0 | AO136: 6.177295876e-06 | AP136: 6.177295876e-06 | AQ136: 120922.8791 | AR136: 0 | AS136: FALSE | AT136: 0 | AU136: 0.01953432475 | AV136: 0.01953432475
B137: 7 | C137: 8 | D137: 1391.396556 | F137: 128 | G137: 3 | H137: 11 | I137: 1978.46688 | J137: 1 | K137: 0.5946767904 | L137: 0.5946767904 | M137: 2.69316151e+22 | N137: 0 | O137: FALSE | P137: 0 | Q137: 4.055889289e-20 | R137: 4.055889289e-20 | S137: 8.49875936e+18 | T137: 0 | U137: FALSE | V137: 0 | W137: 1.315678479e-16 | X137: 1.315678479e-16 | Y137: 2.689648877e+15 | Z137: 0 | AA137: FALSE | AB137: 0 | AC137: 3.793457159e-13 | AD137: 3.793457159e-13 | AE137: 9.322379831e+11 | AF137: 0 | AG137: FALSE | AH137: 0 | AI137: 1.199202057e-09 | AJ137: 1.199202057e-09 | AK137: 294896496.3 | AL137: 0 | AM137: FALSE | AN137: 0 | AO137: 3.792209875e-06 | AP137: 3.792209875e-06 | AQ137: 93254.46024 | AR137: 0 | AS137: FALSE | AT137: 0 | AU137: 0.01199202057 | AV137: 0.01199202057
B138: 7 | C138: 9 | D138: =3.1416/2*SQRT($H$2/$I$2)*(B138^2/$C$2^2+C138^2/$D$2^2) -> 1659.504017 | F138: 129 | G138: 15 | H138: 4 | I138: 2006.65143 | J138: 1 | K138: =ABS(SIN(G138*3.1416*$J$2/$C$2)*SIN(H138*3.1416*$K$2/$D$2))*(1/F138^$M$2)+(1-1/F138^$M$2) -> 0.5382265648 | L138: 0.5382265648 | M138: 2.873237004e+22 | N138: 0 | O138: FALSE | P138: 0 | Q138: 3.114191539e-20 | R138: 3.114191539e-20 | S138: 9.067020225e+18 | T138: 0 | U138: =AND($I138>44.548,$I138<89.095) -> FALSE | V138: 0 | W138: 1.010203803e-16 | X138: =IF($I138>89.095,W138,0) -> 1.010203803e-16 | Y138: 2.869489503e+15 | Z138: 0 | AA138: FALSE | AB138: 0 | AC138: 2.912690989e-13 | AD138: 2.912690989e-13 | AE138: 9.945711238e+11 | AF138: 0 | AG138: FALSE | AH138: 0 | AI138: 9.20770917e-10 | AJ138: 9.20770917e-10 | AK138: 314614449.4 | AL138: 0 | AM138: FALSE | AN138: 0 | AO138: 2.911733301e-06 | AP138: 2.911733301e-06 | AQ138: 99489.82449 | AR138: 0 | AS138: FALSE | AT138: 0 | AU138: 0.00920770917 | AV138: 0.00920770917
B139: 7 | C139: 10 | D139: 1959.153532 | F139: 130 | G139: 16 | H139: 1 | I139: 2011.791645 | J139: =IF(ABS(I139-I138)>0.0001,1,$L$2) -> 1 | K139: 0.9751349168 | L139: =$J139*$K139 -> 0.9751349168 | M139: =10^(LOG10($I139/22.27)/LOG10(2)*70/20)*$L139 -> 5.362768621e+22 | N139: =IF($I139<22.27,M139,0) -> 0 | O139: =AND($I139>22.27,$I139<44.45) -> FALSE | P139: =IF($O139=TRUE,$L139,0) -> 0 | Q139: =10^(LOG10(44.45/$I139)/LOG10(2)*70/20)*$L139 -> 5.476799837e-20 | R139: =IF($I139>44.45,Q139,0) -> 5.476799837e-20 | S139: =10^(LOG10($I139/44.548)/LOG10(2)*70/20)*$L139 -> 1.692318855e+19 | T139: =IF($I139<44.528,S139,0) -> 0 | U139: FALSE | V139: =IF($U139=TRUE,$L139,0) -> 0 | W139: =10^(LOG10(89.095/$I139)/LOG10(2)*70/20)*$L139 -> 1.776603641e-16 | X139: 1.776603641e-16 | Y139: =10^(LOG10($I139/89.09)/LOG10(2)*70/20)*$L139 -> 5355774077608189 | Z139: =IF($I139<89.09,Y139,0) -> 0 | AA139: =AND($I139>89.09,$I139<176.78) -> FALSE | AB139: =IF($AA139=TRUE,$L139,0) -> 0 | AC139: =10^(LOG10(176.78/$I139)/LOG10(2)*70/20)*$L139 -> 5.122429156e-13 | AD139: =IF($I139>176.78,AC139,0) -> 5.122429156e-13 | AE139: =10^(LOG10($I139/176.78)/LOG10(2)*70/20)*$L139 -> 1.85632261e+12 | AF139: =IF($I139<176.78,AE139,0) -> 0 | AG139: =AND($I139>176.78,$I139<353.55) -> FALSE | AH139: =IF($AG139=TRUE,$L139,0) -> 0 | AI139: =10^(LOG10(353.55/$I139)/LOG10(2)*70/20)*$L139 -> 1.619321723e-09 | AJ139: =IF($I139>353.55,AI139,0) -> 1.619321723e-09 | AK139: =10^(LOG10($I139/353.55)/LOG10(2)*70/20)*$L139 -> 587213827 | AL139: =IF($I139<353.55,AK139,0) -> 0 | AM139: =AND($I139>353.55,$I139<707.1) -> FALSE | AN139: =IF($AM139=TRUE,$L139,0) -> 0 | AO139: =10^(LOG10(707.1/$I139)/LOG10(2)*70/20)*$L139 -> 5.120744908e-06 | AP139: =IF($I139>707.1,AO139,0) -> 5.120744908e-06 | AQ139: =10^(LOG10($I139/707.1)/LOG10(2)*70/20)*$L139 -> 185693.3167 | AR139: =IF($I139<707.1,AQ139,0) -> 0 | AS139: =AND($I139>707.1,$I139<1414.2) -> FALSE | AT139: =IF($AS139=TRUE,$L139,0) -> 0 | AU139: =10^(LOG10(1414.2/$I139)/LOG10(2)*70/20)*$L139 -> 0.01619321723 | AV139: =IF($I139>1414.2,AU139,0) -> 0.01619321723
B140: 7 | C140: 11 | D140: 2290.345101 | F140: 131 | G140: 4 | H140: 11 | I140: 2033.045568 | J140: 1 | K140: 0.2681389682 | L140: 0.2681389682 | M140: 1.666288036e+22 | N140: 0 | O140: FALSE | P140: 0 | Q140: 1.332773365e-20 | R140: 1.332773365e-20 | S140: 5.258273963e+18 | T140: 0 | U140: FALSE | V140: 0 | W140: 4.323345901e-17 | X140: 4.323345901e-17 | Y140: 1.664114733e+15 | Z140: 0 | AA140: FALSE | AB140: 0 | AC140: 1.24653764e-13 | AD140: 1.24653764e-13 | AE140: 5.76785682e+11 | AF140: 0 | AG140: FALSE | AH140: 0 | AI140: 3.940602041e-10 | AJ140: 3.940602041e-10 | AK140: 182455638.9 | AL140: 0 | AM140: FALSE | AN140: 0 | AO140: 1.24612778e-06 | AP140: 1.24612778e-06 | AQ140: 57697.53907 | AR140: 0 | AS140: FALSE | AT140: 0 | AU140: 0.003940602041 | AV140: 0.003940602041
B141: 7 | C141: 12 | D141: 2653.078724 | F141: 132 | G141: 10 | H141: 9 | I141: 2057.148749 | J141: 1 | K141: 0.1588567048 | L141: 0.1588567048 | M141: 1.132160944e+22 | N141: 0 | O141: FALSE | P141: 0 | Q141: 6.88477011e-21 | R141: 6.88477011e-21 | S141: 3.572739097e+18 | T141: 0 | U141: FALSE | V141: 0 | W141: 2.233331143e-17 | X141: 2.233331143e-17 | Y141: 1130684290870610 | Z141: 0 | AA141: FALSE | AB141: 0 | AC141: 6.439298166e-14 | AD141: 6.439298166e-14 | AE141: 3.918975639e+11 | AF141: 0 | AG141: FALSE | AH141: 0 | AI141: 2.035615346e-10 | AJ141: 2.035615346e-10 | AK141: 123969652.2 | AL141: 0 | AM141: FALSE | AN141: 0 | AO141: 6.437180934e-07 | AP141: 6.437180934e-07 | AQ141: 39202.64617 | AR141: 0 | AS141: FALSE | AT141: 0 | AU141: 0.002035615346 | AV141: 0.002035615346
B142: 7 | C142: 13 | D142: 3047.354402 | F142: 133 | G142: 16 | H142: 2 | I142: 2059.104726 | J142: 1 | K142: 0.4054778258 | L142: 0.4054778258 | M142: 2.921921514e+22 | N142: 0 | O142: FALSE | P142: 0 | Q142: 1.738009657e-20 | R142: 1.738009657e-20 | S142: 9.220653023e+18 | T142: 0 | U142: FALSE | V142: 0 | W142: 5.63788047e-17 | X142: 5.63788047e-17 | Y142: 2918110514987848 | Z142: 0 | AA142: FALSE | AB142: 0 | AC142: 1.625553536e-13 | AD142: 1.625553536e-13 | AE142: 1.011423269e+12 | AF142: 0 | AG142: FALSE | AH142: 0 | AI142: 5.138761459e-10 | AJ142: 5.138761459e-10 | AK142: 319945318.5 | AL142: 0 | AM142: FALSE | AN142: 0 | AO142: 1.625019056e-06 | AP142: 1.625019056e-06 | AQ142: 101175.5933 | AR142: 0 | AS142: FALSE | AT142: 0 | AU142: 0.005138761459 | AV142: 0.005138761459
B143: 7 | C143: 14 | D143: 3473.172134 | F143: 134 | G143: 8 | H143: 10 | I143: 2076.107865 | J143: 1 | K143: 0.6359461319 | L143: 0.6359461319 | M143: 5.042506258e+22 | N143: 0 | O143: FALSE | P143: 0 | Q143: 2.477312122e-20 | R143: 2.477312122e-20 | S143: 1.59125426e+19 | T143: 0 | U143: FALSE | V143: 0 | W143: 8.036082868e-17 | X143: 8.036082868e-17 | Y143: 5035929425488276 | Z143: 0 | AA143: FALSE | AB143: 0 | AC143: 2.317020197e-13 | AD143: 2.317020197e-13 | AE143: 1.745463778e+12 | AF143: 0 | AG143: FALSE | AH143: 0 | AI143: 7.324652082e-10 | AJ143: 7.324652082e-10 | AK143: 552145655.8 | AL143: 0 | AM143: FALSE | AN143: 0 | AO143: 2.316258365e-06 | AP143: 2.316258365e-06 | AQ143: 174603.7873 | AR143: 0 | AS143: FALSE | AT143: 0 | AU143: 0.007324652082 | AV143: 0.007324652082
B144: 7 | C144: 15 | D144: 3930.53192 | F144: 135 | G144: 13 | H144: 7 | I144: 2090.465814 | J144: 1 | K144: 0.05506263317 | L144: 0.05506263317 | M144: 4.730246413e+21 | N144: 0 | O144: FALSE | P144: 0 | Q144: 1.979778942e-21 | R144: 1.979778942e-21 | S144: 1.492715005e+18 | T144: 0 | U144: FALSE | V144: 0 | W144: 6.422149029e-18 | X144: 6.422149029e-18 | Y144: 4.724076855e+14 | Z144: 0 | AA144: FALSE | AB144: 0 | AC144: 1.851679388e-14 | AD144: 1.851679388e-14 | AE144: 1.637375018e+11 | AF144: 0 | AG144: FALSE | AH144: 0 | AI144: 5.853599076e-11 | AJ144: 5.853599076e-11 | AK144: 51795374.65 | AL144: 0 | AM144: FALSE | AN144: 0 | AO144: 1.851070559e-07 | AP144: 1.851070559e-07 | AQ144: 16379.13562 | AR144: 0 | AS144: FALSE | AT144: 0 | AU144: 0.0005853599076 | AV144: 0.0005853599076
B145: 7 | C145: 16 | D145: 4419.43376 | F145: 136 | G145: 14 | H145: 6 | I145: 2095.960261 | J145: 1 | K145: 0.1210717478 | L145: 0.1210717478 | M145: 1.072318497e+22 | N145: 0 | O145: FALSE | P145: 0 | Q145: 4.222292733e-21 | R145: 4.222292733e-21 | S145: 3.383895407e+18 | T145: 0 | U145: FALSE | V145: 0 | W145: 1.369657622e-17 | X145: 1.369657622e-17 | Y145: 1.070919895e+15 | Z145: 0 | AA145: FALSE | AB145: 0 | AC145: 3.94909364e-14 | AD145: 3.94909364e-14 | AE145: 3.711830981e+11 | AF145: 0 | AG145: FALSE | AH145: 0 | AI145: 1.248402452e-10 | AJ145: 1.248402452e-10 | AK145: 117417008.4 | AL145: 0 | AM145: FALSE | AN145: 0 | AO145: 3.947795183e-07 | AP145: 3.947795183e-07 | AQ145: 37130.51827 | AR145: 0 | AS145: FALSE | AT145: 0 | AU145: 0.001248402452 | AV145: 0.001248402452
B146: 7 | C146: 17 | D146: 4939.877655 | F146: 137 | G146: 5 | H146: 11 | I146: 2103.218168 | J146: 1 | K146: 0.1784638728 | L146: 0.1784638728 | M146: 1.645456128e+22 | N146: 0 | O146: FALSE | P146: 0 | Q146: 5.978618375e-21 | R146: 5.978618375e-21 | S146: 5.1925351e+18 | T146: 0 | U146: FALSE | V146: 0 | W146: 1.93938714e-17 | X146: 1.93938714e-17 | Y146: 1.643309995e+15 | Z146: 0 | AA146: FALSE | AB146: 0 | AC146: 5.591778043e-14 | AD146: 5.591778043e-14 | AE146: 5.69574716e+11 | AF146: 0 | AG146: FALSE | AH146: 0 | AI146: 1.767694072e-10 | AJ146: 1.767694072e-10 | AK146: 180174581.2 | AL146: 0 | AM146: FALSE | AN146: 0 | AO146: 5.589939475e-07 | AP146: 5.589939475e-07 | AQ146: 56976.20529 | AR146: 0 | AS146: FALSE | AT146: 0 | AU146: 0.001767694072 | AV146: 0.001767694072
B147: 7 | C147: 18 | D147: 5491.863603 | F147: 138 | G147: 12 | H147: 8 | I147: 2132.107332 | J147: 1 | K147: 0.9396265761 | L147: 0.9396265761 | M147: 1.015258737e+23 | N147: 0 | O147: FALSE | P147: 0 | Q147: 2.686088771e-20 | R147: 2.686088771e-20 | S147: 3.20383299e+19 | T147: 0 | U147: FALSE | V147: 0 | W147: 8.713327547e-17 | X147: 8.713327547e-17 | Y147: 1.013934557e+16 | Z147: 0 | AA147: FALSE | AB147: 0 | AC147: 2.512288169e-13 | AD147: 2.512288169e-13 | AE147: 3.514318594e+12 | AF147: 0 | AG147: FALSE | AH147: 0 | AI147: 7.941940595e-10 | AJ147: 7.941940595e-10 | AK147: 1111690640 | AL147: 0 | AM147: FALSE | AN147: 0 | AO147: 2.511462132e-06 | AP147: 2.511462132e-06 | AQ147: 351547.4477 | AR147: 0 | AS147: FALSE | AT147: 0 | AU147: 0.007941940595 | AV147: 0.007941940595
B148: 7 | C148: 19 | D148: 6075.391606 | F148: 139 | G148: 16 | H148: 3 | I148: 2137.959862 | J148: 1 | K148: 0.8065302814 | L148: 0.8065302814 | M148: 8.996707002e+22 | N148: 0 | O148: FALSE | P148: 0 | Q148: 2.233285734e-20 | R148: 2.233285734e-20 | S148: 2.839073987e+19 | T148: 0 | U148: FALSE | V148: 0 | W148: 7.244492558e-17 | X148: 7.244492558e-17 | Y148: 8984972790909155 | Z148: 0 | AA148: FALSE | AB148: 0 | AC148: 2.088783286e-13 | AD148: 2.088783286e-13 | AE148: 3.114210551e+12 | AF148: 0 | AG148: FALSE | AH148: 0 | AI148: 6.603140904e-10 | AJ148: 6.603140904e-10 | AK148: 985123752.8 | AL148: 0 | AM148: FALSE | AN148: 0 | AO148: 2.088096497e-06 | AP148: 2.088096497e-06 | AQ148: 311523.4836 | AR148: 0 | AS148: FALSE | AT148: 0 | AU148: 0.006603140904 | AV148: 0.006603140904
B149: 7 | C149: 20 | D149: 6690.461663 | F149: 140 | G149: 15 | H149: 5 | I149: 2148.590674 | J149: 1 | K149: 0.3621417766 | L149: 0.3621417766 | M149: 4.27944212e+22 | N149: 0 | O149: FALSE | P149: 0 | Q149: 9.465784477e-21 | R149: 9.465784477e-21 | S149: 1.350455539e+19 | T149: 0 | U149: FALSE | V149: 0 | W149: 3.070579109e-17 | X149: 3.070579109e-17 | Y149: 4.273860536e+15 | Z149: 0 | AA149: FALSE | AB149: 0 | AC149: 8.853310662e-14 | AD149: 8.853310662e-14 | AE149: 1.481329091e+12 | AF149: 0 | AG149: FALSE | AH149: 0 | AI149: 2.798742127e-10 | AJ149: 2.798742127e-10 | AK149: 468591461.3 | AL149: 0 | AM149: FALSE | AN149: 0 | AO149: 8.850399706e-07 | AP149: 8.850399706e-07 | AQ149: 148181.631 | AR149: 0 | AS149: FALSE | AT149: 0 | AU149: 0.002798742127 | AV149: 0.002798742127
B150: 8 | C150: 1 | D150: 514.7761816 | F150: 141 | G150: 6 | H150: 11 | I150: 2188.984679 | J150: 1 | K150: 0.5451556573 | L150: 0.5451556573 | M150: 7.999783496e+22 | N150: 0 | O150: FALSE | P150: 0 | Q150: 1.147491101e-20 | R150: 1.147491101e-20 | S150: 2.524476702e+19 | T150: 0 | U150: FALSE | V150: 0 | W150: 3.722313995e-17 | X150: 3.722313995e-17 | Y150: 7989349551233738 | Z150: 0 | AA150: FALSE | AB150: 0 | AC150: 1.073243874e-13 | AD150: 1.073243874e-13 | AE150: 2.769125433e+12 | AF150: 0 | AG150: FALSE | AH150: 0 | AI150: 3.392779219e-10 | AJ150: 3.392779219e-10 | AK150: 875962364.6 | AL150: 0 | AM150: FALSE | AN150: 0 | AO150: 1.072890993e-06 | AP150: 1.072890993e-06 | AQ150: 277003.6217 | AR150: 0 | AS150: FALSE | AT150: 0 | AU150: 0.003392779219 | AV150: 0.003392779219
B151: 8 | C151: 2 | D151: 562.0892629 | F151: 142 | G151: 9 | H151: 10 | I151: 2208.656109 | J151: 1 | K151: 0.1228556714 | L151: 0.1228556714 | M151: 2.000447892e+22 | N151: 0 | O151: FALSE | P151: 0 | Q151: 2.330503123e-21 | R151: 2.330503123e-21 | S151: 6.312775962e+18 | T151: 0 | U151: FALSE | V151: 0 | W151: 7.5598533e-18 | X151: 7.5598533e-18 | Y151: 1.99783875e+15 | Z151: 0 | AA151: FALSE | AB151: 0 | AC151: 2.179710323e-14 | AD151: 2.179710323e-14 | AE151: 6.924551316e+11 | AF151: 0 | AG151: FALSE | AH151: 0 | AI151: 6.890582902e-11 | AJ151: 6.890582902e-11 | AK151: 219045561.2 | AL151: 0 | AM151: FALSE | AN151: 0 | AO151: 2.178993638e-07 | AP151: 2.178993638e-07 | AQ151: 69268.28847 | AR151: 0 | AS151: FALSE | AT151: 0 | AU151: 0.0006890582902 | AV151: 0.0006890582902
B152: 8 | C152: 3 | D152: 640.9443984 | F152: 143 | G152: 11 | H152: 9 | I152: 2220.884816 | J152: 1 | K152: 0.2904148325 | L152: 0.2904148325 | M152: 5.042326941e+22 | N152: 0 | O152: FALSE | P152: 0 | Q152: 5.166460324e-21 | R152: 5.166460324e-21 | S152: 1.591197673e+19 | T152: 0 | U152: FALSE | V152: 0 | W152: 1.675933482e-17 | X152: 1.675933482e-17 | Y152: 5035750342386071 | Z152: 0 | AA152: FALSE | AB152: 0 | AC152: 4.832169841e-14 | AD152: 4.832169841e-14 | AE152: 1.745401707e+12 | AF152: 0 | AG152: FALSE | AH152: 0 | AI152: 1.527563848e-10 | AJ152: 1.527563848e-10 | AK152: 552126020.9 | AL152: 0 | AM152: FALSE | AN152: 0 | AO152: 4.830581031e-07 | AP152: 4.830581031e-07 | AQ152: 174597.5782 | AR152: 0 | AS152: FALSE | AT152: 0 | AU152: 0.001527563848 | AV152: 0.001527563848
B153: 8 | C153: 4 | D153: 751.3415882 | F153: 144 | G153: 16 | H153: 4 | I153: 2248.357052 | J153: 1 | K153: 0.7408469519 | L153: 0.7408469519 | M153: 1.483948316e+23 | N153: 0 | O153: FALSE | P153: 0 | Q153: 1.142417204e-20 | R153: 1.142417204e-20 | S153: 4.682867921e+19 | T153: 0 | U153: FALSE | V153: 0 | W153: 3.705854923e-17 | X153: 3.705854923e-17 | Y153: 1.482012834e+16 | Z153: 0 | AA153: FALSE | AB153: 0 | AC153: 1.068498278e-13 | AD153: 1.068498278e-13 | AE153: 5.136687793e+12 | AF153: 0 | AG153: FALSE | AH153: 0 | AI153: 3.377777261e-10 | AJ153: 3.377777261e-10 | AK153: 1624897570 | AL153: 0 | AM153: FALSE | AN153: 0 | AO153: 1.068146957e-06 | AP153: 1.068146957e-06 | AQ153: 513837.7284 | AR153: 0 | AS153: FALSE | AT153: 0 | AU153: 0.003377777261 | AV153: 0.003377777261
B154: 8 | C154: 5 | D154: 893.2808321 | F154: 145 | G154: 17 | H154: 1 | I154: 2269.091178 | J154: 1 | K154: 0.8051949289 | L154: 0.8051949289 | M154: 1.79449923e+23 | N154: 0 | O154: FALSE | P154: 0 | Q154: 1.115951445e-20 | R154: 1.115951445e-20 | S154: 5.662867628e+19 | T154: 0 | U154: FALSE | V154: 0 | W154: 3.620003394e-17 | X154: 3.620003394e-17 | Y154: 1.792158704e+16 | Z154: 0 | AA154: FALSE | AB154: 0 | AC154: 1.043744958e-13 | AD154: 1.043744958e-13 | AE154: 6.211659929e+12 | AF154: 0 | AG154: FALSE | AH154: 0 | AI154: 3.299526129e-10 | AJ154: 3.299526129e-10 | AK154: 1964945414 | AL154: 0 | AM154: FALSE | AN154: 0 | AO154: 1.043401777e-06 | AP154: 1.043401777e-06 | AQ154: 621370.2986 | AR154: 0 | AS154: FALSE | AT154: 0 | AU154: 0.003299526129 | AV154: 0.003299526129
B155: 8 | C155: 6 | D155: 1066.76213 | F155: 146 | G155: 1 | H155: 12 | I155: 2278.824859 | J155: 1 | K155: 0.3706723947 | L155: 0.3706723947 | M155: 8.682536673e+22 | N155: 0 | O155: FALSE | P155: 0 | Q155: 4.88787819e-21 | R155: 4.88787819e-21 | S155: 2.739931844e+19 | T155: 0 | U155: FALSE | V155: 0 | W155: 1.58556501e-17 | X155: 1.58556501e-17 | Y155: 8671212227327103 | Z155: 0 | AA155: FALSE | AB155: 0 | AC155: 4.571613076e-14 | AD155: 4.571613076e-14 | AE155: 3.005460477e+12 | AF155: 0 | AG155: FALSE | AH155: 0 | AI155: 1.445195656e-10 | AJ155: 1.445195656e-10 | AK155: 950722648.7 | AL155: 0 | AM155: FALSE | AN155: 0 | AO155: 4.570109937e-07 | AP155: 4.570109937e-07 | AQ155: 300644.8993 | AR155: 0 | AS155: FALSE | AT155: 0 | AU155: 0.001445195656 | AV155: 0.001445195656
B156: 8 | C156: 7 | D156: 1271.785483 | F156: 147 | G156: 7 | H156: 11 | I156: 2290.345101 | J156: 1 | K156: 0.6677422125 | L156: 0.6677422125 | M156: 1.658546013e+23 | N156: 0 | O156: FALSE | P156: 0 | Q156: 8.303795635e-21 | R156: 8.303795635e-21 | S156: 5.233842605e+19 | T156: 0 | U156: FALSE | V156: 0 | W156: 2.693644828e-17 | X156: 2.693644828e-17 | Y156: 1.656382807e+16 | Z156: 0 | AA156: FALSE | AB156: 0 | AC156: 7.766507109e-14 | AD156: 7.766507109e-14 | AE156: 5.741057803e+12 | AF156: 0 | AG156: FALSE | AH156: 0 | AI156: 2.455177668e-10 | AJ156: 2.455177668e-10 | AK156: 1816079008 | AL156: 0 | AM156: FALSE | AN156: 0 | AO156: 7.763953492e-07 | AP156: 7.763953492e-07 | AQ156: 574294.6076 | AR156: 0 | AS156: FALSE | AT156: 0 | AU156: 0.002455177668 | AV156: 0.002455177668
B157: 8 | C157: 8 | D157: 1508.350889 | F157: 148 | G157: 14 | H157: 7 | I157: 2300.983614 | J157: 1 | K157: 0.01330962491 | L157: 0.01330962491 | M157: 3.488867777e+21 | N157: 0 | O157: FALSE | P157: 0 | Q157: 1.568316225e-22 | R157: 1.568316225e-22 | S157: 1.100975473e+18 | T157: 0 | U157: FALSE | V157: 0 | W157: 5.087416734e-19 | X157: 5.087416734e-19 | Y157: 3.484317322e+14 | Z157: 0 | AA157: FALSE | AB157: 0 | AC157: 1.466839942e-15 | AD157: 1.466839942e-15 | AE157: 1.207671745e+11 | AF157: 0 | AG157: FALSE | AH157: 0 | AI157: 4.637030029e-12 | AJ157: 4.637030029e-12 | AK157: 38202494.73 | AL157: 0 | AM157: FALSE | AN157: 0 | AO157: 1.466357647e-08 | AP157: 1.466357647e-08 | AQ157: 12080.68956 | AR157: 0 | AS157: FALSE | AT157: 0 | AU157: 4.637030029e-05 | AV157: 4.637030029e-05
B158: 8 | C158: 9 | D158: 1776.45835 | F158: 149 | G158: 2 | H158: 12 | I158: 2302.215725 | J158: 1 | K158: 0.5753682125 | L158: 0.5753682125 | M158: 1.517636151e+23 | N158: 0 | O158: FALSE | P158: 0 | Q158: 6.737683079e-21 | R158: 6.737683079e-21 | S158: 4.789175993e+19 | T158: 0 | U158: FALSE | V158: 0 | W158: 2.185617997e-17 | X158: 2.185617997e-17 | Y158: 1.515656731e+16 | Z158: 0 | AA158: FALSE | AB158: 0 | AC158: 6.301728249e-14 | AD158: 6.301728249e-14 | AE158: 5.253298251e+12 | AF158: 0 | AG158: FALSE | AH158: 0 | AI158: 1.992126223e-10 | AJ158: 1.992126223e-10 | AK158: 1661785163 | AL158: 0 | AM158: FALSE | AN158: 0 | AO158: 6.29965625e-07 | AP158: 6.29965625e-07 | AQ158: 525502.6096 | AR158: 0 | AS158: FALSE | AT158: 0 | AU158: 0.001992126223 | AV158: 0.001992126223
B159: 8 | C159: 10 | D159: 2076.107865 | F159: 150 | G159: 17 | H159: 2 | I159: 2316.404259 | J159: 1 | K159: 0.3348138636 | L159: 0.3348138636 | M159: 9.485262067e+22 | N159: 0 | O159: FALSE | P159: 0 | Q159: 3.650430159e-21 | R159: 3.650430159e-21 | S159: 2.993246394e+19 | T159: 0 | U159: FALSE | V159: 0 | W159: 1.184152736e-17 | X159: 1.184152736e-17 | Y159: 9472890644008626 | Z159: 0 | AA159: FALSE | AB159: 0 | AC159: 3.414232843e-14 | AD159: 3.414232843e-14 | AE159: 3.28332391e+12 | AF159: 0 | AG159: FALSE | AH159: 0 | AI159: 1.079320229e-10 | AJ159: 1.079320229e-10 | AK159: 1038619682 | AL159: 0 | AM159: FALSE | AN159: 0 | AO159: 3.413110248e-07 | AP159: 3.413110248e-07 | AQ159: 328440.3817 | AR159: 0 | AS159: FALSE | AT159: 0 | AU159: 0.001079320229 | AV159: 0.001079320229
B160: 8 | C160: 11 | D160: 2407.299434 | F160: 151 | G160: 15 | H160: 6 | I160: 2322.071972 | J160: 1 | K160: 0.6888113276 | L160: 0.6888113276 | M160: 2.007640288e+23 | N160: 0 | O160: FALSE | P160: 0 | Q160: 7.299635457e-21 | R160: 7.299635457e-21 | S160: 6.335472875e+19 | T160: 0 | U160: FALSE | V160: 0 | W160: 2.367908142e-17 | X160: 2.367908142e-17 | Y160: 2.005021767e+16 | Z160: 0 | AA160: FALSE | AB160: 0 | AC160: 6.827320078e-14 | AD160: 6.827320078e-14 | AE160: 6.949447801e+12 | AF160: 0 | AG160: FALSE | AH160: 0 | AI160: 2.158278304e-10 | AJ160: 2.158278304e-10 | AK160: 2198331161 | AL160: 0 | AM160: FALSE | AN160: 0 | AO160: 6.825075265e-07 | AP160: 6.825075265e-07 | AQ160: 695173.3521 | AR160: 0 | AS160: FALSE | AT160: 0 | AU160: 0.002158278304 | AV160: 0.002158278304
B161: 8 | C161: 12 | D161: 2770.033058 | F161: 152 | G161: 13 | H161: 8 | I161: 2327.031221 | J161: 1 | K161: 0.5237763115 | L161: 0.5237763115 | M161: 1.564962905e+23 | N161: 0 | O161: FALSE | P161: 0 | Q161: 5.414697153e-21 | R161: 5.414697153e-21 | S161: 4.938524144e+19 | T161: 0 | U161: FALSE | V161: 0 | W161: 1.756458326e-17 | X161: 1.756458326e-17 | Y161: 1.562921758e+16 | Z161: 0 | AA161: FALSE | AB161: 0 | AC161: 5.064344762e-14 | AD161: 5.064344762e-14 | AE161: 5.417119832e+12 | AF161: 0 | AG161: FALSE | AH161: 0 | AI161: 1.600959864e-10 | AJ161: 1.600959864e-10 | AK161: 1713607134 | AL161: 0 | AM161: FALSE | AN161: 0 | AO161: 5.062679613e-07 | AP161: 5.062679613e-07 | AQ161: 541890.1559 | AR161: 0 | AS161: FALSE | AT161: 0 | AU161: 0.001600959864 | AV161: 0.001600959864
B162: 8 | C162: 13 | D162: 3164.308735 | F162: 153 | G162: 3 | H162: 12 | I162: 2341.200503 | J162: 1 | K162: 0.5224304764 | L162: 0.5224304764 | M162: 1.675095001e+23 | N162: 0 | O162: FALSE | P162: 0 | Q162: 5.032735177e-21 | R162: 5.032735177e-21 | S162: 5.286065937e+19 | T162: 0 | U162: FALSE | V162: 0 | W162: 1.632554759e-17 | X162: 1.632554759e-17 | Y162: 1.672910211e+16 | Z162: 0 | AA162: FALSE | AB162: 0 | AC162: 4.707097242e-14 | AD162: 4.707097242e-14 | AE162: 5.798342134e+12 | AF162: 0 | AG162: FALSE | AH162: 0 | AI162: 1.488025424e-10 | AJ162: 1.488025424e-10 | AK162: 1834199862 | AL162: 0 | AM162: FALSE | AN162: 0 | AO162: 4.705549555e-07 | AP162: 4.705549555e-07 | AQ162: 580024.9247 | AR162: 0 | AS162: FALSE | AT162: 0 | AU162: 0.001488025424 | AV162: 0.001488025424
B163: 8 | C163: 14 | D163: 3590.126467 | F163: 154 | G163: 10 | H163: 10 | I163: 2356.798264 | J163: 1 | K163: 0.4452460716 | L163: 0.4452460716 | M163: 1.542198452e+23 | N163: 0 | O163: FALSE | P163: 0 | Q163: 3.970511363e-21 | R163: 3.970511363e-21 | S163: 4.866686784e+19 | T163: 0 | U163: FALSE | V163: 0 | W163: 1.287982974e-17 | X163: 1.287982974e-17 | Y163: 1.540186996e+16 | Z163: 0 | AA163: FALSE | AB163: 0 | AC163: 3.713603523e-14 | AD163: 3.713603523e-14 | AE163: 5.338320665e+12 | AF163: 0 | AG163: FALSE | AH163: 0 | AI163: 1.173958423e-10 | AJ163: 1.173958423e-10 | AK163: 1688680454 | AL163: 0 | AM163: FALSE | AN163: 0 | AO163: 3.712382496e-07 | AP163: 3.712382496e-07 | AQ163: 534007.6474 | AR163: 0 | AS163: FALSE | AT163: 0 | AU163: 0.001173958423 | AV163: 0.001173958423
B164: 8 | C164: 15 | D164: 4047.486253 | F164: 155 | G164: 16 | H164: 5 | I164: 2390.296296 | J164: 1 | K164: 0.4984734104 | L164: 0.4984734104 | M164: 2.034446747e+23 | N164: 0 | O164: FALSE | P164: 0 | Q164: 3.772455983e-21 | R164: 3.772455983e-21 | S164: 6.420065513e+19 | T164: 0 | U164: FALSE | V164: 0 | W164: 1.223736348e-17 | X164: 1.223736348e-17 | Y164: 2.031793262e+16 | Z164: 0 | AA164: FALSE | AB164: 0 | AC164: 3.528363112e-14 | AD164: 3.528363112e-14 | AE164: 7.042238369e+12 | AF164: 0 | AG164: FALSE | AH164: 0 | AI164: 1.115399522e-10 | AJ164: 1.115399522e-10 | AK164: 2227683766 | AL164: 0 | AM164: FALSE | AN164: 0 | AO164: 3.527202991e-07 | AP164: 3.527202991e-07 | AQ164: 704455.4608 | AR164: 0 | AS164: FALSE | AT164: 0 | AU164: 0.001115399522 | AV164: 0.001115399522
B165: 8 | C165: 16 | D165: 4536.388093 | F165: 156 | G165: 17 | H165: 3 | I165: 2395.259395 | J165: 1 | K165: 0.665973581 | L165: 0.665973581 | M165: 2.784420778e+23 | N165: 0 | O165: FALSE | P165: 0 | Q165: 4.920006196e-21 | R165: 4.920006196e-21 | S165: 8.786744523e+19 | T165: 0 | U165: FALSE | V165: 0 | W165: 1.595986923e-17 | X165: 1.595986923e-17 | Y165: 2.780789118e+16 | Z165: 0 | AA165: FALSE | AB165: 0 | AC165: 4.601662273e-14 | AD165: 4.601662273e-14 | AE165: 9.63827383e+12 | AF165: 0 | AG165: FALSE | AH165: 0 | AI165: 1.454694922e-10 | AJ165: 1.454694922e-10 | AK165: 3048892273 | AL165: 0 | AM165: FALSE | AN165: 0 | AO165: 4.600149253e-07 | AP165: 4.600149253e-07 | AQ165: 964144.3922 | AR165: 0 | AS165: FALSE | AT165: 0 | AU165: 0.001454694922 | AV165: 0.001454694922
B166: 8 | C166: 17 | D166: 5056.831988 | F166: 157 | G166: 4 | H166: 12 | I166: 2395.779192 | J166: 1 | K166: 0.235563202 | L166: 0.235563202 | M166: 9.873723836e+22 | N166: 0 | O166: FALSE | P166: 0 | Q166: 1.735882941e-21 | R166: 1.735882941e-21 | S166: 3.115832547e+19 | T166: 0 | U166: FALSE | V166: 0 | W166: 5.630981678e-18 | X166: 5.630981678e-18 | Y166: 9860845751373904 | Z166: 0 | AA166: FALSE | AB166: 0 | AC166: 1.623564427e-14 | AD166: 1.623564427e-14 | AE166: 3.41778997e+12 | AF166: 0 | AG166: FALSE | AH166: 0 | AI166: 5.132473413e-11 | AJ166: 5.132473413e-11 | AK166: 1081155569 | AL166: 0 | AM166: FALSE | AN166: 0 | AO166: 1.623030602e-07 | AP166: 1.623030602e-07 | AQ166: 341891.4104 | AR166: 0 | AS166: FALSE | AT166: 0 | AU166: 0.0005132473413 | AV166: 0.0005132473413
B167: 8 | C167: 18 | D167: 5608.817936 | F167: 158 | G167: 12 | H167: 9 | I167: 2400.214793 | J167: 1 | K167: 0.2919334415 | L167: 0.2919334415 | M167: 1.250251452e+23 | N167: 0 | O167: FALSE | P167: 0 | Q167: 2.105507728e-21 | R167: 2.105507728e-21 | S167: 3.945395103e+19 | T167: 0 | U167: FALSE | V167: 0 | W167: 6.829997089e-18 | X167: 6.829997089e-18 | Y167: 1.248620776e+16 | Z167: 0 | AA167: FALSE | AB167: 0 | AC167: 1.969273023e-14 | AD167: 1.969273023e-14 | AE167: 4.32774599e+12 | AF167: 0 | AG167: FALSE | AH167: 0 | AI167: 6.225340531e-11 | AJ167: 6.225340531e-11 | AK167: 1369003573 | AL167: 0 | AM167: FALSE | AN167: 0 | AO167: 1.968625529e-07 | AP167: 1.968625529e-07 | AQ167: 432916.9414 | AR167: 0 | AS167: FALSE | AT167: 0 | AU167: 0.0006225340531 | AV167: 0.0006225340531
B168: 8 | C168: 19 | D168: 6192.345939 | F168: 159 | G168: 8 | H168: 11 | I168: 2407.299434 | J168: 1 | K168: 0.4913327587 | L168: 0.4913327587 | M168: 2.177567095e+23 | N168: 0 | O168: FALSE | P168: 0 | Q168: 3.424257452e-21 | R168: 3.424257452e-21 | S168: 6.871707718e+19 | T168: 0 | U168: FALSE | V168: 0 | W168: 1.11078521e-17 | X168: 1.11078521e-17 | Y168: 2.174726942e+16 | Z168: 0 | AA168: FALSE | AB168: 0 | AC168: 3.202694408e-14 | AD168: 3.202694408e-14 | AE168: 7.537649523e+12 | AF168: 0 | AG168: FALSE | AH168: 0 | AI168: 1.012447897e-10 | AJ168: 1.012447897e-10 | AK168: 2384398056 | AL168: 0 | AM168: FALSE | AN168: 0 | AO168: 3.201641366e-07 | AP168: 3.201641366e-07 | AQ168: 754012.8707 | AR168: 0 | AS168: FALSE | AT168: 0 | AU168: 0.001012447897 | AV168: 0.001012447897
B169: 8 | C169: 20 | D169: 6807.415996 | F169: 160 | G169: 5 | H169: 12 | I169: 2465.951792 | J169: 1 | K169: 0.1567825878 | L169: 0.1567825878 | M169: 9.192743127e+22 | N169: 0 | O169: FALSE | P169: 0 | Q169: 8.259182172e-22 | R169: 8.259182172e-22 | S169: 2.90093674e+19 | T169: 0 | U169: FALSE | V169: 0 | W169: 2.679172793e-18 | X169: 2.679172793e-18 | Y169: 9180753230385008 | Z169: 0 | AA169: FALSE | AB169: 0 | AC169: 7.724780314e-15 | AD169: 7.724780314e-15 | AE169: 3.182068465e+12 | AF169: 0 | AG169: FALSE | AH169: 0 | AI169: 2.441986836e-11 | AJ169: 2.441986836e-11 | AK169: 1006589367 | AL169: 0 | AM169: FALSE | AN169: 0 | AO169: 7.722240417e-08 | AP169: 7.722240417e-08 | AQ169: 318311.5069 | AR169: 0 | AS169: FALSE | AT169: 0 | AU169: 0.0002441986836 | AV169: 0.0002441986836
B170: 9 | C170: 1 | D170: 647.3244258 | F170: 161 | G170: 17 | H170: 4 | I170: 2505.656584 | J170: 1 | K170: 0.6117371026 | L170: 0.6117371026 | M170: 4.318833641e+23 | N170: 0 | O170: FALSE | P170: 0 | Q170: 2.676391742e-21 | R170: 2.676391742e-21 | S170: 1.362886247e+20 | T170: 0 | U170: FALSE | V170: 0 | W170: 8.681871631e-18 | X170: 8.681871631e-18 | Y170: 4.31320068e+16 | Z170: 0 | AA170: FALSE | AB170: 0 | AC170: 2.503218577e-14 | AD170: 2.503218577e-14 | AE170: 1.494964468e+13 | AF170: 0 | AG170: FALSE | AH170: 0 | AI170: 7.913269457e-11 | AJ170: 7.913269457e-11 | AK170: 4729047643 | AL170: 0 | AM170: FALSE | AN170: 0 | AO170: 2.502395522e-07 | AP170: 2.502395522e-07 | AQ170: 1495456.172 | AR170: 0 | AS170: FALSE | AT170: 0 | AU170: 0.0007913269457 | AV170: 0.0007913269457
B171: 9 | C171: 2 | D171: 694.6375071 | F171: 162 | G171: 11 | H171: 10 | I171: 2520.534331 | J171: 1 | K171: 0.8139792619 | L171: 0.8139792619 | M171: 6.156135454e+23 | N171: 0 | O171: FALSE | P171: 0 | Q171: 3.324336874e-21 | R171: 3.324336874e-21 | S171: 1.942680141e+20 | T171: 0 | U171: FALSE | V171: 0 | W171: 1.078372255e-17 | X171: 1.078372255e-17 | Y171: 6.148106139e+16 | Z171: 0 | AA171: FALSE | AB171: 0 | AC171: 3.109239087e-14 | AD171: 3.109239087e-14 | AE171: 2.130946577e+13 | AF171: 0 | AG171: FALSE | AH171: 0 | AI171: 9.829044467e-11 | AJ171: 9.829044467e-11 | AK171: 6740861139 | AL171: 0 | AM171: FALSE | AN171: 0 | AO171: 3.108216774e-07 | AP171: 3.108216774e-07 | AQ171: 2131647.459 | AR171: 0 | AS171: FALSE | AT171: 0 | AU171: 0.0009829044467 | AV171: 0.0009829044467
B172: 9 | C172: 3 | D172: 773.4926426 | F172: 163 | G172: 15 | H172: 7 | I172: 2527.095324 | J172: 1 | K172: 0.07572221075 | L172: 0.07572221075 | M172: 5.902619572e+22 | N172: 0 | O172: FALSE | P172: 0 | Q172: 3.000463096e-22 | R172: 3.000463096e-22 | S172: 1.862678609e+19 | T172: 0 | U172: FALSE | V172: 0 | W172: 9.733117547e-19 | X172: 9.733117547e-19 | Y172: 5894920912996249 | Z172: 0 | AA172: FALSE | AB172: 0 | AC172: 2.806321228e-15 | AD172: 2.806321228e-15 | AE172: 2.043192042e+12 | AF172: 0 | AG172: FALSE | AH172: 0 | AI172: 8.871449047e-12 | AJ172: 8.871449047e-12 | AK172: 646326566.3 | AL172: 0 | AM172: FALSE | AN172: 0 | AO172: 2.805398513e-08 | AP172: 2.805398513e-08 | AQ172: 204386.4062 | AR172: 0 | AS172: FALSE | AT172: 0 | AU172: 8.871449047e-05 | AV172: 8.871449047e-05
B173: 9 | C173: 4 | D173: 883.8898323 | F173: 164 | G173: 14 | H173: 8 | I173: 2537.54902 | J173: 1 | K173: 0.1266061182 | L173: 0.1266061182 | M173: 1.0354302e+23 | N173: 0 | O173: FALSE | P173: 0 | Q173: 4.781620138e-22 | R173: 4.781620138e-22 | S173: 3.267487699e+19 | T173: 0 | U173: FALSE | V173: 0 | W173: 1.55109626e-18 | X173: 1.55109626e-18 | Y173: 1.034079711e+16 | Z173: 0 | AA173: FALSE | AB173: 0 | AC173: 4.472230342e-15 | AD173: 4.472230342e-15 | AE173: 3.584142124e+12 | AF173: 0 | AG173: FALSE | AH173: 0 | AI173: 1.413778409e-11 | AJ173: 1.413778409e-11 | AK173: 1133778042 | AL173: 0 | AM173: FALSE | AN173: 0 | AO173: 4.470759879e-08 | AP173: 4.470759879e-08 | AQ173: 358532.0973 | AR173: 0 | AS173: FALSE | AT173: 0 | AU173: 0.0001413778409 | AV173: 0.0001413778409
B174: 9 | C174: 5 | D174: 1025.829076 | F174: 165 | G174: 9 | H174: 11 | I174: 2539.847678 | J174: 1 | K174: 0.09491844183 | L174: 0.09491844183 | M174: 7.844923831e+22 | N174: 0 | O174: FALSE | P174: 0 | Q174: 3.547308688e-22 | R174: 3.547308688e-22 | S174: 2.475607927e+19 | T174: 0 | U174: FALSE | V174: 0 | W174: 1.150701453e-18 | X174: 1.150701453e-18 | Y174: 7834691866068031 | Z174: 0 | AA174: FALSE | AB174: 0 | AC174: 3.317783741e-15 | AD174: 3.317783741e-15 | AE174: 2.715520753e+12 | AF174: 0 | AG174: FALSE | AH174: 0 | AI174: 1.048830373e-11 | AJ174: 1.048830373e-11 | AK174: 859005500.9 | AL174: 0 | AM174: FALSE | AN174: 0 | AO174: 3.316692858e-08 | AP174: 3.316692858e-08 | AQ174: 271641.3906 | AR174: 0 | AS174: FALSE | AT174: 0 | AU174: 0.0001048830373 | AV174: 0.0001048830373
B175: 9 | C175: 6 | D175: 1199.310374 | F175: 166 | G175: 18 | H175: 1 | I175: 2541.984622 | J175: 1 | K175: 0.274711507 | L175: 0.274711507 | M175: 2.292775967e+23 | N175: 0 | O175: FALSE | P175: 0 | Q175: 1.016666691e-21 | R175: 1.016666691e-21 | S175: 7.235270197e+19 | T175: 0 | U175: FALSE | V175: 0 | W175: 3.297936384e-18 | X175: 3.297936384e-18 | Y175: 2.289785548e+16 | Z175: 0 | AA175: FALSE | AB175: 0 | AC175: 9.508843223e-15 | AD175: 9.508843223e-15 | AE175: 7.936445086e+12 | AF175: 0 | AG175: FALSE | AH175: 0 | AI175: 3.005971566e-11 | AJ175: 3.005971566e-11 | AK175: 2510549765 | AL175: 0 | AM175: FALSE | AN175: 0 | AO175: 9.505716729e-08 | AP175: 9.505716729e-08 | AQ175: 793905.5436 | AR175: 0 | AS175: FALSE | AT175: 0 | AU175: 0.0003005971566 | AV175: 0.0003005971566
B176: 9 | C176: 7 | D176: 1404.333727 | F176: 167 | G176: 6 | H176: 12 | I176: 2551.718302 | J176: 1 | K176: 0.478925585 | L176: 0.478925585 | M176: 4.178794348e+23 | N176: 0 | O176: FALSE | P176: 0 | Q176: 1.695397707e-21 | R176: 1.695397707e-21 | S176: 1.318694309e+20 | T176: 0 | U176: FALSE | V176: 0 | W176: 5.499652769e-18 | X176: 5.499652769e-18 | Y176: 4.173344036e+16 | Z176: 0 | AA176: FALSE | AB176: 0 | AC176: 1.585698748e-14 | AD176: 1.585698748e-14 | AE176: 1.44648986e+13 | AF176: 0 | AG176: FALSE | AH176: 0 | AI176: 5.012770994e-11 | AJ176: 5.012770994e-11 | AK176: 4575707055 | AL176: 0 | AM176: FALSE | AN176: 0 | AO176: 1.585177373e-07 | AP176: 1.585177373e-07 | AQ176: 1446965.62 | AR176: 0 | AS176: FALSE | AT176: 0 | AU176: 0.0005012770994 | AV176: 0.0005012770994
B177: 9 | C177: 8 | D177: 1640.899133 | F177: 168 | G177: 16 | H177: 6 | I177: 2563.777594 | J177: 1 | K177: 0.9481207467 | L177: 0.9481207467 | M177: 8.738839459e+23 | N177: 0 | O177: FALSE | P177: 0 | Q177: 3.177313382e-21 | R177: 3.177313382e-21 | S177: 2.757699209e+20 | T177: 0 | U177: FALSE | V177: 0 | W177: 1.03067972e-17 | X177: 1.03067972e-17 | Y177: 8.727441579e+16 | Z177: 0 | AA177: FALSE | AB177: 0 | AC177: 2.971728599e-14 | AD177: 2.971728599e-14 | AE177: 3.024949689e+13 | AF177: 0 | AG177: FALSE | AH177: 0 | AI177: 9.394341099e-11 | AJ177: 9.394341099e-11 | AK177: 9568877058 | AL177: 0 | AM177: FALSE | AN177: 0 | AO177: 2.970751499e-07 | AP177: 2.970751499e-07 | AQ177: 3025944.615 | AR177: 0 | AS177: FALSE | AT177: 0 | AU177: 0.0009394341099 | AV177: 0.0009394341099
B178: 9 | C178: 9 | D178: 1909.006594 | F178: 169 | G178: 18 | H178: 2 | I178: 2589.297703 | J178: 1 | K178: 0.114229757 | L178: 0.114229757 | M178: 1.18136318e+23 | N178: 0 | O178: FALSE | P178: 0 | Q178: 3.411627355e-22 | R178: 3.411627355e-22 | S178: 3.728005672e+19 | T178: 0 | U178: FALSE | V178: 0 | W178: 1.106688168e-18 | X178: 1.106688168e-18 | Y178: 1.179822353e+16 | Z178: 0 | AA178: FALSE | AB178: 0 | AC178: 3.190881528e-15 | AD178: 3.190881528e-15 | AE178: 4.089289203e+12 | AF178: 0 | AG178: FALSE | AH178: 0 | AI178: 1.008713564e-11 | AJ178: 1.008713564e-11 | AK178: 1293572114 | AL178: 0 | AM178: FALSE | AN178: 0 | AO178: 3.189832371e-08 | AP178: 3.189832371e-08 | AQ178: 409063.4197 | AR178: 0 | AS178: FALSE | AT178: 0 | AU178: 0.0001008713564 | AV178: 0.0001008713564
B179: 9 | C179: 10 | D179: 2208.656109 | F179: 170 | G179: 13 | H179: 9 | I179: 2595.138682 | J179: 1 | K179: 0.1627325419 | L179: 0.1627325419 | M179: 1.727652321e+23 | N179: 0 | O179: FALSE | P179: 0 | Q179: 4.734552994e-22 | R179: 4.734552994e-22 | S179: 5.451920086e+19 | T179: 0 | U179: FALSE | V179: 0 | W179: 1.535828282e-18 | X179: 1.535828282e-18 | Y179: 1.725398981e+16 | Z179: 0 | AA179: FALSE | AB179: 0 | AC179: 4.428208629e-15 | AD179: 4.428208629e-15 | AE179: 5.98026932e+12 | AF179: 0 | AG179: FALSE | AH179: 0 | AI179: 1.399862098e-11 | AJ179: 1.399862098e-11 | AK179: 1891749211 | AL179: 0 | AM179: FALSE | AN179: 0 | AO179: 4.426752641e-08 | AP179: 4.426752641e-08 | AQ179: 598223.627 | AR179: 0 | AS179: FALSE | AT179: 0 | AU179: 0.0001399862098 | AV179: 0.0001399862098
B180: 9 | C180: 11 | D180: 2539.847678 | F180: 171 | G180: 17 | H180: 5 | I180: 2647.595828 | J180: 1 | K180: 0.4116028001 | L180: 0.4116028001 | M180: 5.514545075e+23 | N180: 0 | O180: FALSE | P180: 0 | Q180: 9.489284409e-22 | R180: 9.489284409e-22 | S180: 1.740214666e+20 | T180: 0 | U180: FALSE | V180: 0 | W180: 3.078202186e-18 | X180: 3.078202186e-18 | Y180: 5.507352573e+16 | Z180: 0 | AA180: FALSE | AB180: 0 | AC180: 8.875290055e-15 | AD180: 8.875290055e-15 | AE180: 1.908860037e+13 | AF180: 0 | AG180: FALSE | AH180: 0 | AI180: 2.805690337e-11 | AJ180: 2.805690337e-11 | AK180: 6038330845 | AL180: 0 | AM180: FALSE | AN180: 0 | AO180: 8.872371873e-08 | AP180: 8.872371873e-08 | AQ180: 1909487.874 | AR180: 0 | AS180: FALSE | AT180: 0 | AU180: 0.0002805690337 | AV180: 0.0002805690337
B181: 9 | C181: 12 | D181: 2902.581302 | F181: 172 | G181: 7 | H181: 12 | I181: 2653.078724 | J181: 1 | K181: 0.5866192995 | L181: 0.5866192995 | M181: 8.05070208e+23 | N181: 0 | O181: FALSE | P181: 0 | Q181: 1.320278197e-21 | R181: 1.320278197e-21 | S181: 2.540544984e+20 | T181: 0 | U181: FALSE | V181: 0 | W181: 4.282813178e-18 | X181: 4.282813178e-18 | Y181: 8.040201722e+16 | Z181: 0 | AA181: FALSE | AB181: 0 | AC181: 1.234850959e-14 | AD181: 1.234850959e-14 | AE181: 2.786750903e+13 | AF181: 0 | AG181: FALSE | AH181: 0 | AI181: 3.903657662e-11 | AJ181: 3.903657662e-11 | AK181: 8815378609 | AL181: 0 | AM181: FALSE | AN181: 0 | AO181: 1.234444942e-07 | AP181: 1.234444942e-07 | AQ181: 2787667.484 | AR181: 0 | AS181: FALSE | AT181: 0 | AU181: 0.0003903657662 | AV181: 0.0003903657662
B182: 9 | C182: 13 | D182: 3296.856979 | F182: 173 | G182: 18 | H182: 3 | I182: 2668.152839 | J182: 1 | K182: 0.2272128146 | L182: 0.2272128146 | M182: 3.330570397e+23 | N182: 0 | O182: FALSE | P182: 0 | Q182: 4.78777286e-22 | R182: 4.78777286e-22 | S182: 1.051021865e+20 | T182: 0 | U182: FALSE | V182: 0 | W182: 1.553092124e-18 | X182: 1.553092124e-18 | Y182: 3.326226406e+16 | Z182: 0 | AA182: FALSE | AB182: 0 | AC182: 4.477984958e-15 | AD182: 4.477984958e-15 | AE182: 1.152877099e+13 | AF182: 0 | AG182: FALSE | AH182: 0 | AI182: 1.41559758e-11 | AJ182: 1.41559758e-11 | AK182: 3646916597 | AL182: 0 | AM182: FALSE | AN182: 0 | AO182: 4.476512603e-08 | AP182: 4.476512603e-08 | AQ182: 1153256.288 | AR182: 0 | AS182: FALSE | AT182: 0 | AU182: 0.000141559758 | AV182: 0.000141559758
B183: 9 | C183: 14 | D183: 3722.674711 | F183: 174 | G183: 1 | H183: 13 | I183: 2673.100536 | J183: 1 | K183: 0.576064197 | L183: 0.576064197 | M183: 8.628025919e+23 | N183: 0 | O183: FALSE | P183: 0 | Q183: 1.188001094e-21 | R183: 1.188001094e-21 | S183: 2.722729987e+20 | T183: 0 | U183: FALSE | V183: 0 | W183: 3.853723218e-18 | X183: 3.853723218e-18 | Y183: 8.61677257e+16 | Z183: 0 | AA183: FALSE | AB183: 0 | AC183: 1.11113271e-14 | AD183: 1.11113271e-14 | AE183: 2.986591577e+13 | AF183: 0 | AG183: FALSE | AH183: 0 | AI183: 3.512554842e-11 | AJ183: 3.512554842e-11 | AK183: 9447538161 | AL183: 0 | AM183: FALSE | AN183: 0 | AO183: 1.110767371e-07 | AP183: 1.110767371e-07 | AQ183: 2987573.887 | AR183: 0 | AS183: FALSE | AT183: 0 | AU183: 0.0003512554842 | AV183: 0.0003512554842
B184: 9 | C184: 15 | D184: 4180.034497 | F184: 175 | G184: 10 | H184: 11 | I184: 2687.989834 | J184: 1 | K184: 0.343997659 | L184: 0.343997659 | M184: 5.495960257e+23 | N184: 0 | O184: FALSE | P184: 0 | Q184: 6.650493969e-22 | R184: 6.650493969e-22 | S184: 1.73434989e+20 | T184: 0 | U184: FALSE | V184: 0 | W184: 2.157334967e-18 | X184: 2.157334967e-18 | Y184: 5.488791994e+16 | Z184: 0 | AA184: FALSE | AB184: 0 | AC184: 6.22018062e-15 | AD184: 6.22018062e-15 | AE184: 1.902426901e+13 | AF184: 0 | AG184: FALSE | AH184: 0 | AI184: 1.966347077e-11 | AJ184: 1.966347077e-11 | AK184: 6017980793 | AL184: 0 | AM184: FALSE | AN184: 0 | AO184: 6.218135434e-08 | AP184: 6.218135434e-08 | AQ184: 1903052.622 | AR184: 0 | AS184: FALSE | AT184: 0 | AU184: 0.0001966347077 | AV184: 0.0001966347077
B185: 9 | C185: 16 | D185: 4668.936337 | F185: 176 | G185: 2 | H185: 13 | I185: 2696.491403 | J185: 1 | K185: 0.8941831981 | L185: 0.8941831981 | M185: 1.482039352e+24 | N185: 0 | O185: FALSE | P185: 0 | Q185: 1.666402038e-21 | R185: 1.666402038e-21 | S185: 4.676843839e+20 | T185: 0 | U185: FALSE | V185: 0 | W185: 5.405594536e-18 | X185: 5.405594536e-18 | Y185: 1.48010636e+17 | Z185: 0 | AA185: FALSE | AB185: 0 | AC185: 1.558579214e-14 | AD185: 1.558579214e-14 | AE185: 5.130079913e+13 | AF185: 0 | AG185: FALSE | AH185: 0 | AI185: 4.927039693e-11 | AJ185: 4.927039693e-11 | AK185: 1.622807287e+10 | AL185: 0 | AM185: FALSE | AN185: 0 | AO185: 1.558066755e-07 | AP185: 1.558066755e-07 | AQ185: 5131767.231 | AR185: 0 | AS185: FALSE | AT185: 0 | AU185: 0.0004927039693 | AV185: 0.0004927039693
B186: 9 | C186: 17 | D186: 5189.380232 | F186: 177 | G186: 12 | H186: 10 | I186: 2699.864308 | J186: 1 | K186: 0.8182356433 | L186: 0.8182356433 | M186: 1.376016869e+24 | N186: 0 | O186: FALSE | P186: 0 | Q186: 1.502863521e-21 | R186: 1.502863521e-21 | S186: 4.342270675e+20 | T186: 0 | U186: FALSE | V186: 0 | W186: 4.875096557e-18 | X186: 4.875096557e-18 | Y186: 1.37422216e+17 | Z186: 0 | AA186: FALSE | AB186: 0 | AC186: 1.405622288e-14 | AD186: 1.405622288e-14 | AE186: 4.76308304e+13 | AF186: 0 | AG186: FALSE | AH186: 0 | AI186: 4.443506461e-11 | AJ186: 4.443506461e-11 | AK186: 1.506714515e+10 | AL186: 0 | AM186: FALSE | AN186: 0 | AO186: 1.405160121e-07 | AP186: 1.405160121e-07 | AQ186: 4764649.65 | AR186: 0 | AS186: FALSE | AT186: 0 | AU186: 0.0004443506461 | AV186: 0.0004443506461
B187: 9 | C187: 18 | D187: 5741.366181 | F187: 178 | G187: 3 | H187: 13 | I187: 2735.476181 | J187: 1 | K187: 0.8119123442 | L187: 0.8119123442 | M187: 1.590092291e+24 | N187: 0 | O187: FALSE | P187: 0 | Q187: 1.280508513e-21 | R187: 1.280508513e-21 | S187: 5.017824474e+20 | T187: 0 | U187: FALSE | V187: 0 | W187: 4.153805423e-18 | X187: 4.153805423e-18 | Y187: 1.588018367e+17 | Z187: 0 | AA187: FALSE | AB187: 0 | AC187: 1.197654531e-14 | AD187: 1.197654531e-14 | AE187: 5.504105211e+13 | AF187: 0 | AG187: FALSE | AH187: 0 | AI187: 3.786070905e-11 | AJ187: 3.786070905e-11 | AK187: 1.741123373e+10 | AL187: 0 | AM187: FALSE | AN187: 0 | AO187: 1.197260744e-07 | AP187: 1.197260744e-07 | AQ187: 5505915.548 | AR187: 0 | AS187: FALSE | AT187: 0 | AU187: 0.0003786070905 | AV187: 0.0003786070905
B188: 9 | C188: 19 | D188: 6324.894183 | F188: 179 | G188: 15 | H188: 8 | I188: 2763.660731 | J188: 1 | K188: 0.7202979218 | L188: 0.7202979218 | M188: 1.589224287e+24 | N188: 0 | O188: FALSE | P188: 0 | Q188: 1.008383297e-21 | R188: 1.008383297e-21 | S188: 5.015085332e+20 | T188: 0 | U188: FALSE | V188: 0 | W188: 3.271066114e-18 | X188: 3.271066114e-18 | Y188: 1.587151496e+17 | Z188: 0 | AA188: FALSE | AB188: 0 | AC188: 9.431368962e-15 | AD188: 9.431368962e-15 | AE188: 5.501100617e+13 | AF188: 0 | AG188: FALSE | AH188: 0 | AI188: 2.981480109e-11 | AJ188: 2.981480109e-11 | AK188: 1.740172925e+10 | AL188: 0 | AM188: FALSE | AN188: 0 | AO188: 9.428267942e-08 | AP188: 9.428267942e-08 | AQ188: 5502909.965 | AR188: 0 | AS188: FALSE | AT188: 0 | AU188: 0.0002981480109 | AV188: 0.0002981480109
B189: 9 | C189: 20 | D189: 6939.964241 | F189: 180 | G189: 16 | H189: 7 | I189: 2768.800946 | J189: 1 | K189: 0.10422854 | L189: 0.10422854 | M189: 2.349863056e+23 | N189: 0 | O189: FALSE | P189: 0 | Q189: 1.427964031e-22 | R189: 1.427964031e-22 | S189: 7.415418857e+19 | T189: 0 | U189: FALSE | V189: 0 | W189: 4.632132216e-19 | X189: 4.632132216e-19 | Y189: 2.346798181e+16 | Z189: 0 | AA189: FALSE | AB189: 0 | AC189: 1.335569092e-15 | AD189: 1.335569092e-15 | AE189: 8.134052074e+12 | AF189: 0 | AG189: FALSE | AH189: 0 | AI189: 4.222051643e-12 | AJ189: 4.222051643e-12 | AK189: 2573059134 | AL189: 0 | AM189: FALSE | AN189: 0 | AO189: 1.335129959e-08 | AP189: 1.335129959e-08 | AQ189: 813672.7418 | AR189: 0 | AS189: FALSE | AT189: 0 | AU189: 4.222051643e-05 | AV189: 4.222051643e-05
B190: 10 | C190: 1 | D190: 795.466581 | F190: 181 | G190: 8 | H190: 12 | I190: 2770.033058 | J190: 1 | K190: 0.4316415426 | L190: 0.4316415426 | M190: 9.781954176e+23 | N190: 0 | O190: FALSE | P190: 0 | Q190: 5.883115317e-22 | R190: 5.883115317e-22 | S190: 3.086872967e+20 | T190: 0 | U190: FALSE | V190: 0 | W190: 1.908407172e-18 | X190: 1.908407172e-18 | Y190: 9.769195784e+16 | Z190: 0 | AA190: FALSE | AB190: 0 | AC190: 5.502454412e-15 | AD190: 5.502454412e-15 | AE190: 3.386023897e+13 | AF190: 0 | AG190: FALSE | AH190: 0 | AI190: 1.739456747e-11 | AJ190: 1.739456747e-11 | AK190: 1.071106951e+10 | AL190: 0 | AM190: FALSE | AN190: 0 | AO190: 5.500645213e-08 | AP190: 5.500645213e-08 | AQ190: 3387137.583 | AR190: 0 | AS190: FALSE | AT190: 0 | AU190: 0.0001739456747 | AV190: 0.0001739456747
B191: 10 | C191: 2 | D191: 842.7796623 | F191: 182 | G191: 18 | H191: 4 | I191: 2778.550028 | J191: 1 | K191: 0.2087087428 | L191: 0.2087087428 | M191: 4.901676108e+23 | N191: 0 | O191: FALSE | P191: 0 | Q191: 2.744878888e-22 | R191: 2.744878888e-22 | S191: 1.546812753e+20 | T191: 0 | U191: FALSE | V191: 0 | W191: 8.904035149e-19 | X191: 8.904035149e-19 | Y191: 4.895282957e+16 | Z191: 0 | AA191: FALSE | AB191: 0 | AC191: 2.567274332e-15 | AD191: 2.567274332e-15 | AE191: 1.696715415e+13 | AF191: 0 | AG191: FALSE | AH191: 0 | AI191: 8.115764939e-12 | AJ191: 8.115764939e-12 | AK191: 5367249996 | AL191: 0 | AM191: FALSE | AN191: 0 | AO191: 2.566430216e-08 | AP191: 2.566430216e-08 | AQ191: 1697273.476 | AR191: 0 | AS191: FALSE | AT191: 0 | AU191: 8.115764939e-05 | AV191: 8.115764939e-05
B192: 10 | C192: 3 | D192: 921.6347978 | F192: 183 | G192: 4 | H192: 13 | I192: 2790.054869 | J192: 1 | K192: 0.3660901885 | L192: 0.3660901885 | M192: 9.021038387e+23 | N192: 0 | O192: FALSE | P192: 0 | Q192: 4.5888743e-22 | R192: 4.5888743e-22 | S192: 2.846752196e+20 | T192: 0 | U192: FALSE | V192: 0 | W192: 1.488571982e-18 | X192: 1.488571982e-18 | Y192: 9.009272441e+16 | Z192: 0 | AA192: FALSE | AB192: 0 | AC192: 4.291955924e-15 | AD192: 4.291955924e-15 | AE192: 3.122632861e+13 | AF192: 0 | AG192: FALSE | AH192: 0 | AI192: 1.356789377e-11 | AJ192: 1.356789377e-11 | AK192: 9877879971 | AL192: 0 | AM192: FALSE | AN192: 0 | AO192: 4.290544736e-08 | AP192: 4.290544736e-08 | AQ192: 3123659.916 | AR192: 0 | AS192: FALSE | AT192: 0 | AU192: 0.0001356789377 | AV192: 0.0001356789377
B193: 10 | C193: 4 | D193: 1032.031988 | F193: 184 | G193: 14 | H193: 9 | I193: 2805.656481 | J193: 1 | K193: 0.03933537081 | L193: 0.03933537081 | M193: 1.034210127e+23 | N193: 0 | O193: FALSE | P193: 0 | Q193: 4.621087843e-23 | R193: 4.621087843e-23 | S193: 3.263637538e+19 | T193: 0 | U193: FALSE | V193: 0 | W193: 1.499021642e-19 | X193: 1.499021642e-19 | Y193: 1.032861229e+16 | Z193: 0 | AA193: FALSE | AB193: 0 | AC193: 4.322085123e-16 | AD193: 4.322085123e-16 | AE193: 3.579918842e+12 | AF193: 0 | AG193: FALSE | AH193: 0 | AI193: 1.366313933e-12 | AJ193: 1.366313933e-12 | AK193: 1132442083 | AL193: 0 | AM193: FALSE | AN193: 0 | AO193: 4.320664028e-09 | AP193: 4.320664028e-09 | AQ193: 358109.6301 | AR193: 0 | AS193: FALSE | AT193: 0 | AU193: 1.366313933e-05 | AV193: 1.366313933e-05
B194: 10 | C194: 5 | D194: 1173.971232 | F194: 185 | G194: 17 | H194: 6 | I194: 2821.077127 | J194: 1 | K194: 0.7828886075 | L194: 0.7828886075 | M194: 2.193827949e+24 | N194: 0 | O194: FALSE | P194: 0 | Q194: 8.62946546e-22 | R194: 8.62946546e-22 | S194: 6.92302179e+20 | T194: 0 | U194: FALSE | V194: 0 | W194: 2.799287944e-18 | X194: 2.799287944e-18 | Y194: 2.190966587e+17 | Z194: 0 | AA194: FALSE | AB194: 0 | AC194: 8.071104803e-15 | AD194: 8.071104803e-15 | AE194: 7.593936477e+13 | AF194: 0 | AG194: FALSE | AH194: 0 | AI194: 2.551468246e-11 | AJ194: 2.551468246e-11 | AK194: 2.402203408e+10 | AL194: 0 | AM194: FALSE | AN194: 0 | AO194: 8.068451036e-08 | AP194: 8.068451036e-08 | AQ194: 7596434.173 | AR194: 0 | AS194: FALSE | AT194: 0 | AU194: 0.0002551468246 | AV194: 0.0002551468246
B195: 10 | C195: 6 | D195: 1347.45253 | F195: 186 | G195: 19 | H195: 1 | I195: 2830.471977 | J195: 1 | K195: 0.3787799301 | L195: 0.3787799301 | M195: 1.103258827e+24 | N195: 0 | O195: FALSE | P195: 0 | Q195: 4.016826018e-22 | R195: 4.016826018e-22 | S195: 3.481533228e+20 | T195: 0 | U195: FALSE | V195: 0 | W195: 1.303006854e-18 | X195: 1.303006854e-18 | Y195: 1.101819871e+17 | Z195: 0 | AA195: FALSE | AB195: 0 | AC195: 3.756921436e-15 | AD195: 3.756921436e-15 | AE195: 3.818930949e+13 | AF195: 0 | AG195: FALSE | AH195: 0 | AI195: 1.187652246e-11 | AJ195: 1.187652246e-11 | AK195: 1.208049207e+10 | AL195: 0 | AM195: FALSE | AN195: 0 | AO195: 3.755686166e-08 | AP195: 3.755686166e-08 | AQ195: 3820187.021 | AR195: 0 | AS195: FALSE | AT195: 0 | AU195: 0.0001187652246 | AV195: 0.0001187652246
B196: 10 | C196: 7 | D196: 1552.475882 | F196: 187 | G196: 11 | H196: 11 | I196: 2851.7259 | J196: 1 | K196: 0.6288813725 | L196: 0.6288813725 | M196: 1.998175196e+24 | N196: 0 | O196: FALSE | P196: 0 | Q196: 6.11350697e-22 | R196: 6.11350697e-22 | S196: 6.305604061e+20 | T196: 0 | U196: FALSE | V196: 0 | W196: 1.98314327e-18 | X196: 1.98314327e-18 | Y196: 1.99556902e+17 | Z196: 0 | AA196: FALSE | AB196: 0 | AC196: 5.717938811e-15 | AD196: 5.717938811e-15 | AE196: 6.916684381e+13 | AF196: 0 | AG196: FALSE | AH196: 0 | AI196: 1.807576492e-11 | AJ196: 1.807576492e-11 | AK196: 2.18796705e+10 | AL196: 0 | AM196: FALSE | AN196: 0 | AO196: 5.716058761e-08 | AP196: 5.716058761e-08 | AQ196: 6918959.324 | AR196: 0 | AS196: FALSE | AT196: 0 | AU196: 0.0001807576492 | AV196: 0.0001807576492
B197: 10 | C197: 8 | D197: 1789.041289 | F197: 188 | G197: 5 | H197: 13 | I197: 2860.227469 | J197: 1 | K197: 0.2436567623 | L197: 0.2436567623 | M197: 8.014460325e+23 | N197: 0 | O197: FALSE | P197: 0 | Q197: 2.288069268e-22 | R197: 2.288069268e-22 | S197: 2.529108242e+20 | T197: 0 | U197: FALSE | V197: 0 | W197: 7.422203316e-19 | X197: 7.422203316e-19 | Y197: 8.004007237e+16 | Z197: 0 | AA197: FALSE | AB197: 0 | AC197: 2.140022107e-15 | AD197: 2.140022107e-15 | AE197: 2.774205818e+13 | AF197: 0 | AG197: FALSE | AH197: 0 | AI197: 6.765119009e-12 | AJ197: 6.765119009e-12 | AK197: 8775694518 | AL197: 0 | AM197: FALSE | AN197: 0 | AO197: 2.139318471e-08 | AP197: 2.139318471e-08 | AQ197: 2775118.273 | AR197: 0 | AS197: FALSE | AT197: 0 | AU197: 6.765119009e-05 | AV197: 6.765119009e-05
B198: 10 | C198: 9 | D198: 2057.148749 | F198: 189 | G198: 19 | H198: 2 | I198: 2877.785058 | J198: 1 | K198: 0.1575031925 | L198: 0.1575031925 | M198: 5.56271123e+23 | N198: 0 | O198: FALSE | P198: 0 | Q198: 1.377459123e-22 | R198: 1.377459123e-22 | S198: 1.755414369e+20 | T198: 0 | U198: FALSE | V198: 0 | W198: 4.46830077e-19 | X198: 4.46830077e-19 | Y198: 5.555455906e+16 | Z198: 0 | AA198: FALSE | AB198: 0 | AC198: 1.288332052e-15 | AD198: 1.288332052e-15 | AE198: 1.925532754e+13 | AF198: 0 | AG198: FALSE | AH198: 0 | AI198: 4.072724121e-12 | AJ198: 4.072724121e-12 | AK198: 6091071946 | AL198: 0 | AM198: FALSE | AN198: 0 | AO198: 1.287908451e-08 | AP198: 1.287908451e-08 | AQ198: 1926166.074 | AR198: 0 | AS198: FALSE | AT198: 0 | AU198: 4.072724121e-05 | AV198: 4.072724121e-05
B199: 10 | C199: 10 | D199: 2356.798264 | F199: 190 | G199: 13 | H199: 10 | I199: 2894.788197 | J199: 1 | K199: 0.4561093291 | L199: 0.4561093291 | M199: 1.725092732e+24 | N199: 0 | O199: FALSE | P199: 0 | Q199: 3.724877358e-22 | R199: 3.724877358e-22 | S199: 5.443842842e+20 | T199: 0 | U199: FALSE | V199: 0 | W199: 1.208302452e-18 | X199: 1.208302452e-18 | Y199: 1.722842731e+17 | Z199: 0 | AA199: FALSE | AB199: 0 | AC199: 3.483863012e-15 | AD199: 3.483863012e-15 | AE199: 5.971409304e+13 | AF199: 0 | AG199: FALSE | AH199: 0 | AI199: 1.101331982e-11 | AJ199: 1.101331982e-11 | AK199: 1.888946507e+10 | AL199: 0 | AM199: FALSE | AN199: 0 | AO199: 3.482717523e-08 | AP199: 3.482717523e-08 | AQ199: 5973373.34 | AR199: 0 | AS199: FALSE | AT199: 0 | AU199: 0.0001101331982 | AV199: 0.0001101331982
B200: 10 | C200: 11 | D200: 2687.989834 | F200: 191 | G200: 9 | H200: 12 | I200: 2902.581302 | J200: 1 | K200: 0.08338695504 | L200: 0.08338695504 | M200: 3.253995877e+23 | N200: 0 | O200: FALSE | P200: 0 | Q200: 6.600331459e-23 | R200: 6.600331459e-23 | S200: 1.026857387e+20 | T200: 0 | U200: FALSE | V200: 0 | W200: 2.141062892e-19 | X200: 2.141062892e-19 | Y200: 3.249751761e+16 | Z200: 0 | AA200: FALSE | AB200: 0 | AC200: 6.173263824e-16 | AD200: 6.173263824e-16 | AE200: 1.126370826e+13 | AF200: 0 | AG200: FALSE | AH200: 0 | AI200: 1.951515561e-12 | AJ200: 1.951515561e-12 | AK200: 3563068831 | AL200: 0 | AM200: FALSE | AN200: 0 | AO200: 6.171234064e-09 | AP200: 6.171234064e-09 | AQ200: 1126741.297 | AR200: 0 | AS200: FALSE | AT200: 0 | AU200: 1.951515561e-05 | AV200: 1.951515561e-05
B201: 10 | C201: 12 | D201: 3050.723457 | F201: 192 | G201: 18 | H201: 5 | I201: 2920.489272 | J201: 1 | K201: 0.1404281391 | L201: 0.1404281391 | M201: 5.886140853e+23 | N201: 0 | O201: FALSE | P201: 0 | Q201: 1.034818405e-22 | R201: 1.034818405e-22 | S201: 1.85747845e+20 | T201: 0 | U201: FALSE | V201: 0 | W201: 3.356818217e-19 | X201: 3.356818217e-19 | Y201: 5.878463686e+16 | Z201: 0 | AA201: FALSE | AB201: 0 | AC201: 9.678615485e-16 | AD201: 9.678615485e-16 | AE201: 2.037487933e+13 | AF201: 0 | AG201: FALSE | AH201: 0 | AI201: 3.059640617e-12 | AJ201: 3.059640617e-12 | AK201: 6445221752 | AL201: 0 | AM201: FALSE | AN201: 0 | AO201: 9.67543317e-09 | AP201: 9.67543317e-09 | AQ201: 2038158.076 | AR201: 0 | AS201: FALSE | AT201: 0 | AU201: 3.059640617e-05 | AV201: 3.059640617e-05
... 208 more rows

Sheet 計算表s-2 (hidden)
B1: ヤング率 | C1: 辺長ｘ | D1: 辺長ｙ | E1: 板厚 | F1: ポアソン比 | G1: 密度 | H1: 曲げ剛性 | I1: 面密度 | J1: 加振点ｘ | K1: 加振点ｙ | L1: 縮退重み | M1: 周波数重み
B2: ='Calculation Sheet'!D7 -> 29000000000 | C2: ='Calculation Sheet'!D9 -> 6.4 | D2: ='Calculation Sheet'!F9 -> 4.5 | E2: =('Calculation Sheet'!L9)/1000 -> 0.2 | F2: ='Calculation Sheet'!L7 -> 0.16 | G2: ='Calculation Sheet'!G7 -> 2400 | H2: =B2*E2^3/12/(1-F2^2) -> 19841269.84 | I2: =G2*E2 -> 480 | J2: ='Calculation Sheet'!D21 -> 1.39 | K2: ='Calculation Sheet'!F21 -> 1.95 | L2: 1 | M2: 0
B4: 周波数 | C4: 31.5Hz | D4: 63Hz | E4: 125Hz | F4: 250Hz | G4: 500Hz | H4: 1000Hz | I4: (2000Hz) | J4: (4000Hz)
B5: モード数１ | C5: =M8 -> 1.124078405 | D5: =S8 -> 2.297044974 | E5: =Y8 -> 3.260698137 | F5: =AE8 -> 6.204506747 | G5: =AK8 -> 13.08975322 | H5: =AQ8 -> 24.29518865 | I5: =H6*I7/H7 -> 37.07009318 | J5: =H6*J7/H7 -> 75.22026848
B6: モード数２ | C6: =C5*($D$7^2+$C$7^2)/2/$D$7^2 -> 0.8399028217 | D6: =D5*($D$7^2+$C$7^2)/2/$D$7^2 -> 1.716334507 | E6: 2.436368811 | F6: 4.63596018 | G6: 9.780563899 | H6: 18.1531799 | I6: 27.69849125 | J6: 56.20401164
C7: =MIN(C2,D2) -> 4.5 | D7: =MAX(C2,D2) -> 6.4 | H7: =0.354*SQRT(I2/H2)*C2*D2*1000-0.139*SQRT(SQRT(I2/H2*1000^2))*(C2+D2) -> 46.78530751 | I7: =0.354*SQRT(I2/H2)*C2*D2*2000-0.139*SQRT(SQRT(I2/H2*2000^2))*(C2+D2) -> 95.53894794 | J7: =0.354*SQRT(I2/H2)*C2*D2*4000-0.139*SQRT(SQRT(I2/H2*4000^2))*(C2+D2) -> 193.861539
M8: =M9+O9+Q9 -> 1.124078405 | S8: =S9+U9+W9 -> 2.297044974 | Y8: =Y9+AA9+AC9 -> 3.260698137 | AE8: =AE9+AG9+AI9 -> 6.204506747 | AK8: =AK9+AM9+AO9 -> 13.08975322 | AQ8: =AQ9+AS9+AU9 -> 24.29518865
B9: m | C9: n | D9: fi | F9: No. | G9: m | H9: n | I9: fi | J9: 縮退ﾁｪｯｸ | K9: 周波数重み | L9: 重み | M9: =SUM(N10:N409) -> 0 | O9: =SUM(P10:P409) -> 0.6168128492 | Q9: =SUM(R10:R409) -> 0.5072655555 | S9: =SUM(T10:T409) -> 0.0003760884949 | U9: =SUM(V10:V409) -> 2.083259799 | W9: =SUM(X10:X409) -> 0.2134090868 | Y9: =SUM(Z10:Z409) -> 0.5908458732 | AA9: =SUM(AB10:AB409) -> 2.453645627 | AC9: =SUM(AD10:AD409) -> 0.2162066368 | AE9: =SUM(AF10:AF409) -> 0.7363898269 | AG9: =SUM(AH10:AH409) -> 4.776218876 | AI9: =SUM(AJ10:AJ409) -> 0.691898044 | AK9: =SUM(AL10:AL409) -> 0.7789168765 | AM9: =SUM(AN10:AN409) -> 11.24644909 | AO9: =SUM(AP10:AP409) -> 1.064387252 | AQ9: =SUM(AR10:AR409) -> 1.596625608 | AS9: =SUM(AT10:AT409) -> 19.96355158 | AU9: =SUM(AV10:AV409) -> 2.735011457
B10: 1 | C10: 1 | D10: =3.1416/2*SQRT($H$2/$I$2)*(B10^2/$C$2^2+C10^2/$D$2^2) -> 23.56798264 | F10: 1 | G10: 1 | H10: 1 | I10: 23.56798264 | J10: =1 -> 1 | K10: =ABS(SIN(G10*3.1416*$J$2/$C$2)*SIN(H10*3.1416*$K$2/$D$2))*(1/F10^$M$2)+(1-1/F10^$M$2) -> 0.6168128492 | L10: =$J10*$K10 -> 0.6168128492 | M10: =10^(LOG10($I10/22.27)/LOG10(2)*70/20)*$L10 -> 1.191782254 | N10: =IF($I10<22.27,M10,0) -> 0 | O10: =AND($I10>22.27,$I10<44.45) -> TRUE | P10: =IF($O10=TRUE,$L10,0) -> 0.6168128492 | Q10: =10^(LOG10(44.45/$I10)/LOG10(2)*70/20)*$L10 -> 986.0442917 | R10: =IF($I10>44.45,Q10,0) -> 0 | S10: =10^(LOG10($I10/44.548)/LOG10(2)*70/20)*$L10 -> 0.0003760884949 | T10: =IF($I10<44.528,S10,0) -> 0.0003760884949 | U10: =AND($I10>44.548,$I10<89.095) -> FALSE | V10: =IF($U10=TRUE,$L10,0) -> 0 | W10: =10^(LOG10(89.095/$I10)/LOG10(2)*70/20)*$L10 -> 3198601.246 | X10: =IF($I10>89.095,W10,0) -> 0 | Y10: =10^(LOG10($I10/89.09)/LOG10(2)*70/20)*$L10 -> 1.190227838e-07 | Z10: =IF($I10<89.09,Y10,0) -> 1.190227838e-07 | AA10: =AND($I10>89.09,$I10<176.78) -> FALSE | AB10: =IF($AA10=TRUE,$L10,0) -> 0 | AC10: =10^(LOG10(176.78/$I10)/LOG10(2)*70/20)*$L10 -> 9222433134 | AD10: =IF($I10>176.78,AC10,0) -> 0 | AE10: =10^(LOG10($I10/176.78)/LOG10(2)*70/20)*$L10 -> 4.125354832e-11 | AF10: =IF($I10<176.78,AE10,0) -> 4.125354832e-11 | AG10: =AND($I10>176.78,$I10<353.55) -> FALSE | AH10: =IF($AG10=TRUE,$L10,0) -> 0 | AI10: =10^(LOG10(353.55/$I10)/LOG10(2)*70/20)*$L10 -> 2.915430523e+13 | AJ10: =IF($I10>353.55,AI10,0) -> 0 | AK10: =10^(LOG10($I10/353.55)/LOG10(2)*70/20)*$L10 -> 1.304980818e-14 | AL10: =IF($I10<353.55,AK10,0) -> 1.304980818e-14 | AM10: =AND($I10>353.55,$I10<707.1) -> FALSE | AN10: =IF($AM10=TRUE,$L10,0) -> 0 | AO10: =10^(LOG10(707.1/$I10)/LOG10(2)*70/20)*$L10 -> 9.219400812e+16 | AP10: =IF($I10>707.1,AO10,0) -> 0 | AQ10: =10^(LOG10($I10/707.1)/LOG10(2)*70/20)*$L10 -> 4.126711689e-18 | AR10: =IF($I10<707.1,AQ10,0) -> 4.126711689e-18 | AS10: =AND($I10>707.1,$I10<1414.2) -> FALSE | AT10: =IF($AS10=TRUE,$L10,0) -> 0 | AU10: =10^(LOG10(1414.2/$I10)/LOG10(2)*70/20)*$L10 -> 2.915430523e+20 | AV10: =IF($I10>1414.2,AU10,0) -> 0
B11: 1 | C11: 2 | D11: 70.88106396 | F11: 2 | G11: 2 | H11: 1 | I11: 46.95884926 | J11: =IF(ABS(I11-I10)>0.0001,1,$L$2) -> 1 | K11: 0.9574344126 | L11: 0.9574344126 | M11: 5599.42295 | N11: 0 | O11: FALSE | P11: 0 | Q11: 0.5056631508 | R11: 0.5056631508 | S11: 1.766999418 | T11: 0 | U11: TRUE | V11: 0.9574344126 | W11: 1640.306422 | X11: 0 | Y11: 0.0005592119743 | Z11: 0.0005592119743 | AA11: FALSE | AB11: 0 | AC11: 4729447.385 | AD11: 0 | AE11: 1.938240517e-07 | AF11: 1.938240517e-07 | AG11: FALSE | AH11: 0 | AI11: 1.495090836e+10 | AJ11: 0 | AK11: 6.13127064e-11 | AL11: 6.13127064e-11 | AM11: FALSE | AN11: 0 | AO11: 4.727892349e+13 | AP11: 0 | AQ11: 1.938878017e-14 | AR11: 1.938878017e-14 | AS11: FALSE | AT11: 0 | AU11: 1.495090836e+17 | AV11: 0
B12: 1 | C12: 3 | D12: 149.7361995 | F12: 3 | G12: 1 | H12: 2 | I12: 70.88106396 | J12: 1 | K12: 0.2564813634 | L12: 0.2564813634 | M12: 179929.0425 | N12: 0 | O12: FALSE | P12: 0 | Q12: 0.00112926761 | R12: 0.00112926761 | S12: 56.7798711 | T12: 0 | U12: TRUE | V12: 0.2564813634 | W12: 3.663199327 | X12: 0 | Y12: 0.01796943649 | Z12: 0.01796943649 | AA12: FALSE | AB12: 0 | AC12: 10561.99515 | AD12: 0 | AE12: 6.228244651e-06 | AF12: 6.228244651e-06 | AG12: FALSE | AH12: 0 | AI12: 33388979.45 | AJ12: 0 | AK12: 1.970191688e-09 | AL12: 1.970191688e-09 | AM12: FALSE | AN12: 0 | AO12: 1.055852238e+11 | AP12: 0 | AQ12: 6.230293162e-13 | AR12: 6.230293162e-13 | AS12: FALSE | AT12: 0 | AU12: 3.338897945e+14 | AV12: 0
B13: 1 | C13: 4 | D13: 260.1333892 | F13: 4 | G13: 3 | H13: 1 | I13: 85.94362695 | J13: 1 | K13: 0.8693440226 | L13: 0.8693440226 | M13: 5730645.415 | N13: 0 | O13: FALSE | P13: 0 | Q13: 0.0004073486869 | R13: 0.0004073486869 | S13: 1808.409046 | T13: 0 | U13: TRUE | V13: 0.8693440226 | W13: 1.321386908 | X13: 0 | Y13: 0.5723171058 | Z13: 0.5723171058 | AA13: FALSE | AB13: 0 | AC13: 3809.916106 | AD13: 0 | AE13: 0.0001983663179 | AF13: 0.0001983663179 | AG13: FALSE | AH13: 0 | AI13: 12044051.22 | AJ13: 0 | AK13: 6.274956955e-08 | AL13: 6.274956955e-08 | AM13: FALSE | AN13: 0 | AO13: 3.808663411e+10 | AP13: 0 | AQ13: 1.98431562e-11 | AR13: 1.98431562e-11 | AS13: FALSE | AT13: 0 | AU13: 1.204405122e+14 | AV13: 0
B14: 1 | C14: 5 | D14: 402.0726332 | F14: 5 | G14: 2 | H14: 2 | I14: 94.27193057 | J14: 1 | K14: 0.3981176525 | L14: 0.3981176525 | M14: 7692277.388 | N14: 0 | O14: FALSE | P14: 0 | Q14: 6.364355722e-05 | R14: 6.364355722e-05 | S14: 2427.437575 | T14: 0 | U14: FALSE | V14: 0 | W14: 0.2064515389 | X14: 0.2064515389 | Y14: 0.7682244516 | Z14: 0 | AA14: TRUE | AB14: 0.3981176525 | AC14: 595.2556653 | AD14: 0 | AE14: 0.0002662682179 | AF14: 0.0002662682179 | AG14: FALSE | AH14: 0 | AI14: 1881744.774 | AJ14: 0 | AK14: 8.422909811e-08 | AL14: 8.422909811e-08 | AM14: FALSE | AN14: 0 | AO14: 5950599462 | AP14: 0 | AQ14: 2.663557953e-11 | AR14: 2.663557953e-11 | AS14: FALSE | AT14: 0 | AU14: 1.881744774e+13 | AV14: 0
B15: 1 | C15: 6 | D15: 575.5539313 | F15: 6 | G15: 3 | H15: 2 | I15: 133.2567083 | J15: 1 | K15: 0.3614881572 | L15: 0.3614881572 | M15: 390584961.3 | N15: 0 | O15: FALSE | P15: 0 | Q15: 1.033377838e-06 | R15: 1.033377838e-06 | S15: 123256.165 | T15: 0 | U15: FALSE | V15: 0 | W15: 0.003352145201 | X15: 0.003352145201 | Y15: 39.00755297 | Z15: 0 | AA15: TRUE | AB15: 0.3614881572 | AC15: 9.665141915 | AD15: 0 | AE15: 0.01352010027 | AF15: 0.01352010027 | AG15: FALSE | AH15: 0 | AI15: 30553.81301 | AJ15: 0 | AK15: 4.276837322e-06 | AL15: 4.276837322e-06 | AM15: FALSE | AN15: 0 | AO15: 96619640.3 | AP15: 0 | AQ15: 1.352454712e-09 | AR15: 1.352454712e-09 | AS15: FALSE | AT15: 0 | AU15: 3.055381301e+11 | AV15: 0
B16: 1 | C16: 7 | D16: 780.5772837 | F16: 7 | G16: 4 | H16: 1 | I16: 140.5223157 | J16: 1 | K16: 0.3919860553 | L16: 0.3919860553 | M16: 785164932.2 | N16: 0 | O16: FALSE | P16: 0 | Q16: 6.044590076e-07 | R16: 6.044590076e-07 | S16: 247773.0278 | T16: 0 | U16: FALSE | V16: 0 | W16: 0.001960787514 | X16: 0.001960787514 | Y16: 78.41408585 | Z16: 0 | AA16: TRUE | AB16: 0.3919860553 | AC16: 5.653481114 | AD16: 0 | AE16: 0.02717848782 | AF16: 0.02717848782 | AG16: FALSE | AH16: 0 | AI16: 17871.99881 | AJ16: 0 | AK16: 8.597419304e-06 | AL16: 8.597419304e-06 | AM16: FALSE | AN16: 0 | AO16: 56516222.57 | AP16: 0 | AQ16: 2.7187427e-09 | AR16: 2.7187427e-09 | AS16: FALSE | AT16: 0 | AU16: 1.787199881e+11 | AV16: 0
B17: 1 | C17: 8 | D17: 1017.14269 | F17: 8 | G17: 1 | H17: 3 | I17: 149.7361995 | J17: 1 | K17: 0.5101634986 | L17: 0.5101634986 | M17: 2138370278 | N17: 0 | O17: FALSE | P17: 0 | Q17: 3.759433167e-07 | R17: 3.759433167e-07 | S17: 674801.5054 | T17: 0 | U17: FALSE | V17: 0 | W17: 0.001219511914 | X17: 0.001219511914 | Y17: 213.5581247 | Z17: 0 | AA17: TRUE | AB17: 0.5101634986 | AC17: 3.516182924 | AD17: 0 | AE17: 0.0740196972 | AF17: 0.0740196972 | AG17: FALSE | AH17: 0 | AI17: 11115.49075 | AJ17: 0 | AK17: 2.341478223e-05 | AL17: 2.341478223e-05 | AM17: FALSE | AN17: 0 | AO17: 35150268.08 | AP17: 0 | AQ17: 7.404404278e-09 | AR17: 7.404404278e-09 | AS17: FALSE | AT17: 0 | AU17: 1.111549075e+11 | AV17: 0
B18: 1 | C18: 9 | D18: 1285.250151 | F18: 9 | G18: 2 | H18: 3 | I18: 173.1270661 | J18: 1 | K18: 0.7918902634 | L18: 0.7918902634 | M18: 1.794598875e+10 | N18: 0 | O18: FALSE | P18: 0 | Q18: 1.079317276e-07 | R18: 1.079317276e-07 | S18: 5663182.075 | T18: 0 | U18: FALSE | V18: 0 | W18: 0.0003501166846 | X18: 0.0003501166846 | Y18: 1792.258219 | Z18: 0 | AA18: TRUE | AB18: 0.7918902634 | AC18: 1.009481165 | AD18: 0 | AE18: 0.621200485 | AF18: 0.621200485 | AG18: FALSE | AH18: 0 | AI18: 3191.210126 | AJ18: 0 | AK18: 0.0001965054523 | AL18: 0.0001965054523 | AM18: FALSE | AN18: 0 | AO18: 10091492.49 | AP18: 0 | AQ18: 6.21404802e-08 | AR18: 6.21404802e-08 | AS18: FALSE | AT18: 0 | AU18: 3.191210126e+10 | AV18: 0
B19: 1 | C19: 10 | D19: 1584.899666 | F19: 10 | G19: 4 | H19: 2 | I19: 187.835397 | J19: 1 | K19: 0.1629945259 | L19: 0.1629945259 | M19: 9532509766 | N19: 0 | O19: FALSE | P19: 0 | Q19: 8.608456562e-09 | R19: 8.608456562e-09 | S19: 3008156.262 | T19: 0 | U19: FALSE | V19: 0 | W19: 2.792472926e-05 | X19: 2.792472926e-05 | Y19: 952.007672 | Z19: 0 | AA19: FALSE | AB19: 0 | AC19: 0.08051455264 | AD19: 0.08051455264 | AE19: 0.3299678703 | AF19: 0 | AG19: TRUE | AH19: 0.1629945259 | AI19: 254.525656 | AJ19: 0 | AK19: 0.0001043793223 | AL19: 0.0001043793223 | AM19: FALSE | AN19: 0 | AO19: 804880.7958 | AP19: 0 | AQ19: 3.30076399e-08 | AR19: 3.30076399e-08 | AS19: FALSE | AT19: 0 | AU19: 2545256560 | AV19: 0
B20: 1 | C20: 11 | D20: 1916.091235 | F20: 11 | G20: 5 | H20: 1 | I20: 210.6949156 | J20: 1 | K20: 0.2608921411 | L20: 0.2608921411 | M20: 5.799601123e+10 | N20: 0 | O20: FALSE | P20: 0 | Q20: 3.62501979e-09 | R20: 3.62501979e-09 | S20: 18301692.69 | T20: 0 | U20: FALSE | V20: 0 | W20: 1.175909938e-05 | X20: 1.175909938e-05 | Y20: 5792.036828 | Z20: 0 | AA20: FALSE | AB20: 0 | AC20: 0.03390466625 | AD20: 0.03390466625 | AE20: 2.007532201 | AF20: 0 | AG20: TRUE | AH20: 0.2608921411 | AI20: 107.1807162 | AJ20: 0 | AK20: 0.0006350462255 | AL20: 0.0006350462255 | AM20: FALSE | AN20: 0 | AO20: 338935.1845 | AP20: 0 | AQ20: 2.008192492e-07 | AR20: 2.008192492e-07 | AS20: FALSE | AT20: 0 | AU20: 1071807162 | AV20: 0
B21: 1 | C21: 12 | D21: 2278.824859 | F21: 12 | G21: 3 | H21: 3 | I21: 212.1118438 | J21: 1 | K21: 0.7190310459 | L21: 0.7190310459 | M21: 1.727939966e+11 | N21: 0 | O21: FALSE | P21: 0 | Q21: 9.24172728e-09 | R21: 9.24172728e-09 | S21: 54528278.04 | T21: 0 | U21: FALSE | V21: 0 | W21: 2.997897827e-05 | X21: 2.997897827e-05 | Y21: 17256.86251 | Z21: 0 | AA21: FALSE | AB21: 0 | AC21: 0.08643750854 | AD21: 0.08643750854 | AE21: 5.981265005 | AF21: 0 | AG21: TRUE | AH21: 0.7190310459 | AI21: 273.2495287 | AJ21: 0 | AK21: 0.001892064178 | AL21: 0.001892064178 | AM21: FALSE | AN21: 0 | AO21: 864090.8802 | AP21: 0 | AQ21: 5.983232283e-07 | AR21: 5.983232283e-07 | AS21: FALSE | AT21: 0 | AU21: 2732495287 | AV21: 0
B22: 1 | C22: 13 | D22: 2673.100536 | F22: 13 | G22: 5 | H22: 2 | I22: 258.0079969 | J22: 1 | K22: 0.1084834276 | L22: 0.1084834276 | M22: 2.542210541e+11 | N22: 0 | O22: FALSE | P22: 0 | Q22: 1.429887254e-10 | R22: 1.429887254e-10 | S22: 80224062.13 | T22: 0 | U22: FALSE | V22: 0 | W22: 4.638370905e-07 | X22: 4.638370905e-07 | Y22: 25388.94791 | Z22: 0 | AA22: FALSE | AB22: 0 | AC22: 0.001337367875 | AD22: 0.001337367875 | AE22: 8.799862982 | AF22: 0 | AG22: TRUE | AH22: 0.1084834276 | AI22: 4.227738024 | AJ22: 0 | AK22: 0.002783676281 | AL22: 0.002783676281 | AM22: FALSE | AN22: 0 | AO22: 13369.28151 | AP22: 0 | AQ22: 8.802757315e-07 | AR22: 8.802757315e-07 | AS22: FALSE | AT22: 0 | AU22: 42277380.24 | AV22: 0
B23: 1 | C23: 14 | D23: 3098.918268 | F23: 14 | G23: 1 | H23: 4 | I23: 260.1333892 | J23: 1 | K23: 0.4686160974 | L23: 0.4686160974 | M23: 1.208065931e+12 | N23: 0 | O23: FALSE | P23: 0 | Q23: 5.614748174e-10 | R23: 5.614748174e-10 | S23: 381227104.2 | T23: 0 | U23: FALSE | V23: 0 | W23: 1.821352312e-06 | X23: 1.821352312e-06 | Y23: 120649.0276 | Z23: 0 | AA23: FALSE | AB23: 0 | AC23: 0.005251451688 | AD23: 0.005251451688 | AE23: 41.81720786 | AF23: 0 | AG23: TRUE | AH23: 0.4686160974 | AI23: 16.60108815 | AJ23: 0 | AK23: 0.01322811161 | AL23: 0.01322811161 | AM23: FALSE | AN23: 0 | AO23: 52497.25018 | AP23: 0 | AQ23: 4.183096182e-06 | AR23: 4.183096182e-06 | AS23: FALSE | AT23: 0 | AU23: 166010881.5 | AV23: 0
B24: 1 | C24: 15 | D24: 3556.278054 | F24: 15 | G24: 4 | H24: 3 | I24: 266.6905326 | J24: 1 | K24: 0.3242101355 | L24: 0.3242101355 | M24: 1.116355723e+12 | N24: 0 | O24: FALSE | P24: 0 | Q24: 2.908285817e-10 | R24: 2.908285817e-10 | S24: 352286285.8 | T24: 0 | U24: FALSE | V24: 0 | W24: 9.434106273e-07 | X24: 9.434106273e-07 | Y24: 111489.9685 | Z24: 0 | AA24: FALSE | AB24: 0 | AC24: 0.002720108184 | AD24: 0.002720108184 | AE24: 38.64265861 | AF24: 0 | AG24: TRUE | AH24: 0.3242101355 | AI24: 8.598909106 | AJ24: 0 | AK24: 0.0122239008 | AL24: 0.0122239008 | AM24: FALSE | AN24: 0 | AO24: 27192.13817 | AP24: 0 | AQ24: 3.865536843e-06 | AR24: 3.865536843e-06 | AS24: FALSE | AT24: 0 | AU24: 85989091.06 | AV24: 0
B25: 1 | C25: 16 | D25: 4045.179894 | F25: 16 | G25: 2 | H25: 4 | I25: 283.5242558 | J25: 1 | K25: 0.727399208 | L25: 0.727399208 | M25: 5.10291435e+12 | N25: 0 | O25: FALSE | P25: 0 | Q25: 3.202682465e-10 | R25: 3.202682465e-10 | S25: 1610317129 | T25: 0 | U25: FALSE | V25: 0 | W25: 1.038909125e-06 | X25: 1.038909125e-06 | Y25: 509625.8729 | Z25: 0 | AA25: FALSE | AB25: 0 | AC25: 0.002995456201 | AD25: 0.002995456201 | AE25: 176.6374042 | AF25: 0 | AG25: TRUE | AH25: 0.727399208 | AI25: 9.469349695 | AJ25: 0 | AK25: 0.05587602368 | AL25: 0.05587602368 | AM25: FALSE | AN25: 0 | AO25: 29944.713 | AP25: 0 | AQ25: 1.766955014e-05 | AR25: 1.766955014e-05 | AS25: FALSE | AT25: 0 | AU25: 94693496.95 | AV25: 0
B26: 1 | C26: 17 | D26: 4565.623789 | F26: 17 | G26: 6 | H26: 1 | I26: 296.4614265 | J26: 1 | K26: 0.796950242 | L26: 0.796950242 | M26: 9.392463109e+12 | N26: 0 | O26: FALSE | P26: 0 | Q26: 2.088668077e-10 | R26: 2.088668077e-10 | S26: 2963962001 | T26: 0 | U26: FALSE | V26: 0 | W26: 6.77537142e-07 | X26: 6.77537142e-07 | Y26: 938021.2722 | Z26: 0 | AA26: FALSE | AB26: 0 | AC26: 0.001953522964 | AD26: 0.001953522964 | AE26: 325.1201547 | AF26: 0 | AG26: TRUE | AH26: 0.796950242 | AI26: 6.175550849 | AJ26: 0 | AK26: 0.1028458358 | AL26: 0.1028458358 | AM26: FALSE | AN26: 0 | AO26: 19528.80649 | AP26: 0 | AQ26: 3.252270888e-05 | AR26: 3.252270888e-05 | AS26: FALSE | AT26: 0 | AU26: 61755508.49 | AV26: 0
B27: 1 | C27: 18 | D27: 5117.609737 | F27: 18 | G27: 3 | H27: 4 | I27: 322.5090335 | J27: 1 | K27: 0.6604736002 | L27: 0.6604736002 | M27: 2.072224676e+13 | N27: 0 | O27: FALSE | P27: 0 | Q27: 6.502204113e-11 | R27: 6.502204113e-11 | S27: 6539280618 | T27: 0 | U27: FALSE | V27: 0 | W27: 2.10923164e-07 | X27: 2.10923164e-07 | Y27: 2069521.918 | Z27: 0 | AA27: FALSE | AB27: 0 | AC27: 0.0006081485707 | AD27: 0.0006081485707 | AE27: 717.300669 | AF27: 0 | AG27: TRUE | AH27: 0.6604736002 | AI27: 1.922502315 | AJ27: 0 | AK27: 0.2269049942 | AL27: 0.2269049942 | AM27: FALSE | AN27: 0 | AO27: 6079.486123 | AP27: 0 | AQ27: 7.17536594e-05 | AR27: 7.17536594e-05 | AS27: FALSE | AT27: 0 | AU27: 19225023.15 | AV27: 0
B28: 1 | C28: 19 | D28: 5701.13774 | F28: 19 | G28: 5 | H28: 3 | I28: 336.8631324 | J28: 1 | K28: 0.215782871 | L28: 0.215782871 | M28: 1.123255998e+13 | N28: 0 | O28: FALSE | P28: 0 | Q28: 1.280388312e-11 | R28: 1.280388312e-11 | S28: 3544637926 | T28: 0 | U28: FALSE | V28: 0 | W28: 4.153415505e-08 | X28: 4.153415505e-08 | Y28: 1121790.96 | Z28: 0 | AA28: FALSE | AB28: 0 | AC28: 0.0001197542107 | AD28: 0.0001197542107 | AE28: 388.8151166 | AF28: 0 | AG28: TRUE | AH28: 0.215782871 | AI28: 0.3785715506 | AJ28: 0 | AK28: 0.1229945761 | AL28: 0.1229945761 | AM28: FALSE | AN28: 0 | AO28: 1197.148357 | AP28: 0 | AQ28: 3.889430004e-05 | AR28: 3.889430004e-05 | AS28: FALSE | AT28: 0 | AU28: 3785715.506 | AV28: 0
B29: 1 | C29: 20 | D29: 6316.207797 | F29: 20 | G29: 6 | H29: 2 | I29: 343.7745078 | J29: 1 | K29: 0.3313855814 | L29: 0.3313855814 | M29: 2.184466924e+13 | N29: 0 | O29: FALSE | P29: 0 | Q29: 1.552774022e-11 | R29: 1.552774022e-11 | S29: 6893481378 | T29: 0 | U29: FALSE | V29: 0 | W29: 5.036999823e-08 | X29: 5.036999823e-08 | Y29: 2181617.771 | Z29: 0 | AA29: FALSE | AB29: 0 | AC29: 0.0001452303382 | AD29: 0.0001452303382 | AE29: 756.1533283 | AF29: 0 | AG29: TRUE | AH29: 0.3313855814 | AI29: 0.4591076504 | AJ29: 0 | AK29: 0.2391953248 | AL29: 0.2391953248 | AM29: FALSE | AN29: 0 | AO29: 1451.825866 | AP29: 0 | AQ29: 7.564020322e-05 | AR29: 7.564020322e-05 | AS29: FALSE | AT29: 0 | AU29: 4591076.504 | AV29: 0
B30: 2 | C30: 1 | D30: 46.95884926 | F30: 21 | G30: 4 | H30: 4 | I30: 377.0877223 | J30: 1 | K30: 0.2978066617 | L30: 0.2978066617 | M30: 5.754106695e+13 | N30: 0 | O30: FALSE | P30: 0 | Q30: 4.760772399e-12 | R30: 4.760772399e-12 | S30: 1.815812678e+10 | T30: 0 | U30: FALSE | V30: 0 | W30: 1.544333521e-08 | X30: 1.544333521e-08 | Y30: 5746601.738 | Z30: 0 | AA30: FALSE | AB30: 0 | AC30: 4.452731534e-05 | AD30: 4.452731534e-05 | AE30: 1991.784303 | AF30: 0 | AG30: FALSE | AH30: 0 | AI30: 0.1407614372 | AJ30: 0.1407614372 | AK30: 0.6300646648 | AL30: 0 | AM30: TRUE | AN30: 0.2978066617 | AO30: 445.1267482 | AP30: 0 | AQ30: 0.0001992439414 | AR30: 0.0001992439414 | AS30: FALSE | AT30: 0 | AU30: 1407614.372 | AV30: 0
B31: 2 | C31: 2 | D31: 94.27193057 | F31: 22 | G31: 7 | H31: 1 | I31: 397.8218485 | J31: 1 | K31: 0.9761566459 | L31: 0.9761566459 | M31: 3.514319035e+14 | N31: 0 | O31: FALSE | P31: 0 | Q31: 8.374991197e-12 | R31: 8.374991197e-12 | S31: 1.109007079e+11 | T31: 0 | U31: FALSE | V31: 0 | W31: 2.716739756e-08 | X31: 2.716739756e-08 | Y31: 35097353.84 | Z31: 0 | AA31: FALSE | AB31: 0 | AC31: 7.833096035e-05 | AD31: 7.833096035e-05 | AE31: 12164.81699 | AF31: 0 | AG31: FALSE | AH31: 0 | AI31: 0.2476228012 | AJ31: 0.2476228012 | AK31: 3.848118156 | AL31: 0 | AM31: TRUE | AN31: 0.9761566459 | AO31: 783.0520524 | AP31: 0 | AQ31: 0.001216881808 | AR31: 0.001216881808 | AS31: FALSE | AT31: 0 | AU31: 2476228.012 | AV31: 0
B32: 2 | C32: 3 | D32: 173.1270661 | F32: 23 | G32: 1 | H32: 5 | I32: 402.0726332 | J32: 1 | K32: 0.3153048867 | L32: 0.3153048867 | M32: 1.284458514e+14 | N32: 0 | O32: FALSE | P32: 0 | Q32: 2.390715156e-12 | R32: 2.390715156e-12 | S32: 4.053341688e+10 | T32: 0 | U32: FALSE | V32: 0 | W32: 7.755173416e-09 | X32: 7.755173416e-09 | Y32: 12827832.23 | Z32: 0 | AA32: FALSE | AB32: 0 | AC32: 2.236026399e-05 | AD32: 2.236026399e-05 | AE32: 4446.15375 | AF32: 0 | AG32: FALSE | AH32: 0 | AI32: 0.07068611416 | AJ32: 0.07068611416 | AK32: 1.40645971 | AL32: 0 | AM32: TRUE | AN32: 0.3153048867 | AO32: 223.5291197 | AP32: 0 | AQ32: 0.000444761612 | AR32: 0.000444761612 | AS32: FALSE | AT32: 0 | AU32: 706861.1416 | AV32: 0
B33: 2 | C33: 4 | D33: 283.5242558 | F33: 24 | G33: 6 | H33: 3 | I33: 422.6296433 | J33: 1 | K33: 0.6591544327 | L33: 0.6591544327 | M33: 4.794672212e+14 | N33: 0 | O33: FALSE | P33: 0 | Q33: 2.798993857e-12 | R33: 2.798993857e-12 | S33: 1.513045734e+11 | T33: 0 | U33: FALSE | V33: 0 | W33: 9.07957717e-09 | X33: 9.07957717e-09 | Y33: 47884186.24 | Z33: 0 | AA33: FALSE | AB33: 0 | AC33: 2.617887848e-05 | AD33: 2.617887848e-05 | AE33: 16596.76011 | AF33: 0 | AG33: FALSE | AH33: 0 | AI33: 0.08275766304 | AJ33: 0.08275766304 | AK33: 5.250082593 | AL33: 0 | AM33: TRUE | AN33: 0.6591544327 | AO33: 261.702709 | AP33: 0 | AQ33: 0.00166022189 | AR33: 0.00166022189 | AS33: FALSE | AT33: 0 | AU33: 827576.6304 | AV33: 0
B34: 2 | C34: 5 | D34: 425.4634998 | F34: 25 | G34: 2 | H34: 5 | I34: 425.4634998 | J34: 1 | K34: 0.489425195 | L34: 0.489425195 | M34: 3.847715866e+14 | N34: 0 | O34: FALSE | P34: 0 | Q34: 1.922897631e-12 | R34: 1.922897631e-12 | S34: 1.214216493e+11 | T34: 0 | U34: FALSE | V34: 0 | W34: 6.237633349e-09 | X34: 6.237633349e-09 | Y34: 38426973.73 | Z34: 0 | AA34: FALSE | AB34: 0 | AC34: 1.798478524e-05 | AD34: 1.798478524e-05 | AE34: 13318.87028 | AF34: 0 | AG34: FALSE | AH34: 0 | AI34: 0.05685418486 | AJ34: 0.05685418486 | AK34: 4.213181881 | AL34: 0 | AM34: TRUE | AN34: 0.489425195 | AO34: 179.7887187 | AP34: 0 | AQ34: 0.001332325094 | AR34: 0.001332325094 | AS34: FALSE | AT34: 0 | AU34: 568541.8486 | AV34: 0
B35: 2 | C35: 6 | D35: 598.9447979 | F35: 26 | G35: 7 | H35: 2 | I35: 445.1349298 | J35: 1 | K35: 0.4059026782 | L35: 0.4059026782 | M35: 5.397147583e+14 | N35: 0 | O35: FALSE | P35: 0 | Q35: 9.429009063e-13 | R35: 9.429009063e-13 | S35: 1.703167759e+11 | T35: 0 | U35: FALSE | V35: 0 | W35: 3.058649636e-09 | X35: 3.058649636e-09 | Y35: 53901081.99 | Z35: 0 | AA35: FALSE | AB35: 0 | AC35: 8.818914763e-06 | AD35: 8.818914763e-06 | AE35: 18682.22889 | AF35: 0 | AG35: FALSE | AH35: 0 | AI35: 0.02787868766 | AJ35: 0.02787868766 | AK35: 5.909782635 | AL35: 0 | AM35: TRUE | AN35: 0.4059026782 | AO35: 88.16015117 | AP35: 0 | AQ35: 0.00186883736 | AR35: 0.00186883736 | AS35: FALSE | AT35: 0 | AU35: 278786.8766 | AV35: 0
B36: 2 | C36: 7 | D36: 803.9681503 | F36: 27 | G36: 5 | H36: 4 | I36: 447.2603221 | J36: 1 | K36: 0.1982096468 | L36: 0.1982096468 | M36: 2.785604078e+14 | N36: 0 | O36: FALSE | P36: 0 | Q36: 4.356289156e-13 | R36: 4.356289156e-13 | S36: 8.790478643e+10 | T36: 0 | U36: FALSE | V36: 0 | W36: 1.413124344e-09 | X36: 1.413124344e-09 | Y36: 27819708.75 | Z36: 0 | AA36: FALSE | AB36: 0 | AC36: 4.074419962e-06 | AD36: 4.074419962e-06 | AE36: 9642.369826 | AF36: 0 | AG36: FALSE | AH36: 0 | AI36: 0.01288021084 | AJ36: 0.01288021084 | AK36: 3.050187966 | AL36: 0 | AM36: TRUE | AN36: 0.1982096468 | AO36: 40.73080299 | AP36: 0 | AQ36: 0.0009645541265 | AR36: 0.0009645541265 | AS36: FALSE | AT36: 0 | AU36: 128802.1084 | AV36: 0
B37: 2 | C37: 8 | D37: 1040.533557 | F37: 28 | G37: 3 | H37: 5 | I37: 464.4482775 | J37: 1 | K37: 0.4443947932 | L37: 0.4443947932 | M37: 968221312410488 | N37: 0 | O37: FALSE | P37: 0 | Q37: 6.300134176e-13 | R37: 6.300134176e-13 | S37: 3.05539787e+11 | T37: 0 | U37: FALSE | V37: 0 | W37: 2.043682743e-09 | X37: 2.043682743e-09 | Y37: 96695848.22 | Z37: 0 | AA37: FALSE | AB37: 0 | AC37: 5.892490496e-06 | AD37: 5.892490496e-06 | AE37: 33514.98528 | AF37: 0 | AG37: FALSE | AH37: 0 | AI37: 0.01862756433 | AJ37: 0.01862756433 | AK37: 10.6018548 | AL37: 0 | AM37: TRUE | AN37: 0.4443947932 | AO37: 58.90553054 | AP37: 0 | AQ37: 0.003352600858 | AR37: 0.003352600858 | AS37: FALSE | AT37: 0 | AU37: 186275.6433 | AV37: 0
B38: 2 | C38: 9 | D38: 1308.641018 | F38: 29 | G38: 8 | H38: 1 | I38: 514.7761816 | J38: 1 | K38: 0.7182678116 | L38: 0.7182678116 | M38: 5175923412631015 | N38: 0 | O38: FALSE | P38: 0 | Q38: 3.078729128e-13 | R38: 3.078729128e-13 | S38: 1.633356462e+12 | T38: 0 | U38: FALSE | V38: 0 | W38: 9.98700252e-10 | X38: 9.98700252e-10 | Y38: 516917256.7 | Z38: 0 | AA38: FALSE | AB38: 0 | AC38: 2.879523137e-06 | AD38: 2.879523137e-06 | AE38: 179164.6132 | AF38: 0 | AG38: FALSE | AH38: 0 | AI38: 0.009102857698 | AJ38: 0.009102857698 | AK38: 56.6754602 | AL38: 0 | AM38: TRUE | AN38: 0.7182678116 | AO38: 28.78576354 | AP38: 0 | AQ38: 0.01792235417 | AR38: 0.01792235417 | AS38: FALSE | AT38: 0 | AU38: 91028.57698 | AV38: 0
B39: 2 | C39: 10 | D39: 1608.290533 | F39: 30 | G39: 4 | H39: 5 | I39: 519.0269662 | J39: 1 | K39: 0.200377017 | L39: 0.200377017 | M39: 1.588817529e+15 | N39: 0 | O39: FALSE | P39: 0 | Q39: 7.805636172e-14 | R39: 7.805636172e-14 | S39: 5.013801734e+11 | T39: 0 | U39: FALSE | V39: 0 | W39: 2.532048286e-10 | X39: 2.532048286e-10 | Y39: 158674526.9 | Z39: 0 | AA39: FALSE | AB39: 0 | AC39: 7.30058054e-07 | AD39: 7.30058054e-07 | AE39: 54996.92624 | AF39: 0 | AG39: FALSE | AH39: 0 | AI39: 0.002307887195 | AJ39: 0.002307887195 | AK39: 17.39727532 | AL39: 0 | AM39: TRUE | AN39: 0.200377017 | AO39: 7.298180119 | AP39: 0 | AQ39: 0.00550150151 | AR39: 0.00550150151 | AS39: FALSE | AT39: 0 | AU39: 23078.87195 | AV39: 0
B40: 2 | C40: 11 | D40: 1939.482102 | F40: 31 | G40: 7 | H40: 3 | I40: 523.9900653 | J40: 1 | K40: 0.8073753494 | L40: 0.8073753494 | M40: 7150830287631808 | N40: 0 | O40: FALSE | P40: 0 | Q40: 2.815665201e-13 | R40: 2.815665201e-13 | S40: 2.256574127e+12 | T40: 0 | U40: FALSE | V40: 0 | W40: 9.133656871e-10 | X40: 9.133656871e-10 | Y40: 714150361.4 | Z40: 0 | AA40: FALSE | AB40: 0 | AC40: 2.63348049e-06 | AD40: 2.63348049e-06 | AE40: 247526.024 | AF40: 0 | AG40: FALSE | AH40: 0 | AI40: 0.008325058354 | AJ40: 0.008325058354 | AK40: 78.30034664 | AL40: 0 | AM40: TRUE | AN40: 0.8073753494 | AO40: 26.32614605 | AP40: 0 | AQ40: 0.0247607437 | AR40: 0.0247607437 | AS40: FALSE | AT40: 0 | AU40: 83250.58354 | AV40: 0
B41: 2 | C41: 12 | D41: 2302.215725 | F41: 32 | G41: 6 | H41: 4 | I41: 533.0268331 | J41: 1 | K41: 0.6054733016 | L41: 0.6054733016 | M41: 6542088899576550 | N41: 0 | O41: FALSE | P41: 0 | Q41: 1.73085253e-13 | R41: 1.73085253e-13 | S41: 2.064474747e+12 | T41: 0 | U41: FALSE | V41: 0 | W41: 5.614663667e-10 | X41: 5.614663667e-10 | Y41: 653355619.4 | Z41: 0 | AA41: FALSE | AB41: 0 | AC41: 1.618859503e-06 | AD41: 1.618859503e-06 | AE41: 226454.438 | AF41: 0 | AG41: FALSE | AH41: 0 | AI41: 0.005117600029 | AJ41: 0.005117600029 | AK41: 71.63473443 | AL41: 0 | AM41: TRUE | AN41: 0.6054733016 | AO41: 16.18327225 | AP41: 0 | AQ41: 0.02265289204 | AR41: 0.02265289204 | AS41: FALSE | AT41: 0 | AU41: 51176.00029 | AV41: 0
B42: 2 | C42: 13 | D42: 2696.491403 | F42: 33 | G42: 8 | H42: 2 | I42: 562.0892629 | J42: 1 | K42: 0.2986680771 | L42: 0.2986680771 | M42: 5982450073092702 | N42: 0 | O42: FALSE | P42: 0 | Q42: 4.605587548e-14 | R42: 4.605587548e-14 | S42: 1.88787057e+12 | T42: 0 | U42: FALSE | V42: 0 | W42: 1.493993545e-10 | X42: 1.493993545e-10 | Y42: 597464729.2 | Z42: 0 | AA42: FALSE | AB42: 0 | AC42: 4.307587758e-07 | AD42: 4.307587758e-07 | AE42: 207082.5374 | AF42: 0 | AG42: FALSE | AH42: 0 | AI42: 0.001361730971 | AJ42: 0.001361730971 | AK42: 65.50678671 | AL42: 0 | AM42: TRUE | AN42: 0.2986680771 | AO42: 4.30617143 | AP42: 0 | AQ42: 0.02071506482 | AR42: 0.02071506482 | AS42: FALSE | AT42: 0 | AU42: 13617.30971 | AV42: 0
B43: 2 | C43: 14 | D43: 3122.309135 | F43: 34 | G43: 1 | H43: 6 | I43: 575.5539313 | J43: 1 | K43: 0.599725278 | L43: 0.599725278 | M43: 1.581882251e+16 | N43: 0 | O43: FALSE | P43: 0 | Q43: 7.022909453e-14 | R43: 7.022909453e-14 | S43: 4.991916205e+12 | T43: 0 | U43: FALSE | V43: 0 | W43: 2.278141775e-10 | X43: 2.278141775e-10 | Y43: 1579819036 | Z43: 0 | AA43: FALSE | AB43: 0 | AC43: 6.568499345e-07 | AD43: 6.568499345e-07 | AE43: 547568.6154 | AF43: 0 | AG43: FALSE | AH43: 0 | AI43: 0.002076458913 | AJ43: 0.002076458913 | AK43: 173.2133523 | AL43: 0 | AM43: TRUE | AN43: 0.599725278 | AO43: 6.566339632 | AP43: 0 | AQ43: 0.05477487144 | AR43: 0.05477487144 | AS43: FALSE | AT43: 0 | AU43: 20764.58913 | AV43: 0
B44: 2 | C44: 15 | D44: 3579.668921 | F44: 35 | G44: 5 | H44: 5 | I44: 589.1995661 | J44: 1 | K44: 0.1333638998 | L44: 0.1333638998 | M44: 4619324298174454 | N44: 0 | O44: FALSE | P44: 0 | Q44: 1.189281418e-14 | R44: 1.189281418e-14 | S44: 1.457711521e+12 | T44: 0 | U44: FALSE | V44: 0 | W44: 3.857876424e-11 | X44: 3.857876424e-11 | Y44: 461329941.3 | Z44: 0 | AA44: FALSE | AB44: 0 | AC44: 1.112330191e-07 | AD44: 1.112330191e-07 | AE44: 159897.9323 | AF44: 0 | AG44: FALSE | AH44: 0 | AI44: 0.0003516340367 | AJ44: 0.0003516340367 | AK44: 50.58079681 | AL44: 0 | AM44: TRUE | AN44: 0.1333638998 | AO44: 1.111964459 | AP44: 0 | AQ44: 0.01599505238 | AR44: 0.01599505238 | AS44: FALSE | AT44: 0 | AU44: 3516.340367 | AV44: 0
B45: 2 | C45: 16 | D45: 4068.570761 | F45: 36 | G45: 2 | H45: 6 | I45: 598.9447979 | J45: 1 | K45: 0.9309105996 | L45: 0.9309105996 | M45: 3.901948224e+16 | N45: 0 | O45: FALSE | P45: 0 | Q45: 6.859950179e-14 | R45: 6.859950179e-14 | S45: 1.231330496e+13 | T45: 0 | U45: FALSE | V45: 0 | W45: 2.225279876e-10 | X45: 2.225279876e-10 | Y45: 3896858997 | Z45: 0 | AA45: FALSE | AB45: 0 | AC45: 6.416084183e-07 | AD45: 6.416084183e-07 | AE45: 1350659.561 | AF45: 0 | AG45: FALSE | AH45: 0 | AI45: 0.002028276854 | AJ45: 0.002028276854 | AK45: 427.2565369 | AL45: 0 | AM45: TRUE | AN45: 0.9309105996 | AO45: 6.413974583 | AP45: 0 | AQ45: 0.1351103802 | AR45: 0.1351103802 | AS45: FALSE | AT45: 0 | AU45: 20282.76854 | AV45: 0
B46: 2 | C46: 17 | D46: 4589.014655 | F46: 37 | G46: 7 | H46: 4 | I46: 634.3872551 | J46: 1 | K46: 0.7416231981 | L46: 0.7416231981 | M46: 6.065260255e+16 | N46: 0 | O46: FALSE | P46: 0 | Q46: 2.80093922e-14 | R46: 2.80093922e-14 | S46: 1.914002824e+13 | T46: 0 | U46: FALSE | V46: 0 | W46: 9.085887678e-11 | X46: 9.085887678e-11 | Y46: 6057349467 | Z46: 0 | AA46: FALSE | AB46: 0 | AC46: 2.619707339e-07 | AD46: 2.619707339e-07 | AE46: 2099490.122 | AF46: 0 | AG46: FALSE | AH46: 0 | AI46: 0.0008281518146 | AJ46: 0.0008281518146 | AK46: 664.1354378 | AL46: 0 | AM46: TRUE | AN46: 0.7416231981 | AO46: 2.618845983 | AP46: 0 | AQ46: 0.2100180658 | AR46: 0.2100180658 | AS46: FALSE | AT46: 0 | AU46: 8281.518146 | AV46: 0
B47: 2 | C47: 18 | D47: 5141.000604 | F47: 38 | G47: 3 | H47: 6 | I47: 637.9295756 | J47: 1 | K47: 0.8452605784 | L47: 0.8452605784 | M47: 7.375196142e+16 | N47: 0 | O47: FALSE | P47: 0 | Q47: 2.992224453e-14 | R47: 2.992224453e-14 | S47: 2.32737684e+13 | T47: 0 | U47: FALSE | V47: 0 | W47: 9.706392445e-11 | X47: 9.706392445e-11 | Y47: 7365576833 | Z47: 0 | AA47: FALSE | AB47: 0 | AC47: 2.798615658e-07 | AD47: 2.798615658e-07 | AE47: 2552924.491 | AF47: 0 | AG47: FALSE | AH47: 0 | AI47: 0.0008847089906 | AJ47: 0.0008847089906 | AK47: 807.5711368 | AL47: 0 | AM47: TRUE | AN47: 0.8452605784 | AO47: 2.797695477 | AP47: 0 | AQ47: 0.2553764165 | AR47: 0.2553764165 | AS47: FALSE | AT47: 0 | AU47: 8847.089906 | AV47: 0
B48: 2 | C48: 19 | D48: 5724.528607 | F48: 39 | G48: 8 | H48: 3 | I48: 640.9443984 | J48: 1 | K48: 0.5940765018 | L48: 0.5940765018 | M48: 5.47560972e+16 | N48: 0 | O48: FALSE | P48: 0 | Q48: 1.990851087e-14 | R48: 1.990851087e-14 | S48: 1.727927909e+13 | T48: 0 | U48: FALSE | V48: 0 | W48: 6.458065649e-11 | X48: 6.458065649e-11 | Y48: 5468468000 | Z48: 0 | AA48: FALSE | AB48: 0 | AC48: 1.862035122e-07 | AD48: 1.862035122e-07 | AE48: 1895382.562 | AF48: 0 | AG48: FALSE | AH48: 0 | AI48: 0.0005886336015 | AJ48: 0.0005886336015 | AK48: 599.5697309 | AL48: 0 | AM48: TRUE | AN48: 0.5940765018 | AO48: 1.861422888 | AP48: 0 | AQ48: 0.1896005966 | AR48: 0.1896005966 | AS48: FALSE | AT48: 0 | AU48: 5886.336015 | AV48: 0
B49: 2 | C49: 20 | D49: 6339.598664 | F49: 40 | G49: 9 | H49: 1 | I49: 647.3244258 | J49: 1 | K49: 0.1387590391 | L49: 0.1387590391 | M49: 1.435044809e+16 | N49: 0 | O49: FALSE | P49: 0 | Q49: 4.144227793e-15 | R49: 4.144227793e-15 | S49: 4.528544038e+12 | T49: 0 | U49: FALSE | V49: 0 | W49: 1.344334357e-11 | X49: 1.344334357e-11 | Y49: 1433173111 | Z49: 0 | AA49: FALSE | AB49: 0 | AC49: 3.876079811e-08 | AD49: 3.876079811e-08 | AE49: 496740.8279 | AF49: 0 | AG49: FALSE | AH49: 0 | AI49: 0.0001225321043 | AJ49: 0.0001225321043 | AK49: 157.134908 | AL49: 0 | AM49: TRUE | AN49: 0.1387590391 | AO49: 0.3874805362 | AP49: 0 | AQ49: 0.04969042093 | AR49: 0.04969042093 | AS49: FALSE | AT49: 0 | AU49: 1225.321043 | AV49: 0
B50: 3 | C50: 1 | D50: 85.94362695 | F50: 41 | G50: 6 | H50: 5 | I50: 674.966077 | J50: 1 | K50: 0.4073882477 | L50: 0.4073882477 | M50: 6.850998313e+16 | N50: 0 | O50: FALSE | P50: 0 | Q50: 7.482550307e-15 | R50: 7.482550307e-15 | S50: 2.161956713e+13 | T50: 0 | U50: FALSE | V50: 0 | W50: 2.427243374e-11 | X50: 2.427243374e-11 | Y50: 6842062704 | Z50: 0 | AA50: FALSE | AB50: 0 | AC50: 6.998399612e-08 | AD50: 6.998399612e-08 | AE50: 2371473.388 | AF50: 0 | AG50: FALSE | AH50: 0 | AI50: 0.0002212360615 | AJ50: 0.0002212360615 | AK50: 750.1723872 | AL50: 0 | AM50: TRUE | AN50: 0.4073882477 | AO50: 0.6996098548 | AP50: 0 | AQ50: 0.2372253381 | AR50: 0.2372253381 | AS50: FALSE | AT50: 0 | AU50: 2212.360615 | AV50: 0
B51: 3 | C51: 2 | D51: 133.2567083 | F51: 42 | G51: 4 | H51: 6 | I51: 692.5082644 | J51: 1 | K51: 0.3811268626 | L51: 0.3811268626 | M51: 8.63717955e+16 | N51: 0 | O51: FALSE | P51: 0 | Q51: 5.194618825e-15 | R51: 5.194618825e-15 | S51: 2.725618582e+13 | T51: 0 | U51: FALSE | V51: 0 | W51: 1.685067738e-11 | X51: 1.685067738e-11 | Y51: 8625914263 | Z51: 0 | AA51: FALSE | AB51: 0 | AC51: 4.858506375e-08 | AD51: 4.858506375e-08 | AE51: 2989760.107 | AF51: 0 | AG51: FALSE | AH51: 0 | AI51: 0.0001535889453 | AJ51: 0.0001535889453 | AK51: 945.7561228 | AL51: 0 | AM51: TRUE | AN51: 0.3811268626 | AO51: 0.4856908905 | AP51: 0 | AQ51: 0.2990743459 | AR51: 0.2990743459 | AS51: FALSE | AT51: 0 | AU51: 1535.889453 | AV51: 0
B52: 3 | C52: 3 | D52: 212.1118438 | F52: 43 | G52: 9 | H52: 2 | I52: 694.6375071 | J52: 1 | K52: 0.05769838873 | L52: 0.05769838873 | M52: 1.355088482e+16 | N52: 0 | O52: FALSE | P52: 0 | Q52: 7.588330366e-16 | R52: 7.588330366e-16 | S52: 4.276227355e+12 | T52: 0 | U52: FALSE | V52: 0 | W52: 2.461557069e-12 | X52: 2.461557069e-12 | Y52: 1353321069 | Z52: 0 | AA52: FALSE | AB52: 0 | AC52: 7.097335281e-09 | AD52: 7.097335281e-09 | AE52: 469063.9417 | AF52: 0 | AG52: FALSE | AH52: 0 | AI52: 2.243636534e-05 | AJ52: 2.243636534e-05 | AK52: 148.3798295 | AL52: 0 | AM52: TRUE | AN52: 0.05769838873 | AO52: 0.07095001688 | AP52: 0 | AQ52: 0.04692182199 | AR52: 0.04692182199 | AS52: FALSE | AT52: 0 | AU52: 224.3636534 | AV52: 0
B53: 3 | C53: 4 | D53: 322.5090335 | F53: 44 | G53: 8 | H53: 4 | I53: 751.3415882 | J53: 1 | K53: 0.5456952773 | L53: 0.5456952773 | M53: 3.191423474e+17 | N53: 0 | O53: FALSE | P53: 0 | Q53: 2.882056355e-15 | R53: 2.882056355e-15 | S53: 1.007111531e+14 | T53: 0 | U53: FALSE | V53: 0 | W53: 9.349021261e-12 | X53: 9.349021261e-12 | Y53: 3.187260969e+10 | Z53: 0 | AA53: FALSE | AB53: 0 | AC53: 2.695575873e-08 | AD53: 2.695575873e-08 | AE53: 11047113.85 | AF53: 0 | AG53: FALSE | AH53: 0 | AI53: 8.521356632e-05 | AJ53: 8.521356632e-05 | AK53: 3494.553139 | AL53: 0 | AM53: FALSE | AN53: 0 | AO53: 0.2694689571 | AP53: 0.2694689571 | AQ53: 1.105074732 | AR53: 0 | AS53: TRUE | AT53: 0.5456952773 | AU53: 852.1356632 | AV53: 0
B54: 3 | C54: 5 | D54: 464.4482775 | F54: 45 | G54: 5 | H54: 6 | I54: 762.6808642 | J54: 1 | K54: 0.2536646441 | L54: 0.2536646441 | M54: 1.765757574e+17 | N54: 0 | O54: FALSE | P54: 0 | Q54: 1.125577269e-15 | R54: 1.125577269e-15 | S54: 5.57216812e+13 | T54: 0 | U54: FALSE | V54: 0 | W54: 3.651228333e-12 | X54: 3.651228333e-12 | Y54: 1.763454534e+10 | Z54: 0 | AA54: FALSE | AB54: 0 | AC54: 1.052747953e-08 | AD54: 1.052747953e-08 | AE54: 6112170.671 | AF54: 0 | AG54: FALSE | AH54: 0 | AI54: 3.327986738e-05 | AJ54: 3.327986738e-05 | AK54: 1933.4738 | AL54: 0 | AM54: FALSE | AN54: 0 | AO54: 0.1052401811 | AP54: 0.1052401811 | AQ54: 0.6114181005 | AR54: 0 | AS54: TRUE | AT54: 0.2536646441 | AU54: 332.7986738 | AV54: 0
B55: 3 | C55: 6 | D55: 637.9295756 | F55: 46 | G55: 9 | H55: 3 | I55: 773.4926426 | J55: 1 | K55: 0.1147670594 | L55: 0.1147670594 | M55: 9.409501675e+16 | N55: 0 | O55: FALSE | P55: 0 | Q55: 4.323688497e-16 | R55: 4.323688497e-16 | S55: 2.969338829e+13 | T55: 0 | U55: FALSE | V55: 0 | W55: 1.402549108e-12 | X55: 1.402549108e-12 | Y55: 9397229065 | Z55: 0 | AA55: FALSE | AB55: 0 | AC55: 4.043928695e-09 | AD55: 4.043928695e-09 | AE55: 3257099.447 | AF55: 0 | AG55: FALSE | AH55: 0 | AI55: 1.278382069e-05 | AJ55: 1.278382069e-05 | AK55: 1030.324051 | AL55: 0 | AM55: FALSE | AN55: 0 | AO55: 0.04042599057 | AP55: 0.04042599057 | AQ55: 0.3258170729 | AR55: 0 | AS55: TRUE | AT55: 0.1147670594 | AU55: 127.8382069 | AV55: 0
B56: 3 | C56: 7 | D56: 842.952928 | F56: 47 | G56: 7 | H56: 5 | I56: 776.326499 | J56: 1 | K56: 0.498995702 | L56: 0.498995702 | M56: 4.268861352e+17 | N56: 0 | O56: FALSE | P56: 0 | Q56: 1.80164024e-15 | R56: 1.80164024e-15 | S56: 1.347116585e+14 | T56: 0 | U56: FALSE | V56: 0 | W56: 5.844289924e-12 | X56: 5.844289924e-12 | Y56: 4.263293568e+10 | Z56: 0 | AA56: FALSE | AB56: 0 | AC56: 1.685066968e-08 | AD56: 1.685066968e-08 | AE56: 14776665.57 | AF56: 0 | AG56: FALSE | AH56: 0 | AI56: 5.326897576e-05 | AJ56: 5.326897576e-05 | AK56: 4674.328856 | AL56: 0 | AM56: FALSE | AN56: 0 | AO56: 0.168451292 | AP56: 0.168451292 | AQ56: 1.478152572 | AR56: 0 | AS56: TRUE | AT56: 0.498995702 | AU56: 532.6897576 | AV56: 0
B57: 3 | C57: 8 | D57: 1079.518335 | F57: 48 | G57: 1 | H57: 7 | I57: 780.5772837 | J57: 1 | K57: 0.06592882851 | L57: 0.06592882851 | M57: 6.009846934e+16 | N57: 0 | O57: FALSE | P57: 0 | Q57: 2.23395191e-16 | R57: 2.23395191e-16 | S57: 1.896516146e+13 | T57: 0 | U57: FALSE | V57: 0 | W57: 7.246653547e-13 | X57: 7.246653547e-13 | Y57: 6002008420 | Z57: 0 | AA57: FALSE | AB57: 0 | AC57: 2.089406357e-09 | AD57: 2.089406357e-09 | AE57: 2080308.798 | AF57: 0 | AG57: FALSE | AH57: 0 | AI57: 6.605110582e-06 | AJ57: 6.605110582e-06 | AK57: 658.0677757 | AL57: 0 | AM57: FALSE | AN57: 0 | AO57: 0.02088719364 | AP57: 0.02088719364 | AQ57: 0.2080993026 | AR57: 0 | AS57: TRUE | AT57: 0.06592882851 | AU57: 66.05110582 | AV57: 0
B58: 3 | C58: 9 | D58: 1347.625795 | F58: 49 | G58: 10 | H58: 1 | I58: 795.466581 | J58: 1 | K58: 0.5028820924 | L58: 0.5028820924 | M58: 5.710362451e+17 | N58: 0 | O58: FALSE | P58: 0 | Q58: 1.367902615e-15 | R58: 1.367902615e-15 | S58: 1.802008389e+14 | T58: 0 | U58: FALSE | V58: 0 | W58: 4.437300683e-12 | X58: 4.437300683e-12 | Y58: 5.702914548e+10 | Z58: 0 | AA58: FALSE | AB58: 0 | AC58: 1.279393888e-08 | AD58: 1.279393888e-08 | AE58: 19766422.31 | AF58: 0 | AG58: FALSE | AH58: 0 | AI58: 4.044468458e-05 | AJ58: 4.044468458e-05 | AK58: 6252.747462 | AL58: 0 | AM58: FALSE | AN58: 0 | AO58: 0.1278973225 | AP58: 0.1278973225 | AQ58: 1.977292361 | AR58: 0 | AS58: TRUE | AT58: 0.5028820924 | AU58: 404.4468458 | AV58: 0
B59: 3 | C59: 10 | D59: 1647.27531 | F59: 50 | G59: 2 | H59: 7 | I59: 803.9681503 | J59: 1 | K59: 0.102336599 | L59: 0.102336599 | M59: 1.314946492e+17 | N59: 0 | O59: FALSE | P59: 0 | Q59: 2.460029935e-16 | R59: 2.460029935e-16 | S59: 4.149552028e+13 | T59: 0 | U59: FALSE | V59: 0 | W59: 7.980021671e-13 | X59: 7.980021671e-13 | Y59: 1.313231436e+10 | Z59: 0 | AA59: FALSE | AB59: 0 | AC59: 2.300856237e-09 | AD59: 2.300856237e-09 | AE59: 4551687.899 | AF59: 0 | AG59: FALSE | AH59: 0 | AI59: 7.273553957e-06 | AJ59: 7.273553957e-06 | AK59: 1439.843514 | AL59: 0 | AM59: FALSE | AN59: 0 | AO59: 0.02300099719 | AP59: 0.02300099719 | AQ59: 0.455318498 | AR59: 0 | AS59: TRUE | AT59: 0.102336599 | AU59: 72.73553957 | AV59: 0
B60: 3 | C60: 11 | D60: 1978.46688 | F60: 51 | G60: 10 | H60: 2 | I60: 842.7796623 | J60: 1 | K60: 0.2091070004 | L60: 0.2091070004 | M60: 4.648423633e+17 | N60: 0 | O60: FALSE | P60: 0 | Q60: 2.905480447e-16 | R60: 2.905480447e-16 | S60: 1.466894344e+14 | T60: 0 | U60: FALSE | V60: 0 | W60: 9.425006013e-13 | X60: 9.425006013e-13 | Y60: 4.642360795e+10 | Z60: 0 | AA60: FALSE | AB60: 0 | AC60: 2.717484333e-09 | AD60: 2.717484333e-09 | AE60: 16090520.59 | AF60: 0 | AG60: FALSE | AH60: 0 | AI60: 8.590614488e-06 | AJ60: 8.590614488e-06 | AK60: 5089.942946 | AL60: 0 | AM60: FALSE | AN60: 0 | AO60: 0.02716590828 | AP60: 0.02716590828 | AQ60: 1.609581287 | AR60: 0 | AS60: TRUE | AT60: 0.2091070004 | AU60: 85.90614488 | AV60: 0
B61: 3 | C61: 12 | D61: 2341.200503 | F61: 52 | G61: 3 | H61: 7 | I61: 842.952928 | J61: 1 | K61: 0.09292094523 | L61: 0.09292094523 | M61: 2.070564412e+17 | N61: 0 | O61: FALSE | P61: 0 | Q61: 1.288027116e-16 | R61: 1.288027116e-16 | S61: 6.534041352e+13 | T61: 0 | U61: FALSE | V61: 0 | W61: 4.178194807e-13 | X61: 4.178194807e-13 | Y61: 2.067863819e+10 | Z61: 0 | AA61: FALSE | AB61: 0 | AC61: 1.204686651e-09 | AD61: 1.204686651e-09 | AE61: 7167259.683 | AF61: 0 | AG61: FALSE | AH61: 0 | AI61: 3.808301108e-06 | AJ61: 3.808301108e-06 | AK61: 2267.231981 | AL61: 0 | AM61: FALSE | AN61: 0 | AO61: 0.01204290552 | AP61: 0.01204290552 | AQ61: 0.7169617043 | AR61: 0 | AS61: TRUE | AT61: 0.09292094523 | AU61: 38.08301108 | AV61: 0
B62: 3 | C62: 13 | D62: 2735.476181 | F62: 53 | G62: 6 | H62: 6 | I62: 848.4473752 | J62: 1 | K62: 0.7748723233 | L62: 0.7748723233 | M62: 1.862134972e+18 | N62: 0 | O62: FALSE | P62: 0 | Q62: 9.959456869e-16 | R62: 9.959456869e-16 | S62: 5.87630447e+14 | T62: 0 | U62: FALSE | V62: 0 | W62: 3.230720103e-12 | X62: 3.230720103e-12 | Y62: 1.859706229e+11 | Z62: 0 | AA62: FALSE | AB62: 0 | AC62: 9.315040491e-09 | AD62: 9.315040491e-09 | AE62: 64457810.79 | AF62: 0 | AG62: FALSE | AH62: 0 | AI62: 2.944705911e-05 | AJ62: 2.944705911e-05 | AK62: 20390.05373 | AL62: 0 | AM62: FALSE | AN62: 0 | AO62: 0.09311977719 | AP62: 0.09311977719 | AQ62: 6.447901139 | AR62: 0 | AS62: TRUE | AT62: 0.7748723233 | AU62: 294.4705911 | AV62: 0
B63: 3 | C63: 14 | D63: 3161.293912 | F63: 54 | G63: 9 | H63: 4 | I63: 883.8898323 | J63: 1 | K63: 0.1054205007 | L63: 0.1054205007 | M63: 4.0770959e+17 | N63: 0 | O63: FALSE | P63: 0 | Q63: 8.419489034e-17 | R63: 8.419489034e-17 | S63: 1.286601521e+14 | T63: 0 | U63: FALSE | V63: 0 | W63: 2.731174283e-13 | X63: 2.731174283e-13 | Y63: 4.071778232e+10 | Z63: 0 | AA63: FALSE | AB63: 0 | AC63: 7.874714685e-10 | AD63: 7.874714685e-10 | AE63: 14112869.37 | AF63: 0 | AG63: FALSE | AH63: 0 | AI63: 2.489384658e-06 | AJ63: 2.489384658e-06 | AK63: 4464.349026 | AL63: 0 | AM63: FALSE | AN63: 0 | AO63: 0.00787212549 | AP63: 0.00787212549 | AQ63: 1.411751119 | AR63: 0 | AS63: TRUE | AT63: 0.1054205007 | AU63: 24.89384658 | AV63: 0
B64: 3 | C64: 15 | D64: 3618.653698 | F64: 55 | G64: 8 | H64: 5 | I64: 893.2808321 | J64: 1 | K64: 0.3671670447 | L64: 0.3671670447 | M64: 1.605664814e+18 | N64: 0 | O64: FALSE | P64: 0 | Q64: 2.593337324e-16 | R64: 2.593337324e-16 | S64: 5.066966396e+14 | T64: 0 | U64: FALSE | V64: 0 | W64: 8.412453747e-13 | X64: 8.412453747e-13 | Y64: 1.60357058e+11 | Z64: 0 | AA64: FALSE | AB64: 0 | AC64: 2.425538109e-09 | AD64: 2.425538109e-09 | AE64: 55580095.09 | AF64: 0 | AG64: FALSE | AH64: 0 | AI64: 7.667703017e-06 | AJ64: 7.667703017e-06 | AK64: 17581.75016 | AL64: 0 | AM64: FALSE | AN64: 0 | AO64: 0.02424740595 | AP64: 0.02424740595 | AQ64: 5.559837575 | AR64: 0 | AS64: TRUE | AT64: 0.3671670447 | AU64: 76.67703017 | AV64: 0
B65: 3 | C65: 16 | D65: 4107.555539 | F65: 56 | G65: 4 | H65: 7 | I65: 897.5316168 | J65: 1 | K65: 0.04189792974 | L65: 0.04189792974 | M65: 1.936221799e+17 | N65: 0 | O65: FALSE | P65: 0 | Q65: 2.800377221e-17 | R65: 2.800377221e-17 | S65: 6.110098884e+13 | T65: 0 | U65: FALSE | V65: 0 | W65: 9.084064624e-14 | X65: 9.084064624e-14 | Y65: 1.933696426e+10 | Z65: 0 | AA65: FALSE | AB65: 0 | AC65: 2.619181703e-10 | AD65: 2.619181703e-10 | AE65: 6702232.666 | AF65: 0 | AG65: FALSE | AH65: 0 | AI65: 8.279856486e-07 | AJ65: 8.279856486e-07 | AK65: 2120.129159 | AL65: 0 | AM65: FALSE | AN65: 0 | AO65: 0.00261832052 | AP65: 0.00261832052 | AQ65: 0.6704437075 | AR65: 0 | AS65: TRUE | AT65: 0.04189792974 | AU65: 8.279856486 | AV65: 0
B66: 3 | C66: 17 | D66: 4627.999433 | F66: 57 | G66: 10 | H66: 3 | I66: 921.6347978 | J66: 1 | K66: 0.4159318146 | L66: 0.4159318146 | M66: 2.615761729e+18 | N66: 0 | O66: FALSE | P66: 0 | Q66: 2.042831818e-16 | R66: 2.042831818e-16 | S66: 8.254510322e+14 | T66: 0 | U66: FALSE | V66: 0 | W66: 6.626684473e-13 | X66: 6.626684473e-13 | Y66: 2.612350048e+11 | Z66: 0 | AA66: FALSE | AB66: 0 | AC66: 1.910652493e-09 | AD66: 1.910652493e-09 | AE66: 90544604.55 | AF66: 0 | AG66: FALSE | AH66: 0 | AI66: 6.04002709e-06 | AJ66: 6.04002709e-06 | AK66: 28642.13551 | AL66: 0 | AM66: FALSE | AN66: 0 | AO66: 0.01910024273 | AP66: 0.01910024273 | AQ66: 9.057438527 | AR66: 0 | AS66: TRUE | AT66: 0.4159318146 | AU66: 60.4002709 | AV66: 0
B67: 3 | C67: 18 | D67: 5179.985382 | F67: 58 | G67: 7 | H67: 6 | I67: 949.8077972 | J67: 1 | K67: 0.9491141707 | L67: 0.9491141707 | M67: 8.471024447e+18 | N67: 0 | O67: FALSE | P67: 0 | Q67: 3.284637853e-16 | R67: 3.284637853e-16 | S67: 2673185326642725 | T67: 0 | U67: FALSE | V67: 0 | W67: 1.065494402e-12 | X67: 1.065494402e-12 | Y67: 8.459975872e+11 | Z67: 0 | AA67: FALSE | AB67: 0 | AC67: 3.072108751e-09 | AD67: 3.072108751e-09 | AE67: 293224551 | AF67: 0 | AG67: FALSE | AH67: 0 | AI67: 9.71166664e-06 | AJ67: 9.71166664e-06 | AK67: 92756.24282 | AL67: 0 | AM67: FALSE | AN67: 0 | AO67: 0.03071098646 | AP67: 0.03071098646 | AQ67: 29.33209945 | AR67: 0 | AS67: TRUE | AT67: 0.9491141707 | AU67: 97.1166664 | AV67: 0
B68: 3 | C68: 19 | D68: 5763.513385 | F68: 59 | G68: 11 | H68: 1 | I68: 959.2026473 | J68: 1 | K68: 0.9193468971 | L68: 0.9193468971 | M68: 9.200195053e+18 | N68: 0 | O68: FALSE | P68: 0 | Q68: 2.837581262e-16 | R68: 2.837581262e-16 | S68: 2.90328833e+15 | T68: 0 | U68: FALSE | V68: 0 | W68: 9.204749764e-13 | X68: 9.204749764e-13 | Y68: 9.188195437e+11 | Z68: 0 | AA68: FALSE | AB68: 0 | AC68: 2.653978495e-09 | AD68: 2.653978495e-09 | AE68: 318464795 | AF68: 0 | AG68: FALSE | AH68: 0 | AI68: 8.389857425e-06 | AJ68: 8.389857425e-06 | AK68: 100740.534 | AL68: 0 | AM68: FALSE | AN68: 0 | AO68: 0.02653105871 | AP68: 0.02653105871 | AQ68: 31.85695402 | AR68: 0 | AS68: TRUE | AT68: 0.9193468971 | AU68: 83.89857425 | AV68: 0
B69: 3 | C69: 20 | D69: 6378.583442 | F69: 60 | G69: 5 | H69: 7 | I69: 967.7042166 | J69: 1 | K69: 0.02788578943 | L69: 0.02788578943 | M69: 3.09212713e+17 | N69: 0 | O69: FALSE | P69: 0 | Q69: 7.767746772e-18 | R69: 7.767746772e-18 | S69: 9.757767699e+13 | T69: 0 | U69: FALSE | V69: 0 | W69: 2.519757451e-14 | X69: 2.519757451e-14 | Y69: 3.088094135e+10 | Z69: 0 | AA69: FALSE | AB69: 0 | AC69: 7.265142734e-11 | AD69: 7.265142734e-11 | AE69: 10703399.51 | AF69: 0 | AG69: FALSE | AH69: 0 | AI69: 2.296684462e-07 | AJ69: 2.296684462e-07 | AK69: 3385.825371 | AL69: 0 | AM69: FALSE | AN69: 0 | AO69: 0.0007262753966 | AP69: 0.0007262753966 | AQ69: 1.070691993 | AR69: 0 | AS69: TRUE | AT69: 0.02788578943 | AU69: 2.296684462 | AV69: 0
B70: 4 | C70: 1 | D70: 140.5223157 | F70: 61 | G70: 11 | H70: 2 | I70: 1006.515729 | J70: 1 | K70: 0.3822802102 | L70: 0.3822802102 | M70: 6.696024545e+18 | N70: 0 | O70: FALSE | P70: 0 | Q70: 6.741136305e-17 | R70: 6.741136305e-17 | S70: 2.11305193e+15 | T70: 0 | U70: FALSE | V70: 0 | W70: 2.186738179e-13 | X70: 2.186738179e-13 | Y70: 6.687291064e+11 | Z70: 0 | AA70: FALSE | AB70: 0 | AC70: 6.304958037e-10 | AD70: 6.304958037e-10 | AE70: 231782921.1 | AF70: 0 | AG70: FALSE | AH70: 0 | AI70: 1.993147235e-06 | AJ70: 1.993147235e-06 | AK70: 73320.30294 | AL70: 0 | AM70: FALSE | AN70: 0 | AO70: 0.006302884976 | AP70: 0.006302884976 | AQ70: 23.1859156 | AR70: 0 | AS70: TRUE | AT70: 0.3822802102 | AU70: 19.93147235 | AV70: 0
B71: 4 | C71: 2 | D71: 187.835397 | F71: 62 | G71: 1 | H71: 8 | I71: 1017.14269 | J71: 1 | K71: 0.6271396159 | L71: 0.6271396159 | M71: 1.241174187e+19 | N71: 0 | O71: FALSE | P71: 0 | Q71: 9.787736065e-17 | R71: 9.787736065e-17 | S71: 3916750146783157 | T71: 0 | U71: FALSE | V71: 0 | W71: 3.175016076e-13 | X71: 3.175016076e-13 | Y71: 1.23955535e+12 | Z71: 0 | AA71: FALSE | AB71: 0 | AC71: 9.154430704e-10 | AD71: 9.154430704e-10 | AE71: 429632503.1 | AF71: 0 | AG71: FALSE | AH71: 0 | AI71: 2.893933337e-06 | AJ71: 2.893933337e-06 | AK71: 135906.4125 | AL71: 0 | AM71: FALSE | AN71: 0 | AO71: 0.009151420741 | AP71: 0.009151420741 | AQ71: 42.97738121 | AR71: 0 | AS71: TRUE | AT71: 0.6271396159 | AU71: 28.93933337 | AV71: 0
B72: 4 | C72: 3 | D72: 266.6905326 | F72: 63 | G72: 9 | H72: 5 | I72: 1025.829076 | J72: 1 | K72: 0.07093140679 | L72: 0.07093140679 | M72: 1.549694443e+18 | N72: 0 | O72: FALSE | P72: 0 | Q72: 1.002807525e-17 | R72: 1.002807525e-17 | S72: 4.890341742e+14 | T72: 0 | U72: FALSE | V72: 0 | W72: 3.252979027e-14 | X72: 3.252979027e-14 | Y72: 1.54767321e+11 | Z72: 0 | AA72: FALSE | AB72: 0 | AC72: 9.379218993e-11 | AD72: 9.379218993e-11 | AE72: 53642680.41 | AF72: 0 | AG72: FALSE | AH72: 0 | AI72: 2.964994263e-07 | AJ72: 2.964994263e-07 | AK72: 16968.88433 | AL72: 0 | AM72: FALSE | AN72: 0 | AO72: 0.000937613512 | AP72: 0.000937613512 | AQ72: 5.366032385 | AR72: 0 | AS72: TRUE | AT72: 0.07093140679 | AU72: 2.964994263 | AV72: 0
B73: 4 | C73: 4 | D73: 377.0877223 | F73: 64 | G73: 10 | H73: 4 | I73: 1032.031988 | J73: 1 | K73: 0.3820585838 | L73: 0.3820585838 | M73: 8.953195715e+18 | N73: 0 | O73: FALSE | P73: 0 | Q73: 5.035798661e-17 | R73: 5.035798661e-17 | S73: 2825343211316651 | T73: 0 | U73: FALSE | V73: 0 | W73: 1.633548514e-13 | X73: 1.633548514e-13 | Y73: 8.941518255e+11 | Z73: 0 | AA73: FALSE | AB73: 0 | AC73: 4.709962506e-10 | AD73: 4.709962506e-10 | AE73: 309914911.7 | AF73: 0 | AG73: FALSE | AH73: 0 | AI73: 1.488931202e-06 | AJ73: 1.488931202e-06 | AK73: 98035.93427 | AL73: 0 | AM73: FALSE | AN73: 0 | AO73: 0.004708413877 | AP73: 0.004708413877 | AQ73: 31.00168448 | AR73: 0 | AS73: TRUE | AT73: 0.3820585838 | AU73: 14.88931202 | AV73: 0
B74: 4 | C74: 5 | D74: =3.1416/2*SQRT($H$2/$I$2)*(B74^2/$C$2^2+C74^2/$D$2^2) -> 519.0269662 | F74: 65 | G74: 2 | H74: 8 | I74: 1040.533557 | J74: 1 | K74: =ABS(SIN(G74*3.1416*$J$2/$C$2)*SIN(H74*3.1416*$K$2/$D$2))*(1/F74^$M$2)+(1-1/F74^$M$2) -> 0.973463913 | L74: =$J74*$K74 -> 0.973463913 | M74: =10^(LOG10($I74/22.27)/LOG10(2)*70/20)*$L74 -> 2.509535191e+19 | N74: =IF($I74<22.27,M74,0) -> 0 | O74: =AND($I74>22.27,$I74<44.45) -> FALSE | P74: =IF($O74=TRUE,$L74,0) -> 0 | Q74: =10^(LOG10(44.45/$I74)/LOG10(2)*70/20)*$L74 -> 1.166360856e-16 | R74: =IF($I74>44.45,Q74,0) -> 1.166360856e-16 | S74: =10^(LOG10($I74/44.548)/LOG10(2)*70/20)*$L74 -> 7919293224700717 | T74: =IF($I74<44.528,S74,0) -> 0 | U74: =AND($I74>44.548,$I74<89.095) -> FALSE | V74: =IF($U74=TRUE,$L74,0) -> 0 | W74: =10^(LOG10(89.095/$I74)/LOG10(2)*70/20)*$L74 -> 3.783525061e-13 | X74: =IF($I74>89.095,W74,0) -> 3.783525061e-13 | Y74: =10^(LOG10($I74/89.09)/LOG10(2)*70/20)*$L74 -> 2.506262059e+12 | Z74: =IF($I74<89.09,Y74,0) -> 0 | AA74: =AND($I74>89.09,$I74<176.78) -> FALSE | AB74: =IF($AA74=TRUE,$L74,0) -> 0 | AC74: =10^(LOG10(176.78/$I74)/LOG10(2)*70/20)*$L74 -> 1.090892681e-09 | AD74: =IF($I74>176.78,AC74,0) -> 1.090892681e-09 | AE74: =10^(LOG10($I74/176.78)/LOG10(2)*70/20)*$L74 -> 868675724.4 | AF74: =IF($I74<176.78,AE74,0) -> 0 | AG74: =AND($I74>176.78,$I74<353.55) -> FALSE | AH74: =IF($AG74=TRUE,$L74,0) -> 0 | AI74: =10^(LOG10(353.55/$I74)/LOG10(2)*70/20)*$L74 -> 3.448571296e-06 | AJ74: =IF($I74>353.55,AI74,0) -> 3.448571296e-06 | AK74: =10^(LOG10($I74/353.55)/LOG10(2)*70/20)*$L74 -> 274789.7342 | AL74: =IF($I74<353.55,AK74,0) -> 0 | AM74: =AND($I74>353.55,$I74<707.1) -> FALSE | AN74: =IF($AM74=TRUE,$L74,0) -> 0 | AO74: =10^(LOG10(707.1/$I74)/LOG10(2)*70/20)*$L74 -> 0.01090533997 | AP74: =IF($I74>707.1,AO74,0) -> 0.01090533997 | AQ74: =10^(LOG10($I74/707.1)/LOG10(2)*70/20)*$L74 -> 86.89614377 | AR74: =IF($I74<707.1,AQ74,0) -> 0 | AS74: =AND($I74>707.1,$I74<1414.2) -> TRUE | AT74: =IF($AS74=TRUE,$L74,0) -> 0.973463913 | AU74: =10^(LOG10(1414.2/$I74)/LOG10(2)*70/20)*$L74 -> 34.48571296 | AV74: =IF($I74>1414.2,AU74,0) -> 0
B75: 4 | C75: 6 | D75: 692.5082644 | F75: 66 | G75: 6 | H75: 7 | I75: 1053.470728 | J75: =IF(ABS(I75-I74)>0.0001,1,$L$2) -> 1 | K75: 0.08518304362 | L75: 0.08518304362 | M75: 2.535246307e+18 | N75: 0 | O75: FALSE | P75: 0 | Q75: 8.840415178e-18 | R75: 8.840415178e-18 | S75: 8.00042931e+14 | T75: 0 | U75: FALSE | V75: 0 | W75: 2.867717327e-14 | X75: 2.867717327e-14 | Y75: 2.53193964e+11 | Z75: 0 | AA75: FALSE | AB75: 0 | AC75: 8.268405237e-11 | AD75: 8.268405237e-11 | AE75: 87757562.82 | AF75: 0 | AG75: FALSE | AH75: 0 | AI75: 2.613839607e-07 | AJ75: 2.613839607e-07 | AK75: 27760.50566 | AL75: 0 | AM75: FALSE | AN75: 0 | AO75: 0.0008265686598 | AP75: 0.0008265686598 | AQ75: 8.778642687 | AR75: 0 | AS75: TRUE | AT75: 0.08518304362 | AU75: 2.613839607 | AV75: 0
B76: 4 | C76: 7 | D76: 897.5316168 | F76: 67 | G76: 8 | H76: 6 | I76: 1066.76213 | J76: 1 | K76: 0.6983696328 | L76: 0.6983696328 | M76: 2.404702541e+19 | N76: 0 | O76: FALSE | P76: 0 | Q76: 6.264636036e-17 | R76: 6.264636036e-17 | S76: 7588474792284267 | T76: 0 | U76: FALSE | V76: 0 | W76: 2.032167602e-13 | X76: 2.032167602e-13 | Y76: 2.401566139e+12 | Z76: 0 | AA76: FALSE | AB76: 0 | AC76: 5.859289227e-10 | AD76: 5.859289227e-10 | AE76: 832387897.5 | AF76: 0 | AG76: FALSE | AH76: 0 | AI76: 1.852260722e-06 | AJ76: 1.852260722e-06 | AK76: 263310.7415 | AL76: 0 | AM76: FALSE | AN76: 0 | AO76: 0.005857362701 | AP76: 0.005857362701 | AQ76: 83.26616755 | AR76: 0 | AS76: TRUE | AT76: 0.6983696328 | AU76: 18.52260722 | AV76: 0
B77: 4 | C77: 8 | D77: 1134.097023 | F77: 68 | G77: 3 | H77: 8 | I77: 1079.518335 | J77: 1 | K77: 0.8838987013 | L77: 0.8838987013 | M77: 3.494626925e+19 | N77: 0 | O77: FALSE | P77: 0 | Q77: 6.905429347e-17 | R77: 6.905429347e-17 | S77: 1.102792877e+16 | T77: 0 | U77: FALSE | V77: 0 | W77: 2.240032735e-13 | X77: 2.240032735e-13 | Y77: 3.490068959e+12 | Z77: 0 | AA77: FALSE | AB77: 0 | AC77: 6.458620668e-10 | AD77: 6.458620668e-10 | AE77: 1209665274 | AF77: 0 | AG77: FALSE | AH77: 0 | AI77: 2.041723649e-06 | AJ77: 2.041723649e-06 | AK77: 382655.5639 | AL77: 0 | AM77: FALSE | AN77: 0 | AO77: 0.006456497083 | AP77: 0.006456497083 | AQ77: 121.0063141 | AR77: 0 | AS77: TRUE | AT77: 0.8838987013 | AU77: 20.41723649 | AV77: 0
B78: 4 | C78: 9 | D78: 1402.204484 | F78: 69 | G78: 11 | H78: 3 | I78: 1085.370864 | J78: 1 | K78: 0.7603882281 | L78: 0.7603882281 | M78: 3.201362828e+19 | N78: 0 | O78: FALSE | P78: 0 | Q78: 5.57856355e-17 | R78: 5.57856355e-17 | S78: 1.010248075e+16 | T78: 0 | U78: FALSE | V78: 0 | W78: 1.809614484e-13 | X78: 1.809614484e-13 | Y78: 3.19718736e+12 | Z78: 0 | AA78: FALSE | AB78: 0 | AC78: 5.217608353e-10 | AD78: 5.217608353e-10 | AE78: 1108151893 | AF78: 0 | AG78: FALSE | AH78: 0 | AI78: 1.649410131e-06 | AJ78: 1.649410131e-06 | AK78: 350543.6559 | AL78: 0 | AM78: FALSE | AN78: 0 | AO78: 0.005215892811 | AP78: 0.005215892811 | AQ78: 110.8516372 | AR78: 0 | AS78: TRUE | AT78: 0.7603882281 | AU78: 16.49410131 | AV78: 0
B79: 4 | C79: 10 | D79: 1701.853999 | F79: 70 | G79: 4 | H79: 8 | I79: 1134.097023 | J79: 1 | K79: 0.3985487405 | L79: 0.3985487405 | M79: 2.795933876e+19 | N79: 0 | O79: FALSE | P79: 0 | Q79: 1.754779286e-17 | R79: 1.754779286e-17 | S79: 8823076191824748 | T79: 0 | U79: FALSE | V79: 0 | W79: 5.692278995e-14 | X79: 5.692278995e-14 | Y79: 2.7922872e+12 | Z79: 0 | AA79: FALSE | AB79: 0 | AC79: 1.641238103e-10 | AD79: 1.641238103e-10 | AE79: 967812642.5 | AF79: 0 | AG79: FALSE | AH79: 0 | AI79: 5.188344107e-07 | AJ79: 5.188344107e-07 | AK79: 306149.8915 | AL79: 0 | AM79: FALSE | AN79: 0 | AO79: 0.001640698466 | AP79: 0.001640698466 | AQ79: 96.81309625 | AR79: 0 | AS79: TRUE | AT79: 0.3985487405 | AU79: 5.188344107 | AV79: 0
B80: 4 | C80: 11 | D80: 2033.045568 | F80: 71 | G80: 12 | H80: 1 | I80: 1138.532625 | J80: 1 | K80: 0.9241542568 | L80: 0.9241542568 | M80: 6.784227344e+19 | N80: 0 | O80: FALSE | P80: 0 | Q80: 3.888436909e-17 | R80: 3.888436909e-17 | S80: 2.140885923e+16 | T80: 0 | U80: FALSE | V80: 0 | W80: 1.261359074e-13 | X80: 1.261359074e-13 | Y80: 6.775378822e+12 | Z80: 0 | AA80: FALSE | AB80: 0 | AC80: 3.636839612e-10 | AD80: 3.636839612e-10 | AE80: 2348360614 | AF80: 0 | AG80: FALSE | AH80: 0 | AI80: 1.149691525e-06 | AJ80: 1.149691525e-06 | AK80: 742861.0823 | AL80: 0 | AM80: FALSE | AN80: 0 | AO80: 0.003635643824 | AP80: 0.003635643824 | AQ80: 234.9133005 | AR80: 0 | AS80: TRUE | AT80: 0.9241542568 | AU80: 11.49691525 | AV80: 0
B81: 4 | C81: 12 | D81: 2395.779192 | F81: 72 | G81: 7 | H81: 7 | I81: 1154.83115 | J81: 1 | K81: 0.1043377488 | L81: 0.1043377488 | M81: 9.035858444e+18 | N81: 0 | O81: FALSE | P81: 0 | Q81: 3.72134572e-18 | R81: 3.72134572e-18 | S81: 2.851428934e+15 | T81: 0 | U81: FALSE | V81: 0 | W81: 1.207156835e-14 | X81: 1.207156835e-14 | Y81: 9.024073168e+11 | Z81: 0 | AA81: FALSE | AB81: 0 | AC81: 3.480559886e-11 | AD81: 3.480559886e-11 | AE81: 312776282.5 | AF81: 0 | AG81: FALSE | AH81: 0 | AI81: 1.100287785e-07 | AJ81: 1.100287785e-07 | AK81: 98941.07675 | AL81: 0 | AM81: FALSE | AN81: 0 | AO81: 0.0003479415483 | AP81: 0.0003479415483 | AQ81: 31.28791567 | AR81: 0 | AS81: TRUE | AT81: 0.1043377488 | AU81: 1.100287785 | AV81: 0
B82: 4 | C82: 13 | D82: 2790.054869 | F82: 73 | G82: 10 | H82: 5 | I82: 1173.971232 | J82: 1 | K82: 0.2570653017 | L82: 0.2570653017 | M82: 2.695096775e+19 | N82: 0 | O82: FALSE | P82: 0 | Q82: 7.573542543e-18 | R82: 7.573542543e-18 | S82: 8504866438763758 | T82: 0 | U82: FALSE | V82: 0 | W82: 2.456760089e-14 | X82: 2.456760089e-14 | Y82: 2.691581618e+12 | Z82: 0 | AA82: FALSE | AB82: 0 | AC82: 7.083504289e-11 | AD82: 7.083504289e-11 | AE82: 932907875.1 | AF82: 0 | AG82: FALSE | AH82: 0 | AI82: 2.239264228e-07 | AJ82: 2.239264228e-07 | AK82: 295108.4045 | AL82: 0 | AM82: FALSE | AN82: 0 | AO82: 0.0007081175243 | AP82: 0.0007081175243 | AQ82: 93.32147148 | AR82: 0 | AS82: TRUE | AT82: 0.2570653017 | AU82: 2.239264228 | AV82: 0
B83: 4 | C83: 14 | D83: 3215.872601 | F83: 74 | G83: 12 | H83: 2 | I83: 1185.845706 | J83: 1 | K83: 0.3842791928 | L83: 0.3842791928 | M83: 4.528925335e+19 | N83: 0 | O83: FALSE | P83: 0 | Q83: 1.007128978e-17 | R83: 1.007128978e-17 | S83: 1.42918449e+16 | T83: 0 | U83: FALSE | V83: 0 | W83: 3.266997264e-14 | X83: 3.266997264e-14 | Y83: 4.523018355e+12 | Z83: 0 | AA83: FALSE | AB83: 0 | AC83: 9.419637366e-11 | AD83: 9.419637366e-11 | AE83: 1567687717 | AF83: 0 | AG83: FALSE | AH83: 0 | AI83: 2.977771472e-07 | AJ83: 2.977771472e-07 | AK83: 495909.439 | AL83: 0 | AM83: FALSE | AN83: 0 | AO83: 0.0009416540203 | AP83: 0.0009416540203 | AQ83: 156.820334 | AR83: 0 | AS83: TRUE | AT83: 0.3842791928 | AU83: 2.977771472 | AV83: 0
B84: 4 | C84: 15 | D84: 3673.232387 | F84: 75 | G84: 11 | H84: 4 | I84: 1195.768054 | J84: 1 | K84: 0.6984626791 | L84: 0.6984626791 | M84: 9.069136186e+19 | N84: 0 | O84: FALSE | P84: 0 | Q84: 1.661525461e-17 | R84: 1.661525461e-17 | S84: 2.861930328e+16 | T84: 0 | U84: FALSE | V84: 0 | W84: 5.389775544e-14 | X84: 5.389775544e-14 | Y84: 9.057307507e+12 | Z84: 0 | AA84: FALSE | AB84: 0 | AC84: 1.55401817e-10 | AD84: 1.55401817e-10 | AE84: 3139281917 | AF84: 0 | AG84: FALSE | AH84: 0 | AI84: 4.91262115e-07 | AJ84: 4.91262115e-07 | AK84: 993054.6223 | AL84: 0 | AM84: FALSE | AN84: 0 | AO84: 0.001553507211 | AP84: 0.001553507211 | AQ84: 314.0314447 | AR84: 0 | AS84: TRUE | AT84: 0.6984626791 | AU84: 4.91262115 | AV84: 0
B85: 4 | C85: 16 | D85: 4162.134227 | F85: 76 | G85: 9 | H85: 6 | I85: 1199.310374 | J85: 1 | K85: 0.1349149964 | L85: 0.1349149964 | M85: 1.813089217e+19 | N85: 0 | O85: FALSE | P85: 0 | Q85: 3.100900211e-18 | R85: 3.100900211e-18 | S85: 5721531699324482 | T85: 0 | U85: FALSE | V85: 0 | W85: 1.005892267e-14 | X85: 1.005892267e-14 | Y85: 1.810724443e+12 | Z85: 0 | AA85: FALSE | AB85: 0 | AC85: 2.900259663e-11 | AD85: 2.900259663e-11 | AE85: 627600917.5 | AF85: 0 | AG85: FALSE | AH85: 0 | AI85: 9.16841079e-08 | AJ85: 9.16841079e-08 | AK85: 198530.1125 | AL85: 0 | AM85: FALSE | AN85: 0 | AO85: 0.0002899306062 | AP85: 0.0002899306062 | AQ85: 62.78073396 | AR85: 0 | AS85: TRUE | AT85: 0.1349149964 | AU85: 0.916841079 | AV85: 0
B86: 4 | C86: 17 | D86: 4682.578122 | F86: 77 | G86: 5 | H86: 8 | I86: 1204.269623 | J86: 1 | K86: 0.2652600337 | L86: 0.2652600337 | M86: 3.739965056e+19 | N86: 0 | O86: FALSE | P86: 0 | Q86: 5.811157009e-18 | R86: 5.811157009e-18 | S86: 1.180213771e+16 | T86: 0 | U86: FALSE | V86: 0 | W86: 1.88506482e-14 | X86: 1.88506482e-14 | Y86: 3.7350871e+12 | Z86: 0 | AA86: FALSE | AB86: 0 | AC86: 5.435152092e-11 | AD86: 5.435152092e-11 | AE86: 1294589080 | AF86: 0 | AG86: FALSE | AH86: 0 | AI86: 1.718180883e-07 | AJ86: 1.718180883e-07 | AK86: 409519.6621 | AL86: 0 | AM86: FALSE | AN86: 0 | AO86: 0.0005433365022 | AP86: 0.0005433365022 | AQ86: 129.5014879 | AR86: 0 | AS86: TRUE | AT86: 0.2652600337 | AU86: 1.718180883 | AV86: 0
B87: 4 | C87: 18 | D87: 5234.564071 | F87: 78 | G87: 12 | H87: 3 | I87: 1264.700842 | J87: 1 | K87: 0.7643643765 | L87: 0.7643643765 | M87: 1.904268662e+20 | N87: 0 | O87: FALSE | P87: 0 | Q87: 9.476744451e-18 | R87: 9.476744451e-18 | S87: 6.009264968e+16 | T87: 0 | U87: FALSE | V87: 0 | W87: 3.074134384e-14 | X87: 3.074134384e-14 | Y87: 1.901784965e+13 | Z87: 0 | AA87: FALSE | AB87: 0 | AC87: 8.863561482e-11 | AD87: 8.863561482e-11 | AE87: 6591626868 | AF87: 0 | AG87: FALSE | AH87: 0 | AI87: 2.801982656e-07 | AJ87: 2.801982656e-07 | AK87: 2085141.03 | AL87: 0 | AM87: FALSE | AN87: 0 | AO87: 0.0008860647156 | AP87: 0.0008860647156 | AQ87: 659.3794898 | AR87: 0 | AS87: TRUE | AT87: 0.7643643765 | AU87: 2.801982656 | AV87: 0
B88: 4 | C88: 19 | D88: 5818.092073 | F88: 79 | G88: 8 | H88: 7 | I88: 1271.785483 | J88: 1 | K88: 0.07677297163 | L88: 0.07677297163 | M88: 2.041001256e+19 | N88: 0 | O88: FALSE | P88: 0 | Q88: 8.919899135e-19 | R88: 8.919899135e-19 | S88: 6440749454810846 | T88: 0 | U88: FALSE | V88: 0 | W88: 2.893500904e-15 | X88: 2.893500904e-15 | Y88: 2.038339222e+12 | Z88: 0 | AA88: FALSE | AB88: 0 | AC88: 8.342746267e-12 | AD88: 8.342746267e-12 | AE88: 706492680.6 | AF88: 0 | AG88: FALSE | AH88: 0 | AI88: 2.637340576e-08 | AJ88: 2.637340576e-08 | AK88: 223486.084 | AL88: 0 | AM88: FALSE | AN88: 0 | AO88: 8.340003185e-05 | AP88: 8.340003185e-05 | AQ88: 70.67250507 | AR88: 0 | AS88: TRUE | AT88: 0.07677297163 | AU88: 0.2637340576 | AV88: 0
B89: 4 | C89: 20 | D89: 6433.162131 | F89: 80 | G89: 1 | H89: 9 | I89: 1285.250151 | J89: 1 | K89: 0.1948465816 | L89: 0.1948465816 | M89: 5.854720101e+19 | N89: 0 | O89: FALSE | P89: 0 | Q89: 2.002930859e-18 | R89: 2.002930859e-18 | S89: 1.847563062e+16 | T89: 0 | U89: FALSE | V89: 0 | W89: 6.497250881e-15 | X89: 6.497250881e-15 | Y89: 5.847083916e+12 | Z89: 0 | AA89: FALSE | AB89: 0 | AC89: 1.873333285e-11 | AD89: 1.873333285e-11 | AE89: 2026611638 | AF89: 0 | AG89: FALSE | AH89: 0 | AI89: 5.922052195e-08 | AJ89: 5.922052195e-08 | AK89: 641081.6576 | AL89: 0 | AM89: FALSE | AN89: 0 | AO89: 0.0001872717336 | AP89: 0.0001872717336 | AQ89: 202.7278204 | AR89: 0 | AS89: TRUE | AT89: 0.1948465816 | AU89: 0.5922052195 | AV89: 0
B90: 5 | C90: 1 | D90: 210.6949156 | F90: 81 | G90: 6 | H90: 8 | I90: 1290.036134 | J90: 1 | K90: 0.8102928941 | L90: 0.8102928941 | M90: 2.54228016e+20 | N90: 0 | O90: FALSE | P90: 0 | Q90: 7.977139112e-18 | R90: 7.977139112e-18 | S90: 8.022625909e+16 | T90: 0 | U90: FALSE | V90: 0 | W90: 2.587681641e-14 | X90: 2.587681641e-14 | Y90: 2.538964319e+13 | Z90: 0 | AA90: FALSE | AB90: 0 | AC90: 7.460986558e-11 | AD90: 7.460986558e-11 | AE90: 8800103968 | AF90: 0 | AG90: FALSE | AH90: 0 | AI90: 2.358595354e-07 | AJ90: 2.358595354e-07 | AK90: 2783752.512 | AL90: 0 | AM90: FALSE | AN90: 0 | AO90: 0.0007458533397 | AP90: 0.0007458533397 | AQ90: 880.2998381 | AR90: 0 | AS90: TRUE | AT90: 0.8102928941 | AU90: 2.358595354 | AV90: 0
B91: 5 | C91: 2 | D91: 258.0079969 | F91: 82 | G91: 2 | H91: 9 | I91: 1308.641018 | J91: 1 | K91: 0.3024463947 | L91: 0.3024463947 | M91: 1.120811319e+20 | N91: 0 | O91: FALSE | P91: 0 | Q91: 2.520872199e-18 | R91: 2.520872199e-18 | S91: 3.536923299e+16 | T91: 0 | U91: FALSE | V91: 0 | W91: 8.177386172e-15 | X91: 8.177386172e-15 | Y91: 1.119349469e+13 | Z91: 0 | AA91: FALSE | AB91: 0 | AC91: 2.357761765e-11 | AD91: 2.357761765e-11 | AE91: 3879688909 | AF91: 0 | AG91: FALSE | AH91: 0 | AI91: 7.453445868e-08 | AJ91: 7.453445868e-08 | AK91: 1227268.881 | AL91: 0 | AM91: FALSE | AN91: 0 | AO91: 0.0002356986536 | AP91: 0.0002356986536 | AQ91: 388.0964964 | AR91: 0 | AS91: TRUE | AT91: 0.3024463947 | AU91: 0.7453445868 | AV91: 0
B92: 5 | C92: 3 | D92: 336.8631324 | F92: 83 | G92: 13 | H92: 1 | I92: 1333.456513 | J92: 1 | K92: 0.5151515721 | L92: 0.5151515721 | M92: 2.375056565e+20 | N92: 0 | O92: FALSE | P92: 0 | Q92: 3.451299232e-18 | R92: 3.451299232e-18 | S92: 7.494921542e+16 | T92: 0 | U92: FALSE | V92: 0 | W92: 1.119557216e-14 | X92: 1.119557216e-14 | Y92: 2.37195883e+13 | Z92: 0 | AA92: FALSE | AB92: 0 | AC92: 3.227986477e-11 | AD92: 3.227986477e-11 | AE92: 8221259417 | AF92: 0 | AG92: FALSE | AH92: 0 | AI92: 1.020443322e-07 | AJ92: 1.020443322e-07 | AK92: 2600645.588 | AL92: 0 | AM92: FALSE | AN92: 0 | AO92: 0.000322692512 | AP92: 0.000322692512 | AQ92: 822.3963444 | AR92: 0 | AS92: TRUE | AT92: 0.5151515721 | AU92: 1.020443322 | AV92: 0
B93: 5 | C93: 4 | D93: 447.2603221 | F93: 84 | G93: 11 | H93: 5 | I93: 1337.707298 | J93: 1 | K93: 0.4699554649 | L93: 0.4699554649 | M93: 2.248363784e+20 | N93: 0 | O93: FALSE | P93: 0 | Q93: 3.034124102e-18 | R93: 3.034124102e-18 | S93: 7.095119504e+16 | T93: 0 | U93: FALSE | V93: 0 | W93: 9.842309534e-15 | X93: 9.842309534e-15 | Y93: 2.245431292e+13 | Z93: 0 | AA93: FALSE | AB93: 0 | AC93: 2.837804233e-11 | AD93: 2.837804233e-11 | AE93: 7782712295 | AF93: 0 | AG93: FALSE | AH93: 0 | AI93: 8.970974316e-08 | AJ93: 8.970974316e-08 | AK93: 2461919.198 | AL93: 0 | AM93: FALSE | AN93: 0 | AO93: 0.0002836871167 | AP93: 0.0002836871167 | AQ93: 778.5272081 | AR93: 0 | AS93: TRUE | AT93: 0.4699554649 | AU93: 0.8970974316 | AV93: 0
B94: 5 | C94: 5 | D94: 589.1995661 | F94: 85 | G94: 10 | H94: 6 | I94: 1347.45253 | J94: 1 | K94: 0.4889507459 | L94: 0.4889507459 | M94: 2.545229173e+20 | N94: 0 | O94: FALSE | P94: 0 | Q94: 2.901281354e-18 | R94: 2.901281354e-18 | S94: 8.031932053e+16 | T94: 0 | U94: FALSE | V94: 0 | W94: 9.411384694e-15 | X94: 9.411384694e-15 | Y94: 2.541909485e+13 | Z94: 0 | AA94: FALSE | AB94: 0 | AC94: 2.713556938e-11 | AD94: 2.713556938e-11 | AE94: 8810311976 | AF94: 0 | AG94: FALSE | AH94: 0 | AI94: 8.578199058e-08 | AJ94: 8.578199058e-08 | AK94: 2786981.63 | AL94: 0 | AM94: FALSE | AN94: 0 | AO94: 0.0002712664724 | AP94: 0.0002712664724 | AQ94: 881.3209747 | AR94: 0 | AS94: TRUE | AT94: 0.4889507459 | AU94: 0.8578199058 | AV94: 0
